Workbook

Sheet MENU
J1: PM
E2: =CHOOSE(MATCH(Objeto,{"PM","PO"}),"PLANILHA MÚLTIPLA ","PLANILHA ORÇAMENTÁRIA ")& Versao -> PLANILHA MÚLTIPLA v3.0.5 | J2: v3.0.5
O3: 1
O4: 1
J5: Proposto
E6: DADOS DO CONTRATO | G6: NOVIDADES DA VERSÃO | J6: Licitado
J7: PLE
B8: =IF($O$3<>2,"DOCUMENTAÇÃO DA PROPOSTA","PROPOSTA: Para visualizar/preencher esta seção, altere o TIPO DE ORÇAMENTO para 'Proposto'") -> DOCUMENTAÇÃO DA PROPOSTA | J8: BM | L8: LEGENDA:
L9: Cores das células:
C10: =IF(TIPOORCAMENTO<>"Proposto",""," BDI ") -> BDI | E10: =IF(TIPOORCAMENTO<>"Proposto",""," ORÇAMENTO ") -> ORÇAMENTO | G10: =IF(TIPOORCAMENTO<>"Proposto","","MEMÓRIA DE CÁLCULO / PLQ") -> MEMÓRIA DE CÁLCULO / PLQ | N10: Fundo amarelo: células para preencher
C12: =IF(TIPOORCAMENTO<>"Proposto",""," QCI ") -> QCI | E12: =IF(TIPOORCAMENTO<>"Proposto","","CRONOGRAMA FÍSICO-FINANCEIRO") -> CRONOGRAMA FÍSICO-FINANCEIRO | N12: Fundo azul: células para seleção de opções
C14: =IF(TIPOORCAMENTO<>"Proposto","","Obs: Composições e Cotações devem ser preenchidas diretamente no arquivo Referência "&IF(ISBLANK(Import.DataBase),"mm-aaaa",TEXT(Import.DataBase,"mm-aaaa"))&".xls.") -> Obs: Composições e Cotações devem ser preenchidas diretamente no arquivo Referência 02-2023.xls.
L15: Cores dos botões:
B16: =IF($O$3<>2,"PÓS-LICITADO: Para visualizar/preencher esta seção, altere o TIPO DE ORÇAMENTO para 'Licitado'","RESULTADO DO PROCESSO LICITATÓRIO") -> PÓS-LICITADO: Para visualizar/preencher esta seção, altere o TIPO DE ORÇAMENTO para 'Licitado' | N16: Fundo azul: navegação entre abas
C18: =IF(TIPOORCAMENTO<>"Licitado",""," ORÇAMENTO ") ->  | E18: =IF(TIPOORCAMENTO<>"Licitado",""," QCI ") ->  | G18: =IF(TIPOORCAMENTO<>"Licitado","","CRONOGRAMA FÍSICO-FINANCEIRO") ->  | N18: Fundo laranja: execução de macro
B20: =IF($O$3<>2,"ACOMPANHAMENTO: Para visualizar/preencher esta seção, altere o TIPO DE ORÇAMENTO para 'Licitado'","ACOMPANHAMENTO DO EMPREENDIMENTO") -> ACOMPANHAMENTO: Para visualizar/preencher esta seção, altere o TIPO DE ORÇAMENTO para 'Licitado'
C22: =IF(OR(TIPOORCAMENTO<>"Licitado",ACOMPANHAMENTO<>"PLE"),"","PLAN. DE LEVANT. DE EVENTOS - PLE") ->  | E22: =IF(TIPOORCAMENTO<>"Licitado",""," RRE ") ->  | G22: =IF(OR(TIPOORCAMENTO<>"Licitado",ACOMPANHAMENTO<>"BM"),""," BOLETIM DE MEDIÇÃO - BM ") -> 
E24: =IF(TIPOORCAMENTO<>"Licitado","","OF. DE SOLICITAÇÃO DE DESBLOQUEIO") -> 

Sheet DADOS
E1: A. DOCUMENTAÇÃO DA PROPOSTA | L1: Sub-Itens de Investimento
J2: Itens de Investimento | K2: Unidades habitacionais | L2: =COUNTA(K:K)-1 -> 3 | M2: Equipamentos comunitários | N2: =COUNTA(M:M)-1 -> 6 | O2: Pavimentação | P2: =COUNTA(O:O)-1 -> 6 | Q2: Drenagem | R2: =COUNTA(Q:Q)-1 -> 6 | S2: Abastecimento de água | T2: =COUNTA(S:S)-1 -> 11 | U2: Esgotamento sanitário | V2: =COUNTA(U:U)-1 -> 8 | W2: Energia elétrica e iluminação pública | X2: =COUNTA(W:W)-1 -> 4 | Y2: Coleta e tratamento de resíduos sólidos | Z2: =COUNTA(Y:Y)-1 -> 6 | AA2: Contenção e estabilização de encostas | AB2: =COUNTA(AA:AA)-1 -> 2 | AC2: Regularização fundiária | AD2: =COUNTA(AC:AC)-1 -> 2 | AE2: Aquisição de terreno | AF2: =COUNTA(AE:AE)-1 -> 2 | AG2: Aquisição de equipamentos e insumos | AH2: =COUNTA(AG:AG)-1 -> 1 | AI2: Elaboração de estudos e projetos | AJ2: =COUNTA(AI:AI)-1 -> 1 | AK2: Instrumentos e ações em planejamento e gestão pública | AL2: =COUNTA(AK:AK)-1 -> 1 | AM2: Ações complementares às obras | AN2: =COUNTA(AM:AM)-1 -> 3 | AO2: Gerenciamento | AP2: =COUNTA(AO:AO)-1 -> 1 | AQ2: Trabalho social | AR2: =COUNTA(AQ:AQ)-1 -> 4
E3: Dados do Contrato (Inicial) | J3: Unidades habitacionais | K3: Aquisição | L3: un | M3: Convivência comunitária, assistência social e/ou comunitária | N3: m² | O3: Capeamento de vias | P3: m² | Q3: Obras de microdrenagem | R3: m | S3: Captação subterrânea | T3: m³/s | U3: Ligações domiciliares e/ou intradomiciliares | V3: un | W3: Iluminação pública - luminárias | X3: un | Y3: Acondicionamento | Z3: un | AA3: Estabilização de taludes | AB3: m² | AC3: Desapropriacões/Indenizações | AD3: m² | AE3: Aquisição de terreno | AF3: m² | AG3: Aquisição de equipamentos e insumos | AH3: un | AI3: Elaboração de estudos e projetos | AJ3: un | AK3: Instrumentos e ações em planejamento e gestão pública | AL3: un | AM3: Avaliação pós intervenção | AN3: un | AO3: Gerenciamento | AP3: %CT | AQ3: Projeto de Trabalho Social Preliminar | AR3: nº fam
E4: Fonte de recursos: | F4: OGU | J4: Equipamentos comunitários | K4: Construção | L4: un | M4: Educação e cultura | N4: m² | O4: Recapeamento de vias | P4: m² | Q4: Desassoreamento de cursos de água | R4: m | S4: Captação superficial | T4: m³/s | U4: Rede coletora e/ou condominial | V4: m | W4: Ligações domiciliares | X4: un | Y4: Aterro sanitário e/ou disposição final | Z4: m³ | AA4: Obras complementares a ações de redução de risco e/ou contenções | AB4: m² | AC4: Projeto de Regularização Fundiária | AD4: m² | AE4: Benfeitorias | AF4: m² | AM4: Demolições | AN4: un | AQ4: Projeto de Trabalho Social | AR4: nº fam
E5: Proponente/Tomador: | F5: PREFEITURA MUNICIPAL DE ERVAL VELHO | J5: Pavimentação | K5: Reforma e/ou melhoria | L5: un | M5: Esportes | N5: m² | O5: Obras de artes especiais | P5: m | Q5: Canalização de cursos de água | R5: m | S5: Estação de bombeamento de água bruta | T5: m³/s | U5: Coletor tronco e/ou interceptores | V5: m | W5: Linhas de distribuição - baixa tensão | X5: m | Y5: Erradicação de lixões | Z5: m³ | AM5: Plano de Reassentamento e medidas compensatórias | AN5: un | AQ5: Plano de Desenvolvimento Socioterritorial | AR5: nº fam
E6: Município/UF: | F6: ERVAL VELHO/SC | J6: Drenagem | M6: Lazer e turismo | N6: m² | O6: Pavimentação de calçadas | P6: m² | Q6: Recomposição de vegetação ciliar, renaturalização de cursos de água ou restauração de margens | R6: m² | S6: Adução | T6: m | U6: Emissário | V6: m | W6: Linhas de transmissão - alta tensão | X6: m | Y6: Sistema de coleta seletiva tradicional, transporte e/ou equipamentos | Z6: un | AQ6: Plano de Gestão Condominial | AR6: nº fam
E7: Nº da Operação (0000000-00): | J7: Abastecimento de água | M7: Saúde | N7: m² | O7: Pavimentação de vias | P7: m² | Q7: Reservatório de amortecimento de cheias | R7: m³ | S7: Estação de Tratamento de Água (ETA) | T7: m³/s | U7: Estação Elevatória | V7: m³/s | Y7: Tratamento local | Z7: un
E8: Nº do SICONV (000000): | F8: 940117/2022 | J8: Esgotamento sanitário | M8: Segurança pública | N8: m² | O8: Sinalização | P8: m² | Q8: Estação de Bombeamento | R8: m³/s | S8: Estação de bombeamento de água tratada | T8: m³/s | U8: Estação de Tratamento de Esgoto (ETE) | V8: m³/s | Y8: Usinas de reciclagem | Z8: m²
E9: =IF(F4="FGTS","Valor de Financiamento Contratado (R$):","Valor do Repasse Contratado (R$):") -> Valor do Repasse Contratado (R$): | F9: 481104 | J9: Energia elétrica e iluminação pública | S9: Linha de recalque | T9: m | U9: Sistema simplificado de tratamento | V9: m³/s
E10: Valor de Contrapartida Contratada (R$): | F10: 230590.51 | J10: Coleta e tratamento de resíduos sólidos | S10: Reservação | T10: m³ | U10: Unidades sanitárias | V10: un
E11: % mínimo de Contrapartida: | J11: Contenção e estabilização de encostas | S11: Rede de distribuição | T11: m
E12: R$ mínimo de Contrapartida (se houver): | J12: Regularização fundiária | S12: Ligações domiciliares e/ou intradomiciliares | T12: un
E13: % máximo de Contrapartida: | J13: Aquisição de terreno | S13: Sistema simplificado de abastecimento | T13: m
J14: Aquisição de equipamentos e insumos
E15: Dados do Empreendimento e Orçamento | J15: Elaboração de estudos e projetos
E16: Nome/apelido: | F16: PAVIMENTAÇÃO DA RUA DAS AMEIXEIRAS | J16: Instrumentos e ações em planejamento e gestão pública
E17: Descrição do Objeto do Lote / CTEF: | F17: PAVIMENTAÇÃO DA RUA DAS AMEIXEIRAS | J17: Ações complementares às obras
E18: Regime previdenciário previsto para a obra: | F18: NÃO DESONERADO | J18: Gerenciamento
E19: Data base do Orçamento: | F19: 2023-02-01 | J19: Trabalho social
E21: Responsável pelo Orçamento
E22: Nome: | F22: MAX MOOSHAMMER
E23: CREA/CAU: | F23: 139.164-0
E24: ART/RRT: | F24: 8736435-7
E25: Data do preenchimento: | F25: =TODAY() -> 2023-07-20
E27: Responsável pelo Tomador (Prefeito, no caso de Municípios)
E28: Nome: | F28: SEVERINO JAIME SCHMIDT
E29: Cargo: | F29: PREFEITO MUNICIPAL
E32: B. RESULTADO DO PROCESSO LICITATÓRIO
E34: Licitação
E35: Data de emissão dos documentos de licitação:
E36: Nº do CTEF (contrato com empresa):
E37: Nome da empresa:
E38: CNPJ da empresa:
E39: Regime de execução do CTEF: | F39: (SELECIONAR)
E40: Data base do CTEF:
E43: C. ACOMPANHAMENTO DO EMPREENDIMENTO
E45: Dados da obra
E46: Data do Início da Obra:
E47: Data de fechamento do RRE:
E49: Responsável pela Fiscalização
E50: Nome:
E51: Profissão:
E52: CREA/CAU (para obras/projetos):
E53: ART/RRT (para obras/projetos):
E56: D. ACOMPANHAMENTO CAIXA
E58: Responsável Gerencial
E59: Nome:
E60: Função:

Sheet NOVO
B3: Novidades da Versão
A6: V3.0.0
B7: GERAL
C8: =IF(D8<>"","▪","") -> ▪ | D8: Lançamento: Adequação à Portaria 424/2016. Acompanhamento por Eventos.
C9: =IF(D9<>"","▪","") -> 
A10: V3.0.1
B11: GERAL
C12: =IF(D12<>"","▪","") -> ▪ | D12: Ajustes de formatações.
B13: PO
C14: =IF(D14<>"","▪","") -> ▪ | D14: Correção da aplicação do BDI não desonerado.
C15: =IF(D15<>"","▪","") -> ▪ | D15: Inclusão de coluna exclusiva "Preço Unitário Edital", para o Modo 'Orçamento Licitado'.
A17: V3.0.2
B18: GERAL
C19: =IF(D19<>"","▪","") -> ▪ | D19: Ajustes de formatações.
C20: =IF(D20<>"","▪","") -> ▪ | D20: Correção do Problema de Guias ocultas no BROFFICE.
B21: ORÇAMENTO
C22: =IF(D22<>"","▪","") -> ▪ | D22: Ampliada obtenção de dados da Planilha Referência de 20.000 para 65.536 linhas.
B23: CRONOGRAMA
C24: =IF(D24<>"","▪","") -> ▪ | D24: Correção na formulação do total acumulado por Repasse, CP e Outros
B25: QCI
C26: =IF(D26<>"","▪","") -> ▪ | D26: Correção na formulação do arredondamento no rateio dos valores do QCI.
B27: RRE
C28: =IF(D28<>"","▪","") -> ▪ | D28: Correção na formulação do total por Repasse, CP e Outros.
A30: V3.0.3
B31: GERAL
C32: =IF(D32<>"","▪","") -> ▪ | D32: Correção do Problema de Guias ocultas no BROFFICE.
B33: CÁLCULO
C34: =IF(D34<>"","▪","") -> ▪ | D34: Corrigida lentidão e travamento ao incluir e excluir frentes.
A37: V3.0.4
B38: BDI
C39: =IF(D39<>"","▪","") -> ▪ | D39: Correção da CPRB que exibia 4,5% mesmo quando não desonerado.
B40: CRONOGRAMA
C41: =IF(D41<>"","▪","") -> ▪ | D41: Correção da distribuição de Repasse, CP e Outros para as metas manuais.
B42: QCI
C43: =IF(D43<>"","▪","") -> ▪ | D43: Adicionado botão para adotar a CP do QCI como CP do contrato (zera saldo a reprogramar de CP).
A45: V3.0.5
B46: GERAL
C47: =IF(D47<>"","▪","") -> ▪ | D47: Corrigido modo de Cálculo da Planilha para Automático.

Sheet BDI
E1: MIN | F1: MED | G1: MAX | O1: ="Quadro de Composição do BDI" -> Quadro de Composição do BDI | R1: Grau de Sigilo
A2: Construção e Reforma de Edifícios | B2: AC | C2: =CONCATENATE(A2,"-",B2) -> Construção e Reforma de Edifícios-AC | E2: 0.03 | F2: 0.04 | G2: 0.055 | R2: #PUBLICO
A3: =A2 -> Construção e Reforma de Edifícios | B3: SG | C3: Construção e Reforma de Edifícios-SG | E3: 0.008 | F3: 0.008 | G3: 0.01
A4: =A3 -> Construção e Reforma de Edifícios | B4: R | C4: Construção e Reforma de Edifícios-R | E4: 0.0097 | F4: 0.0127 | G4: 0.0127 | J4: Nº OPERAÇÃO | L4: Nº SICONV | N4: PROPONENTE / TOMADOR
A5: =A4 -> Construção e Reforma de Edifícios | B5: DF | C5: Construção e Reforma de Edifícios-DF | E5: 0.0059 | F5: 0.0123 | G5: 0.0139 | J5: =Import.CR -> 0 | L5: =Import.SICONV -> 940117/2022 | N5: =Import.Proponente -> PREFEITURA MUNICIPAL DE ERVAL VELHO
A6: =A5 -> Construção e Reforma de Edifícios | B6: L | C6: Construção e Reforma de Edifícios-L | E6: 0.0616 | F6: 0.074 | G6: 0.0896 | I6: FILTRO
A7: =A6 -> Construção e Reforma de Edifícios | B7: BDI PAD | C7: Construção e Reforma de Edifícios-BDI PAD | E7: 0.2034 | F7: 0.2212 | G7: 0.25 | J7: APELIDO DO EMPREENDIMENTO / DESCRIÇÃO DO LOTE
A8: Construção de Praças Urbanas, Rodovias, Ferrovias e recapeamento e pavimentação de vias urbanas | B8: AC | C8: Construção de Praças Urbanas, Rodovias, Ferrovias e recapeamento e pavimentação de vias urbanas-AC | E8: 0.038 | F8: 0.0401 | G8: 0.0467 | J8: =Import.Apelido&" / "&Import.DescLote -> PAVIMENTAÇÃO DA RUA DAS AMEIXEIRAS / PAVIMENTAÇÃO DA RUA DAS AMEIXEIRAS
A9: Construção de Praças Urbanas, Rodovias, Ferrovias e recapeamento e pavimentação de vias urbanas | B9: SG | C9: Construção de Praças Urbanas, Rodovias, Ferrovias e recapeamento e pavimentação de vias urbanas-SG | E9: 0.0032 | F9: 0.004 | G9: 0.0074
A10: Construção de Praças Urbanas, Rodovias, Ferrovias e recapeamento e pavimentação de vias urbanas | B10: R | C10: Construção de Praças Urbanas, Rodovias, Ferrovias e recapeamento e pavimentação de vias urbanas-R | E10: 0.005 | F10: 0.0056 | G10: 0.0097 | J10: Conforme legislação tributária municipal, definir estimativa de percentual da base de cálculo para o ISS: | R10: 1
A11: Construção de Praças Urbanas, Rodovias, Ferrovias e recapeamento e pavimentação de vias urbanas | B11: DF | C11: Construção de Praças Urbanas, Rodovias, Ferrovias e recapeamento e pavimentação de vias urbanas-DF | E11: 0.0102 | F11: 0.0111 | G11: 0.0121 | I11: ↓ | J11: Sobre a base de cálculo, definir a respectiva alíquota do ISS (entre 2% e 5%): | R11: 0.03
A12: Construção de Praças Urbanas, Rodovias, Ferrovias e recapeamento e pavimentação de vias urbanas | B12: L | C12: Construção de Praças Urbanas, Rodovias, Ferrovias e recapeamento e pavimentação de vias urbanas-L | E12: 0.0664 | F12: 0.073 | G12: 0.0869 | I12: F
A13: Construção de Praças Urbanas, Rodovias, Ferrovias e recapeamento e pavimentação de vias urbanas | B13: BDI PAD | C13: Construção de Praças Urbanas, Rodovias, Ferrovias e recapeamento e pavimentação de vias urbanas-BDI PAD | E13: 0.196 | F13: 0.2097 | G13: 0.2423 | I13: F
A14: Construção de Redes de Abastecimento de Água, Coleta de Esgoto | B14: AC | C14: Construção de Redes de Abastecimento de Água, Coleta de Esgoto-AC | E14: 0.0343 | F14: 0.0493 | G14: 0.0671 | I14: F | J14: BDI 1
A15: =A14 -> Construção de Redes de Abastecimento de Água, Coleta de Esgoto | B15: SG | C15: Construção de Redes de Abastecimento de Água, Coleta de Esgoto-SG | E15: 0.0028 | F15: 0.0049 | G15: 0.0075 | I15: F
A16: =A15 -> Construção de Redes de Abastecimento de Água, Coleta de Esgoto | B16: R | C16: Construção de Redes de Abastecimento de Água, Coleta de Esgoto-R | E16: 0.01 | F16: 0.0139 | G16: 0.0174 | I16: F | J16: TIPO DE OBRA
A17: =A16 -> Construção de Redes de Abastecimento de Água, Coleta de Esgoto | B17: DF | C17: Construção de Redes de Abastecimento de Água, Coleta de Esgoto-DF | E17: 0.0094 | F17: 0.0099 | G17: 0.0117 | I17: F | J17: Construção de Praças Urbanas, Rodovias, Ferrovias e recapeamento e pavimentação de vias urbanas
A18: =A17 -> Construção de Redes de Abastecimento de Água, Coleta de Esgoto | B18: L | C18: Construção de Redes de Abastecimento de Água, Coleta de Esgoto-L | E18: 0.0674 | F18: 0.0804 | G18: 0.094 | I18: F
A19: =A18 -> Construção de Redes de Abastecimento de Água, Coleta de Esgoto | B19: BDI PAD | C19: Construção de Redes de Abastecimento de Água, Coleta de Esgoto-BDI PAD | E19: 0.2076 | F19: 0.2418 | G19: 0.2644 | I19: F | J19: Itens | R19: Siglas | S19: % Adotado | U19: Situação | X19: 1º Quartil | Y19: Médio | Z19: 3º Quartil
A20: Construção e Manutenção de Estações e Redes de Distribuição de Energia Elétrica | B20: AC | C20: Construção e Manutenção de Estações e Redes de Distribuição de Energia Elétrica-AC | E20: 0.0529 | F20: 0.0592 | G20: 0.0793 | I20: F
A21: =A20 -> Construção e Manutenção de Estações e Redes de Distribuição de Energia Elétrica | B21: SG | C21: Construção e Manutenção de Estações e Redes de Distribuição de Energia Elétrica-SG | E21: 0.0025 | F21: 0.0051 | G21: 0.0056 | I21: F | J21: =IF($J$17=$A$146,"Encargos Sociais incidentes sobre a mão de obra","Administração Central") -> Administração Central | R21: =IF($J17=$A$146,"K1","AC") -> AC | S21: 0.04 | U21: - | X21: =VLOOKUP(CONCATENATE(J17,"-",R21),$C$2:$G$136,3,FALSE) -> 0.038 | Y21: =VLOOKUP(CONCATENATE(J17,"-",R21),$C$2:$G$136,4,FALSE) -> 0.0401 | Z21: =VLOOKUP(CONCATENATE(J17,"-",R21),$C$2:$G$136,5,FALSE) -> 0.0467
A22: =A21 -> Construção e Manutenção de Estações e Redes de Distribuição de Energia Elétrica | B22: R | C22: Construção e Manutenção de Estações e Redes de Distribuição de Energia Elétrica-R | E22: 0.01 | F22: 0.0148 | G22: 0.0197 | I22: F | J22: =IF($J$17=$A$146,"Administração Central da empresa ou consultoria - overhead","Seguro e Garantia") -> Seguro e Garantia | R22: =IF($J17=$A$146,"K2","SG") -> SG | S22: 0.0035 | U22: - | X22: =VLOOKUP(CONCATENATE(J17,"-",R22),$C$2:$G$136,3,FALSE) -> 0.0032 | Y22: =VLOOKUP(CONCATENATE(J17,"-",R22),$C$2:$G$136,4,FALSE) -> 0.004 | Z22: =VLOOKUP(CONCATENATE(J17,"-",R22),$C$2:$G$136,5,FALSE) -> 0.0074
A23: =A22 -> Construção e Manutenção de Estações e Redes de Distribuição de Energia Elétrica | B23: DF | C23: Construção e Manutenção de Estações e Redes de Distribuição de Energia Elétrica-DF | E23: 0.0101 | F23: 0.0107 | G23: 0.0111 | I23: F | J23: =IF($J$17=$A$146,"","Risco") -> Risco | R23: =IF($J17=$A$146,"","R") -> R | S23: 0.0056 | U23: - | X23: =VLOOKUP(CONCATENATE(J17,"-",R23),$C$2:$G$136,3,FALSE) -> 0.005 | Y23: =VLOOKUP(CONCATENATE(J17,"-",R23),$C$2:$G$136,4,FALSE) -> 0.0056 | Z23: =VLOOKUP(CONCATENATE(J17,"-",R23),$C$2:$G$136,5,FALSE) -> 0.0097
A24: =A23 -> Construção e Manutenção de Estações e Redes de Distribuição de Energia Elétrica | B24: L | C24: Construção e Manutenção de Estações e Redes de Distribuição de Energia Elétrica-L | E24: 0.08 | F24: 0.0831 | G24: 0.0951 | I24: F | J24: =IF($J$17=$A$146,"","Despesas Financeiras") -> Despesas Financeiras | R24: =IF($J17=$A$146,"","DF") -> DF | S24: 0.0111 | U24: - | X24: =VLOOKUP(CONCATENATE(J17,"-",R24),$C$2:$G$136,3,FALSE) -> 0.0102 | Y24: =VLOOKUP(CONCATENATE(J17,"-",R24),$C$2:$G$136,4,FALSE) -> 0.0111 | Z24: =VLOOKUP(CONCATENATE(J17,"-",R24),$C$2:$G$136,5,FALSE) -> 0.0121
A25: =A24 -> Construção e Manutenção de Estações e Redes de Distribuição de Energia Elétrica | B25: BDI PAD | C25: Construção e Manutenção de Estações e Redes de Distribuição de Energia Elétrica-BDI PAD | E25: 0.24 | F25: 0.2584 | G25: 0.2786 | I25: F | J25: =IF($J$17=$A$146,"Margem bruta da empresa de consultoria","Lucro") -> Lucro | R25: =IF($J17=$A$146,"K3","L") -> L | S25: 0.07 | U25: - | X25: =VLOOKUP(CONCATENATE(J17,"-",R25),$C$2:$G$136,3,FALSE) -> 0.0664 | Y25: =VLOOKUP(CONCATENATE(J17,"-",R25),$C$2:$G$136,4,FALSE) -> 0.073 | Z25: =VLOOKUP(CONCATENATE(J17,"-",R25),$C$2:$G$136,5,FALSE) -> 0.0869
A26: Obras Portuárias, Marítimas e Fluviais | B26: AC | C26: Obras Portuárias, Marítimas e Fluviais-AC | E26: 0.04 | F26: 0.0552 | G26: 0.0785 | I26: F | J26: Tributos (impostos COFINS 3%, e PIS 0,65%) | R26: CP | S26: 0.0365 | U26: - | X26: 0.0365 | Y26: 0.0365 | Z26: 0.0365
A27: =A26 -> Obras Portuárias, Marítimas e Fluviais | B27: SG | C27: Obras Portuárias, Marítimas e Fluviais-SG | E27: 0.0081 | F27: 0.0122 | G27: 0.0199 | I27: F | J27: Tributos (ISS, variável de acordo com o município) | R27: ISS | S27: =IF(AND($J17<>$A$145,COUNTA(OFFSET(S20,1,0,6))>0),$R$11*$R$10,0) -> 0.03 | U27: - | X27: 0 | Y27: 0.025 | Z27: 0.05
A28: =A27 -> Obras Portuárias, Marítimas e Fluviais | B28: R | C28: Obras Portuárias, Marítimas e Fluviais-R | E28: 0.0146 | F28: 0.0232 | G28: 0.0316 | I28: F | J28: Tributos (Contribuição Previdenciária sobre a Receita Bruta - 0% ou 4,5% - Desoneração) | R28: CPRB | S28: =IF(BDI.Opcao<>"Desonerado",0,IF(AND($J17<>$A$145,COUNTA(OFFSET(S20,1,0,6))>0),4.5%,0%)) -> 0 | U28: - | X28: 0 | Y28: 0.045 | Z28: 0.045
A29: =A28 -> Obras Portuárias, Marítimas e Fluviais | B29: DF | C29: Obras Portuárias, Marítimas e Fluviais-DF | E29: 0.0094 | F29: 0.0102 | G29: 0.0133 | I29: F | J29: BDI SEM desoneração (Fórmula Acórdão TCU) | R29: BDI PAD | S29: =IF($J17=$A$145,0,ROUND((((1+S21+S22+S23)*(1+S24)*(1+S25)/(1-(S26+S27)))-1),4)) -> 0.2159 | U29: =IF(OR($J$17=$A$146,$J$17=$A$145,AND(S29>=X29,S29<=Z29)),"OK","FORA DO INTERVALO") -> OK | X29: =IF($J17=$A$145,0,VLOOKUP(CONCATENATE($J17,"-",$R29),$C$2:$G$136,3,FALSE)) -> 0.196 | Y29: =IF($J17=$A$145,0,VLOOKUP(CONCATENATE($J17,"-",$R29),$C$2:$G$136,4,FALSE)) -> 0.2097 | Z29: =IF($J17=$A$145,0,VLOOKUP(CONCATENATE($J17,"-",$R29),$C$2:$G$136,5,FALSE)) -> 0.2423
A30: =A29 -> Obras Portuárias, Marítimas e Fluviais | B30: L | C30: Obras Portuárias, Marítimas e Fluviais-L | E30: 0.0714 | F30: 0.084 | G30: 0.1043 | I30: F | J30: BDI COM desoneração | R30: BDI DES | S30: =IF($J17=$A$145,0,ROUND((((1+S21+S22+S23)*(1+S24)*(1+S25)/(1-(S26+S27+S28)))-1),4)) -> 0.2159
A31: =A30 -> Obras Portuárias, Marítimas e Fluviais | B31: BDI PAD | C31: Obras Portuárias, Marítimas e Fluviais-BDI PAD | E31: 0.228 | F31: 0.2748 | G31: 0.3095 | I31: F
A32: Fornecimento de Materiais e Equipamentos (aquisição indireta - em conjunto com licitação de obras) | B32: AC | C32: Fornecimento de Materiais e Equipamentos (aquisição indireta - em conjunto com licitação de obras)-AC | E32: 0.015 | F32: 0.0345 | G32: 0.0449 | I32: F | J32: =IF(U29<>"ok","X","") ->  | K32: =IF(U29<>"ok","Anexo: Relatório Técnico Circunstanciado justificando a adoção do percentual de cada parcela do BDI.","") -> 
A33: =A32 -> Fornecimento de Materiais e Equipamentos (aquisição indireta - em conjunto com licitação de obras) | B33: SG | C33: Fornecimento de Materiais e Equipamentos (aquisição indireta - em conjunto com licitação de obras)-SG | E33: 0.003 | F33: 0.0048 | G33: 0.0082 | I33: F
A34: =A33 -> Fornecimento de Materiais e Equipamentos (aquisição indireta - em conjunto com licitação de obras) | B34: R | C34: Fornecimento de Materiais e Equipamentos (aquisição indireta - em conjunto com licitação de obras)-R | E34: 0.0056 | F34: 0.0085 | G34: 0.0089 | I34: F | J34: Os valores de BDI foram calculados com o emprego da fórmula:
A35: =A34 -> Fornecimento de Materiais e Equipamentos (aquisição indireta - em conjunto com licitação de obras) | B35: DF | C35: Fornecimento de Materiais e Equipamentos (aquisição indireta - em conjunto com licitação de obras)-DF | E35: 0.0085 | F35: 0.0085 | G35: 0.0111 | I35: F | M35: BDI = | N35: =IF($J17=$A$146,"(1+K1+K2)*(1+K3)","(1+AC + S + R + G)*(1 + DF)*(1+L)") -> (1+AC + S + R + G)*(1 + DF)*(1+L) | Q35: - 1
A36: =A35 -> Fornecimento de Materiais e Equipamentos (aquisição indireta - em conjunto com licitação de obras) | B36: L | C36: Fornecimento de Materiais e Equipamentos (aquisição indireta - em conjunto com licitação de obras)-L | E36: 0.035 | F36: 0.0511 | G36: 0.0622 | I36: F | N36: (1-CP-ISS-CRPB)
A37: =A36 -> Fornecimento de Materiais e Equipamentos (aquisição indireta - em conjunto com licitação de obras) | B37: BDI PAD | C37: Fornecimento de Materiais e Equipamentos (aquisição indireta - em conjunto com licitação de obras)-BDI PAD | E37: 0.111 | F37: 0.1402 | G37: 0.168 | I37: F
A38: Fornecimento de Materiais e Equipamentos (aquisição direta) | B38: AC | C38: Fornecimento de Materiais e Equipamentos (aquisição direta)-AC | E38: - | F38: - | G38: - | I38: F | J38: =CONCATENATE("Declaro para os devidos fins que, conforme legislação tributária municipal, a base de cálculo deste tipo de obra corresponde à ",$R$10*100,"%, com a respectiva alíquota de ",$R$11*100,"%.") -> Declaro para os devidos fins que, conforme legislação tributária municipal, a base de cálculo deste tipo de obra corresponde à 100%, com a respectiva alíquota de 3%.
A39: Fornecimento de Materiais e Equipamentos (aquisição direta) | B39: SG | C39: Fornecimento de Materiais e Equipamentos (aquisição direta)-SG | E39: - | F39: - | G39: - | I39: F
A40: Fornecimento de Materiais e Equipamentos (aquisição direta) | B40: R | C40: Fornecimento de Materiais e Equipamentos (aquisição direta)-R | E40: - | F40: - | G40: - | I40: F | J40: =CONCATENATE("Declaro para os devidos fins que o regime de Contribuição Previdenciária sobre a Receita Bruta adotado para elaboração do orçamento foi ",IF(DESONERACAO="Sim","COM","SEM")," Desoneração, e que esta é a alternativa mais adequada para a Administração Pública.") -> Declaro para os devidos fins que o regime de Contribuição Previdenciária sobre a Receita Bruta adotado para elaboração do orçamento foi SEM Desoneração, e que esta é a alternativa mais adequada para a Administração Pública.
A41: Fornecimento de Materiais e Equipamentos (aquisição direta) | B41: DF | C41: Fornecimento de Materiais e Equipamentos (aquisição direta)-DF | E41: - | F41: - | G41: - | I41: F
A42: Fornecimento de Materiais e Equipamentos (aquisição direta) | B42: L | C42: Fornecimento de Materiais e Equipamentos (aquisição direta)-L | E42: - | F42: - | G42: - | I42: F | J42: Observações:
A43: Fornecimento de Materiais e Equipamentos (aquisição direta) | B43: BDI PAD | C43: Fornecimento de Materiais e Equipamentos (aquisição direta)-BDI PAD | E43: - | F43: - | G43: - | I43: F
A44: Estudos e Projetos, Planos e Gerenciamento e outros correlatos | B44: K1 | C44: Estudos e Projetos, Planos e Gerenciamento e outros correlatos-K1 | E44: - | F44: - | G44: - | I44: F
A45: =A44 -> Estudos e Projetos, Planos e Gerenciamento e outros correlatos | B45: K2 | C45: Estudos e Projetos, Planos e Gerenciamento e outros correlatos-K2 | E45: - | F45: 0.2 | G45: - | I45: F | J45: =Import.Município -> ERVAL VELHO/SC | P45: =DADOS!$F$25 -> 2023-07-20
A46: =A45 -> Estudos e Projetos, Planos e Gerenciamento e outros correlatos | C46: Estudos e Projetos, Planos e Gerenciamento e outros correlatos- | E46: - | F46: - | G46: - | I46: F | J46: Local | P46: Data
A47: =A46 -> Estudos e Projetos, Planos e Gerenciamento e outros correlatos | C47: Estudos e Projetos, Planos e Gerenciamento e outros correlatos- | E47: - | F47: - | G47: - | I47: F
A48: =A47 -> Estudos e Projetos, Planos e Gerenciamento e outros correlatos | B48: K3 | C48: Estudos e Projetos, Planos e Gerenciamento e outros correlatos-K3 | E48: - | F48: 0.12 | G48: - | I48: F
A49: =A48 -> Estudos e Projetos, Planos e Gerenciamento e outros correlatos | B49: BDI PAD | C49: Estudos e Projetos, Planos e Gerenciamento e outros correlatos-BDI PAD | E49: - | F49: - | G49: - | I49: F | J49: Responsável Técnico
I50: F | J50: Nome: | K50: =Import.RespOrçamento -> MAX MOOSHAMMER
I51: F | J51: CREA/CAU: | K51: 139.164-0
I52: F | J52: ART/RRT: | K52: 8736435-7
I53: F
I54: =IF($S$69=0,"","F") ->  | J54: BDI 2
I55: =IF($S$69=0,"","F") -> 
J56: TIPO DE OBRA
J57: (SELECIONAR)
J59: Itens | R59: Siglas | S59: % Adotado | U59: Situação | X59: 1º Quartil | Y59: Médio | Z59: 3º Quartil
J61: =IF($J$17=$A$146,"Encargos Sociais incidentes sobre a mão de obra","Administração Central") -> Administração Central | R61: =IF($J57=$A$146,"K1","AC") -> AC | U61: - | X61: =VLOOKUP(CONCATENATE(J57,"-",R61),$C$2:$G$136,3,FALSE) ->  | Y61: =VLOOKUP(CONCATENATE(J57,"-",R61),$C$2:$G$136,4,FALSE) ->  | Z61: =VLOOKUP(CONCATENATE(J57,"-",R61),$C$2:$G$136,5,FALSE) -> 
J62: =IF($J$17=$A$146,"Administração Central da empresa ou consultoria - overhead","Seguro e Garantia") -> Seguro e Garantia | R62: =IF($J57=$A$146,"K2","SG") -> SG | U62: - | X62: =VLOOKUP(CONCATENATE(J57,"-",R62),$C$2:$G$136,3,FALSE) ->  | Y62: =VLOOKUP(CONCATENATE(J57,"-",R62),$C$2:$G$136,4,FALSE) ->  | Z62: =VLOOKUP(CONCATENATE(J57,"-",R62),$C$2:$G$136,5,FALSE) -> 
J63: =IF($J$17=$A$146,"","Risco") -> Risco | R63: =IF($J57=$A$146,"","R") -> R | U63: - | X63: =VLOOKUP(CONCATENATE(J57,"-",R63),$C$2:$G$136,3,FALSE) ->  | Y63: =VLOOKUP(CONCATENATE(J57,"-",R63),$C$2:$G$136,4,FALSE) ->  | Z63: =VLOOKUP(CONCATENATE(J57,"-",R63),$C$2:$G$136,5,FALSE) -> 
J64: =IF($J$17=$A$146,"","Despesas Financeiras") -> Despesas Financeiras | R64: =IF($J57=$A$146,"","DF") -> DF | U64: - | X64: =VLOOKUP(CONCATENATE(J57,"-",R64),$C$2:$G$136,3,FALSE) ->  | Y64: =VLOOKUP(CONCATENATE(J57,"-",R64),$C$2:$G$136,4,FALSE) ->  | Z64: =VLOOKUP(CONCATENATE(J57,"-",R64),$C$2:$G$136,5,FALSE) -> 
J65: =IF($J$17=$A$146,"Margem bruta da empresa de consultoria","Lucro") -> Lucro | R65: =IF($J57=$A$146,"K3","L") -> L | U65: - | X65: =VLOOKUP(CONCATENATE(J57,"-",R65),$C$2:$G$136,3,FALSE) ->  | Y65: =VLOOKUP(CONCATENATE(J57,"-",R65),$C$2:$G$136,4,FALSE) ->  | Z65: =VLOOKUP(CONCATENATE(J57,"-",R65),$C$2:$G$136,5,FALSE) -> 
J66: Tributos (impostos COFINS 3%, e PIS 0,65%) | R66: CP | U66: - | X66: 0.0365 | Y66: 0.0365 | Z66: 0.0365
J67: Tributos (ISS, variável de acordo com o município) | R67: ISS | S67: =IF(AND($J57<>$A$145,COUNTA(OFFSET(S60,1,0,6))>0),$R$11*$R$10,0) -> 0 | U67: - | X67: 0 | Y67: 0.025 | Z67: 0.05
J68: Tributos (Contribuição Previdenciária sobre a Receita Bruta - 0% ou 4,5% - Desoneração) | R68: CPRB | S68: =IF(BDI.Opcao<>"Desonerado",0,IF(AND($J57<>$A$145,COUNTA(OFFSET(S60,1,0,6))>0),4.5%,0%)) -> 0 | U68: - | X68: 0 | Y68: 0.045 | Z68: 0.045
J69: BDI SEM desoneração (Fórmula Acórdão TCU) | R69: BDI PAD | S69: =IF($J57=$A$145,0,ROUND((((1+S61+S62+S63)*(1+S64)*(1+S65)/(1-(S66+S67)))-1),4)) -> 0 | U69: =IF(OR($J$17=$A$146,$J$17=$A$145,AND(S69>=X69,S69<=Z69)),"OK","FORA DO INTERVALO") ->  | X69: =IF($J57=$A$145,0,VLOOKUP(CONCATENATE($J57,"-",$R69),$C$2:$G$136,3,FALSE)) ->  | Y69: =IF($J57=$A$145,0,VLOOKUP(CONCATENATE($J57,"-",$R69),$C$2:$G$136,4,FALSE)) ->  | Z69: =IF($J57=$A$145,0,VLOOKUP(CONCATENATE($J57,"-",$R69),$C$2:$G$136,5,FALSE)) -> 
J70: BDI COM desoneração | R70: BDI DES | S70: =IF($J57=$A$145,0,ROUND((((1+S61+S62+S63)*(1+S64)*(1+S65)/(1-(S66+S67+S68)))-1),4)) -> 0
J72: =IF(U69<>"ok","X","") ->  | K72: =IF(U69<>"ok","Anexo: Relatório Técnico Circunstanciado justificando a adoção do percentual de cada parcela do BDI.","") -> 
J74: Os valores de BDI foram calculados com o emprego da fórmula:
M75: BDI = | N75: =IF($J57=$A$146,"(1+K1+K2)*(1+K3)","(1+AC + S + R + G)*(1 + DF)*(1+L)") -> (1+AC + S + R + G)*(1 + DF)*(1+L) | Q75: - 1
N76: (1-CP-ISS-CRPB)
J78: =CONCATENATE("Declaro para os devidos fins que, conforme legislação tributária municipal, a base de cálculo deste tipo de obra corresponde à ",$R$10*100,"%, com a respectiva alíquota de ",$R$11*100,"%.") -> Declaro para os devidos fins que, conforme legislação tributária municipal, a base de cálculo deste tipo de obra corresponde à 100%, com a respectiva alíquota de 3%.
J80: =CONCATENATE("Declaro para os devidos fins que o regime de Contribuição Previdenciária sobre a Receita Bruta adotado para elaboração do orçamento foi ",IF(DESONERACAO="Sim","COM","SEM")," Desoneração, e que esta é a alternativa mais adequada para a Administração Pública.") -> Declaro para os devidos fins que o regime de Contribuição Previdenciária sobre a Receita Bruta adotado para elaboração do orçamento foi SEM Desoneração, e que esta é a alternativa mais adequada para a Administração Pública.
J82: Observações:
J85: =Import.Município -> ERVAL VELHO/SC | P85: =DADOS!$F$25 -> 2023-07-20
J86: Local | P86: Data
J89: Responsável Técnico
J90: Nome: | K90: =Import.RespOrçamento -> MAX MOOSHAMMER
J91: CREA/CAU: | K91: 139.164-0
J92: ART/RRT: | K92: 8736435-7
I94: =IF($S$109=0,"","F") ->  | J94: BDI 3
I95: =IF($S$109=0,"","F") -> 
J96: TIPO DE OBRA
J97: (SELECIONAR)
J99: Itens | R99: Siglas | S99: % Adotado | U99: Situação | X99: 1º Quartil | Y99: Médio | Z99: 3º Quartil
J101: =IF($J$17=$A$146,"Encargos Sociais incidentes sobre a mão de obra","Administração Central") -> Administração Central | R101: =IF($J97=$A$146,"K1","AC") -> AC | U101: - | X101: =VLOOKUP(CONCATENATE(J97,"-",R101),$C$2:$G$136,3,FALSE) ->  | Y101: =VLOOKUP(CONCATENATE(J97,"-",R101),$C$2:$G$136,4,FALSE) ->  | Z101: =VLOOKUP(CONCATENATE(J97,"-",R101),$C$2:$G$136,5,FALSE) -> 
J102: =IF($J$17=$A$146,"Administração Central da empresa ou consultoria - overhead","Seguro e Garantia") -> Seguro e Garantia | R102: =IF($J97=$A$146,"K2","SG") -> SG | U102: - | X102: =VLOOKUP(CONCATENATE(J97,"-",R102),$C$2:$G$136,3,FALSE) ->  | Y102: =VLOOKUP(CONCATENATE(J97,"-",R102),$C$2:$G$136,4,FALSE) ->  | Z102: =VLOOKUP(CONCATENATE(J97,"-",R102),$C$2:$G$136,5,FALSE) -> 
J103: =IF($J$17=$A$146,"","Risco") -> Risco | R103: =IF($J97=$A$146,"","R") -> R | U103: - | X103: =VLOOKUP(CONCATENATE(J97,"-",R103),$C$2:$G$136,3,FALSE) ->  | Y103: =VLOOKUP(CONCATENATE(J97,"-",R103),$C$2:$G$136,4,FALSE) ->  | Z103: =VLOOKUP(CONCATENATE(J97,"-",R103),$C$2:$G$136,5,FALSE) -> 
J104: =IF($J$17=$A$146,"","Despesas Financeiras") -> Despesas Financeiras | R104: =IF($J97=$A$146,"","DF") -> DF | U104: - | X104: =VLOOKUP(CONCATENATE(J97,"-",R104),$C$2:$G$136,3,FALSE) ->  | Y104: =VLOOKUP(CONCATENATE(J97,"-",R104),$C$2:$G$136,4,FALSE) ->  | Z104: =VLOOKUP(CONCATENATE(J97,"-",R104),$C$2:$G$136,5,FALSE) -> 
J105: =IF($J$17=$A$146,"Margem bruta da empresa de consultoria","Lucro") -> Lucro | R105: =IF($J97=$A$146,"K3","L") -> L | U105: - | X105: =VLOOKUP(CONCATENATE(J97,"-",R105),$C$2:$G$136,3,FALSE) ->  | Y105: =VLOOKUP(CONCATENATE(J97,"-",R105),$C$2:$G$136,4,FALSE) ->  | Z105: =VLOOKUP(CONCATENATE(J97,"-",R105),$C$2:$G$136,5,FALSE) -> 
J106: Tributos (impostos COFINS 3%, e PIS 0,65%) | R106: CP | U106: - | X106: 0.0365 | Y106: 0.0365 | Z106: 0.0365
J107: Tributos (ISS, variável de acordo com o município) | R107: ISS | S107: =IF(AND($J97<>$A$145,COUNTA(OFFSET(S100,1,0,6))>0),$R$11*$R$10,0) -> 0 | U107: - | X107: 0 | Y107: 0.025 | Z107: 0.05
J108: Tributos (Contribuição Previdenciária sobre a Receita Bruta - 0% ou 4,5% - Desoneração) | R108: CPRB | S108: =IF(BDI.Opcao<>"Desonerado",0,IF(AND($J97<>$A$145,COUNTA(OFFSET(S100,1,0,6))>0),4.5%,0%)) -> 0 | U108: - | X108: 0 | Y108: 0.045 | Z108: 0.045
J109: BDI SEM desoneração (Fórmula Acórdão TCU) | R109: BDI PAD | S109: =IF($J97=$A$145,0,ROUND((((1+S101+S102+S103)*(1+S104)*(1+S105)/(1-(S106+S107)))-1),4)) -> 0 | U109: =IF(OR($J$17=$A$146,$J$17=$A$145,AND(S109>=X109,S109<=Z109)),"OK","FORA DO INTERVALO") ->  | X109: =IF($J97=$A$145,0,VLOOKUP(CONCATENATE($J97,"-",$R109),$C$2:$G$136,3,FALSE)) ->  | Y109: =IF($J97=$A$145,0,VLOOKUP(CONCATENATE($J97,"-",$R109),$C$2:$G$136,4,FALSE)) ->  | Z109: =IF($J97=$A$145,0,VLOOKUP(CONCATENATE($J97,"-",$R109),$C$2:$G$136,5,FALSE)) -> 
J110: BDI COM desoneração | R110: BDI DES | S110: =IF($J97=$A$145,0,ROUND((((1+S101+S102+S103)*(1+S104)*(1+S105)/(1-(S106+S107+S108)))-1),4)) -> 0
J112: =IF(U109<>"ok","X","") ->  | K112: =IF(U109<>"ok","Anexo: Relatório Técnico Circunstanciado justificando a adoção do percentual de cada parcela do BDI.","") -> 
J114: Os valores de BDI foram calculados com o emprego da fórmula:
M115: BDI = | N115: =IF($J97=$A$146,"(1+K1+K2)*(1+K3)","(1+AC + S + R + G)*(1 + DF)*(1+L)") -> (1+AC + S + R + G)*(1 + DF)*(1+L) | Q115: - 1
N116: (1-CP-ISS-CRPB)
J118: =CONCATENATE("Declaro para os devidos fins que, conforme legislação tributária municipal, a base de cálculo deste tipo de obra corresponde à ",$R$10*100,"%, com a respectiva alíquota de ",$R$11*100,"%.") -> Declaro para os devidos fins que, conforme legislação tributária municipal, a base de cálculo deste tipo de obra corresponde à 100%, com a respectiva alíquota de 3%.
J120: =CONCATENATE("Declaro para os devidos fins que o regime de Contribuição Previdenciária sobre a Receita Bruta adotado para elaboração do orçamento foi ",IF(DESONERACAO="Sim","COM","SEM")," Desoneração, e que esta é a alternativa mais adequada para a Administração Pública.") -> Declaro para os devidos fins que o regime de Contribuição Previdenciária sobre a Receita Bruta adotado para elaboração do orçamento foi SEM Desoneração, e que esta é a alternativa mais adequada para a Administração Pública.
J122: Observações:
J125: =Import.Município -> ERVAL VELHO/SC | P125: =DADOS!$F$25 -> 2023-07-20
J126: Local | P126: Data
J129: Responsável Técnico
J130: Nome: | K130: =Import.RespOrçamento -> MAX MOOSHAMMER
J131: CREA/CAU: | K131: 139.164-0
J132: ART/RRT: | K132: 8736435-7
A138: (SELECIONAR)
A139: Construção e Reforma de Edifícios
A140: Construção de Praças Urbanas, Rodovias, Ferrovias e recapeamento e pavimentação de vias urbanas
A141: Construção de Redes de Abastecimento de Água, Coleta de Esgoto
A142: Construção e Manutenção de Estações e Redes de Distribuição de Energia Elétrica
A143: Obras Portuárias, Marítimas e Fluviais
A144: Fornecimento de Materiais e Equipamentos (aquisição indireta - em conjunto com licitação de obras)
A145: Fornecimento de Materiais e Equipamentos (aquisição direta)
A146: Estudos e Projetos, Planos e Gerenciamento e outros correlatos

Sheet ORÇAMENTO
R1: PO - PLANILHA ORÇAMENTÁRIA | X1: Grau de Sigilo
D2: LOTE | E2: Meta | F2: Nível 2 | G2: Nível 3 | H2: Nível 4 | I2: Serviço | R2: =IF(TIPOORCAMENTO="licitado","Orçamento Licitado","Orçamento Base para Licitação")&" - "&import.recurso -> Orçamento Base para Licitação - OGU | X2: #PUBLICO
A4: Nmax | F4: BDI 1 | G4: BDI 2 | H4: BDI 3 | I4: 0 | O4: Nº OPERAÇÃO | Q4: Nº SICONV | R4: PROPONENTE / TOMADOR | S4: APELIDO DO EMPREENDIMENTO
A5: =MAX($C$15:$C$77) -> 2 | F5: =IF(BDI.Opcao="DESONERADO",BDI!$S$30,BDI!$S$29) -> 0.2159 | G5: =IF(BDI.Opcao="DESONERADO",BDI!$S$70,BDI!$S$69) -> 0 | H5: =IF(BDI.Opcao="DESONERADO",BDI!$S$110,BDI!$S$109) -> 0 | O5: =Import.CR -> 0 | Q5: =Import.SICONV -> 940117/2022 | R5: =Import.Proponente -> PREFEITURA MUNICIPAL DE ERVAL VELHO | S5: =Import.Apelido -> PAVIMENTAÇÃO DA RUA DAS AMEIXEIRAS | AE5: Arredondamento
O7: LOCALIDADE SINAPI | Q7: DATA BASE | R7: =IF(TIPOORCAMENTO="Licitado","NOME DA EMPRESA","DESCRIÇÃO DO LOTE") -> DESCRIÇÃO DO LOTE | S7: =IF(TIPOORCAMENTO="Licitado","REGIME DE EXECUÇÃO","MUNICÍPIO / UF") -> MUNICÍPIO / UF | V7: =IF(TIPOORCAMENTO="Licitado","","BDI 1") -> BDI 1 | W7: =IF(TIPOORCAMENTO="Licitado","","BDI 2") -> BDI 2 | X7: =IF(TIPOORCAMENTO="Licitado","Nº CTEF","BDI 3") -> BDI 3 | AE7: Quantidade | AF7: TRUE | AJ7: QUANTIDADES: ACOMP. POR BM | AL7: PREÇO UNITÁRIO LICITADO
F8: =IF(LEN(INFO("release"))>5,"'Referência "&Excel_BuiltIn_Database&".xls'#Banco.$a5:$a$65536","'[Referência "&Excel_BuiltIn_Database&".xls]Banco'!$a5:$a$65536") -> '[Referência 02-2023.xls]Banco'!$a5:$a$65536 | L8: FILTRO | O8: =IF(ISERROR(INDIRECT($F$9)),"(N/D: 'Referência "&Excel_BuiltIn_Database&".xls)",INDIRECT($F$9)) -> FLORIANOPOLIS | Q8: =TEXT(Import.DataBase,"mm-aa")&IF(DESONERACAO="Sim"," (DES.)"," (N DES.)") -> 02-23 (N DES.) | R8: =IF(TIPOORCAMENTO="Licitado",Import.empresa,Import.DescLote) -> PAVIMENTAÇÃO DA RUA DAS AMEIXEIRAS | S8: =IF(TIPOORCAMENTO="Licitado",Import.RegimeExecução,Import.Município) -> ERVAL VELHO/SC | V8: =IF(TIPOORCAMENTO="Licitado","",TEXT(F5,"0,00%")) -> 21,59% | W8: =IF(TIPOORCAMENTO="Licitado","",TEXT(G5,"0,00%")) -> 0,00% | X8: =IF(TIPOORCAMENTO="Licitado",Import.CTEF,TEXT(H5,"0,00%")) -> 0,00% | Y8: RECURSO | Z8: SGL RECURSO | AE8: Custo Unitáro | AF8: TRUE
F9: =IF(LEN(INFO("release"))>5,"'Referência "&Excel_BuiltIn_Database&".xls'#Banco.$d$3","'[Referência "&Excel_BuiltIn_Database&".xls]Banco'!$d$3") -> '[Referência 02-2023.xls]Banco'!$d$3 | AE9: BDI | AF9: TRUE
AC10: ERRO GERAL | AE10: Preço Unitário | AF10: TRUE
AC11: =IF(COUNTIF($AC$15:OFFSET($AC$77,-1,0),"DESCRIÇÃO")+COUNTIF($AC$15:OFFSET($AC$77,-1,0),"UNIDADE")+COUNTIF($AC$15:OFFSET($AC$77,-1,0),"SEM VALOR")>0,"NÃO OK","OK") -> OK | AE11: Preço Total | AF11: TRUE
AA12: Valores não Arredondados | AJ12: ↓ | AL12: ↓
A13: Nível E | B13: Save Nivel | C13: Nível C | D13: Altura | E13: n1 | F13: n2 | G13: n3 | H13: n4 | I13: n5 | J13: Czero | K13: Cnível | L13: ↓ | M13: Nível | N13: Nível Corrigido | O13: Item | P13: Fonte | Q13: Código | R13: Descrição | S13: Unidade | T13: Quantidade | U13: =IF(TIPOORCAMENTO="Licitado","","Custo Unitário (sem BDI) (R$)") -> Custo Unitário (sem BDI) (R$) | V13: =IF(TIPOORCAMENTO="Licitado","","BDI (%)") -> BDI (%) | W13: Preço Unitário (com BDI) (R$) | X13: Preço Total (R$) | Y13: ↓ | Z13: ↓ | AA13: Contrapartida (R$) | AB13: Outros (R$) | AC13: Erro de Dados | AD13: Lista Crono | AE13: Concatenação Fonte-Código | AF13: BancoDesloc | AG13: Custo Unitário Referência (R$) | AH13: =IF(TIPOORCAMENTO="LICITADO","Valor BDI Edital","Valor BDI") -> Valor BDI | AJ13: Quantidade | AL13: Preço Unitário (com BDI) (R$) | AM13: Preço Total Licit. (R$) | AN13: Preço Unitário Edital (R$)
A14: =CHOOSE(1+LOG(1+2*(ORÇAMENTO.Nivel="Meta")+4*(ORÇAMENTO.Nivel="Nível 2")+8*(ORÇAMENTO.Nivel="Nível 3")+16*(ORÇAMENTO.Nivel="Nível 4")+32*(ORÇAMENTO.Nivel="Serviço"),2),0,1,2,3,4,"S") -> S | B14: =IF(OR(C14="s",C14=0),OFFSET(B14,-1,0),C14) -> Save Nivel | C14: =IF(OFFSET(C14,-1,0)="L",1,IF(OFFSET(C14,-1,0)=1,2,IF(OR(A14="s",A14=0),"S",IF(AND(OFFSET(C14,-1,0)=2,A14=4),3,IF(AND(OR(OFFSET(C14,-1,0)="s",OFFSET(C14,-1,0)=0),A14<>"s",A14>OFFSET(B14,-1,0)),OFFSET(B14,-1,0),A14))))) -> S | D14: =IF(OR(C14="S",C14=0),0,IF(ISERROR(K14),J14,SMALL(J14:K14,1))) -> 0 | E14: =IF($C14=1,OFFSET(E14,-1,0)+MAX(1,COUNTIF(QCI!$A$13:$A$15,OFFSET(ORÇAMENTO!E14,-1,0))),OFFSET(E14,-1,0)) -> n1 | F14: =IF($C14=1,0,IF($C14=2,OFFSET(F14,-1,0)+1,OFFSET(F14,-1,0))) -> n2 | G14: =IF(AND($C14<=2,$C14<>0),0,IF($C14=3,OFFSET(G14,-1,0)+1,OFFSET(G14,-1,0))) -> n3 | H14: =IF(AND($C14<=3,$C14<>0),0,IF($C14=4,OFFSET(H14,-1,0)+1,OFFSET(H14,-1,0))) -> n4 | I14: =IF(AND($C14<=4,$C14<>0),0,IF(AND($C14="S",$X14>0),OFFSET(I14,-1,0)+1,OFFSET(I14,-1,0))) -> n5 | J14: =IF(OR($C14="S",$C14=0),0,MATCH(0,OFFSET($D14,1,$C14,ROW($C$77)-ROW($C14)),0)) -> 0 | K14: =IF(OR($C14="S",$C14=0),0,MATCH(OFFSET($D14,0,$C14)+IF($C14<>1,1,COUNTIF(QCI!$A$13:$A$15,ORÇAMENTO!E14)),OFFSET($D14,1,$C14,ROW($C$77)-ROW($C14)),0)) -> 0 | L14: =IF(OR($X14>0,$C14=1,$C14=2,$C14=3,$C14=4),"F","") ->  | M14: Serviço | N14: =CHOOSE(1+LOG(1+2*(C14=1)+4*(C14=2)+8*(C14=3)+16*(C14=4)+32*(C14="S"),2),"","Meta","Nível 2","Nível 3","Nível 4","Serviço") -> Serviço | O14: =IF(OR($C14=0,$L14=""),"-",CONCATENATE(E14&".",IF(AND($A$5>=2,$C14>=2),F14&".",""),IF(AND($A$5>=3,$C14>=3),G14&".",""),IF(AND($A$5>=4,$C14>=4),H14&".",""),IF($C14="S",I14&".",""))) -> - | P14: SINAPI | R14: =IF($C14="S",REFERENCIA.Descricao,"(digite a descrição aqui)") -> (Sem Código) | S14: =REFERENCIA.Unidade -> - | T14: =OFFSET(CÁLCULO!H$15,ROW($T14)-ROW(T$15),0) -> 0 | V14: BDI 1 | W14: =IF($C14="S",ROUND(IF(TIPOORCAMENTO="Proposto",ORÇAMENTO.CustoUnitario*(1+$AH14),ORÇAMENTO.PrecoUnitarioLicitado),15-13*$AF$10),0) -> 0 | X14: =IF($C14="S",VTOTAL1,IF($C14=0,0,ROUND(SomaAgrup,15-13*$AF$11))) -> 0 | Y14: RA | Z14: =IF(AND($C14="S",$X14>0),IF(ISBLANK($Y14),"RA",LEFT($Y14,2)),"") ->  | AA14: =IF($C14="S",IF($Z14="CP",$X14,IF($Z14="RA",(($X14)*QCI!$AA$3),0)),SomaAgrup) -> 0 | AB14: =IF($C14="S",IF($Z14="OU",ROUND($X14,2),0),SomaAgrup) -> 0 | AC14: =IF($N14="","",IF(ORÇAMENTO.Descricao="","DESCRIÇÃO",IF(AND($C14="S",ORÇAMENTO.Unidade=""),"UNIDADE",IF($X14<0,"VALOR NEGATIVO",IF(OR(AND(TIPOORCAMENTO="Proposto",$AG14<>"",$AG14>0,ORÇAMENTO.CustoUnitario>$AG14),AND(TIPOORCAMENTO="LICITADO",ORÇAMENTO.PrecoUnitarioLicitado>$AN14)),"ACIMA REF.",""))))) ->  | AD14: =IF(C14<=CRONO.NivelExibicao,MAX($AD$15:OFFSET(AD14,-1,0))+IF($C14<>1,1,MAX(1,COUNTIF(QCI!$A$13:$A$15,OFFSET($E14,-1,0)))),"") ->  | AE14: =IF(AND($C14="S",ORÇAMENTO.CodBarra<>""),IF(ORÇAMENTO.Fonte="",ORÇAMENTO.CodBarra,CONCATENATE(ORÇAMENTO.Fonte," ",ORÇAMENTO.CodBarra))) -> FALSE | AF14: =IF(ISERROR(INDIRECT(ORÇAMENTO.BancoRef)),"(abra o arquivo 'Referência "&Excel_BuiltIn_Database&".xls)",IF(OR($C14<>"S",ORÇAMENTO.CodBarra=""),"(Sem Código)",IF(ISERROR(MATCH($AE14,INDIRECT(ORÇAMENTO.BancoRef),0)),"(Código não identificado nas referências)",MATCH($AE14,INDIRECT(ORÇAMENTO.BancoRef),0)))) -> (Sem Código) | AG14: =ROUND(IF(DESONERACAO="sim",REFERENCIA.Desonerado,REFERENCIA.NaoDesonerado),2) -> 0 | AH14: =ROUND(IF(ISNUMBER(ORÇAMENTO.OpcaoBDI),ORÇAMENTO.OpcaoBDI,IF(LEFT(ORÇAMENTO.OpcaoBDI,3)="BDI",HLOOKUP(ORÇAMENTO.OpcaoBDI,$F$4:$H$5,2,FALSE),0)),15-11*$AF$9) -> 0.2159 | AM14: =$X14 -> 0 | AN14: =ROUND(ORÇAMENTO.CustoUnitario*(1+$AH14),2) -> 0
A15: 0 | C15: L | D15: =COUNTA(OFFSET(D15,1,0):D$77) -> 61 | E15: 0 | L15: F | M15: =IF(TIPOORCAMENTO="LICITADO","CTEF","LOTE") -> LOTE | N15: =IF(TIPOORCAMENTO="LICITADO","CTEF","LOTE") -> LOTE | O15: =Import.DescLote -> PAVIMENTAÇÃO DA RUA DAS AMEIXEIRAS | X15: =SUMIF(OFFSET($C15,1,0,ROW(X77)-ROW(X15)-1),"S",OFFSET(X15,1,0,ROW(X77)-ROW(X15)-1)) -> 699074.43 | Z15: =IF(AND($C15="S",$X15>0),LEFT($Y15,2),"") ->  | AA15: =SUMIF(OFFSET($C15,1,0,ROW(AA77)-ROW(AA15)-1),"S",OFFSET(AA15,1,0,ROW(AA77)-ROW(AA15)-1)) -> 217970.43 | AB15: =SUMIF(OFFSET($C15,1,0,ROW(AB77)-ROW(AB15)-1),"S",OFFSET(AB15,1,0,ROW(AB77)-ROW(AB15)-1)) -> 0 | AM15: 699074.43
A16: =CHOOSE(1+LOG(1+2*(ORÇAMENTO.Nivel="Meta")+4*(ORÇAMENTO.Nivel="Nível 2")+8*(ORÇAMENTO.Nivel="Nível 3")+16*(ORÇAMENTO.Nivel="Nível 4")+32*(ORÇAMENTO.Nivel="Serviço"),2),0,1,2,3,4,"S") -> 1 | B16: =IF(OR(C16="s",C16=0),OFFSET(B16,-1,0),C16) -> 1 | C16: =IF(OFFSET(C16,-1,0)="L",1,IF(OFFSET(C16,-1,0)=1,2,IF(OR(A16="s",A16=0),"S",IF(AND(OFFSET(C16,-1,0)=2,A16=4),3,IF(AND(OR(OFFSET(C16,-1,0)="s",OFFSET(C16,-1,0)=0),A16<>"s",A16>OFFSET(B16,-1,0)),OFFSET(B16,-1,0),A16))))) -> 1 | D16: =IF(OR(C16="S",C16=0),0,IF(ISERROR(K16),J16,SMALL(J16:K16,1))) -> 61 | E16: =IF($C16=1,OFFSET(E16,-1,0)+MAX(1,COUNTIF(QCI!$A$13:$A$15,OFFSET(ORÇAMENTO!E16,-1,0))),OFFSET(E16,-1,0)) -> 1 | F16: =IF($C16=1,0,IF($C16=2,OFFSET(F16,-1,0)+1,OFFSET(F16,-1,0))) -> 0 | G16: =IF(AND($C16<=2,$C16<>0),0,IF($C16=3,OFFSET(G16,-1,0)+1,OFFSET(G16,-1,0))) -> 0 | H16: =IF(AND($C16<=3,$C16<>0),0,IF($C16=4,OFFSET(H16,-1,0)+1,OFFSET(H16,-1,0))) -> 0 | I16: =IF(AND($C16<=4,$C16<>0),0,IF(AND($C16="S",$X16>0),OFFSET(I16,-1,0)+1,OFFSET(I16,-1,0))) -> 0 | J16: =IF(OR($C16="S",$C16=0),0,MATCH(0,OFFSET($D16,1,$C16,ROW($C$77)-ROW($C16)),0)) -> 61 | K16: =IF(OR($C16="S",$C16=0),0,MATCH(OFFSET($D16,0,$C16)+IF($C16<>1,1,COUNTIF(QCI!$A$13:$A$15,ORÇAMENTO!E16)),OFFSET($D16,1,$C16,ROW($C$77)-ROW($C16)),0)) ->  | L16: =IF(OR($X16>0,$C16=1,$C16=2,$C16=3,$C16=4),"F","") -> F | M16: Meta | N16: =CHOOSE(1+LOG(1+2*(C16=1)+4*(C16=2)+8*(C16=3)+16*(C16=4)+32*(C16="S"),2),"","Meta","Nível 2","Nível 3","Nível 4","Serviço") -> Meta | O16: =IF(OR($C16=0,$L16=""),"-",CONCATENATE(E16&".",IF(AND($A$5>=2,$C16>=2),F16&".",""),IF(AND($A$5>=3,$C16>=3),G16&".",""),IF(AND($A$5>=4,$C16>=4),H16&".",""),IF($C16="S",I16&".",""))) -> 1. | P16: SINAPI | R16: PAVIMENTAÇÃO DA RUA DAS AMEIXEIRAS | S16: - | T16: =OFFSET(CÁLCULO!H$15,ROW($T16)-ROW(T$15),0) -> 0 | U16: 0 | V16: BDI 1 | W16: =IF($C16="S",ROUND(IF(TIPOORCAMENTO="Proposto",ORÇAMENTO.CustoUnitario*(1+$AH16),ORÇAMENTO.PrecoUnitarioLicitado),15-13*$AF$10),0) -> 0 | X16: =IF($C16="S",VTOTAL1,IF($C16=0,0,ROUND(SomaAgrup,15-13*$AF$11))) -> 699074.43 | Y16: RA | Z16: =IF(AND($C16="S",$X16>0),IF(ISBLANK($Y16),"RA",LEFT($Y16,2)),"") ->  | AA16: =IF($C16="S",IF($Z16="CP",$X16,IF($Z16="RA",(($X16)*QCI!$AA$3),0)),SomaAgrup) -> 217970.43 | AB16: =IF($C16="S",IF($Z16="OU",ROUND($X16,2),0),SomaAgrup) -> 0 | AC16: =IF($N16="","",IF(ORÇAMENTO.Descricao="","DESCRIÇÃO",IF(AND($C16="S",ORÇAMENTO.Unidade=""),"UNIDADE",IF($X16<0,"VALOR NEGATIVO",IF(OR(AND(TIPOORCAMENTO="Proposto",$AG16<>"",$AG16>0,ORÇAMENTO.CustoUnitario>$AG16),AND(TIPOORCAMENTO="LICITADO",ORÇAMENTO.PrecoUnitarioLicitado>$AN16)),"ACIMA REF.",""))))) ->  | AD16: =IF(C16<=CRONO.NivelExibicao,MAX($AD$15:OFFSET(AD16,-1,0))+IF($C16<>1,1,MAX(1,COUNTIF(QCI!$A$13:$A$15,OFFSET($E16,-1,0)))),"") -> 1 | AE16: =IF(AND($C16="S",ORÇAMENTO.CodBarra<>""),IF(ORÇAMENTO.Fonte="",ORÇAMENTO.CodBarra,CONCATENATE(ORÇAMENTO.Fonte," ",ORÇAMENTO.CodBarra))) -> FALSE | AF16: =IF(ISERROR(INDIRECT(ORÇAMENTO.BancoRef)),"(abra o arquivo 'Referência "&Excel_BuiltIn_Database&".xls)",IF(OR($C16<>"S",ORÇAMENTO.CodBarra=""),"(Sem Código)",IF(ISERROR(MATCH($AE16,INDIRECT(ORÇAMENTO.BancoRef),0)),"(Código não identificado nas referências)",MATCH($AE16,INDIRECT(ORÇAMENTO.BancoRef),0)))) -> (Sem Código) | AG16: =ROUND(IF(DESONERACAO="sim",REFERENCIA.Desonerado,REFERENCIA.NaoDesonerado),2) -> 0 | AH16: =ROUND(IF(ISNUMBER(ORÇAMENTO.OpcaoBDI),ORÇAMENTO.OpcaoBDI,IF(LEFT(ORÇAMENTO.OpcaoBDI,3)="BDI",HLOOKUP(ORÇAMENTO.OpcaoBDI,$F$4:$H$5,2,FALSE),0)),15-11*$AF$9) -> 0.2159 | AM16: =$X16 -> 699074.43 | AN16: =ROUND(ORÇAMENTO.CustoUnitario*(1+$AH16),2) -> 0
A17: 2 | B17: 2 | C17: 2 | D17: 3 | E17: =IF($C17=1,OFFSET(E17,-1,0)+MAX(1,COUNTIF(QCI!$A$13:$A$15,OFFSET(ORÇAMENTO!E17,-1,0))),OFFSET(E17,-1,0)) -> 1 | F17: 1 | G17: 0 | H17: 0 | I17: 0 | J17: 60 | K17: =IF(OR($C17="S",$C17=0),0,MATCH(OFFSET($D17,0,$C17)+IF($C17<>1,1,COUNTIF(QCI!$A$13:$A$15,ORÇAMENTO!E17)),OFFSET($D17,1,$C17,ROW($C$77)-ROW($C17)),0)) -> 3 | L17: F | M17: Nível 2 | N17: Nível 2 | O17: 1.1. | P17: SINAPI | R17: SERVIÇOS INICIAIS | S17: - | T17: =OFFSET(CÁLCULO!H$15,ROW($T17)-ROW(T$15),0) -> 0 | U17: 0 | V17: BDI 1 | W17: 0 | X17: 2246.67 | Y17: RA | AA17: =IF($C17="S",IF($Z17="CP",$X17,IF($Z17="RA",(($X17)*QCI!$AA$3),0)),SomaAgrup) -> 700.5085653 | AB17: 0 | AD17: =IF(C17<=CRONO.NivelExibicao,MAX($AD$15:OFFSET(AD17,-1,0))+IF($C17<>1,1,MAX(1,COUNTIF(QCI!$A$13:$A$15,OFFSET($E17,-1,0)))),"") -> 2 | AE17: FALSE | AF17: (Sem Código) | AG17: 0 | AH17: 0.2159 | AM17: 2246.67 | AN17: 0
A18: S | B18: 2 | C18: S | D18: 0 | E18: =IF($C18=1,OFFSET(E18,-1,0)+MAX(1,COUNTIF(QCI!$A$13:$A$15,OFFSET(ORÇAMENTO!E18,-1,0))),OFFSET(E18,-1,0)) -> 1 | F18: 1 | G18: 0 | H18: 0 | I18: 1 | J18: 0 | K18: =IF(OR($C18="S",$C18=0),0,MATCH(OFFSET($D18,0,$C18)+IF($C18<>1,1,COUNTIF(QCI!$A$13:$A$15,ORÇAMENTO!E18)),OFFSET($D18,1,$C18,ROW($C$77)-ROW($C18)),0)) -> 0 | L18: F | M18: Serviço | N18: Serviço | O18: 1.1.1. | P18: AMMOC | Q18: PLOBRA | R18: PLACA DE OBRA (PARA CONSTRUCAO CIVIL) EM CHAPA GALVANIZADA *N. 22*, ADESIVADA, DE *2,0 X 2,25* M (SEM POSTES PARA FIXACAO) | S18: M2 | T18: =OFFSET(CÁLCULO!H$15,ROW($T18)-ROW(T$15),0) -> 4.5 | U18: 391.12 | V18: BDI 1 | W18: 475.56 | X18: 2140.02 | Y18: RA | Z18: RA | AA18: =IF($C18="S",IF($Z18="CP",$X18,IF($Z18="RA",(($X18)*QCI!$AA$3),0)),SomaAgrup) -> 667.2552444 | AB18: 0 | AD18: =IF(C18<=CRONO.NivelExibicao,MAX($AD$15:OFFSET(AD18,-1,0))+IF($C18<>1,1,MAX(1,COUNTIF(QCI!$A$13:$A$15,OFFSET($E18,-1,0)))),"") ->  | AE18: AMMOC PLOBRA | AF18: 207 | AG18: 399.8 | AH18: 0.2159 | AM18: 2140.02 | AN18: 475.56
A19: S | B19: 2 | C19: S | D19: 0 | E19: =IF($C19=1,OFFSET(E19,-1,0)+MAX(1,COUNTIF(QCI!$A$13:$A$15,OFFSET(ORÇAMENTO!E19,-1,0))),OFFSET(E19,-1,0)) -> 1 | F19: 1 | G19: 0 | H19: 0 | I19: 2 | J19: 0 | K19: =IF(OR($C19="S",$C19=0),0,MATCH(OFFSET($D19,0,$C19)+IF($C19<>1,1,COUNTIF(QCI!$A$13:$A$15,ORÇAMENTO!E19)),OFFSET($D19,1,$C19,ROW($C$77)-ROW($C19)),0)) -> 0 | L19: F | M19: Serviço | N19: Serviço | O19: 1.1.2. | P19: SINAPI | Q19: 99064 | R19: LOCAÇÃO DE PAVIMENTAÇÃO. AF_10/2018 | S19: M | T19: =OFFSET(CÁLCULO!H$15,ROW($T19)-ROW(T$15),0) -> 213.29 | U19: 0.41 | V19: BDI 1 | W19: 0.5 | X19: 106.65 | Y19: RA | Z19: RA | AA19: =IF($C19="S",IF($Z19="CP",$X19,IF($Z19="RA",(($X19)*QCI!$AA$3),0)),SomaAgrup) -> 33.25332091 | AB19: 0 | AD19: =IF(C19<=CRONO.NivelExibicao,MAX($AD$15:OFFSET(AD19,-1,0))+IF($C19<>1,1,MAX(1,COUNTIF(QCI!$A$13:$A$15,OFFSET($E19,-1,0)))),"") ->  | AE19: SINAPI 99064 | AF19: 7525 | AG19: 0.46 | AH19: 0.2159 | AM19: 106.65 | AN19: 0.5
A20: 2 | B20: 2 | C20: 2 | D20: 2 | E20: =IF($C20=1,OFFSET(E20,-1,0)+MAX(1,COUNTIF(QCI!$A$13:$A$15,OFFSET(ORÇAMENTO!E20,-1,0))),OFFSET(E20,-1,0)) -> 1 | F20: 2 | G20: 0 | H20: 0 | I20: 0 | J20: 57 | K20: =IF(OR($C20="S",$C20=0),0,MATCH(OFFSET($D20,0,$C20)+IF($C20<>1,1,COUNTIF(QCI!$A$13:$A$15,ORÇAMENTO!E20)),OFFSET($D20,1,$C20,ROW($C$77)-ROW($C20)),0)) -> 2 | L20: F | M20: Nível 2 | N20: Nível 2 | O20: 1.2. | P20: SINAPI | R20: SINALIZAÇÃO E SEGURANÇA | S20: - | T20: =OFFSET(CÁLCULO!H$15,ROW($T20)-ROW(T$15),0) -> 0 | U20: 0 | V20: BDI 1 | W20: 0 | X20: 427.39 | Y20: RA | AA20: =IF($C20="S",IF($Z20="CP",$X20,IF($Z20="RA",(($X20)*QCI!$AA$3),0)),SomaAgrup) -> 133.2596045 | AB20: 0 | AD20: =IF(C20<=CRONO.NivelExibicao,MAX($AD$15:OFFSET(AD20,-1,0))+IF($C20<>1,1,MAX(1,COUNTIF(QCI!$A$13:$A$15,OFFSET($E20,-1,0)))),"") -> 3 | AE20: FALSE | AF20: (Sem Código) | AG20: 0 | AH20: 0.2159 | AM20: 427.39 | AN20: 0
A21: S | B21: 2 | C21: S | D21: 0 | E21: =IF($C21=1,OFFSET(E21,-1,0)+MAX(1,COUNTIF(QCI!$A$13:$A$15,OFFSET(ORÇAMENTO!E21,-1,0))),OFFSET(E21,-1,0)) -> 1 | F21: 2 | G21: 0 | H21: 0 | I21: 1 | J21: 0 | K21: =IF(OR($C21="S",$C21=0),0,MATCH(OFFSET($D21,0,$C21)+IF($C21<>1,1,COUNTIF(QCI!$A$13:$A$15,ORÇAMENTO!E21)),OFFSET($D21,1,$C21,ROW($C$77)-ROW($C21)),0)) -> 0 | L21: F | M21: Serviço | N21: Serviço | O21: 1.2.1. | P21: AMMOC | Q21: SIN | R21: SINALIZAÇÃO COM TELA PLASTICA TIPO TAPUME FIXADA EM CONE PLÁSTICO, INCLUINDO CONE | S21: M | T21: =OFFSET(CÁLCULO!H$15,ROW($T21)-ROW(T$15),0) -> 31.99 | U21: 10.99 | V21: BDI 1 | W21: 13.36 | X21: 427.39 | Y21: RA | Z21: RA | AA21: =IF($C21="S",IF($Z21="CP",$X21,IF($Z21="RA",(($X21)*QCI!$AA$3),0)),SomaAgrup) -> 133.2596045 | AB21: 0 | AD21: =IF(C21<=CRONO.NivelExibicao,MAX($AD$15:OFFSET(AD21,-1,0))+IF($C21<>1,1,MAX(1,COUNTIF(QCI!$A$13:$A$15,OFFSET($E21,-1,0)))),"") ->  | AE21: AMMOC SIN | AF21: 296 | AG21: 11.78 | AH21: 0.2159 | AM21: 427.39 | AN21: 13.36
A22: 2 | B22: 2 | C22: 2 | D22: 4 | E22: =IF($C22=1,OFFSET(E22,-1,0)+MAX(1,COUNTIF(QCI!$A$13:$A$15,OFFSET(ORÇAMENTO!E22,-1,0))),OFFSET(E22,-1,0)) -> 1 | F22: 3 | G22: 0 | H22: 0 | I22: 0 | J22: 55 | K22: =IF(OR($C22="S",$C22=0),0,MATCH(OFFSET($D22,0,$C22)+IF($C22<>1,1,COUNTIF(QCI!$A$13:$A$15,ORÇAMENTO!E22)),OFFSET($D22,1,$C22,ROW($C$77)-ROW($C22)),0)) -> 4 | L22: F | M22: Nível 2 | N22: Nível 2 | O22: 1.3. | P22: SINAPI | R22: DEMOLIÇÕES E REMOÇÕES | S22: - | T22: =OFFSET(CÁLCULO!H$15,ROW($T22)-ROW(T$15),0) -> 0 | U22: 0 | V22: BDI 1 | W22: 0 | X22: 2141.79 | Y22: RA | AA22: =IF($C22="S",IF($Z22="CP",$X22,IF($Z22="RA",(($X22)*QCI!$AA$3),0)),SomaAgrup) -> 667.8071279 | AB22: 0 | AD22: =IF(C22<=CRONO.NivelExibicao,MAX($AD$15:OFFSET(AD22,-1,0))+IF($C22<>1,1,MAX(1,COUNTIF(QCI!$A$13:$A$15,OFFSET($E22,-1,0)))),"") -> 4 | AE22: FALSE | AF22: (Sem Código) | AG22: 0 | AH22: 0.2159 | AM22: 2141.79 | AN22: 0
A23: S | B23: 2 | C23: S | D23: 0 | E23: =IF($C23=1,OFFSET(E23,-1,0)+MAX(1,COUNTIF(QCI!$A$13:$A$15,OFFSET(ORÇAMENTO!E23,-1,0))),OFFSET(E23,-1,0)) -> 1 | F23: 3 | G23: 0 | H23: 0 | I23: 1 | J23: 0 | K23: =IF(OR($C23="S",$C23=0),0,MATCH(OFFSET($D23,0,$C23)+IF($C23<>1,1,COUNTIF(QCI!$A$13:$A$15,ORÇAMENTO!E23)),OFFSET($D23,1,$C23,ROW($C$77)-ROW($C23)),0)) -> 0 | L23: F | M23: Serviço | N23: Serviço | O23: 1.3.1. | P23: SINAPI | Q23: 97629 | R23: DEMOLIÇÃO DE PASSEIOS E ESTRUTURAS DE CONCRETO, DE FORMA MECANIZADA COM MARTELETE, SEM REAPROVEITAMENTO | S23: M3 | T23: =OFFSET(CÁLCULO!H$15,ROW($T23)-ROW(T$15),0) -> 13.77 | U23: 115.08 | V23: BDI 1 | W23: 139.93 | X23: 1926.84 | Y23: RA | Z23: RA | AA23: =IF($C23="S",IF($Z23="CP",$X23,IF($Z23="RA",(($X23)*QCI!$AA$3),0)),SomaAgrup) -> 600.7860184 | AB23: 0 | AD23: =IF(C23<=CRONO.NivelExibicao,MAX($AD$15:OFFSET(AD23,-1,0))+IF($C23<>1,1,MAX(1,COUNTIF(QCI!$A$13:$A$15,OFFSET($E23,-1,0)))),"") ->  | AE23: SINAPI 97629 | AF23: 7482 | AG23: 129.93 | AH23: 0.2159 | AM23: 1926.84 | AN23: 139.93
A24: S | B24: 2 | C24: S | D24: 0 | E24: =IF($C24=1,OFFSET(E24,-1,0)+MAX(1,COUNTIF(QCI!$A$13:$A$15,OFFSET(ORÇAMENTO!E24,-1,0))),OFFSET(E24,-1,0)) -> 1 | F24: 3 | G24: 0 | H24: 0 | I24: 2 | J24: 0 | K24: =IF(OR($C24="S",$C24=0),0,MATCH(OFFSET($D24,0,$C24)+IF($C24<>1,1,COUNTIF(QCI!$A$13:$A$15,ORÇAMENTO!E24)),OFFSET($D24,1,$C24,ROW($C$77)-ROW($C24)),0)) -> 0 | L24: F | M24: Serviço | N24: Serviço | O24: 1.3.2. | P24: SINAPI | Q24: 100982 | R24: CARGA, MANOBRA E DESCARGA DE ENTULHO EM CAMINHÃO BASCULANTE 10 M³ - CARGA COM ESCAVADEIRA HIDRÁULICA (CAÇAMBA DE 0,80 M³ / 111 HP) E DESCARGA LIVRE (UNIDADE: M3). AF_07/2020 | S24: M3 | T24: =OFFSET(CÁLCULO!H$15,ROW($T24)-ROW(T$15),0) -> 13.77 | U24: 8.28 | V24: BDI 1 | W24: 10.07 | X24: 138.66 | Y24: RA | Z24: RA | AA24: =IF($C24="S",IF($Z24="CP",$X24,IF($Z24="RA",(($X24)*QCI!$AA$3),0)),SomaAgrup) -> 43.23399416 | AB24: 0 | AD24: =IF(C24<=CRONO.NivelExibicao,MAX($AD$15:OFFSET(AD24,-1,0))+IF($C24<>1,1,MAX(1,COUNTIF(QCI!$A$13:$A$15,OFFSET($E24,-1,0)))),"") ->  | AE24: SINAPI 100982 | AF24: 7602 | AG24: 8.45 | AH24: 0.2159 | AM24: 138.66 | AN24: 10.07
A25: S | B25: 2 | C25: S | D25: 0 | E25: =IF($C25=1,OFFSET(E25,-1,0)+MAX(1,COUNTIF(QCI!$A$13:$A$15,OFFSET(ORÇAMENTO!E25,-1,0))),OFFSET(E25,-1,0)) -> 1 | F25: 3 | G25: 0 | H25: 0 | I25: 3 | J25: 0 | K25: =IF(OR($C25="S",$C25=0),0,MATCH(OFFSET($D25,0,$C25)+IF($C25<>1,1,COUNTIF(QCI!$A$13:$A$15,ORÇAMENTO!E25)),OFFSET($D25,1,$C25,ROW($C$77)-ROW($C25)),0)) -> 0 | L25: F | M25: Serviço | N25: Serviço | O25: 1.3.3. | P25: SINAPI | Q25: 95875 | R25: TRANSPORTE COM CAMINHÃO BASCULANTE DE 10 M³, EM VIA URBANA PAVIMENTADA, DMT ATÉ 30 KM (UNIDADE: M3XKM). AF_07/2020 | S25: M3XKM | T25: =OFFSET(CÁLCULO!H$15,ROW($T25)-ROW(T$15),0) -> 27.54 | U25: 2.28 | V25: BDI 1 | W25: 2.77 | X25: 76.29 | Y25: RA | Z25: RA | AA25: =IF($C25="S",IF($Z25="CP",$X25,IF($Z25="RA",(($X25)*QCI!$AA$3),0)),SomaAgrup) -> 23.78711535 | AB25: 0 | AD25: =IF(C25<=CRONO.NivelExibicao,MAX($AD$15:OFFSET(AD25,-1,0))+IF($C25<>1,1,MAX(1,COUNTIF(QCI!$A$13:$A$15,OFFSET($E25,-1,0)))),"") ->  | AE25: SINAPI 95875 | AF25: 7544 | AG25: 2.31 | AH25: 0.2159 | AM25: 76.29 | AN25: 2.77
A26: 2 | B26: 2 | C26: 2 | D26: 9 | E26: =IF($C26=1,OFFSET(E26,-1,0)+MAX(1,COUNTIF(QCI!$A$13:$A$15,OFFSET(ORÇAMENTO!E26,-1,0))),OFFSET(E26,-1,0)) -> 1 | F26: 4 | G26: 0 | H26: 0 | I26: 0 | J26: 51 | K26: =IF(OR($C26="S",$C26=0),0,MATCH(OFFSET($D26,0,$C26)+IF($C26<>1,1,COUNTIF(QCI!$A$13:$A$15,ORÇAMENTO!E26)),OFFSET($D26,1,$C26,ROW($C$77)-ROW($C26)),0)) -> 9 | L26: F | M26: Nível 2 | N26: Nível 2 | O26: 1.4. | P26: SINAPI | R26: ESCAVAÇÕES E MOVIMENTAÇÕES DE TERRA | S26: - | T26: =OFFSET(CÁLCULO!H$15,ROW($T26)-ROW(T$15),0) -> 0 | U26: 0 | V26: BDI 1 | W26: 0 | X26: 28535.75 | Y26: RA | AA26: =IF($C26="S",IF($Z26="CP",$X26,IF($Z26="RA",(($X26)*QCI!$AA$3),0)),SomaAgrup) -> 8897.406958 | AB26: 0 | AD26: =IF(C26<=CRONO.NivelExibicao,MAX($AD$15:OFFSET(AD26,-1,0))+IF($C26<>1,1,MAX(1,COUNTIF(QCI!$A$13:$A$15,OFFSET($E26,-1,0)))),"") -> 5 | AE26: FALSE | AF26: (Sem Código) | AG26: 0 | AH26: 0.2159 | AM26: 28535.75 | AN26: 0
A27: S | B27: 2 | C27: S | D27: 0 | E27: =IF($C27=1,OFFSET(E27,-1,0)+MAX(1,COUNTIF(QCI!$A$13:$A$15,OFFSET(ORÇAMENTO!E27,-1,0))),OFFSET(E27,-1,0)) -> 1 | F27: 4 | G27: 0 | H27: 0 | I27: 1 | J27: 0 | K27: =IF(OR($C27="S",$C27=0),0,MATCH(OFFSET($D27,0,$C27)+IF($C27<>1,1,COUNTIF(QCI!$A$13:$A$15,ORÇAMENTO!E27)),OFFSET($D27,1,$C27,ROW($C$77)-ROW($C27)),0)) -> 0 | L27: F | M27: Serviço | N27: Serviço | O27: 1.4.1. | P27: SINAPI | Q27: 101116 | R27: ESCAVAÇÃO HORIZONTAL EM SOLO DE 1A CATEGORIA COM TRATOR DE ESTEIRAS (170HP/LÂMINA: 5,20M3). AF_07/2020 | S27: M3 | T27: =OFFSET(CÁLCULO!H$15,ROW($T27)-ROW(T$15),0) -> 747.74 | U27: 2.15 | V27: BDI 1 | W27: 2.61 | X27: 1951.6 | Y27: RA | Z27: RA | AA27: =IF($C27="S",IF($Z27="CP",$X27,IF($Z27="RA",(($X27)*QCI!$AA$3),0)),SomaAgrup) -> 608.5061518 | AB27: 0 | AD27: =IF(C27<=CRONO.NivelExibicao,MAX($AD$15:OFFSET(AD27,-1,0))+IF($C27<>1,1,MAX(1,COUNTIF(QCI!$A$13:$A$15,OFFSET($E27,-1,0)))),"") ->  | AE27: SINAPI 101116 | AF27: 6116 | AG27: 2.24 | AH27: 0.2159 | AM27: 1951.6 | AN27: 2.61
A28: S | B28: 2 | C28: S | D28: 0 | E28: =IF($C28=1,OFFSET(E28,-1,0)+MAX(1,COUNTIF(QCI!$A$13:$A$15,OFFSET(ORÇAMENTO!E28,-1,0))),OFFSET(E28,-1,0)) -> 1 | F28: 4 | G28: 0 | H28: 0 | I28: 2 | J28: 0 | K28: =IF(OR($C28="S",$C28=0),0,MATCH(OFFSET($D28,0,$C28)+IF($C28<>1,1,COUNTIF(QCI!$A$13:$A$15,ORÇAMENTO!E28)),OFFSET($D28,1,$C28,ROW($C$77)-ROW($C28)),0)) -> 0 | L28: F | M28: Serviço | N28: Serviço | O28: 1.4.2. | P28: SINAPI | Q28: 102276 | R28: ESCAVAÇÃO MECANIZADA DE VALA COM PROF. ATÉ 2 M, COM ESCAVADEIRA HIDRÁULICA, LARG. MENOR QUE 1,5 M, EM SOLO DE 1A CATEGORIA, EM LOCAIS COM ALTO NÍVEL DE INTERFERÊNCIA | S28: M3 | T28: =OFFSET(CÁLCULO!H$15,ROW($T28)-ROW(T$15),0) -> 305.27 | U28: 12 | V28: BDI 1 | W28: 14.59 | X28: 4453.89 | Y28: RA | Z28: RA | AA28: =IF($C28="S",IF($Z28="CP",$X28,IF($Z28="RA",(($X28)*QCI!$AA$3),0)),SomaAgrup) -> 1388.716676 | AB28: 0 | AD28: =IF(C28<=CRONO.NivelExibicao,MAX($AD$15:OFFSET(AD28,-1,0))+IF($C28<>1,1,MAX(1,COUNTIF(QCI!$A$13:$A$15,OFFSET($E28,-1,0)))),"") ->  | AE28: SINAPI 102276 | AF28: 6249 | AG28: 12.47 | AH28: 0.2159 | AM28: 4453.89 | AN28: 14.59
A29: S | B29: 2 | C29: S | D29: 0 | E29: =IF($C29=1,OFFSET(E29,-1,0)+MAX(1,COUNTIF(QCI!$A$13:$A$15,OFFSET(ORÇAMENTO!E29,-1,0))),OFFSET(E29,-1,0)) -> 1 | F29: 4 | G29: 0 | H29: 0 | I29: 3 | J29: 0 | K29: =IF(OR($C29="S",$C29=0),0,MATCH(OFFSET($D29,0,$C29)+IF($C29<>1,1,COUNTIF(QCI!$A$13:$A$15,ORÇAMENTO!E29)),OFFSET($D29,1,$C29,ROW($C$77)-ROW($C29)),0)) -> 0 | L29: F | M29: Serviço | N29: Serviço | O29: 1.4.3. | P29: SINAPI | Q29: 100978 | R29: CARGA, MANOBRA E DESCARGA DE SOLO ESCAVADO, EM CAMINHÃO BASCULANTE - CARGA COM ESCAVADEIRA HIDRÁULICA | S29: M3 | T29: =OFFSET(CÁLCULO!H$15,ROW($T29)-ROW(T$15),0) -> 1053.01 | U29: 6.38 | V29: BDI 1 | W29: 7.76 | X29: 8171.36 | Y29: RA | Z29: RA | AA29: =IF($C29="S",IF($Z29="CP",$X29,IF($Z29="RA",(($X29)*QCI!$AA$3),0)),SomaAgrup) -> 2547.818625 | AB29: 0 | AD29: =IF(C29<=CRONO.NivelExibicao,MAX($AD$15:OFFSET(AD29,-1,0))+IF($C29<>1,1,MAX(1,COUNTIF(QCI!$A$13:$A$15,OFFSET($E29,-1,0)))),"") ->  | AE29: SINAPI 100978 | AF29: 7598 | AG29: 6.51 | AH29: 0.2159 | AM29: 8171.36 | AN29: 7.76
A30: S | B30: 2 | C30: S | D30: 0 | E30: =IF($C30=1,OFFSET(E30,-1,0)+MAX(1,COUNTIF(QCI!$A$13:$A$15,OFFSET(ORÇAMENTO!E30,-1,0))),OFFSET(E30,-1,0)) -> 1 | F30: 4 | G30: 0 | H30: 0 | I30: 4 | J30: 0 | K30: =IF(OR($C30="S",$C30=0),0,MATCH(OFFSET($D30,0,$C30)+IF($C30<>1,1,COUNTIF(QCI!$A$13:$A$15,ORÇAMENTO!E30)),OFFSET($D30,1,$C30,ROW($C$77)-ROW($C30)),0)) -> 0 | L30: F | M30: Serviço | N30: Serviço | O30: 1.4.4. | P30: SINAPI | Q30: 95875 | R30: TRANSPORTE DE MATERIAL REMOVIDO, COM CAMINHÃO BASCULANTE, DMT = 2 KM | S30: M3XKM | T30: =OFFSET(CÁLCULO!H$15,ROW($T30)-ROW(T$15),0) -> 2106.02 | U30: 2.28 | V30: BDI 1 | W30: 2.77 | X30: 5833.68 | Y30: RA | Z30: RA | AA30: =IF($C30="S",IF($Z30="CP",$X30,IF($Z30="RA",(($X30)*QCI!$AA$3),0)),SomaAgrup) -> 1818.933269 | AB30: 0 | AD30: =IF(C30<=CRONO.NivelExibicao,MAX($AD$15:OFFSET(AD30,-1,0))+IF($C30<>1,1,MAX(1,COUNTIF(QCI!$A$13:$A$15,OFFSET($E30,-1,0)))),"") ->  | AE30: SINAPI 95875 | AF30: 7544 | AG30: 2.31 | AH30: 0.2159 | AM30: 5833.68 | AN30: 2.77
A31: S | B31: 2 | C31: S | D31: 0 | E31: =IF($C31=1,OFFSET(E31,-1,0)+MAX(1,COUNTIF(QCI!$A$13:$A$15,OFFSET(ORÇAMENTO!E31,-1,0))),OFFSET(E31,-1,0)) -> 1 | F31: 4 | G31: 0 | H31: 0 | I31: 5 | J31: 0 | K31: =IF(OR($C31="S",$C31=0),0,MATCH(OFFSET($D31,0,$C31)+IF($C31<>1,1,COUNTIF(QCI!$A$13:$A$15,ORÇAMENTO!E31)),OFFSET($D31,1,$C31,ROW($C$77)-ROW($C31)),0)) -> 0 | L31: F | M31: Serviço | N31: Serviço | O31: 1.4.5. | P31: SINAPI | Q31: 102354 | R31: DESMONTE DE BLOCOS DE ROCHA COM MARTELETE PNEUMÁTICO | S31: M³ | T31: =OFFSET(CÁLCULO!H$15,ROW($T31)-ROW(T$15),0) -> 15.26 | U31: 146.02 | V31: BDI 1 | W31: 177.55 | X31: 2709.41 | Y31: RA | Z31: RA | AA31: =IF($C31="S",IF($Z31="CP",$X31,IF($Z31="RA",(($X31)*QCI!$AA$3),0)),SomaAgrup) -> 844.7902504 | AB31: 0 | AD31: =IF(C31<=CRONO.NivelExibicao,MAX($AD$15:OFFSET(AD31,-1,0))+IF($C31<>1,1,MAX(1,COUNTIF(QCI!$A$13:$A$15,OFFSET($E31,-1,0)))),"") ->  | AE31: SINAPI 102354 | AF31: 6226 | AG31: 153.4 | AH31: 0.2159 | AM31: 2709.41 | AN31: 177.55
A32: S | B32: 2 | C32: S | D32: 0 | E32: =IF($C32=1,OFFSET(E32,-1,0)+MAX(1,COUNTIF(QCI!$A$13:$A$15,OFFSET(ORÇAMENTO!E32,-1,0))),OFFSET(E32,-1,0)) -> 1 | F32: 4 | G32: 0 | H32: 0 | I32: 6 | J32: 0 | K32: =IF(OR($C32="S",$C32=0),0,MATCH(OFFSET($D32,0,$C32)+IF($C32<>1,1,COUNTIF(QCI!$A$13:$A$15,ORÇAMENTO!E32)),OFFSET($D32,1,$C32,ROW($C$77)-ROW($C32)),0)) -> 0 | L32: F | M32: Serviço | N32: Serviço | O32: 1.4.6. | P32: SINAPI | Q32: 100978 | R32: CARGA, MANOBRA E DESCARGA DE MATERIAIS GRANULARES EM CAMINHÃO BASCULANTE - CARGA COM ESCAVADEIRA HIDRÁULICA | S32: M3 | T32: =OFFSET(CÁLCULO!H$15,ROW($T32)-ROW(T$15),0) -> 15.26 | U32: 6.38 | V32: BDI 1 | W32: 7.76 | X32: 118.42 | Y32: RA | Z32: RA | AA32: =IF($C32="S",IF($Z32="CP",$X32,IF($Z32="RA",(($X32)*QCI!$AA$3),0)),SomaAgrup) -> 36.92319045 | AB32: 0 | AD32: =IF(C32<=CRONO.NivelExibicao,MAX($AD$15:OFFSET(AD32,-1,0))+IF($C32<>1,1,MAX(1,COUNTIF(QCI!$A$13:$A$15,OFFSET($E32,-1,0)))),"") ->  | AE32: SINAPI 100978 | AF32: 7598 | AG32: 6.51 | AH32: 0.2159 | AM32: 118.42 | AN32: 7.76
A33: S | B33: 2 | C33: S | D33: 0 | E33: =IF($C33=1,OFFSET(E33,-1,0)+MAX(1,COUNTIF(QCI!$A$13:$A$15,OFFSET(ORÇAMENTO!E33,-1,0))),OFFSET(E33,-1,0)) -> 1 | F33: 4 | G33: 0 | H33: 0 | I33: 7 | J33: 0 | K33: =IF(OR($C33="S",$C33=0),0,MATCH(OFFSET($D33,0,$C33)+IF($C33<>1,1,COUNTIF(QCI!$A$13:$A$15,ORÇAMENTO!E33)),OFFSET($D33,1,$C33,ROW($C$77)-ROW($C33)),0)) -> 0 | L33: F | M33: Serviço | N33: Serviço | O33: 1.4.7. | P33: SINAPI | Q33: 95875 | R33: TRANSPORTE DE MATERIAL REMOVIDO, COM CAMINHÃO BASCULANTE, DMT = 2 KM | S33: M3XKM | T33: =OFFSET(CÁLCULO!H$15,ROW($T33)-ROW(T$15),0) -> 30.53 | U33: 2.28 | V33: BDI 1 | W33: 2.77 | X33: 84.57 | Y33: RA | Z33: RA | AA33: =IF($C33="S",IF($Z33="CP",$X33,IF($Z33="RA",(($X33)*QCI!$AA$3),0)),SomaAgrup) -> 26.36880778 | AB33: 0 | AD33: =IF(C33<=CRONO.NivelExibicao,MAX($AD$15:OFFSET(AD33,-1,0))+IF($C33<>1,1,MAX(1,COUNTIF(QCI!$A$13:$A$15,OFFSET($E33,-1,0)))),"") ->  | AE33: SINAPI 95875 | AF33: 7544 | AG33: 2.31 | AH33: 0.2159 | AM33: 84.57 | AN33: 2.77
A34: S | B34: 2 | C34: S | D34: 0 | E34: =IF($C34=1,OFFSET(E34,-1,0)+MAX(1,COUNTIF(QCI!$A$13:$A$15,OFFSET(ORÇAMENTO!E34,-1,0))),OFFSET(E34,-1,0)) -> 1 | F34: 4 | G34: 0 | H34: 0 | I34: 8 | J34: 0 | K34: =IF(OR($C34="S",$C34=0),0,MATCH(OFFSET($D34,0,$C34)+IF($C34<>1,1,COUNTIF(QCI!$A$13:$A$15,ORÇAMENTO!E34)),OFFSET($D34,1,$C34,ROW($C$77)-ROW($C34)),0)) -> 0 | L34: F | M34: Serviço | N34: Serviço | O34: 1.4.8. | P34: SINAPI | Q34: 72961 | R34: REGULARIZACAO E COMPACTACAO DE SUBLEITO ATE 20 CM DE ESPESSURA | S34: M2 | T34: =OFFSET(CÁLCULO!H$15,ROW($T34)-ROW(T$15),0) -> 2136.4 | U34: 2.01 | V34: BDI 1 | W34: 2.44 | X34: 5212.82 | Y34: RA | Z34: RA | AA34: =IF($C34="S",IF($Z34="CP",$X34,IF($Z34="RA",(($X34)*QCI!$AA$3),0)),SomaAgrup) -> 1625.349989 | AB34: 0 | AD34: =IF(C34<=CRONO.NivelExibicao,MAX($AD$15:OFFSET(AD34,-1,0))+IF($C34<>1,1,MAX(1,COUNTIF(QCI!$A$13:$A$15,OFFSET($E34,-1,0)))),"") ->  | AE34: SINAPI 72961 | AF34: 238 | AG34: 2.06 | AH34: 0.2159 | AM34: 5212.82 | AN34: 2.44
A35: 2 | B35: 2 | C35: 2 | D35: 4 | E35: =IF($C35=1,OFFSET(E35,-1,0)+MAX(1,COUNTIF(QCI!$A$13:$A$15,OFFSET(ORÇAMENTO!E35,-1,0))),OFFSET(E35,-1,0)) -> 1 | F35: 5 | G35: 0 | H35: 0 | I35: 0 | J35: 42 | K35: =IF(OR($C35="S",$C35=0),0,MATCH(OFFSET($D35,0,$C35)+IF($C35<>1,1,COUNTIF(QCI!$A$13:$A$15,ORÇAMENTO!E35)),OFFSET($D35,1,$C35,ROW($C$77)-ROW($C35)),0)) -> 4 | L35: F | M35: Nível 2 | N35: Nível 2 | O35: 1.5. | P35: SINAPI | R35: DRENAGEM | T35: =OFFSET(CÁLCULO!H$15,ROW($T35)-ROW(T$15),0) -> 0 | U35: 0 | V35: BDI 1 | W35: 0 | X35: 88817.08 | Y35: RA | AA35: =IF($C35="S",IF($Z35="CP",$X35,IF($Z35="RA",(($X35)*QCI!$AA$3),0)),SomaAgrup) -> 27693.04138 | AB35: 0 | AD35: =IF(C35<=CRONO.NivelExibicao,MAX($AD$15:OFFSET(AD35,-1,0))+IF($C35<>1,1,MAX(1,COUNTIF(QCI!$A$13:$A$15,OFFSET($E35,-1,0)))),"") -> 6 | AE35: FALSE | AF35: (Sem Código) | AG35: 0 | AH35: 0.2159 | AM35: 88817.08 | AN35: 0
A36: S | B36: 2 | C36: S | D36: 0 | E36: =IF($C36=1,OFFSET(E36,-1,0)+MAX(1,COUNTIF(QCI!$A$13:$A$15,OFFSET(ORÇAMENTO!E36,-1,0))),OFFSET(E36,-1,0)) -> 1 | F36: 5 | G36: 0 | H36: 0 | I36: 1 | J36: 0 | K36: =IF(OR($C36="S",$C36=0),0,MATCH(OFFSET($D36,0,$C36)+IF($C36<>1,1,COUNTIF(QCI!$A$13:$A$15,ORÇAMENTO!E36)),OFFSET($D36,1,$C36,ROW($C$77)-ROW($C36)),0)) -> 0 | L36: F | M36: Serviço | N36: Serviço | O36: 1.5.1. | P36: SINAPI | Q36: 92210 | R36: TUBO DE CONCRETO PARA REDES COLETORAS DE ÁGUAS PLUVIAIS, DIÂMETRO DE 400 MM, JUNTA RÍGIDA, INSTALADO EM LOCAL COM BAIXO NÍVEL DE INTERFERÊNCIAS - FORNECIMENTO E ASSENTAMENTO. AF_12/2015 | S36: M | T36: =OFFSET(CÁLCULO!H$15,ROW($T36)-ROW(T$15),0) -> 254 | U36: 161.69 | V36: BDI 1 | W36: 196.6 | X36: 49936.4 | Y36: RA | Z36: RA | AA36: =IF($C36="S",IF($Z36="CP",$X36,IF($Z36="RA",(($X36)*QCI!$AA$3),0)),SomaAgrup) -> 15570.09971 | AB36: 0 | AD36: =IF(C36<=CRONO.NivelExibicao,MAX($AD$15:OFFSET(AD36,-1,0))+IF($C36<>1,1,MAX(1,COUNTIF(QCI!$A$13:$A$15,OFFSET($E36,-1,0)))),"") ->  | AE36: SINAPI 92210 | AF36: 795 | AG36: 165.44 | AH36: 0.2159 | AM36: 49936.4 | AN36: 196.6
A37: S | B37: 2 | C37: S | D37: 0 | E37: =IF($C37=1,OFFSET(E37,-1,0)+MAX(1,COUNTIF(QCI!$A$13:$A$15,OFFSET(ORÇAMENTO!E37,-1,0))),OFFSET(E37,-1,0)) -> 1 | F37: 5 | G37: 0 | H37: 0 | I37: 2 | J37: 0 | K37: =IF(OR($C37="S",$C37=0),0,MATCH(OFFSET($D37,0,$C37)+IF($C37<>1,1,COUNTIF(QCI!$A$13:$A$15,ORÇAMENTO!E37)),OFFSET($D37,1,$C37,ROW($C$77)-ROW($C37)),0)) -> 0 | L37: F | M37: Serviço | N37: Serviço | O37: 1.5.2. | P37: AMMOC | Q37: BL01 | R37: BOCA DE LOBO EM CONCRETO ARMADO E GRADE DE AÇO EM BARRA DE FERRO CHATA 0,70M X 1,00M - TIPO 1 | S37: UND | T37: =OFFSET(CÁLCULO!H$15,ROW($T37)-ROW(T$15),0) -> 12 | U37: 2534.05 | V37: BDI 1 | W37: 3081.15 | X37: 36973.8 | Y37: RA | Z37: RA | AA37: =IF($C37="S",IF($Z37="CP",$X37,IF($Z37="RA",(($X37)*QCI!$AA$3),0)),SomaAgrup) -> 11528.37915 | AB37: 0 | AD37: =IF(C37<=CRONO.NivelExibicao,MAX($AD$15:OFFSET(AD37,-1,0))+IF($C37<>1,1,MAX(1,COUNTIF(QCI!$A$13:$A$15,OFFSET($E37,-1,0)))),"") ->  | AE37: AMMOC BL01 | AF37: 376 | AG37: 2637.53 | AH37: 0.2159 | AM37: 36973.8 | AN37: 3081.15
A38: =CHOOSE(1+LOG(1+2*(ORÇAMENTO.Nivel="Meta")+4*(ORÇAMENTO.Nivel="Nível 2")+8*(ORÇAMENTO.Nivel="Nível 3")+16*(ORÇAMENTO.Nivel="Nível 4")+32*(ORÇAMENTO.Nivel="Serviço"),2),0,1,2,3,4,"S") -> S | B38: =IF(OR(C38="s",C38=0),OFFSET(B38,-1,0),C38) -> 2 | C38: =IF(OFFSET(C38,-1,0)="L",1,IF(OFFSET(C38,-1,0)=1,2,IF(OR(A38="s",A38=0),"S",IF(AND(OFFSET(C38,-1,0)=2,A38=4),3,IF(AND(OR(OFFSET(C38,-1,0)="s",OFFSET(C38,-1,0)=0),A38<>"s",A38>OFFSET(B38,-1,0)),OFFSET(B38,-1,0),A38))))) -> S | D38: =IF(OR(C38="S",C38=0),0,IF(ISERROR(K38),J38,SMALL(J38:K38,1))) -> 0 | E38: =IF($C38=1,OFFSET(E38,-1,0)+MAX(1,COUNTIF(QCI!$A$13:$A$15,OFFSET(ORÇAMENTO!E38,-1,0))),OFFSET(E38,-1,0)) -> 1 | F38: =IF($C38=1,0,IF($C38=2,OFFSET(F38,-1,0)+1,OFFSET(F38,-1,0))) -> 5 | G38: =IF(AND($C38<=2,$C38<>0),0,IF($C38=3,OFFSET(G38,-1,0)+1,OFFSET(G38,-1,0))) -> 0 | H38: =IF(AND($C38<=3,$C38<>0),0,IF($C38=4,OFFSET(H38,-1,0)+1,OFFSET(H38,-1,0))) -> 0 | I38: =IF(AND($C38<=4,$C38<>0),0,IF(AND($C38="S",$X38>0),OFFSET(I38,-1,0)+1,OFFSET(I38,-1,0))) -> 3 | J38: 0 | K38: =IF(OR($C38="S",$C38=0),0,MATCH(OFFSET($D38,0,$C38)+IF($C38<>1,1,COUNTIF(QCI!$A$13:$A$15,ORÇAMENTO!E38)),OFFSET($D38,1,$C38,ROW($C$77)-ROW($C38)),0)) -> 0 | L38: =IF(OR($X38>0,$C38=1,$C38=2,$C38=3,$C38=4),"F","") -> F | M38: Serviço | N38: =CHOOSE(1+LOG(1+2*(C38=1)+4*(C38=2)+8*(C38=3)+16*(C38=4)+32*(C38="S"),2),"","Meta","Nível 2","Nível 3","Nível 4","Serviço") -> Serviço | O38: =IF(OR($C38=0,$L38=""),"-",CONCATENATE(E38&".",IF(AND($A$5>=2,$C38>=2),F38&".",""),IF(AND($A$5>=3,$C38>=3),G38&".",""),IF(AND($A$5>=4,$C38>=4),H38&".",""),IF($C38="S",I38&".",""))) -> 1.5.3. | P38: AMMOC | Q38: CC01 | R38: CAIXA CEGA EM CONCRETO ARMADO, INCLUSIVE TAMPA EM CONCRETO ARMADO - TIPO 1 | S38: UND | T38: =OFFSET(CÁLCULO!H$15,ROW($T38)-ROW(T$15),0) -> 1 | U38: 1568.29 | V38: BDI 1 | W38: =IF($C38="S",ROUND(IF(TIPOORCAMENTO="Proposto",ORÇAMENTO.CustoUnitario*(1+$AH38),ORÇAMENTO.PrecoUnitarioLicitado),15-13*$AF$10),0) -> 1906.88 | X38: =IF($C38="S",VTOTAL1,IF($C38=0,0,ROUND(SomaAgrup,15-13*$AF$11))) -> 1906.88 | Y38: RA | Z38: =IF(AND($C38="S",$X38>0),IF(ISBLANK($Y38),"RA",LEFT($Y38,2)),"") -> RA | AA38: =IF($C38="S",IF($Z38="CP",$X38,IF($Z38="RA",(($X38)*QCI!$AA$3),0)),SomaAgrup) -> 594.5625183 | AB38: =IF($C38="S",IF($Z38="OU",ROUND($X38,2),0),SomaAgrup) -> 0 | AC38: =IF($N38="","",IF(ORÇAMENTO.Descricao="","DESCRIÇÃO",IF(AND($C38="S",ORÇAMENTO.Unidade=""),"UNIDADE",IF($X38<0,"VALOR NEGATIVO",IF(OR(AND(TIPOORCAMENTO="Proposto",$AG38<>"",$AG38>0,ORÇAMENTO.CustoUnitario>$AG38),AND(TIPOORCAMENTO="LICITADO",ORÇAMENTO.PrecoUnitarioLicitado>$AN38)),"ACIMA REF.",""))))) ->  | AD38: =IF(C38<=CRONO.NivelExibicao,MAX($AD$15:OFFSET(AD38,-1,0))+IF($C38<>1,1,MAX(1,COUNTIF(QCI!$A$13:$A$15,OFFSET($E38,-1,0)))),"") ->  | AE38: =IF(AND($C38="S",ORÇAMENTO.CodBarra<>""),IF(ORÇAMENTO.Fonte="",ORÇAMENTO.CodBarra,CONCATENATE(ORÇAMENTO.Fonte," ",ORÇAMENTO.CodBarra))) -> AMMOC CC01 | AF38: =IF(ISERROR(INDIRECT(ORÇAMENTO.BancoRef)),"(abra o arquivo 'Referência "&Excel_BuiltIn_Database&".xls)",IF(OR($C38<>"S",ORÇAMENTO.CodBarra=""),"(Sem Código)",IF(ISERROR(MATCH($AE38,INDIRECT(ORÇAMENTO.BancoRef),0)),"(Código não identificado nas referências)",MATCH($AE38,INDIRECT(ORÇAMENTO.BancoRef),0)))) -> 375 | AG38: =ROUND(IF(DESONERACAO="sim",REFERENCIA.Desonerado,REFERENCIA.NaoDesonerado),2) -> 1653.48 | AH38: =ROUND(IF(ISNUMBER(ORÇAMENTO.OpcaoBDI),ORÇAMENTO.OpcaoBDI,IF(LEFT(ORÇAMENTO.OpcaoBDI,3)="BDI",HLOOKUP(ORÇAMENTO.OpcaoBDI,$F$4:$H$5,2,FALSE),0)),15-11*$AF$9) -> 0.2159 | AM38: 1906.88 | AN38: =ROUND(ORÇAMENTO.CustoUnitario*(1+$AH38),2) -> 1906.88
A39: 2 | B39: 2 | C39: 2 | D39: 4 | E39: =IF($C39=1,OFFSET(E39,-1,0)+MAX(1,COUNTIF(QCI!$A$13:$A$15,OFFSET(ORÇAMENTO!E39,-1,0))),OFFSET(E39,-1,0)) -> 1 | F39: 6 | G39: 0 | H39: 0 | I39: 0 | J39: 38 | K39: =IF(OR($C39="S",$C39=0),0,MATCH(OFFSET($D39,0,$C39)+IF($C39<>1,1,COUNTIF(QCI!$A$13:$A$15,ORÇAMENTO!E39)),OFFSET($D39,1,$C39,ROW($C$77)-ROW($C39)),0)) -> 4 | L39: F | M39: Nível 2 | N39: Nível 2 | O39: 1.6. | P39: SINAPI | R39: REATERROS | S39: - | T39: =OFFSET(CÁLCULO!H$15,ROW($T39)-ROW(T$15),0) -> 0 | U39: 0 | V39: BDI 1 | W39: 0 | X39: 29935.37 | Y39: RA | AA39: =IF($C39="S",IF($Z39="CP",$X39,IF($Z39="RA",(($X39)*QCI!$AA$3),0)),SomaAgrup) -> 9333.806518 | AB39: 0 | AD39: =IF(C39<=CRONO.NivelExibicao,MAX($AD$15:OFFSET(AD39,-1,0))+IF($C39<>1,1,MAX(1,COUNTIF(QCI!$A$13:$A$15,OFFSET($E39,-1,0)))),"") -> 7 | AE39: FALSE | AF39: (Sem Código) | AG39: 0 | AH39: 0.2159 | AM39: 29935.37 | AN39: 0
A40: S | B40: 2 | C40: S | D40: 0 | E40: =IF($C40=1,OFFSET(E40,-1,0)+MAX(1,COUNTIF(QCI!$A$13:$A$15,OFFSET(ORÇAMENTO!E40,-1,0))),OFFSET(E40,-1,0)) -> 1 | F40: 6 | G40: 0 | H40: 0 | I40: 1 | J40: 0 | K40: =IF(OR($C40="S",$C40=0),0,MATCH(OFFSET($D40,0,$C40)+IF($C40<>1,1,COUNTIF(QCI!$A$13:$A$15,ORÇAMENTO!E40)),OFFSET($D40,1,$C40,ROW($C$77)-ROW($C40)),0)) -> 0 | L40: F | M40: Serviço | N40: Serviço | O40: 1.6.1. | P40: SINAPI-I | Q40: 4718 | R40: PEDRA BRITADA N. 2 (19 A 38 MM) POSTO PEDREIRA/FORNECEDOR, SEM FRETE | S40: M3 | T40: =OFFSET(CÁLCULO!H$15,ROW($T40)-ROW(T$15),0) -> 157.48 | U40: 102.5 | V40: BDI 1 | W40: 124.63 | X40: 19626.73 | Y40: RA | Z40: RA | AA40: =IF($C40="S",IF($Z40="CP",$X40,IF($Z40="RA",(($X40)*QCI!$AA$3),0)),SomaAgrup) -> 6119.586977 | AB40: 0 | AD40: =IF(C40<=CRONO.NivelExibicao,MAX($AD$15:OFFSET(AD40,-1,0))+IF($C40<>1,1,MAX(1,COUNTIF(QCI!$A$13:$A$15,OFFSET($E40,-1,0)))),"") ->  | AE40: SINAPI-I 4718 | AF40: 11467 | AG40: 102.5 | AH40: 0.2159 | AM40: 19626.73 | AN40: 124.63
A41: S | B41: 2 | C41: S | D41: 0 | E41: =IF($C41=1,OFFSET(E41,-1,0)+MAX(1,COUNTIF(QCI!$A$13:$A$15,OFFSET(ORÇAMENTO!E41,-1,0))),OFFSET(E41,-1,0)) -> 1 | F41: 6 | G41: 0 | H41: 0 | I41: 2 | J41: 0 | K41: =IF(OR($C41="S",$C41=0),0,MATCH(OFFSET($D41,0,$C41)+IF($C41<>1,1,COUNTIF(QCI!$A$13:$A$15,ORÇAMENTO!E41)),OFFSET($D41,1,$C41,ROW($C$77)-ROW($C41)),0)) -> 0 | L41: F | M41: Serviço | N41: Serviço | O41: 1.6.2. | P41: SINAPI | Q41: 100974 | R41: CARGA, MANOBRA E DESCARGA DE SOLOS E MATERIAIS GRANULARES EM CAMINHÃO BASCULANTE 10 M³ - CARGA COM PÁ CARREGADEIRA (CAÇAMBA DE 1,7 A 2,8 M³ / 128 HP) E DESCARGA LIVRE (UNIDADE: M3). AF_07/2020 | S41: M3 | T41: =OFFSET(CÁLCULO!H$15,ROW($T41)-ROW(T$15),0) -> 157.48 | U41: 8.27 | V41: BDI 1 | W41: 10.06 | X41: 1584.25 | Y41: RA | Z41: RA | AA41: =IF($C41="S",IF($Z41="CP",$X41,IF($Z41="RA",(($X41)*QCI!$AA$3),0)),SomaAgrup) -> 493.9669353 | AB41: 0 | AD41: =IF(C41<=CRONO.NivelExibicao,MAX($AD$15:OFFSET(AD41,-1,0))+IF($C41<>1,1,MAX(1,COUNTIF(QCI!$A$13:$A$15,OFFSET($E41,-1,0)))),"") ->  | AE41: SINAPI 100974 | AF41: 7583 | AG41: 8.45 | AH41: 0.2159 | AM41: 1584.25 | AN41: 10.06
A42: S | B42: 2 | C42: S | D42: 0 | E42: =IF($C42=1,OFFSET(E42,-1,0)+MAX(1,COUNTIF(QCI!$A$13:$A$15,OFFSET(ORÇAMENTO!E42,-1,0))),OFFSET(E42,-1,0)) -> 1 | F42: 6 | G42: 0 | H42: 0 | I42: 3 | J42: 0 | K42: =IF(OR($C42="S",$C42=0),0,MATCH(OFFSET($D42,0,$C42)+IF($C42<>1,1,COUNTIF(QCI!$A$13:$A$15,ORÇAMENTO!E42)),OFFSET($D42,1,$C42,ROW($C$77)-ROW($C42)),0)) -> 0 | L42: F | M42: Serviço | N42: Serviço | O42: 1.6.3. | P42: SINAPI | Q42: 95875 | R42: TRANSPORTE COM CAMINHÃO BASCULANTE DE 10 M³, EM VIA URBANA PAVIMENTADA, DMT ATÉ 30 KM (UNIDADE: M3XKM). AF_07/2020 | S42: M3XKM | T42: =OFFSET(CÁLCULO!H$15,ROW($T42)-ROW(T$15),0) -> 3149.6 | U42: 2.28 | V42: BDI 1 | W42: 2.77 | X42: 8724.39 | Y42: RA | Z42: RA | AA42: =IF($C42="S",IF($Z42="CP",$X42,IF($Z42="RA",(($X42)*QCI!$AA$3),0)),SomaAgrup) -> 2720.252606 | AB42: 0 | AD42: =IF(C42<=CRONO.NivelExibicao,MAX($AD$15:OFFSET(AD42,-1,0))+IF($C42<>1,1,MAX(1,COUNTIF(QCI!$A$13:$A$15,OFFSET($E42,-1,0)))),"") ->  | AE42: SINAPI 95875 | AF42: 7544 | AG42: 2.31 | AH42: 0.2159 | AM42: 8724.39 | AN42: 2.77
A43: 2 | B43: 2 | C43: 2 | D43: 10 | E43: =IF($C43=1,OFFSET(E43,-1,0)+MAX(1,COUNTIF(QCI!$A$13:$A$15,OFFSET(ORÇAMENTO!E43,-1,0))),OFFSET(E43,-1,0)) -> 1 | F43: 7 | G43: 0 | H43: 0 | I43: 0 | J43: 34 | K43: =IF(OR($C43="S",$C43=0),0,MATCH(OFFSET($D43,0,$C43)+IF($C43<>1,1,COUNTIF(QCI!$A$13:$A$15,ORÇAMENTO!E43)),OFFSET($D43,1,$C43,ROW($C$77)-ROW($C43)),0)) -> 10 | L43: F | M43: Nível 2 | N43: Nível 2 | O43: 1.7. | P43: SINAPI | R43: BASE E SUB-BASE | S43: - | T43: =OFFSET(CÁLCULO!H$15,ROW($T43)-ROW(T$15),0) -> 0 | U43: 0 | V43: BDI 1 | W43: 0 | X43: 155381.15 | Y43: RA | AA43: =IF($C43="S",IF($Z43="CP",$X43,IF($Z43="RA",(($X43)*QCI!$AA$3),0)),SomaAgrup) -> 48447.62535 | AB43: 0 | AD43: =IF(C43<=CRONO.NivelExibicao,MAX($AD$15:OFFSET(AD43,-1,0))+IF($C43<>1,1,MAX(1,COUNTIF(QCI!$A$13:$A$15,OFFSET($E43,-1,0)))),"") -> 8 | AE43: FALSE | AF43: (Sem Código) | AG43: 0 | AH43: 0.2159 | AM43: 155381.15 | AN43: 0
A44: S | B44: 2 | C44: S | D44: 0 | E44: =IF($C44=1,OFFSET(E44,-1,0)+MAX(1,COUNTIF(QCI!$A$13:$A$15,OFFSET(ORÇAMENTO!E44,-1,0))),OFFSET(E44,-1,0)) -> 1 | F44: 7 | G44: 0 | H44: 0 | I44: 1 | J44: 0 | K44: =IF(OR($C44="S",$C44=0),0,MATCH(OFFSET($D44,0,$C44)+IF($C44<>1,1,COUNTIF(QCI!$A$13:$A$15,ORÇAMENTO!E44)),OFFSET($D44,1,$C44,ROW($C$77)-ROW($C44)),0)) -> 0 | L44: F | M44: Serviço | N44: Serviço | O44: 1.7.1. | P44: SINAPI-I | Q44: 4718 | R44: PEDRA BRITADA N. 2 (19 A 38 MM) PARA CAMADA DE BLOQUEIO | S44: M3 | T44: =OFFSET(CÁLCULO!H$15,ROW($T44)-ROW(T$15),0) -> 32.05 | U44: 102.5 | V44: BDI 1 | W44: 124.63 | X44: 3994.39 | Y44: RA | Z44: RA | AA44: =IF($C44="S",IF($Z44="CP",$X44,IF($Z44="RA",(($X44)*QCI!$AA$3),0)),SomaAgrup) -> 1245.445218 | AB44: 0 | AD44: =IF(C44<=CRONO.NivelExibicao,MAX($AD$15:OFFSET(AD44,-1,0))+IF($C44<>1,1,MAX(1,COUNTIF(QCI!$A$13:$A$15,OFFSET($E44,-1,0)))),"") ->  | AE44: SINAPI-I 4718 | AF44: 11467 | AG44: 102.5 | AH44: 0.2159 | AM44: 3994.39 | AN44: 124.63
A45: S | B45: 2 | C45: S | D45: 0 | E45: =IF($C45=1,OFFSET(E45,-1,0)+MAX(1,COUNTIF(QCI!$A$13:$A$15,OFFSET(ORÇAMENTO!E45,-1,0))),OFFSET(E45,-1,0)) -> 1 | F45: 7 | G45: 0 | H45: 0 | I45: 2 | J45: 0 | K45: =IF(OR($C45="S",$C45=0),0,MATCH(OFFSET($D45,0,$C45)+IF($C45<>1,1,COUNTIF(QCI!$A$13:$A$15,ORÇAMENTO!E45)),OFFSET($D45,1,$C45,ROW($C$77)-ROW($C45)),0)) -> 0 | L45: F | M45: Serviço | N45: Serviço | O45: 1.7.2. | P45: SINAPI | Q45: 100978 | R45: CARGA, MANOBRA E DESCARGA DE MATERIAL GRANULAR, EM CAMINHÃO BASCULANTE - CARGA COM ESCAVADEIRA HIDRÁULICA | S45: M3 | T45: =OFFSET(CÁLCULO!H$15,ROW($T45)-ROW(T$15),0) -> 32.05 | U45: 6.38 | V45: BDI 1 | W45: 7.76 | X45: 248.71 | Y45: RA | Z45: RA | AA45: =IF($C45="S",IF($Z45="CP",$X45,IF($Z45="RA",(($X45)*QCI!$AA$3),0)),SomaAgrup) -> 77.54743031 | AB45: 0 | AD45: =IF(C45<=CRONO.NivelExibicao,MAX($AD$15:OFFSET(AD45,-1,0))+IF($C45<>1,1,MAX(1,COUNTIF(QCI!$A$13:$A$15,OFFSET($E45,-1,0)))),"") ->  | AE45: SINAPI 100978 | AF45: 7598 | AG45: 6.51 | AH45: 0.2159 | AM45: 248.71 | AN45: 7.76
A46: S | B46: 2 | C46: S | D46: 0 | E46: =IF($C46=1,OFFSET(E46,-1,0)+MAX(1,COUNTIF(QCI!$A$13:$A$15,OFFSET(ORÇAMENTO!E46,-1,0))),OFFSET(E46,-1,0)) -> 1 | F46: 7 | G46: 0 | H46: 0 | I46: 3 | J46: 0 | K46: =IF(OR($C46="S",$C46=0),0,MATCH(OFFSET($D46,0,$C46)+IF($C46<>1,1,COUNTIF(QCI!$A$13:$A$15,ORÇAMENTO!E46)),OFFSET($D46,1,$C46,ROW($C$77)-ROW($C46)),0)) -> 0 | L46: F | M46: Serviço | N46: Serviço | O46: 1.7.3. | P46: SINAPI | Q46: 95875 | R46: TRANSPORTE DE MATERIAL GRANULAR, COM CAMINHÃO BASCULANTE, DMT = 20 KM | S46: M3XKM | T46: =OFFSET(CÁLCULO!H$15,ROW($T46)-ROW(T$15),0) -> 640.92 | U46: 2.28 | V46: BDI 1 | W46: 2.77 | X46: 1775.35 | Y46: RA | Z46: RA | AA46: =IF($C46="S",IF($Z46="CP",$X46,IF($Z46="RA",(($X46)*QCI!$AA$3),0)),SomaAgrup) -> 553.5516481 | AB46: 0 | AD46: =IF(C46<=CRONO.NivelExibicao,MAX($AD$15:OFFSET(AD46,-1,0))+IF($C46<>1,1,MAX(1,COUNTIF(QCI!$A$13:$A$15,OFFSET($E46,-1,0)))),"") ->  | AE46: SINAPI 95875 | AF46: 7544 | AG46: 2.31 | AH46: 0.2159 | AM46: 1775.35 | AN46: 2.77
A47: S | B47: 2 | C47: S | D47: 0 | E47: =IF($C47=1,OFFSET(E47,-1,0)+MAX(1,COUNTIF(QCI!$A$13:$A$15,OFFSET(ORÇAMENTO!E47,-1,0))),OFFSET(E47,-1,0)) -> 1 | F47: 7 | G47: 0 | H47: 0 | I47: 4 | J47: 0 | K47: =IF(OR($C47="S",$C47=0),0,MATCH(OFFSET($D47,0,$C47)+IF($C47<>1,1,COUNTIF(QCI!$A$13:$A$15,ORÇAMENTO!E47)),OFFSET($D47,1,$C47,ROW($C$77)-ROW($C47)),0)) -> 0 | L47: F | M47: Serviço | N47: Serviço | O47: 1.7.4. | P47: SINAPI | Q47: 96399 | R47: EXECUÇÃO E COMPACTAÇÃO DE BASE E OU SUB BASE PARA PAVIMENTAÇÃO DE PEDRA RACHÃO - EXCLUSIVE CARGA E TRANSPORTE | S47: M3 | T47: =OFFSET(CÁLCULO!H$15,ROW($T47)-ROW(T$15),0) -> 384.55 | U47: 117.76 | V47: BDI 1 | W47: 143.18 | X47: 55059.87 | Y47: RA | Z47: RA | AA47: =IF($C47="S",IF($Z47="CP",$X47,IF($Z47="RA",(($X47)*QCI!$AA$3),0)),SomaAgrup) -> 17167.59049 | AB47: 0 | AD47: =IF(C47<=CRONO.NivelExibicao,MAX($AD$15:OFFSET(AD47,-1,0))+IF($C47<>1,1,MAX(1,COUNTIF(QCI!$A$13:$A$15,OFFSET($E47,-1,0)))),"") ->  | AE47: SINAPI 96399 | AF47: 6539 | AG47: 118.39 | AH47: 0.2159 | AM47: 55059.87 | AN47: 143.18
A48: S | B48: 2 | C48: S | D48: 0 | E48: =IF($C48=1,OFFSET(E48,-1,0)+MAX(1,COUNTIF(QCI!$A$13:$A$15,OFFSET(ORÇAMENTO!E48,-1,0))),OFFSET(E48,-1,0)) -> 1 | F48: 7 | G48: 0 | H48: 0 | I48: 5 | J48: =IF(OR($C48="S",$C48=0),0,MATCH(0,OFFSET($D48,1,$C48,ROW($C$77)-ROW($C48)),0)) -> 0 | K48: =IF(OR($C48="S",$C48=0),0,MATCH(OFFSET($D48,0,$C48)+IF($C48<>1,1,COUNTIF(QCI!$A$13:$A$15,ORÇAMENTO!E48)),OFFSET($D48,1,$C48,ROW($C$77)-ROW($C48)),0)) -> 0 | L48: F | M48: Serviço | N48: Serviço | O48: 1.7.5. | P48: SINAPI | Q48: 100978 | R48: CARGA, MANOBRA E DESCARGA DE MATERIAL GRANULAR, EM CAMINHÃO BASCULANTE - CARGA COM ESCAVADEIRA HIDRÁULICA | S48: M3 | T48: =OFFSET(CÁLCULO!H$15,ROW($T48)-ROW(T$15),0) -> 384.55 | U48: 6.38 | V48: BDI 1 | W48: 7.76 | X48: 2984.11 | Y48: RA | Z48: RA | AA48: =IF($C48="S",IF($Z48="CP",$X48,IF($Z48="RA",(($X48)*QCI!$AA$3),0)),SomaAgrup) -> 930.4413264 | AB48: 0 | AD48: =IF(C48<=CRONO.NivelExibicao,MAX($AD$15:OFFSET(AD48,-1,0))+IF($C48<>1,1,MAX(1,COUNTIF(QCI!$A$13:$A$15,OFFSET($E48,-1,0)))),"") ->  | AE48: SINAPI 100978 | AF48: 7598 | AG48: 6.51 | AH48: 0.2159 | AM48: 2984.11 | AN48: 7.76
A49: S | B49: 2 | C49: S | D49: 0 | E49: =IF($C49=1,OFFSET(E49,-1,0)+MAX(1,COUNTIF(QCI!$A$13:$A$15,OFFSET(ORÇAMENTO!E49,-1,0))),OFFSET(E49,-1,0)) -> 1 | F49: 7 | G49: 0 | H49: 0 | I49: 6 | J49: 0 | K49: =IF(OR($C49="S",$C49=0),0,MATCH(OFFSET($D49,0,$C49)+IF($C49<>1,1,COUNTIF(QCI!$A$13:$A$15,ORÇAMENTO!E49)),OFFSET($D49,1,$C49,ROW($C$77)-ROW($C49)),0)) -> 0 | L49: F | M49: Serviço | N49: Serviço | O49: 1.7.6. | P49: SINAPI | Q49: 95875 | R49: TRANSPORTE DE MATERIAL GRANULAR, COM CAMINHÃO BASCULANTE, DMT = 20 KM | S49: M3XKM | T49: =OFFSET(CÁLCULO!H$15,ROW($T49)-ROW(T$15),0) -> 7691.04 | U49: 2.28 | V49: BDI 1 | W49: 2.77 | X49: 21304.18 | Y49: RA | Z49: RA | AA49: =IF($C49="S",IF($Z49="CP",$X49,IF($Z49="RA",(($X49)*QCI!$AA$3),0)),SomaAgrup) -> 6642.613542 | AB49: 0 | AD49: =IF(C49<=CRONO.NivelExibicao,MAX($AD$15:OFFSET(AD49,-1,0))+IF($C49<>1,1,MAX(1,COUNTIF(QCI!$A$13:$A$15,OFFSET($E49,-1,0)))),"") ->  | AE49: SINAPI 95875 | AF49: 7544 | AG49: 2.31 | AH49: 0.2159 | AM49: 21304.18 | AN49: 2.77
A50: S | B50: 2 | C50: S | D50: 0 | E50: =IF($C50=1,OFFSET(E50,-1,0)+MAX(1,COUNTIF(QCI!$A$13:$A$15,OFFSET(ORÇAMENTO!E50,-1,0))),OFFSET(E50,-1,0)) -> 1 | F50: 7 | G50: 0 | H50: 0 | I50: 7 | J50: 0 | K50: =IF(OR($C50="S",$C50=0),0,MATCH(OFFSET($D50,0,$C50)+IF($C50<>1,1,COUNTIF(QCI!$A$13:$A$15,ORÇAMENTO!E50)),OFFSET($D50,1,$C50,ROW($C$77)-ROW($C50)),0)) -> 0 | L50: F | M50: Serviço | N50: Serviço | O50: 1.7.7. | P50: SINAPI | Q50: 96396 | R50: EXECUÇÃO E COMPACTAÇÃO DE BASE E OU SUB BASE PARA PAVIMENTAÇÃO DE BRITA GRADUADA SIMPLES - EXCLUSIVE CARGA E TRANSPORTE | S50: M3 | T50: =OFFSET(CÁLCULO!H$15,ROW($T50)-ROW(T$15),0) -> 256.37 | U50: 172.66 | V50: BDI 1 | W50: 209.94 | X50: 53822.32 | Y50: RA | Z50: RA | AA50: =IF($C50="S",IF($Z50="CP",$X50,IF($Z50="RA",(($X50)*QCI!$AA$3),0)),SomaAgrup) -> 16781.72413 | AB50: 0 | AD50: =IF(C50<=CRONO.NivelExibicao,MAX($AD$15:OFFSET(AD50,-1,0))+IF($C50<>1,1,MAX(1,COUNTIF(QCI!$A$13:$A$15,OFFSET($E50,-1,0)))),"") ->  | AE50: SINAPI 96396 | AF50: 6536 | AG50: 173.37 | AH50: 0.2159 | AM50: 53822.32 | AN50: 209.94
A51: S | B51: 2 | C51: S | D51: 0 | E51: =IF($C51=1,OFFSET(E51,-1,0)+MAX(1,COUNTIF(QCI!$A$13:$A$15,OFFSET(ORÇAMENTO!E51,-1,0))),OFFSET(E51,-1,0)) -> 1 | F51: 7 | G51: 0 | H51: 0 | I51: 8 | J51: 0 | K51: =IF(OR($C51="S",$C51=0),0,MATCH(OFFSET($D51,0,$C51)+IF($C51<>1,1,COUNTIF(QCI!$A$13:$A$15,ORÇAMENTO!E51)),OFFSET($D51,1,$C51,ROW($C$77)-ROW($C51)),0)) -> 0 | L51: F | M51: Serviço | N51: Serviço | O51: 1.7.8. | P51: SINAPI | Q51: 100978 | R51: CARGA, MANOBRA E DESCARGA DE MATERIAL GRANULAR, EM CAMINHÃO BASCULANTE - CARGA COM ESCAVADEIRA HIDRÁULICA | S51: M3 | T51: =OFFSET(CÁLCULO!H$15,ROW($T51)-ROW(T$15),0) -> 256.37 | U51: 6.38 | V51: BDI 1 | W51: 7.76 | X51: 1989.43 | Y51: RA | Z51: RA | AA51: =IF($C51="S",IF($Z51="CP",$X51,IF($Z51="RA",(($X51)*QCI!$AA$3),0)),SomaAgrup) -> 620.3014929 | AB51: 0 | AD51: =IF(C51<=CRONO.NivelExibicao,MAX($AD$15:OFFSET(AD51,-1,0))+IF($C51<>1,1,MAX(1,COUNTIF(QCI!$A$13:$A$15,OFFSET($E51,-1,0)))),"") ->  | AE51: SINAPI 100978 | AF51: 7598 | AG51: 6.51 | AH51: 0.2159 | AM51: 1989.43 | AN51: 7.76
A52: =CHOOSE(1+LOG(1+2*(ORÇAMENTO.Nivel="Meta")+4*(ORÇAMENTO.Nivel="Nível 2")+8*(ORÇAMENTO.Nivel="Nível 3")+16*(ORÇAMENTO.Nivel="Nível 4")+32*(ORÇAMENTO.Nivel="Serviço"),2),0,1,2,3,4,"S") -> S | B52: =IF(OR(C52="s",C52=0),OFFSET(B52,-1,0),C52) -> 2 | C52: =IF(OFFSET(C52,-1,0)="L",1,IF(OFFSET(C52,-1,0)=1,2,IF(OR(A52="s",A52=0),"S",IF(AND(OFFSET(C52,-1,0)=2,A52=4),3,IF(AND(OR(OFFSET(C52,-1,0)="s",OFFSET(C52,-1,0)=0),A52<>"s",A52>OFFSET(B52,-1,0)),OFFSET(B52,-1,0),A52))))) -> S | D52: =IF(OR(C52="S",C52=0),0,IF(ISERROR(K52),J52,SMALL(J52:K52,1))) -> 0 | E52: =IF($C52=1,OFFSET(E52,-1,0)+MAX(1,COUNTIF(QCI!$A$13:$A$15,OFFSET(ORÇAMENTO!E52,-1,0))),OFFSET(E52,-1,0)) -> 1 | F52: =IF($C52=1,0,IF($C52=2,OFFSET(F52,-1,0)+1,OFFSET(F52,-1,0))) -> 7 | G52: =IF(AND($C52<=2,$C52<>0),0,IF($C52=3,OFFSET(G52,-1,0)+1,OFFSET(G52,-1,0))) -> 0 | H52: =IF(AND($C52<=3,$C52<>0),0,IF($C52=4,OFFSET(H52,-1,0)+1,OFFSET(H52,-1,0))) -> 0 | I52: =IF(AND($C52<=4,$C52<>0),0,IF(AND($C52="S",$X52>0),OFFSET(I52,-1,0)+1,OFFSET(I52,-1,0))) -> 9 | J52: 0 | K52: =IF(OR($C52="S",$C52=0),0,MATCH(OFFSET($D52,0,$C52)+IF($C52<>1,1,COUNTIF(QCI!$A$13:$A$15,ORÇAMENTO!E52)),OFFSET($D52,1,$C52,ROW($C$77)-ROW($C52)),0)) -> 0 | L52: =IF(OR($X52>0,$C52=1,$C52=2,$C52=3,$C52=4),"F","") -> F | M52: Serviço | N52: =CHOOSE(1+LOG(1+2*(C52=1)+4*(C52=2)+8*(C52=3)+16*(C52=4)+32*(C52="S"),2),"","Meta","Nível 2","Nível 3","Nível 4","Serviço") -> Serviço | O52: =IF(OR($C52=0,$L52=""),"-",CONCATENATE(E52&".",IF(AND($A$5>=2,$C52>=2),F52&".",""),IF(AND($A$5>=3,$C52>=3),G52&".",""),IF(AND($A$5>=4,$C52>=4),H52&".",""),IF($C52="S",I52&".",""))) -> 1.7.9. | P52: SINAPI | Q52: 95875 | R52: TRANSPORTE DE MATERIAL GRANULAR, COM CAMINHÃO BASCULANTE, DMT = 20 KM | S52: M3XKM | T52: =OFFSET(CÁLCULO!H$15,ROW($T52)-ROW(T$15),0) -> 5127.36 | U52: 2.28 | V52: BDI 1 | W52: =IF($C52="S",ROUND(IF(TIPOORCAMENTO="Proposto",ORÇAMENTO.CustoUnitario*(1+$AH52),ORÇAMENTO.PrecoUnitarioLicitado),15-13*$AF$10),0) -> 2.77 | X52: =IF($C52="S",VTOTAL1,IF($C52=0,0,ROUND(SomaAgrup,15-13*$AF$11))) -> 14202.79 | Y52: RA | Z52: =IF(AND($C52="S",$X52>0),IF(ISBLANK($Y52),"RA",LEFT($Y52,2)),"") -> RA | AA52: =IF($C52="S",IF($Z52="CP",$X52,IF($Z52="RA",(($X52)*QCI!$AA$3),0)),SomaAgrup) -> 4428.410067 | AB52: =IF($C52="S",IF($Z52="OU",ROUND($X52,2),0),SomaAgrup) -> 0 | AC52: =IF($N52="","",IF(ORÇAMENTO.Descricao="","DESCRIÇÃO",IF(AND($C52="S",ORÇAMENTO.Unidade=""),"UNIDADE",IF($X52<0,"VALOR NEGATIVO",IF(OR(AND(TIPOORCAMENTO="Proposto",$AG52<>"",$AG52>0,ORÇAMENTO.CustoUnitario>$AG52),AND(TIPOORCAMENTO="LICITADO",ORÇAMENTO.PrecoUnitarioLicitado>$AN52)),"ACIMA REF.",""))))) ->  | AD52: =IF(C52<=CRONO.NivelExibicao,MAX($AD$15:OFFSET(AD52,-1,0))+IF($C52<>1,1,MAX(1,COUNTIF(QCI!$A$13:$A$15,OFFSET($E52,-1,0)))),"") ->  | AE52: =IF(AND($C52="S",ORÇAMENTO.CodBarra<>""),IF(ORÇAMENTO.Fonte="",ORÇAMENTO.CodBarra,CONCATENATE(ORÇAMENTO.Fonte," ",ORÇAMENTO.CodBarra))) -> SINAPI 95875 | AF52: =IF(ISERROR(INDIRECT(ORÇAMENTO.BancoRef)),"(abra o arquivo 'Referência "&Excel_BuiltIn_Database&".xls)",IF(OR($C52<>"S",ORÇAMENTO.CodBarra=""),"(Sem Código)",IF(ISERROR(MATCH($AE52,INDIRECT(ORÇAMENTO.BancoRef),0)),"(Código não identificado nas referências)",MATCH($AE52,INDIRECT(ORÇAMENTO.BancoRef),0)))) -> 7544 | AG52: =ROUND(IF(DESONERACAO="sim",REFERENCIA.Desonerado,REFERENCIA.NaoDesonerado),2) -> 2.31 | AH52: =ROUND(IF(ISNUMBER(ORÇAMENTO.OpcaoBDI),ORÇAMENTO.OpcaoBDI,IF(LEFT(ORÇAMENTO.OpcaoBDI,3)="BDI",HLOOKUP(ORÇAMENTO.OpcaoBDI,$F$4:$H$5,2,FALSE),0)),15-11*$AF$9) -> 0.2159 | AM52: 14202.79 | AN52: =ROUND(ORÇAMENTO.CustoUnitario*(1+$AH52),2) -> 2.77
A53: 2 | B53: 2 | C53: 2 | D53: 8 | E53: =IF($C53=1,OFFSET(E53,-1,0)+MAX(1,COUNTIF(QCI!$A$13:$A$15,OFFSET(ORÇAMENTO!E53,-1,0))),OFFSET(E53,-1,0)) -> 1 | F53: 8 | G53: 0 | H53: 0 | I53: 0 | J53: 24 | K53: =IF(OR($C53="S",$C53=0),0,MATCH(OFFSET($D53,0,$C53)+IF($C53<>1,1,COUNTIF(QCI!$A$13:$A$15,ORÇAMENTO!E53)),OFFSET($D53,1,$C53,ROW($C$77)-ROW($C53)),0)) -> 8 | L53: F | M53: Nível 2 | N53: Nível 2 | O53: 1.8. | P53: SINAPI | R53: CAPA ASFÁLTICA | S53: - | T53: =OFFSET(CÁLCULO!H$15,ROW($T53)-ROW(T$15),0) -> 0 | U53: 0 | V53: BDI 1 | W53: 0 | X53: 197168.79 | Y53: RA | AA53: =IF($C53="S",IF($Z53="CP",$X53,IF($Z53="RA",(($X53)*QCI!$AA$3),0)),SomaAgrup) -> 61476.95309 | AB53: 0 | AD53: =IF(C53<=CRONO.NivelExibicao,MAX($AD$15:OFFSET(AD53,-1,0))+IF($C53<>1,1,MAX(1,COUNTIF(QCI!$A$13:$A$15,OFFSET($E53,-1,0)))),"") -> 9 | AE53: FALSE | AF53: (Sem Código) | AG53: 0 | AH53: 0.2159 | AM53: 197168.79 | AN53: 0
A54: S | B54: 2 | C54: S | D54: 0 | E54: =IF($C54=1,OFFSET(E54,-1,0)+MAX(1,COUNTIF(QCI!$A$13:$A$15,OFFSET(ORÇAMENTO!E54,-1,0))),OFFSET(E54,-1,0)) -> 1 | F54: 8 | G54: 0 | H54: 0 | I54: 1 | J54: 0 | K54: =IF(OR($C54="S",$C54=0),0,MATCH(OFFSET($D54,0,$C54)+IF($C54<>1,1,COUNTIF(QCI!$A$13:$A$15,ORÇAMENTO!E54)),OFFSET($D54,1,$C54,ROW($C$77)-ROW($C54)),0)) -> 0 | L54: F | M54: Serviço | N54: Serviço | O54: 1.8.1. | P54: AMMOC | Q54: CM30 | R54: =IF($C54="S",REFERENCIA.Descricao,"(digite a descrição aqui)") -> EXECUÇÃO DE IMPRIMAÇÃO COM ASFALTO DILUÍDO CM-30 | S54: M2 | T54: =OFFSET(CÁLCULO!H$15,ROW($T54)-ROW(T$15),0) -> 2136.4 | U54: 7.19 | V54: BDI 1 | W54: 8.74 | X54: 18672.14 | Y54: RA | Z54: RA | AA54: =IF($C54="S",IF($Z54="CP",$X54,IF($Z54="RA",(($X54)*QCI!$AA$3),0)),SomaAgrup) -> 5821.947149 | AB54: 0 | AD54: =IF(C54<=CRONO.NivelExibicao,MAX($AD$15:OFFSET(AD54,-1,0))+IF($C54<>1,1,MAX(1,COUNTIF(QCI!$A$13:$A$15,OFFSET($E54,-1,0)))),"") ->  | AE54: AMMOC CM30 | AF54: 241 | AG54: 7.19 | AH54: 0.2159 | AM54: 18672.14 | AN54: 8.74
A55: S | B55: 2 | C55: S | D55: 0 | E55: =IF($C55=1,OFFSET(E55,-1,0)+MAX(1,COUNTIF(QCI!$A$13:$A$15,OFFSET(ORÇAMENTO!E55,-1,0))),OFFSET(E55,-1,0)) -> 1 | F55: 8 | G55: 0 | H55: 0 | I55: 2 | J55: 0 | K55: =IF(OR($C55="S",$C55=0),0,MATCH(OFFSET($D55,0,$C55)+IF($C55<>1,1,COUNTIF(QCI!$A$13:$A$15,ORÇAMENTO!E55)),OFFSET($D55,1,$C55,ROW($C$77)-ROW($C55)),0)) -> 0 | L55: F | M55: Serviço | N55: Serviço | O55: 1.8.2. | P55: SINAPI | Q55: 102332 | R55: TRANSPORTE COM CAMINHÃO TANQUE DE TRANSPORTE DE MATERIAL ASFÁLTICO DE 20000 L, EM VIA URBANA PAVIMENTADA, DMT ATÉ 30KM (UNIDADE: TXKM). AF_07/2020 | S55: TXKM | T55: =OFFSET(CÁLCULO!H$15,ROW($T55)-ROW(T$15),0) -> 42.73 | U55: 1.75 | V55: BDI 1 | W55: 2.13 | X55: 91.01 | Y55: RA | Z55: RA | AA55: =IF($C55="S",IF($Z55="CP",$X55,IF($Z55="RA",(($X55)*QCI!$AA$3),0)),SomaAgrup) -> 28.37679077 | AB55: 0 | AD55: =IF(C55<=CRONO.NivelExibicao,MAX($AD$15:OFFSET(AD55,-1,0))+IF($C55<>1,1,MAX(1,COUNTIF(QCI!$A$13:$A$15,OFFSET($E55,-1,0)))),"") ->  | AE55: SINAPI 102332 | AF55: 7591 | AG55: 1.78 | AH55: 0.2159 | AM55: 91.01 | AN55: 2.13
A56: S | B56: 2 | C56: S | D56: 0 | E56: =IF($C56=1,OFFSET(E56,-1,0)+MAX(1,COUNTIF(QCI!$A$13:$A$15,OFFSET(ORÇAMENTO!E56,-1,0))),OFFSET(E56,-1,0)) -> 1 | F56: 8 | G56: 0 | H56: 0 | I56: 3 | J56: 0 | K56: =IF(OR($C56="S",$C56=0),0,MATCH(OFFSET($D56,0,$C56)+IF($C56<>1,1,COUNTIF(QCI!$A$13:$A$15,ORÇAMENTO!E56)),OFFSET($D56,1,$C56,ROW($C$77)-ROW($C56)),0)) -> 0 | L56: F | M56: Serviço | N56: Serviço | O56: 1.8.3. | P56: AMMOC | Q56: RR-2C | R56: PINTURA DE LIGAÇÃO COM EMULSÃO RR-2C | S56: M2 | T56: =OFFSET(CÁLCULO!H$15,ROW($T56)-ROW(T$15),0) -> 2136.4 | U56: 2.41 | V56: BDI 1 | W56: 2.93 | X56: 6259.65 | Y56: RA | Z56: RA | AA56: =IF($C56="S",IF($Z56="CP",$X56,IF($Z56="RA",(($X56)*QCI!$AA$3),0)),SomaAgrup) -> 1951.750119 | AB56: 0 | AD56: =IF(C56<=CRONO.NivelExibicao,MAX($AD$15:OFFSET(AD56,-1,0))+IF($C56<>1,1,MAX(1,COUNTIF(QCI!$A$13:$A$15,OFFSET($E56,-1,0)))),"") ->  | AE56: AMMOC RR-2C | AF56: 210 | AG56: 2.44 | AH56: 0.2159 | AM56: 6259.65 | AN56: 2.93
A57: S | B57: 2 | C57: S | D57: 0 | E57: =IF($C57=1,OFFSET(E57,-1,0)+MAX(1,COUNTIF(QCI!$A$13:$A$15,OFFSET(ORÇAMENTO!E57,-1,0))),OFFSET(E57,-1,0)) -> 1 | F57: 8 | G57: 0 | H57: 0 | I57: 4 | J57: 0 | K57: =IF(OR($C57="S",$C57=0),0,MATCH(OFFSET($D57,0,$C57)+IF($C57<>1,1,COUNTIF(QCI!$A$13:$A$15,ORÇAMENTO!E57)),OFFSET($D57,1,$C57,ROW($C$77)-ROW($C57)),0)) -> 0 | L57: F | M57: Serviço | N57: Serviço | O57: 1.8.4. | P57: SINAPI | Q57: 102332 | R57: TRANSPORTE COM CAMINHÃO TANQUE DE TRANSPORTE DE MATERIAL ASFÁLTICO DE 20000 L, EM VIA URBANA PAVIMENTADA, DMT ATÉ 30KM (UNIDADE: TXKM). AF_07/2020 | S57: TXKM | T57: =OFFSET(CÁLCULO!H$15,ROW($T57)-ROW(T$15),0) -> 42.73 | U57: 1.75 | V57: BDI 1 | W57: 2.13 | X57: 91.01 | Y57: RA | Z57: RA | AA57: =IF($C57="S",IF($Z57="CP",$X57,IF($Z57="RA",(($X57)*QCI!$AA$3),0)),SomaAgrup) -> 28.37679077 | AB57: 0 | AD57: =IF(C57<=CRONO.NivelExibicao,MAX($AD$15:OFFSET(AD57,-1,0))+IF($C57<>1,1,MAX(1,COUNTIF(QCI!$A$13:$A$15,OFFSET($E57,-1,0)))),"") ->  | AE57: SINAPI 102332 | AF57: 7591 | AG57: 1.78 | AH57: 0.2159 | AM57: 91.01 | AN57: 2.13
A58: S | B58: 2 | C58: S | D58: 0 | E58: =IF($C58=1,OFFSET(E58,-1,0)+MAX(1,COUNTIF(QCI!$A$13:$A$15,OFFSET(ORÇAMENTO!E58,-1,0))),OFFSET(E58,-1,0)) -> 1 | F58: 8 | G58: 0 | H58: 0 | I58: 5 | J58: 0 | K58: =IF(OR($C58="S",$C58=0),0,MATCH(OFFSET($D58,0,$C58)+IF($C58<>1,1,COUNTIF(QCI!$A$13:$A$15,ORÇAMENTO!E58)),OFFSET($D58,1,$C58,ROW($C$77)-ROW($C58)),0)) -> 0 | L58: F | M58: Serviço | N58: Serviço | O58: 1.8.5. | P58: AMMOC | Q58: PAVASF | R58: EXECUÇÃO DE PAVIMENTO COM APLICAÇÃO DE CONCRETO ASFÁLTICO (REPERFILAGEM E CAPA) EXCLUSIVE CARGA E TRANSPORTE. AF_11/2019 | S58: M3 | T58: =OFFSET(CÁLCULO!H$15,ROW($T58)-ROW(T$15),0) -> 106.82 | U58: 1286.81 | V58: BDI 1 | W58: 1564.63 | X58: 167133.78 | Y58: RA | Z58: RA | AA58: =IF($C58="S",IF($Z58="CP",$X58,IF($Z58="RA",(($X58)*QCI!$AA$3),0)),SomaAgrup) -> 52112.07896 | AB58: 0 | AD58: =IF(C58<=CRONO.NivelExibicao,MAX($AD$15:OFFSET(AD58,-1,0))+IF($C58<>1,1,MAX(1,COUNTIF(QCI!$A$13:$A$15,OFFSET($E58,-1,0)))),"") ->  | AE58: AMMOC PAVASF | AF58: 432 | AG58: 1293.13 | AH58: 0.2159 | AM58: 167133.78 | AN58: 1564.63
A59: S | B59: 2 | C59: S | D59: 0 | E59: =IF($C59=1,OFFSET(E59,-1,0)+MAX(1,COUNTIF(QCI!$A$13:$A$15,OFFSET(ORÇAMENTO!E59,-1,0))),OFFSET(E59,-1,0)) -> 1 | F59: 8 | G59: 0 | H59: 0 | I59: 6 | J59: 0 | K59: =IF(OR($C59="S",$C59=0),0,MATCH(OFFSET($D59,0,$C59)+IF($C59<>1,1,COUNTIF(QCI!$A$13:$A$15,ORÇAMENTO!E59)),OFFSET($D59,1,$C59,ROW($C$77)-ROW($C59)),0)) -> 0 | L59: F | M59: Serviço | N59: Serviço | O59: 1.8.6. | P59: SINAPI | Q59: 100986 | R59: CARGA DE MISTURA ASFÁLTICA EM CAMINHÃO BASCULANTE 10 M³ (UNIDADE: M3). AF_07/2020 | S59: M3 | T59: =OFFSET(CÁLCULO!H$15,ROW($T59)-ROW(T$15),0) -> 106.82 | U59: 8.28 | V59: BDI 1 | W59: 10.07 | X59: 1075.68 | Y59: RA | Z59: RA | AA59: =IF($C59="S",IF($Z59="CP",$X59,IF($Z59="RA",(($X59)*QCI!$AA$3),0)),SomaAgrup) -> 335.3955202 | AB59: 0 | AD59: =IF(C59<=CRONO.NivelExibicao,MAX($AD$15:OFFSET(AD59,-1,0))+IF($C59<>1,1,MAX(1,COUNTIF(QCI!$A$13:$A$15,OFFSET($E59,-1,0)))),"") ->  | AE59: SINAPI 100986 | AF59: 7606 | AG59: 8.43 | AH59: 0.2159 | AM59: 1075.68 | AN59: 10.07
A60: S | B60: 2 | C60: S | D60: 0 | E60: =IF($C60=1,OFFSET(E60,-1,0)+MAX(1,COUNTIF(QCI!$A$13:$A$15,OFFSET(ORÇAMENTO!E60,-1,0))),OFFSET(E60,-1,0)) -> 1 | F60: 8 | G60: 0 | H60: 0 | I60: 7 | J60: 0 | K60: =IF(OR($C60="S",$C60=0),0,MATCH(OFFSET($D60,0,$C60)+IF($C60<>1,1,COUNTIF(QCI!$A$13:$A$15,ORÇAMENTO!E60)),OFFSET($D60,1,$C60,ROW($C$77)-ROW($C60)),0)) -> 0 | L60: F | M60: Serviço | N60: Serviço | O60: 1.8.7. | P60: SINAPI | Q60: 95303 | R60: TRANSPORTE COM CAMINHÃO BASCULANTE 10M3 DE MASSA ASFALTICA PARA PAVIMENTAÇÃO URBANA | S60: M3XKM | T60: =OFFSET(CÁLCULO!H$15,ROW($T60)-ROW(T$15),0) -> 2136.4 | U60: 1.48 | V60: BDI 1 | W60: 1.8 | X60: 3845.52 | Y60: RA | Z60: RA | AA60: =IF($C60="S",IF($Z60="CP",$X60,IF($Z60="RA",(($X60)*QCI!$AA$3),0)),SomaAgrup) -> 1199.02776 | AB60: 0 | AD60: =IF(C60<=CRONO.NivelExibicao,MAX($AD$15:OFFSET(AD60,-1,0))+IF($C60<>1,1,MAX(1,COUNTIF(QCI!$A$13:$A$15,OFFSET($E60,-1,0)))),"") ->  | AE60: SINAPI 95303 | AF60: 211 | AG60: 1.5 | AH60: 0.2159 | AM60: 3845.52 | AN60: 1.8
A61: 2 | B61: 2 | C61: 2 | D61: 2 | E61: =IF($C61=1,OFFSET(E61,-1,0)+MAX(1,COUNTIF(QCI!$A$13:$A$15,OFFSET(ORÇAMENTO!E61,-1,0))),OFFSET(E61,-1,0)) -> 1 | F61: 9 | G61: 0 | H61: 0 | I61: 0 | J61: 16 | K61: =IF(OR($C61="S",$C61=0),0,MATCH(OFFSET($D61,0,$C61)+IF($C61<>1,1,COUNTIF(QCI!$A$13:$A$15,ORÇAMENTO!E61)),OFFSET($D61,1,$C61,ROW($C$77)-ROW($C61)),0)) -> 2 | L61: F | M61: Nível 2 | N61: Nível 2 | O61: 1.9. | P61: SINAPI | R61: MEIO FIO | S61: - | T61: =OFFSET(CÁLCULO!H$15,ROW($T61)-ROW(T$15),0) -> 0 | U61: 0 | V61: BDI 1 | W61: 0 | X61: 13504.14 | Y61: RA | AA61: =IF($C61="S",IF($Z61="CP",$X61,IF($Z61="RA",(($X61)*QCI!$AA$3),0)),SomaAgrup) -> 4210.571974 | AB61: 0 | AD61: =IF(C61<=CRONO.NivelExibicao,MAX($AD$15:OFFSET(AD61,-1,0))+IF($C61<>1,1,MAX(1,COUNTIF(QCI!$A$13:$A$15,OFFSET($E61,-1,0)))),"") -> 10 | AE61: FALSE | AF61: (Sem Código) | AG61: 0 | AH61: 0.2159 | AM61: 13504.14 | AN61: 0
A62: S | B62: 2 | C62: S | D62: 0 | E62: =IF($C62=1,OFFSET(E62,-1,0)+MAX(1,COUNTIF(QCI!$A$13:$A$15,OFFSET(ORÇAMENTO!E62,-1,0))),OFFSET(E62,-1,0)) -> 1 | F62: 9 | G62: 0 | H62: 0 | I62: 1 | J62: 0 | K62: =IF(OR($C62="S",$C62=0),0,MATCH(OFFSET($D62,0,$C62)+IF($C62<>1,1,COUNTIF(QCI!$A$13:$A$15,ORÇAMENTO!E62)),OFFSET($D62,1,$C62,ROW($C$77)-ROW($C62)),0)) -> 0 | L62: F | M62: Serviço | N62: Serviço | O62: 1.9.1. | P62: SINAPI | Q62: 94264 | R62: GUIA (MEIO-FIO) CONCRETO, MOLDADA IN LOCO EM TRECHO CURVO COM EXTRUSORA, 13 CM BASE X 22 CM ALTURA. AF_06/2016 | S62: M | T62: =OFFSET(CÁLCULO!H$15,ROW($T62)-ROW(T$15),0) -> 298.5 | U62: 37.21 | V62: BDI 1 | W62: 45.24 | X62: 13504.14 | Y62: RA | Z62: RA | AA62: =IF($C62="S",IF($Z62="CP",$X62,IF($Z62="RA",(($X62)*QCI!$AA$3),0)),SomaAgrup) -> 4210.571974 | AB62: 0 | AD62: =IF(C62<=CRONO.NivelExibicao,MAX($AD$15:OFFSET(AD62,-1,0))+IF($C62<>1,1,MAX(1,COUNTIF(QCI!$A$13:$A$15,OFFSET($E62,-1,0)))),"") ->  | AE62: SINAPI 94264 | AF62: 2429 | AG62: 39.85 | AH62: 0.2159 | AM62: 13504.14 | AN62: 45.24
A63: 2 | B63: 2 | C63: 2 | D63: 6 | E63: =IF($C63=1,OFFSET(E63,-1,0)+MAX(1,COUNTIF(QCI!$A$13:$A$15,OFFSET(ORÇAMENTO!E63,-1,0))),OFFSET(E63,-1,0)) -> 1 | F63: 10 | G63: 0 | H63: 0 | I63: 0 | J63: 14 | K63: =IF(OR($C63="S",$C63=0),0,MATCH(OFFSET($D63,0,$C63)+IF($C63<>1,1,COUNTIF(QCI!$A$13:$A$15,ORÇAMENTO!E63)),OFFSET($D63,1,$C63,ROW($C$77)-ROW($C63)),0)) -> 6 | L63: F | M63: Nível 2 | N63: Nível 2 | O63: 1.10. | P63: SINAPI | R63: SINALIZAÇÃO | S63: - | T63: =OFFSET(CÁLCULO!H$15,ROW($T63)-ROW(T$15),0) -> 0 | U63: 0 | V63: BDI 1 | W63: 0 | X63: 8590.46 | Y63: RA | AA63: =IF($C63="S",IF($Z63="CP",$X63,IF($Z63="RA",(($X63)*QCI!$AA$3),0)),SomaAgrup) -> 2678.493419 | AB63: 0 | AD63: =IF(C63<=CRONO.NivelExibicao,MAX($AD$15:OFFSET(AD63,-1,0))+IF($C63<>1,1,MAX(1,COUNTIF(QCI!$A$13:$A$15,OFFSET($E63,-1,0)))),"") -> 11 | AE63: FALSE | AF63: (Sem Código) | AG63: 0 | AH63: 0.2159 | AM63: 8590.46 | AN63: 0
A64: S | B64: 2 | C64: S | D64: 0 | E64: =IF($C64=1,OFFSET(E64,-1,0)+MAX(1,COUNTIF(QCI!$A$13:$A$15,OFFSET(ORÇAMENTO!E64,-1,0))),OFFSET(E64,-1,0)) -> 1 | F64: 10 | G64: 0 | H64: 0 | I64: 1 | J64: 0 | K64: =IF(OR($C64="S",$C64=0),0,MATCH(OFFSET($D64,0,$C64)+IF($C64<>1,1,COUNTIF(QCI!$A$13:$A$15,ORÇAMENTO!E64)),OFFSET($D64,1,$C64,ROW($C$77)-ROW($C64)),0)) -> 0 | L64: F | M64: Serviço | N64: Serviço | O64: 1.10.1. | P64: SINAPI | Q64: 72947 | R64: SINALIZACAO HORIZONTAL COM TINTA RETRORREFLETIVA A BASE DE RESINA ACRILICA COM MICROESFERAS DE VIDRO - LINHA DE BORDO CONTÍNUA BRANCA | S64: M2 | T64: =OFFSET(CÁLCULO!H$15,ROW($T64)-ROW(T$15),0) -> 43.66 | U64: 17.63 | V64: BDI 1 | W64: 21.44 | X64: 936.07 | Y64: RA | Z64: RA | AA64: =IF($C64="S",IF($Z64="CP",$X64,IF($Z64="RA",(($X64)*QCI!$AA$3),0)),SomaAgrup) -> 291.8653174 | AB64: 0 | AD64: =IF(C64<=CRONO.NivelExibicao,MAX($AD$15:OFFSET(AD64,-1,0))+IF($C64<>1,1,MAX(1,COUNTIF(QCI!$A$13:$A$15,OFFSET($E64,-1,0)))),"") ->  | AE64: SINAPI 72947 | AF64: 265 | AG64: 17.73 | AH64: 0.2159 | AM64: 936.07 | AN64: 21.44
A65: S | B65: 2 | C65: S | D65: 0 | E65: =IF($C65=1,OFFSET(E65,-1,0)+MAX(1,COUNTIF(QCI!$A$13:$A$15,OFFSET(ORÇAMENTO!E65,-1,0))),OFFSET(E65,-1,0)) -> 1 | F65: 10 | G65: 0 | H65: 0 | I65: 2 | J65: 0 | K65: =IF(OR($C65="S",$C65=0),0,MATCH(OFFSET($D65,0,$C65)+IF($C65<>1,1,COUNTIF(QCI!$A$13:$A$15,ORÇAMENTO!E65)),OFFSET($D65,1,$C65,ROW($C$77)-ROW($C65)),0)) -> 0 | L65: F | M65: Serviço | N65: Serviço | O65: 1.10.2. | P65: SINAPI | Q65: 102512 | R65: PINTURA DE EIXO VIÁRIO SOBRE ASFALTO COM TINTA RETRORREFLETIVA A BASE DE RESINA ACRÍLICA COM MICROESFERAS DE VIDRO (COR=AMARELA) APLICAÇÃO MECÂNICA COM DEMARCADORA AUTOPROPELIDA. AF_05/2021 | S65: M | T65: =OFFSET(CÁLCULO!H$15,ROW($T65)-ROW(T$15),0) -> 396.3 | U65: 4.75 | V65: BDI 1 | W65: 5.78 | X65: 2290.61 | Y65: RA | Z65: RA | AA65: =IF($C65="S",IF($Z65="CP",$X65,IF($Z65="RA",(($X65)*QCI!$AA$3),0)),SomaAgrup) -> 714.2089958 | AB65: 0 | AD65: =IF(C65<=CRONO.NivelExibicao,MAX($AD$15:OFFSET(AD65,-1,0))+IF($C65<>1,1,MAX(1,COUNTIF(QCI!$A$13:$A$15,OFFSET($E65,-1,0)))),"") ->  | AE65: SINAPI 102512 | AF65: 6745 | AG65: 5.04 | AH65: 0.2159 | AM65: 2290.61 | AN65: 5.78
A66: S | B66: 2 | C66: S | D66: 0 | E66: =IF($C66=1,OFFSET(E66,-1,0)+MAX(1,COUNTIF(QCI!$A$13:$A$15,OFFSET(ORÇAMENTO!E66,-1,0))),OFFSET(E66,-1,0)) -> 1 | F66: 10 | G66: 0 | H66: 0 | I66: 3 | J66: 0 | K66: =IF(OR($C66="S",$C66=0),0,MATCH(OFFSET($D66,0,$C66)+IF($C66<>1,1,COUNTIF(QCI!$A$13:$A$15,ORÇAMENTO!E66)),OFFSET($D66,1,$C66,ROW($C$77)-ROW($C66)),0)) -> 0 | L66: F | M66: Serviço | N66: Serviço | O66: 1.10.3. | P66: SINAPI | Q66: 102509 | R66: PINTURA DE FAIXA DE PEDESTRE OU ZEBRADA TINTA RETRORREFLETIVA A BASE DE RESINA ACRÍLICA COM MICROESFERAS DE VIDRO, E = 30 CM, APLICAÇÃO MANUAL. AF_05/2021 | S66: M2 | T66: =OFFSET(CÁLCULO!H$15,ROW($T66)-ROW(T$15),0) -> 28 | U66: 23.05 | V66: BDI 1 | W66: 28.03 | X66: 784.84 | Y66: RA | Z66: RA | AA66: =IF($C66="S",IF($Z66="CP",$X66,IF($Z66="RA",(($X66)*QCI!$AA$3),0)),SomaAgrup) -> 244.7120148 | AB66: 0 | AD66: =IF(C66<=CRONO.NivelExibicao,MAX($AD$15:OFFSET(AD66,-1,0))+IF($C66<>1,1,MAX(1,COUNTIF(QCI!$A$13:$A$15,OFFSET($E66,-1,0)))),"") ->  | AE66: SINAPI 102509 | AF66: 6744 | AG66: 24.75 | AH66: 0.2159 | AM66: 784.84 | AN66: 28.03
A67: S | B67: 2 | C67: S | D67: 0 | E67: =IF($C67=1,OFFSET(E67,-1,0)+MAX(1,COUNTIF(QCI!$A$13:$A$15,OFFSET(ORÇAMENTO!E67,-1,0))),OFFSET(E67,-1,0)) -> 1 | F67: 10 | G67: 0 | H67: 0 | I67: 4 | J67: 0 | K67: =IF(OR($C67="S",$C67=0),0,MATCH(OFFSET($D67,0,$C67)+IF($C67<>1,1,COUNTIF(QCI!$A$13:$A$15,ORÇAMENTO!E67)),OFFSET($D67,1,$C67,ROW($C$77)-ROW($C67)),0)) -> 0 | L67: F | M67: Serviço | N67: Serviço | O67: 1.10.4. | P67: AMMOC | Q67: 215 | R67: PLACA DE SINALIZACAO VIARIA OCTOGONAL A = 25 CM, COM SUPORTE DE AÇO GALVANIZADO D = 75 MM E ALTURA =3,00 M, INCLUSIVE BASE DE CONCRETO MAGRO | S67: UN | T67: =OFFSET(CÁLCULO!H$15,ROW($T67)-ROW(T$15),0) -> 2 | U67: 589.32 | V67: BDI 1 | W67: 716.55 | X67: 1433.1 | Y67: RA | Z67: RA | AA67: =IF($C67="S",IF($Z67="CP",$X67,IF($Z67="RA",(($X67)*QCI!$AA$3),0)),SomaAgrup) -> 446.8385766 | AB67: 0 | AD67: =IF(C67<=CRONO.NivelExibicao,MAX($AD$15:OFFSET(AD67,-1,0))+IF($C67<>1,1,MAX(1,COUNTIF(QCI!$A$13:$A$15,OFFSET($E67,-1,0)))),"") ->  | AE67: AMMOC 215 | AF67: 269 | AG67: 967.83 | AH67: 0.2159 | AM67: 1433.1 | AN67: 716.55
A68: S | B68: 2 | C68: S | D68: 0 | E68: =IF($C68=1,OFFSET(E68,-1,0)+MAX(1,COUNTIF(QCI!$A$13:$A$15,OFFSET(ORÇAMENTO!E68,-1,0))),OFFSET(E68,-1,0)) -> 1 | F68: 10 | G68: 0 | H68: 0 | I68: 5 | J68: 0 | K68: =IF(OR($C68="S",$C68=0),0,MATCH(OFFSET($D68,0,$C68)+IF($C68<>1,1,COUNTIF(QCI!$A$13:$A$15,ORÇAMENTO!E68)),OFFSET($D68,1,$C68,ROW($C$77)-ROW($C68)),0)) -> 0 | L68: F | M68: Serviço | N68: Serviço | O68: 1.10.5. | P68: AMMOC | Q68: 102 | R68: PLACA DE REGULAMENTAÇÃO CIRCULAR, D=0,80M, INCLUSIVE SUPORTE EM AÇO GALVANIZADO D=50MM, H=3,00M INCLUSIVE BASE EM CONCRETO | S68: UN | T68: =OFFSET(CÁLCULO!H$15,ROW($T68)-ROW(T$15),0) -> 4 | U68: 646.81 | V68: BDI 1 | W68: 786.46 | X68: 3145.84 | Y68: RA | Z68: RA | AA68: =IF($C68="S",IF($Z68="CP",$X68,IF($Z68="RA",(($X68)*QCI!$AA$3),0)),SomaAgrup) -> 980.8685143 | AB68: 0 | AD68: =IF(C68<=CRONO.NivelExibicao,MAX($AD$15:OFFSET(AD68,-1,0))+IF($C68<>1,1,MAX(1,COUNTIF(QCI!$A$13:$A$15,OFFSET($E68,-1,0)))),"") ->  | AE68: AMMOC 102 | AF68: 104 | AG68: 837.52 | AH68: 0.2159 | AM68: 3145.84 | AN68: 786.46
A69: 2 | B69: 2 | C69: 2 | D69: 8 | E69: =IF($C69=1,OFFSET(E69,-1,0)+MAX(1,COUNTIF(QCI!$A$13:$A$15,OFFSET(ORÇAMENTO!E69,-1,0))),OFFSET(E69,-1,0)) -> 1 | F69: 11 | G69: 0 | H69: 0 | I69: 0 | J69: 8 | K69: =IF(OR($C69="S",$C69=0),0,MATCH(OFFSET($D69,0,$C69)+IF($C69<>1,1,COUNTIF(QCI!$A$13:$A$15,ORÇAMENTO!E69)),OFFSET($D69,1,$C69,ROW($C$77)-ROW($C69)),0)) ->  | L69: F | M69: Nível 2 | N69: Nível 2 | O69: 1.11. | P69: SINAPI | R69: PASSEIOS | S69: - | T69: =OFFSET(CÁLCULO!H$15,ROW($T69)-ROW(T$15),0) -> 0 | U69: 0 | V69: BDI 1 | W69: 0 | X69: 172325.84 | Y69: RA | AA69: =IF($C69="S",IF($Z69="CP",$X69,IF($Z69="RA",(($X69)*QCI!$AA$3),0)),SomaAgrup) -> 53730.95601 | AB69: 0 | AD69: =IF(C69<=CRONO.NivelExibicao,MAX($AD$15:OFFSET(AD69,-1,0))+IF($C69<>1,1,MAX(1,COUNTIF(QCI!$A$13:$A$15,OFFSET($E69,-1,0)))),"") -> 12 | AE69: FALSE | AF69: (Sem Código) | AG69: 0 | AH69: 0.2159 | AM69: 172325.84 | AN69: 0
A70: S | B70: 2 | C70: S | D70: 0 | E70: =IF($C70=1,OFFSET(E70,-1,0)+MAX(1,COUNTIF(QCI!$A$13:$A$15,OFFSET(ORÇAMENTO!E70,-1,0))),OFFSET(E70,-1,0)) -> 1 | F70: 11 | G70: 0 | H70: 0 | I70: 1 | J70: 0 | K70: =IF(OR($C70="S",$C70=0),0,MATCH(OFFSET($D70,0,$C70)+IF($C70<>1,1,COUNTIF(QCI!$A$13:$A$15,ORÇAMENTO!E70)),OFFSET($D70,1,$C70,ROW($C$77)-ROW($C70)),0)) -> 0 | L70: F | M70: Serviço | N70: Serviço | O70: 1.11.1. | P70: SINAPI | Q70: 100576 | R70: REGULARIZAÇÃO E COMPACTAÇÃO DE SUBLEITO DE SOLO PREDOMINANTEMENTE ARGILOSO. AF_11/2019 | S70: M2 | T70: =OFFSET(CÁLCULO!H$15,ROW($T70)-ROW(T$15),0) -> 621.5 | U70: 2.16 | V70: BDI 1 | W70: 2.63 | X70: 1634.55 | Y70: RA | Z70: RA | AA70: =IF($C70="S",IF($Z70="CP",$X70,IF($Z70="RA",(($X70)*QCI!$AA$3),0)),SomaAgrup) -> 509.650405 | AB70: 0 | AD70: =IF(C70<=CRONO.NivelExibicao,MAX($AD$15:OFFSET(AD70,-1,0))+IF($C70<>1,1,MAX(1,COUNTIF(QCI!$A$13:$A$15,OFFSET($E70,-1,0)))),"") ->  | AE70: SINAPI 100576 | AF70: 6529 | AG70: 2.28 | AH70: 0.2159 | AM70: 1634.55 | AN70: 2.63
A71: S | B71: 2 | C71: S | D71: 0 | E71: =IF($C71=1,OFFSET(E71,-1,0)+MAX(1,COUNTIF(QCI!$A$13:$A$15,OFFSET(ORÇAMENTO!E71,-1,0))),OFFSET(E71,-1,0)) -> 1 | F71: 11 | G71: 0 | H71: 0 | I71: 2 | J71: 0 | K71: =IF(OR($C71="S",$C71=0),0,MATCH(OFFSET($D71,0,$C71)+IF($C71<>1,1,COUNTIF(QCI!$A$13:$A$15,ORÇAMENTO!E71)),OFFSET($D71,1,$C71,ROW($C$77)-ROW($C71)),0)) -> 0 | L71: F | M71: Serviço | N71: Serviço | O71: 1.11.2. | P71: SINAPI | Q71: 100324 | R71: LASTRO COM MATERIAL GRANULAR (PEDRA BRITADA N.1 E PEDRA BRITADA N.2), APLICADO EM PISOS OU LAJES SOBRE SOLO, ESPESSURA DE *10 CM*. AF_07/2019 | S71: M3 | T71: =OFFSET(CÁLCULO!H$15,ROW($T71)-ROW(T$15),0) -> 37.29 | U71: 150.59 | V71: BDI 1 | W71: 183.1 | X71: 6827.8 | Y71: RA | Z71: RA | AA71: =IF($C71="S",IF($Z71="CP",$X71,IF($Z71="RA",(($X71)*QCI!$AA$3),0)),SomaAgrup) -> 2128.898495 | AB71: 0 | AD71: =IF(C71<=CRONO.NivelExibicao,MAX($AD$15:OFFSET(AD71,-1,0))+IF($C71<>1,1,MAX(1,COUNTIF(QCI!$A$13:$A$15,OFFSET($E71,-1,0)))),"") ->  | AE71: SINAPI 100324 | AF71: 2836 | AG71: 155.38 | AH71: 0.2159 | AM71: 6827.8 | AN71: 183.1
A72: S | B72: 2 | C72: S | D72: 0 | E72: =IF($C72=1,OFFSET(E72,-1,0)+MAX(1,COUNTIF(QCI!$A$13:$A$15,OFFSET(ORÇAMENTO!E72,-1,0))),OFFSET(E72,-1,0)) -> 1 | F72: 11 | G72: 0 | H72: 0 | I72: 3 | J72: 0 | K72: =IF(OR($C72="S",$C72=0),0,MATCH(OFFSET($D72,0,$C72)+IF($C72<>1,1,COUNTIF(QCI!$A$13:$A$15,ORÇAMENTO!E72)),OFFSET($D72,1,$C72,ROW($C$77)-ROW($C72)),0)) -> 0 | L72: F | M72: Serviço | N72: Serviço | O72: 1.11.3. | P72: AMMOC | Q72: PASS8 | R72: EXECUÇÃO DE PASSEIO (CALÇADA) OU PISO DE CONCRETO COM CONCRETO MOLDADO IN LOCO, FEITO EM OBRA, ACABAMENTO CONVENCIONAL, ESPESSURA 8 CM, ARMADO. AF_07/2016 | S72: M2 | T72: =OFFSET(CÁLCULO!H$15,ROW($T72)-ROW(T$15),0) -> 1252.8 | U72: 70.3 | V72: BDI 1 | W72: 85.48 | X72: 107089.34 | Y72: RA | Z72: RA | AA72: =IF($C72="S",IF($Z72="CP",$X72,IF($Z72="RA",(($X72)*QCI!$AA$3),0)),SomaAgrup) -> 33390.30651 | AB72: 0 | AD72: =IF(C72<=CRONO.NivelExibicao,MAX($AD$15:OFFSET(AD72,-1,0))+IF($C72<>1,1,MAX(1,COUNTIF(QCI!$A$13:$A$15,OFFSET($E72,-1,0)))),"") ->  | AE72: AMMOC PASS8 | AF72: 370 | AG72: 72.27 | AH72: 0.2159 | AM72: 107089.34 | AN72: 85.48
A73: S | B73: 2 | C73: S | D73: 0 | E73: =IF($C73=1,OFFSET(E73,-1,0)+MAX(1,COUNTIF(QCI!$A$13:$A$15,OFFSET(ORÇAMENTO!E73,-1,0))),OFFSET(E73,-1,0)) -> 1 | F73: 11 | G73: 0 | H73: 0 | I73: 4 | J73: 0 | K73: =IF(OR($C73="S",$C73=0),0,MATCH(OFFSET($D73,0,$C73)+IF($C73<>1,1,COUNTIF(QCI!$A$13:$A$15,ORÇAMENTO!E73)),OFFSET($D73,1,$C73,ROW($C$77)-ROW($C73)),0)) -> 0 | L73: F | M73: Serviço | N73: Serviço | O73: 1.11.4. | P73: SINAPI | Q73: 101094 | R73: PISO PODOTÁTIL DE ALERTA OU DIRECIONAL, DE BORRACHA, ASSENTADO SOBRE ARGAMASSA. AF_05/2020 | S73: M | T73: =OFFSET(CÁLCULO!H$15,ROW($T73)-ROW(T$15),0) -> 98.56 | U73: 162.47 | V73: BDI 1 | W73: 197.55 | X73: 19470.53 | Y73: RA | Z73: RA | AA73: =IF($C73="S",IF($Z73="CP",$X73,IF($Z73="RA",(($X73)*QCI!$AA$3),0)),SomaAgrup) -> 6070.884035 | AB73: 0 | AD73: =IF(C73<=CRONO.NivelExibicao,MAX($AD$15:OFFSET(AD73,-1,0))+IF($C73<>1,1,MAX(1,COUNTIF(QCI!$A$13:$A$15,OFFSET($E73,-1,0)))),"") ->  | AE73: SINAPI 101094 | AF73: 6808 | AG73: 164.68 | AH73: 0.2159 | AM73: 19470.53 | AN73: 197.55
A74: S | B74: 2 | C74: S | D74: 0 | E74: =IF($C74=1,OFFSET(E74,-1,0)+MAX(1,COUNTIF(QCI!$A$13:$A$15,OFFSET(ORÇAMENTO!E74,-1,0))),OFFSET(E74,-1,0)) -> 1 | F74: 11 | G74: 0 | H74: 0 | I74: 5 | J74: 0 | K74: =IF(OR($C74="S",$C74=0),0,MATCH(OFFSET($D74,0,$C74)+IF($C74<>1,1,COUNTIF(QCI!$A$13:$A$15,ORÇAMENTO!E74)),OFFSET($D74,1,$C74,ROW($C$77)-ROW($C74)),0)) -> 0 | L74: F | M74: Serviço | N74: Serviço | O74: 1.11.5. | P74: AMMOC | Q74: 334 | R74: RAMPA DE ACESSIBILIDADE PARA PASSEIO COM MEIO-FIO H =15 CM E LARGURA 2,00 M, DE PISO DE CONCRETO E = 5 CM, INCLUSIVE FAIXAS DE 40 CM DE PISO PODOTATIL DE CONCRETO ALERTA/DIRECIONAL E COLCHAO DE PO DE PEDRA E = 5 CM | S74: UND | T74: =OFFSET(CÁLCULO!H$15,ROW($T74)-ROW(T$15),0) -> 4 | U74: 683.21 | V74: BDI 1 | W74: 830.72 | X74: 3322.88 | Y74: RA | Z74: RA | AA74: =IF($C74="S",IF($Z74="CP",$X74,IF($Z74="RA",(($X74)*QCI!$AA$3),0)),SomaAgrup) -> 1036.069339 | AB74: 0 | AD74: =IF(C74<=CRONO.NivelExibicao,MAX($AD$15:OFFSET(AD74,-1,0))+IF($C74<>1,1,MAX(1,COUNTIF(QCI!$A$13:$A$15,OFFSET($E74,-1,0)))),"") ->  | AE74: AMMOC 334 | AF74: 438 | AG74: 683.21 | AH74: 0.2159 | AM74: 3322.88 | AN74: 830.72
A75: S | B75: 2 | C75: S | D75: 0 | E75: =IF($C75=1,OFFSET(E75,-1,0)+MAX(1,COUNTIF(QCI!$A$13:$A$15,OFFSET(ORÇAMENTO!E75,-1,0))),OFFSET(E75,-1,0)) -> 1 | F75: 11 | G75: 0 | H75: 0 | I75: 6 | J75: 0 | K75: =IF(OR($C75="S",$C75=0),0,MATCH(OFFSET($D75,0,$C75)+IF($C75<>1,1,COUNTIF(QCI!$A$13:$A$15,ORÇAMENTO!E75)),OFFSET($D75,1,$C75,ROW($C$77)-ROW($C75)),0)) -> 0 | L75: F | M75: Serviço | N75: Serviço | O75: 1.11.6. | P75: AMMOC | Q75: 86 | R75: GUIA DE BALIZAMENTO 0,14x0,30CM, EM CONCRETO FCK 20 MPA ARMADO COM TRELIÇA , MOLDADO IN LOCO, COM PINTURA ACRILICA 2 DEMÃOS PARA SINALIZAÇÃO HORIZONTAL EM COR CONTRASTANTE COM O PISO CONFORME NBR9050 | S75: M | T75: =OFFSET(CÁLCULO!H$15,ROW($T75)-ROW(T$15),0) -> 254.2 | U75: 109.38 | V75: BDI 1 | W75: 133 | X75: 33808.6 | Y75: RA | Z75: RA | AA75: =IF($C75="S",IF($Z75="CP",$X75,IF($Z75="RA",(($X75)*QCI!$AA$3),0)),SomaAgrup) -> 10541.47422 | AB75: 0 | AD75: =IF(C75<=CRONO.NivelExibicao,MAX($AD$15:OFFSET(AD75,-1,0))+IF($C75<>1,1,MAX(1,COUNTIF(QCI!$A$13:$A$15,OFFSET($E75,-1,0)))),"") ->  | AE75: AMMOC 86 | AF75: 88 | AG75: 115.07 | AH75: 0.2159 | AM75: 33808.6 | AN75: 133
A76: S | B76: 2 | C76: S | D76: 0 | E76: =IF($C76=1,OFFSET(E76,-1,0)+MAX(1,COUNTIF(QCI!$A$13:$A$15,OFFSET(ORÇAMENTO!E76,-1,0))),OFFSET(E76,-1,0)) -> 1 | F76: 11 | G76: 0 | H76: 0 | I76: 7 | J76: 0 | K76: =IF(OR($C76="S",$C76=0),0,MATCH(OFFSET($D76,0,$C76)+IF($C76<>1,1,COUNTIF(QCI!$A$13:$A$15,ORÇAMENTO!E76)),OFFSET($D76,1,$C76,ROW($C$77)-ROW($C76)),0)) -> 0 | L76: F | M76: Serviço | N76: Serviço | O76: 1.11.7. | P76: SINAPI | Q76: 102491 | R76: PINTURA DE PISO COM TINTA ACRÍLICA, APLICAÇÃO MANUAL, 2 DEMÃOS, INCLUSO FUNDO PREPARADOR. AF_05/2021 | S76: M2 | T76: =OFFSET(CÁLCULO!H$15,ROW($T76)-ROW(T$15),0) -> 7.6 | U76: 18.63 | V76: BDI 1 | W76: 22.65 | X76: 172.14 | Y76: RA | Z76: RA | AA76: =IF($C76="S",IF($Z76="CP",$X76,IF($Z76="RA",(($X76)*QCI!$AA$3),0)),SomaAgrup) -> 53.67301136 | AB76: 0 | AD76: =IF(C76<=CRONO.NivelExibicao,MAX($AD$15:OFFSET(AD76,-1,0))+IF($C76<>1,1,MAX(1,COUNTIF(QCI!$A$13:$A$15,OFFSET($E76,-1,0)))),"") ->  | AE76: SINAPI 102491 | AF76: 6730 | AG76: 19.92 | AH76: 0.2159 | AM76: 172.14 | AN76: 22.65
A77: -1 | C77: -1 | E77: 0 | F77: 0 | G77: 0 | H77: 0 | I77: 0 | L77: F
O80: Encargos sociais: | Q80: Para elaboração deste orçamento, foram utilizados os encargos sociais do SINAPI para a Unidade da Federação indicada.
O82: Observações:
O87: =IF(AND($AF$7=FALSE,$AF$8=FALSE,$AF$9=FALSE,$AF$10=FALSE,$AF$11=FALSE),"Não foi considerado arredondamento nos valores da planilha.",CONCATENATE("Foi considerado arredondamento de duas casas decimais para ",IF($AF$7=TRUE,"Quantidade; ",""),IF($AF$8=TRUE,"Custo Unitário; ",""),IF($AF$9=TRUE,"BDI; ",""),IF($AF$10=TRUE,"Preço Unitário; ",""),IF($AF$11=TRUE,"Preço Total.",""))) -> Foi considerado arredondamento de duas casas decimais para Quantidade; Custo Unitário; BDI; Preço Unitário; Preço Total.
O88: Siglas da Composição do Investimento: RA - Rateio proporcional entre Repasse e Contrapartida; RP - 100% Repasse; CP - 100% Contrapartida; OU - 100% Outros.
O90: =Import.Município -> ERVAL VELHO/SC
O91: Local | S91: Responsável Técnico
S92: Nome: | T92: =Import.RespOrçamento -> MAX MOOSHAMMER
O93: =DADOS!$F$25 -> 2023-07-20 | S93: CREA/CAU: | T93: 139.164-0
O94: Data | S94: ART/RRT: | T94: 8736435-7

Sheet CÁLCULO
F1: =IF(ACOMPANHAMENTO="BM","MEMÓRIA DE CÁLCULO","PLQ - PLANILHA DE LEVANTAMENTO DE QUANTIDADES") -> PLQ - PLANILHA DE LEVANTAMENTO DE QUANTIDADES | Q1: Grau de Sigilo | Y1: Grau de Sigilo
F2: =IF(ACOMPANHAMENTO="BM","","Memória de Cálculo")&" - "&import.recurso -> Memória de Cálculo - OGU | Q2: #PUBLICO | Y2: #PUBLICO
E4: APELIDO DO EMPREENDIMENTO | G4: Nº SICONV | I4: Nº OPERAÇÃO | K4: PROPONENTE / TOMADOR | S4: Nº OPERAÇÃO | U4: PROPONENTE / TOMADOR
E5: =Import.Apelido -> PAVIMENTAÇÃO DA RUA DAS AMEIXEIRAS | G5: =Import.SICONV -> 940117/2022 | I5: =Import.CR -> 0 | K5: =Import.Proponente -> PREFEITURA MUNICIPAL DE ERVAL VELHO | S5: =Import.CR -> 0 | U5: =Import.Proponente -> PREFEITURA MUNICIPAL DE ERVAL VELHO
AB6: Preços dos serviços por frente | AM6: Mês do cronograma | AX6: Número da Medição
A12: =IF(OFFSET(EVENTOS!$C$5,1,0)="Automática, conforme os agrupadores Nível 4 do Orçamento",4,IF(OFFSET(EVENTOS!$C$5,1,0)="Automática, conforme os agrupadores Nível 3 do Orçamento",3,IF(OFFSET(EVENTOS!$C$5,1,0)="Definir Manualmente","Manual",2))) -> Manual | B12: Empty | J12: . | K12: Nº AGRUPADOR DE EVENTOS | L12: . | M12: =IF(ACOMPANHAMENTO="BM",0,COUNTIF(M15:M77,0)) -> 1 | N12: FRENTES DE OBRA: | P12: . | Q12: RUA DAS AMEIXEIRAS | AA12: . | AB12: =OFFSET($P$12,0,AB$13) -> RUA DAS AMEIXEIRAS | AC12: =OFFSET($P$12,0,AC$13) -> 0 | AD12: 0 | AE12: 0 | AF12: 0 | AG12: 0 | AH12: 0 | AI12: 0 | AJ12: 0 | AK12: 0 | AM12: =OFFSET($P$12,0,AM$13) -> RUA DAS AMEIXEIRAS | AN12: =OFFSET($P$12,0,AN$13) -> 0 | AO12: 0 | AP12: 0 | AQ12: 0 | AR12: 0 | AS12: 0 | AT12: 0 | AU12: 0 | AV12: 0 | AX12: =OFFSET($P$12,0,AX$13) -> RUA DAS AMEIXEIRAS | AY12: =OFFSET($P$12,0,AY$13) -> 0 | AZ12: 0 | BA12: 0 | BB12: 0 | BC12: 0 | BD12: 0 | BE12: 0 | BF12: 0 | BG12: 0
A13: AUTOEVENTO | B13: Empty | D13: Nível | E13: Item | F13: Descrição | G13: Unidade | H13: Quantidade | I13: Memória de Cálculo | K13: Nº | M13: # Evento | N13: Agrupador de Eventos | O13: =OFFSET(O13,0,-1)+1 ->  | Q13: =OFFSET(Q13,0,-1)+1 -> 1 | R13: 2 | S13: 3 | T13: 4 | U13: 5 | V13: 6 | W13: 7 | X13: 8 | Y13: 9 | Z13: 10 | AB13: =OFFSET(AB13,0,-1)+1 -> 1 | AC13: 2 | AD13: 3 | AE13: 4 | AF13: 5 | AG13: 6 | AH13: 7 | AI13: 8 | AJ13: 9 | AK13: 10 | AM13: 1 | AN13: 2 | AO13: 3 | AP13: 4 | AQ13: 5 | AR13: 6 | AS13: 7 | AT13: 8 | AU13: 9 | AV13: 10 | AX13: 1 | AY13: 2 | AZ13: 3 | BA13: 4 | BB13: 5 | BC13: 6 | BD13: 7 | BE13: 8 | BF13: 9 | BG13: 10
A14: =IF(AUTOEVENTO="Manual",IF(K14<>"",MIN(VALUE(LEFT(K14,FIND(".",K14)-1)),COUNTA(EVENTOS.Lista)),0),IF(OR($B14>AUTOEVENTO,$B14="S",$B14=0),SUBSTITUTE(OFFSET($A14,-1,0),IF($D14="Serviço",".",""),""),ROW(A14)-ROW($A$15)&".")) -> 0 | B14: =OFFSET(ORÇAMENTO!C$15,ROW(B14)-ROW(B$15),0) -> S | C14: =OFFSET(ORÇAMENTO!L$15,ROW(C14)-ROW(C$15),0) ->  | D14: =OFFSET(ORÇAMENTO!N$15,ROW(D14)-ROW(D$15),0) -> Serviço | E14: =OFFSET(ORÇAMENTO!O$15,ROW(E14)-ROW(E$15),0) -> - | F14: =OFFSET(ORÇAMENTO!R$15,ROW(F14)-ROW(F$15),0) -> (Sem Código) | G14: =IF($D14<>"Serviço","",OFFSET(ORÇAMENTO!S$15,ROW(G14)-ROW(G$15),0)) -> - | H14: =IF($D14<>"Serviço",0,IF(ACOMPANHAMENTO="BM",ROUND(OFFSET(ORÇAMENTO!AJ$15,ROW(H14)-ROW(H$15),0),15-13*ORÇAMENTO!$AF$7),SUMPRODUCT(($Q$12:$AA$12<>"")*ROUND($Q14:$AA14,15-13*ORÇAMENTO!$AF$7)))) -> 0 | L14: . | M14: =IF($D14<>"Serviço","",IF(AUTOEVENTO="manual",$A14,IF(ISERROR(MATCH($A14,$A$15:OFFSET($A14,-1,0),0)),MAX($M$15:OFFSET(M14,-1,0))+1,INDEX($M$15:OFFSET(M14,-1,0),MATCH($A14,$A$15:OFFSET($A14,-1,0),0))))) -> 0 | N14: =IF($D14<>"Serviço","",IF(AUTOEVENTO="Manual",IF($A14=0,"<-- defina o número do agrupador",OFFSET(EVENTOS!$D$14,$A14,0)),OFFSET($F$15,$A14,0))) -> <-- defina o número do agrupador | AB14: =IF(AND($D14="Serviço",AB$12<>0,$H14>0,OR(AUTOEVENTO<>"manual",$M14<>1)),ROUND(OFFSET($P14,0,AB$13),15-13*ORÇAMENTO!$AF$7)/$H14*OFFSET(ORÇAMENTO!$X$15,ROW(AB14)-ROW(AB$15),0),0) -> 0 | AC14: =IF(AND($D14="Serviço",AC$12<>0,$H14>0,OR(AUTOEVENTO<>"manual",$M14<>1)),ROUND(OFFSET($P14,0,AC$13),15-13*ORÇAMENTO!$AF$7)/$H14*OFFSET(ORÇAMENTO!$X$15,ROW(AC14)-ROW(AC$15),0),0) -> 0 | AD14: =IF(AND($D14="Serviço",AD$12<>0,$H14>0,OR(AUTOEVENTO<>"manual",$M14<>1)),ROUND(OFFSET($P14,0,AD$13),15-13*ORÇAMENTO!$AF$7)/$H14*OFFSET(ORÇAMENTO!$X$15,ROW(AD14)-ROW(AD$15),0),0) -> 0 | AE14: =IF(AND($D14="Serviço",AE$12<>0,$H14>0,OR(AUTOEVENTO<>"manual",$M14<>1)),ROUND(OFFSET($P14,0,AE$13),15-13*ORÇAMENTO!$AF$7)/$H14*OFFSET(ORÇAMENTO!$X$15,ROW(AE14)-ROW(AE$15),0),0) -> 0 | AF14: =IF(AND($D14="Serviço",AF$12<>0,$H14>0,OR(AUTOEVENTO<>"manual",$M14<>1)),ROUND(OFFSET($P14,0,AF$13),15-13*ORÇAMENTO!$AF$7)/$H14*OFFSET(ORÇAMENTO!$X$15,ROW(AF14)-ROW(AF$15),0),0) -> 0 | AG14: =IF(AND($D14="Serviço",AG$12<>0,$H14>0,OR(AUTOEVENTO<>"manual",$M14<>1)),ROUND(OFFSET($P14,0,AG$13),15-13*ORÇAMENTO!$AF$7)/$H14*OFFSET(ORÇAMENTO!$X$15,ROW(AG14)-ROW(AG$15),0),0) -> 0 | AH14: =IF(AND($D14="Serviço",AH$12<>0,$H14>0,OR(AUTOEVENTO<>"manual",$M14<>1)),ROUND(OFFSET($P14,0,AH$13),15-13*ORÇAMENTO!$AF$7)/$H14*OFFSET(ORÇAMENTO!$X$15,ROW(AH14)-ROW(AH$15),0),0) -> 0 | AI14: =IF(AND($D14="Serviço",AI$12<>0,$H14>0,OR(AUTOEVENTO<>"manual",$M14<>1)),ROUND(OFFSET($P14,0,AI$13),15-13*ORÇAMENTO!$AF$7)/$H14*OFFSET(ORÇAMENTO!$X$15,ROW(AI14)-ROW(AI$15),0),0) -> 0 | AJ14: =IF(AND($D14="Serviço",AJ$12<>0,$H14>0,OR(AUTOEVENTO<>"manual",$M14<>1)),ROUND(OFFSET($P14,0,AJ$13),15-13*ORÇAMENTO!$AF$7)/$H14*OFFSET(ORÇAMENTO!$X$15,ROW(AJ14)-ROW(AJ$15),0),0) -> 0 | AK14: =IF(AND($D14="Serviço",AK$12<>0,$H14>0,OR(AUTOEVENTO<>"manual",$M14<>1)),ROUND(OFFSET($P14,0,AK$13),15-13*ORÇAMENTO!$AF$7)/$H14*OFFSET(ORÇAMENTO!$X$15,ROW(AK14)-ROW(AK$15),0),0) -> 0 | AM14: =IF($D14<>"Serviço",0,IF(AND(AUTOEVENTO="Manual",$M14=1),0,IF(OFFSET(CRONOPLE!$F$14,$M14,AM$13)="",10^12,OFFSET(CRONOPLE!$F$14,$M14,AM$13)))) -> 1000000000000 | AN14: =IF($D14<>"Serviço",0,IF(AND(AUTOEVENTO="Manual",$M14=1),0,IF(OFFSET(CRONOPLE!$F$14,$M14,AN$13)="",10^12,OFFSET(CRONOPLE!$F$14,$M14,AN$13)))) -> 1000000000000 | AO14: =IF($D14<>"Serviço",0,IF(AND(AUTOEVENTO="Manual",$M14=1),0,IF(OFFSET(CRONOPLE!$F$14,$M14,AO$13)="",10^12,OFFSET(CRONOPLE!$F$14,$M14,AO$13)))) -> 1000000000000 | AP14: =IF($D14<>"Serviço",0,IF(AND(AUTOEVENTO="Manual",$M14=1),0,IF(OFFSET(CRONOPLE!$F$14,$M14,AP$13)="",10^12,OFFSET(CRONOPLE!$F$14,$M14,AP$13)))) -> 1000000000000 | AQ14: =IF($D14<>"Serviço",0,IF(AND(AUTOEVENTO="Manual",$M14=1),0,IF(OFFSET(CRONOPLE!$F$14,$M14,AQ$13)="",10^12,OFFSET(CRONOPLE!$F$14,$M14,AQ$13)))) -> 1000000000000 | AR14: =IF($D14<>"Serviço",0,IF(AND(AUTOEVENTO="Manual",$M14=1),0,IF(OFFSET(CRONOPLE!$F$14,$M14,AR$13)="",10^12,OFFSET(CRONOPLE!$F$14,$M14,AR$13)))) -> 1000000000000 | AS14: =IF($D14<>"Serviço",0,IF(AND(AUTOEVENTO="Manual",$M14=1),0,IF(OFFSET(CRONOPLE!$F$14,$M14,AS$13)="",10^12,OFFSET(CRONOPLE!$F$14,$M14,AS$13)))) -> 1000000000000 | AT14: =IF($D14<>"Serviço",0,IF(AND(AUTOEVENTO="Manual",$M14=1),0,IF(OFFSET(CRONOPLE!$F$14,$M14,AT$13)="",10^12,OFFSET(CRONOPLE!$F$14,$M14,AT$13)))) -> 1000000000000 | AU14: =IF($D14<>"Serviço",0,IF(AND(AUTOEVENTO="Manual",$M14=1),0,IF(OFFSET(CRONOPLE!$F$14,$M14,AU$13)="",10^12,OFFSET(CRONOPLE!$F$14,$M14,AU$13)))) -> 1000000000000 | AV14: =IF($D14<>"Serviço",0,IF(AND(AUTOEVENTO="Manual",$M14=1),0,IF(OFFSET(CRONOPLE!$F$14,$M14,AV$13)="",10^12,OFFSET(CRONOPLE!$F$14,$M14,AV$13)))) -> 1000000000000 | AX14: =IF($D14<>"Serviço",0,IF(OR(AND(AUTOEVENTO="Manual",$M14=1),$M14>(ROW(PLE.lastrow)-ROW(PLE.firstrow))),0,IF(OFFSET(PLE!$G$14,$M14,AX$13)="",10^12,OFFSET(PLE!$G$14,$M14,AX$13)))) -> 1000000000000 | AY14: =IF($D14<>"Serviço",0,IF(OR(AND(AUTOEVENTO="Manual",$M14=1),$M14>(ROW(PLE.lastrow)-ROW(PLE.firstrow))),0,IF(OFFSET(PLE!$G$14,$M14,AY$13)="",10^12,OFFSET(PLE!$G$14,$M14,AY$13)))) -> 1000000000000 | AZ14: =IF($D14<>"Serviço",0,IF(OR(AND(AUTOEVENTO="Manual",$M14=1),$M14>(ROW(PLE.lastrow)-ROW(PLE.firstrow))),0,IF(OFFSET(PLE!$G$14,$M14,AZ$13)="",10^12,OFFSET(PLE!$G$14,$M14,AZ$13)))) -> 1000000000000 | BA14: =IF($D14<>"Serviço",0,IF(OR(AND(AUTOEVENTO="Manual",$M14=1),$M14>(ROW(PLE.lastrow)-ROW(PLE.firstrow))),0,IF(OFFSET(PLE!$G$14,$M14,BA$13)="",10^12,OFFSET(PLE!$G$14,$M14,BA$13)))) -> 1000000000000 | BB14: =IF($D14<>"Serviço",0,IF(OR(AND(AUTOEVENTO="Manual",$M14=1),$M14>(ROW(PLE.lastrow)-ROW(PLE.firstrow))),0,IF(OFFSET(PLE!$G$14,$M14,BB$13)="",10^12,OFFSET(PLE!$G$14,$M14,BB$13)))) -> 1000000000000 | BC14: =IF($D14<>"Serviço",0,IF(OR(AND(AUTOEVENTO="Manual",$M14=1),$M14>(ROW(PLE.lastrow)-ROW(PLE.firstrow))),0,IF(OFFSET(PLE!$G$14,$M14,BC$13)="",10^12,OFFSET(PLE!$G$14,$M14,BC$13)))) -> 1000000000000 | BD14: =IF($D14<>"Serviço",0,IF(OR(AND(AUTOEVENTO="Manual",$M14=1),$M14>(ROW(PLE.lastrow)-ROW(PLE.firstrow))),0,IF(OFFSET(PLE!$G$14,$M14,BD$13)="",10^12,OFFSET(PLE!$G$14,$M14,BD$13)))) -> 1000000000000 | BE14: =IF($D14<>"Serviço",0,IF(OR(AND(AUTOEVENTO="Manual",$M14=1),$M14>(ROW(PLE.lastrow)-ROW(PLE.firstrow))),0,IF(OFFSET(PLE!$G$14,$M14,BE$13)="",10^12,OFFSET(PLE!$G$14,$M14,BE$13)))) -> 1000000000000 | BF14: =IF($D14<>"Serviço",0,IF(OR(AND(AUTOEVENTO="Manual",$M14=1),$M14>(ROW(PLE.lastrow)-ROW(PLE.firstrow))),0,IF(OFFSET(PLE!$G$14,$M14,BF$13)="",10^12,OFFSET(PLE!$G$14,$M14,BF$13)))) -> 1000000000000 | BG14: =IF($D14<>"Serviço",0,IF(OR(AND(AUTOEVENTO="Manual",$M14=1),$M14>(ROW(PLE.lastrow)-ROW(PLE.firstrow))),0,IF(OFFSET(PLE!$G$14,$M14,BG$13)="",10^12,OFFSET(PLE!$G$14,$M14,BG$13)))) -> 1000000000000
B15: =OFFSET(ORÇAMENTO!C$15,ROW(B15)-ROW(B$15),0) -> L | C15: =OFFSET(ORÇAMENTO!L$15,ROW(C15)-ROW(C$15),0) -> F | D15: =IF(TIPOORCAMENTO="LICITADO","CTEF","LOTE") -> LOTE | E15: =Import.DescLote -> PAVIMENTAÇÃO DA RUA DAS AMEIXEIRAS | L15: . | M15: =IF(AUTOEVENTO="MANUAL",0,1) -> 0 | N15: TOTAL FINANC. POR FRENTE (R$): | O15: =OFFSET($AA$15,0,O$13) ->  | Q15: =OFFSET($AA$15,0,Q$13) -> 699074.43 | R15: 0 | S15: 0 | T15: 0 | U15: 0 | V15: 0 | W15: 0 | X15: 0 | Y15: 0 | Z15: 0 | AB15: =ROUND(SUM(OFFSET(AB$15,1,0):AB$77),2) -> 699074.43 | AC15: =SUM(OFFSET(AC$15,1,0):AC$77) -> 0 | AD15: =SUM(OFFSET(AD$15,1,0):AD$77) -> 0 | AE15: =SUM(OFFSET(AE$15,1,0):AE$77) -> 0 | AF15: =SUM(OFFSET(AF$15,1,0):AF$77) -> 0 | AG15: =SUM(OFFSET(AG$15,1,0):AG$77) -> 0 | AH15: =SUM(OFFSET(AH$15,1,0):AH$77) -> 0 | AI15: =SUM(OFFSET(AI$15,1,0):AI$77) -> 0 | AJ15: =SUM(OFFSET(AJ$15,1,0):AJ$77) -> 0 | AK15: =SUM(OFFSET(AK$15,1,0):AK$77) -> 0 | AM15: =10^12 -> 1000000000000 | AN15: =10^12 -> 1000000000000 | AO15: 1000000000000 | AP15: 1000000000000 | AQ15: 1000000000000 | AR15: 1000000000000 | AS15: 1000000000000 | AT15: 1000000000000 | AU15: 1000000000000 | AV15: 1000000000000 | AX15: =10^12 -> 1000000000000 | AY15: 1000000000000 | AZ15: 1000000000000 | BA15: 1000000000000 | BB15: 1000000000000 | BC15: 1000000000000 | BD15: 1000000000000 | BE15: 1000000000000 | BF15: 1000000000000 | BG15: 1000000000000
A16: =IF(AUTOEVENTO="Manual",IF(K16<>"",MIN(VALUE(LEFT(K16,FIND(".",K16)-1)),COUNTA(EVENTOS.Lista)),0),IF(OR($B16>AUTOEVENTO,$B16="S",$B16=0),SUBSTITUTE(OFFSET($A16,-1,0),IF($D16="Serviço",".",""),""),ROW(A16)-ROW($A$15)&".")) -> 0 | B16: =OFFSET(ORÇAMENTO!C$15,ROW(B16)-ROW(B$15),0) -> 1 | C16: =OFFSET(ORÇAMENTO!L$15,ROW(C16)-ROW(C$15),0) -> F | D16: =OFFSET(ORÇAMENTO!N$15,ROW(D16)-ROW(D$15),0) -> Meta | E16: =OFFSET(ORÇAMENTO!O$15,ROW(E16)-ROW(E$15),0) -> 1. | F16: =OFFSET(ORÇAMENTO!R$15,ROW(F16)-ROW(F$15),0) -> PAVIMENTAÇÃO DA RUA DAS AMEIXEIRAS | G16: =IF($D16<>"Serviço","",OFFSET(ORÇAMENTO!S$15,ROW(G16)-ROW(G$15),0)) ->  | H16: =IF($D16<>"Serviço",0,IF(ACOMPANHAMENTO="BM",ROUND(OFFSET(ORÇAMENTO!AJ$15,ROW(H16)-ROW(H$15),0),15-13*ORÇAMENTO!$AF$7),SUMPRODUCT(($Q$12:$AA$12<>"")*ROUND($Q16:$AA16,15-13*ORÇAMENTO!$AF$7)))) -> 0 | L16: . | M16: =IF($D16<>"Serviço","",IF(AUTOEVENTO="manual",$A16,IF(ISERROR(MATCH($A16,$A$15:OFFSET($A16,-1,0),0)),MAX($M$15:OFFSET(M16,-1,0))+1,INDEX($M$15:OFFSET(M16,-1,0),MATCH($A16,$A$15:OFFSET($A16,-1,0),0))))) ->  | N16: =IF($D16<>"Serviço","",IF(AUTOEVENTO="Manual",IF($A16=0,"<-- defina o número do agrupador",OFFSET(EVENTOS!$D$14,$A16,0)),OFFSET($F$15,$A16,0))) ->  | AB16: =IF(AND($D16="Serviço",AB$12<>0,$H16>0,OR(AUTOEVENTO<>"manual",$M16<>1)),ROUND(OFFSET($P16,0,AB$13),15-13*ORÇAMENTO!$AF$7)/$H16*OFFSET(ORÇAMENTO!$X$15,ROW(AB16)-ROW(AB$15),0),0) -> 0 | AC16: =IF(AND($D16="Serviço",AC$12<>0,$H16>0,OR(AUTOEVENTO<>"manual",$M16<>1)),ROUND(OFFSET($P16,0,AC$13),15-13*ORÇAMENTO!$AF$7)/$H16*OFFSET(ORÇAMENTO!$X$15,ROW(AC16)-ROW(AC$15),0),0) -> 0 | AD16: =IF(AND($D16="Serviço",AD$12<>0,$H16>0,OR(AUTOEVENTO<>"manual",$M16<>1)),ROUND(OFFSET($P16,0,AD$13),15-13*ORÇAMENTO!$AF$7)/$H16*OFFSET(ORÇAMENTO!$X$15,ROW(AD16)-ROW(AD$15),0),0) -> 0 | AE16: =IF(AND($D16="Serviço",AE$12<>0,$H16>0,OR(AUTOEVENTO<>"manual",$M16<>1)),ROUND(OFFSET($P16,0,AE$13),15-13*ORÇAMENTO!$AF$7)/$H16*OFFSET(ORÇAMENTO!$X$15,ROW(AE16)-ROW(AE$15),0),0) -> 0 | AF16: =IF(AND($D16="Serviço",AF$12<>0,$H16>0,OR(AUTOEVENTO<>"manual",$M16<>1)),ROUND(OFFSET($P16,0,AF$13),15-13*ORÇAMENTO!$AF$7)/$H16*OFFSET(ORÇAMENTO!$X$15,ROW(AF16)-ROW(AF$15),0),0) -> 0 | AG16: =IF(AND($D16="Serviço",AG$12<>0,$H16>0,OR(AUTOEVENTO<>"manual",$M16<>1)),ROUND(OFFSET($P16,0,AG$13),15-13*ORÇAMENTO!$AF$7)/$H16*OFFSET(ORÇAMENTO!$X$15,ROW(AG16)-ROW(AG$15),0),0) -> 0 | AH16: =IF(AND($D16="Serviço",AH$12<>0,$H16>0,OR(AUTOEVENTO<>"manual",$M16<>1)),ROUND(OFFSET($P16,0,AH$13),15-13*ORÇAMENTO!$AF$7)/$H16*OFFSET(ORÇAMENTO!$X$15,ROW(AH16)-ROW(AH$15),0),0) -> 0 | AI16: =IF(AND($D16="Serviço",AI$12<>0,$H16>0,OR(AUTOEVENTO<>"manual",$M16<>1)),ROUND(OFFSET($P16,0,AI$13),15-13*ORÇAMENTO!$AF$7)/$H16*OFFSET(ORÇAMENTO!$X$15,ROW(AI16)-ROW(AI$15),0),0) -> 0 | AJ16: =IF(AND($D16="Serviço",AJ$12<>0,$H16>0,OR(AUTOEVENTO<>"manual",$M16<>1)),ROUND(OFFSET($P16,0,AJ$13),15-13*ORÇAMENTO!$AF$7)/$H16*OFFSET(ORÇAMENTO!$X$15,ROW(AJ16)-ROW(AJ$15),0),0) -> 0 | AK16: =IF(AND($D16="Serviço",AK$12<>0,$H16>0,OR(AUTOEVENTO<>"manual",$M16<>1)),ROUND(OFFSET($P16,0,AK$13),15-13*ORÇAMENTO!$AF$7)/$H16*OFFSET(ORÇAMENTO!$X$15,ROW(AK16)-ROW(AK$15),0),0) -> 0 | AM16: =IF($D16<>"Serviço",0,IF(AND(AUTOEVENTO="Manual",$M16=1),0,IF(OFFSET(CRONOPLE!$F$14,$M16,AM$13)="",10^12,OFFSET(CRONOPLE!$F$14,$M16,AM$13)))) -> 0 | AN16: =IF($D16<>"Serviço",0,IF(AND(AUTOEVENTO="Manual",$M16=1),0,IF(OFFSET(CRONOPLE!$F$14,$M16,AN$13)="",10^12,OFFSET(CRONOPLE!$F$14,$M16,AN$13)))) -> 0 | AO16: =IF($D16<>"Serviço",0,IF(AND(AUTOEVENTO="Manual",$M16=1),0,IF(OFFSET(CRONOPLE!$F$14,$M16,AO$13)="",10^12,OFFSET(CRONOPLE!$F$14,$M16,AO$13)))) -> 0 | AP16: =IF($D16<>"Serviço",0,IF(AND(AUTOEVENTO="Manual",$M16=1),0,IF(OFFSET(CRONOPLE!$F$14,$M16,AP$13)="",10^12,OFFSET(CRONOPLE!$F$14,$M16,AP$13)))) -> 0 | AQ16: =IF($D16<>"Serviço",0,IF(AND(AUTOEVENTO="Manual",$M16=1),0,IF(OFFSET(CRONOPLE!$F$14,$M16,AQ$13)="",10^12,OFFSET(CRONOPLE!$F$14,$M16,AQ$13)))) -> 0 | AR16: =IF($D16<>"Serviço",0,IF(AND(AUTOEVENTO="Manual",$M16=1),0,IF(OFFSET(CRONOPLE!$F$14,$M16,AR$13)="",10^12,OFFSET(CRONOPLE!$F$14,$M16,AR$13)))) -> 0 | AS16: =IF($D16<>"Serviço",0,IF(AND(AUTOEVENTO="Manual",$M16=1),0,IF(OFFSET(CRONOPLE!$F$14,$M16,AS$13)="",10^12,OFFSET(CRONOPLE!$F$14,$M16,AS$13)))) -> 0 | AT16: =IF($D16<>"Serviço",0,IF(AND(AUTOEVENTO="Manual",$M16=1),0,IF(OFFSET(CRONOPLE!$F$14,$M16,AT$13)="",10^12,OFFSET(CRONOPLE!$F$14,$M16,AT$13)))) -> 0 | AU16: =IF($D16<>"Serviço",0,IF(AND(AUTOEVENTO="Manual",$M16=1),0,IF(OFFSET(CRONOPLE!$F$14,$M16,AU$13)="",10^12,OFFSET(CRONOPLE!$F$14,$M16,AU$13)))) -> 0 | AV16: =IF($D16<>"Serviço",0,IF(AND(AUTOEVENTO="Manual",$M16=1),0,IF(OFFSET(CRONOPLE!$F$14,$M16,AV$13)="",10^12,OFFSET(CRONOPLE!$F$14,$M16,AV$13)))) -> 0 | AX16: =IF($D16<>"Serviço",0,IF(OR(AND(AUTOEVENTO="Manual",$M16=1),$M16>(ROW(PLE.lastrow)-ROW(PLE.firstrow))),0,IF(OFFSET(PLE!$G$14,$M16,AX$13)="",10^12,OFFSET(PLE!$G$14,$M16,AX$13)))) -> 0 | AY16: =IF($D16<>"Serviço",0,IF(OR(AND(AUTOEVENTO="Manual",$M16=1),$M16>(ROW(PLE.lastrow)-ROW(PLE.firstrow))),0,IF(OFFSET(PLE!$G$14,$M16,AY$13)="",10^12,OFFSET(PLE!$G$14,$M16,AY$13)))) -> 0 | AZ16: =IF($D16<>"Serviço",0,IF(OR(AND(AUTOEVENTO="Manual",$M16=1),$M16>(ROW(PLE.lastrow)-ROW(PLE.firstrow))),0,IF(OFFSET(PLE!$G$14,$M16,AZ$13)="",10^12,OFFSET(PLE!$G$14,$M16,AZ$13)))) -> 0 | BA16: =IF($D16<>"Serviço",0,IF(OR(AND(AUTOEVENTO="Manual",$M16=1),$M16>(ROW(PLE.lastrow)-ROW(PLE.firstrow))),0,IF(OFFSET(PLE!$G$14,$M16,BA$13)="",10^12,OFFSET(PLE!$G$14,$M16,BA$13)))) -> 0 | BB16: =IF($D16<>"Serviço",0,IF(OR(AND(AUTOEVENTO="Manual",$M16=1),$M16>(ROW(PLE.lastrow)-ROW(PLE.firstrow))),0,IF(OFFSET(PLE!$G$14,$M16,BB$13)="",10^12,OFFSET(PLE!$G$14,$M16,BB$13)))) -> 0 | BC16: =IF($D16<>"Serviço",0,IF(OR(AND(AUTOEVENTO="Manual",$M16=1),$M16>(ROW(PLE.lastrow)-ROW(PLE.firstrow))),0,IF(OFFSET(PLE!$G$14,$M16,BC$13)="",10^12,OFFSET(PLE!$G$14,$M16,BC$13)))) -> 0 | BD16: =IF($D16<>"Serviço",0,IF(OR(AND(AUTOEVENTO="Manual",$M16=1),$M16>(ROW(PLE.lastrow)-ROW(PLE.firstrow))),0,IF(OFFSET(PLE!$G$14,$M16,BD$13)="",10^12,OFFSET(PLE!$G$14,$M16,BD$13)))) -> 0 | BE16: =IF($D16<>"Serviço",0,IF(OR(AND(AUTOEVENTO="Manual",$M16=1),$M16>(ROW(PLE.lastrow)-ROW(PLE.firstrow))),0,IF(OFFSET(PLE!$G$14,$M16,BE$13)="",10^12,OFFSET(PLE!$G$14,$M16,BE$13)))) -> 0 | BF16: =IF($D16<>"Serviço",0,IF(OR(AND(AUTOEVENTO="Manual",$M16=1),$M16>(ROW(PLE.lastrow)-ROW(PLE.firstrow))),0,IF(OFFSET(PLE!$G$14,$M16,BF$13)="",10^12,OFFSET(PLE!$G$14,$M16,BF$13)))) -> 0 | BG16: =IF($D16<>"Serviço",0,IF(OR(AND(AUTOEVENTO="Manual",$M16=1),$M16>(ROW(PLE.lastrow)-ROW(PLE.firstrow))),0,IF(OFFSET(PLE!$G$14,$M16,BG$13)="",10^12,OFFSET(PLE!$G$14,$M16,BG$13)))) -> 0
A17: 0 | B17: =OFFSET(ORÇAMENTO!C$15,ROW(B17)-ROW(B$15),0) -> 2 | C17: =OFFSET(ORÇAMENTO!L$15,ROW(C17)-ROW(C$15),0) -> F | D17: =OFFSET(ORÇAMENTO!N$15,ROW(D17)-ROW(D$15),0) -> Nível 2 | E17: =OFFSET(ORÇAMENTO!O$15,ROW(E17)-ROW(E$15),0) -> 1.1. | F17: =OFFSET(ORÇAMENTO!R$15,ROW(F17)-ROW(F$15),0) -> SERVIÇOS INICIAIS | G17: =IF($D17<>"Serviço","",OFFSET(ORÇAMENTO!S$15,ROW(G17)-ROW(G$15),0)) ->  | H17: =IF($D17<>"Serviço",0,IF(ACOMPANHAMENTO="BM",ROUND(OFFSET(ORÇAMENTO!AJ$15,ROW(H17)-ROW(H$15),0),15-13*ORÇAMENTO!$AF$7),SUMPRODUCT(($Q$12:$AA$12<>"")*ROUND($Q17:$AA17,15-13*ORÇAMENTO!$AF$7)))) -> 0 | L17: . | M17: =IF($D17<>"Serviço","",IF(AUTOEVENTO="manual",$A17,IF(ISERROR(MATCH($A17,$A$15:OFFSET($A17,-1,0),0)),MAX($M$15:OFFSET(M17,-1,0))+1,INDEX($M$15:OFFSET(M17,-1,0),MATCH($A17,$A$15:OFFSET($A17,-1,0),0))))) ->  | N17: =IF($D17<>"Serviço","",IF(AUTOEVENTO="Manual",IF($A17=0,"<-- defina o número do agrupador",OFFSET(EVENTOS!$D$14,$A17,0)),OFFSET($F$15,$A17,0))) ->  | AB17: =IF(AND($D17="Serviço",AB$12<>0,$H17>0,OR(AUTOEVENTO<>"manual",$M17<>1)),ROUND(OFFSET($P17,0,AB$13),15-13*ORÇAMENTO!$AF$7)/$H17*OFFSET(ORÇAMENTO!$X$15,ROW(AB17)-ROW(AB$15),0),0) -> 0 | AC17: =IF(AND($D17="Serviço",AC$12<>0,$H17>0,OR(AUTOEVENTO<>"manual",$M17<>1)),ROUND(OFFSET($P17,0,AC$13),15-13*ORÇAMENTO!$AF$7)/$H17*OFFSET(ORÇAMENTO!$X$15,ROW(AC17)-ROW(AC$15),0),0) -> 0 | AD17: =IF(AND($D17="Serviço",AD$12<>0,$H17>0,OR(AUTOEVENTO<>"manual",$M17<>1)),ROUND(OFFSET($P17,0,AD$13),15-13*ORÇAMENTO!$AF$7)/$H17*OFFSET(ORÇAMENTO!$X$15,ROW(AD17)-ROW(AD$15),0),0) -> 0 | AE17: =IF(AND($D17="Serviço",AE$12<>0,$H17>0,OR(AUTOEVENTO<>"manual",$M17<>1)),ROUND(OFFSET($P17,0,AE$13),15-13*ORÇAMENTO!$AF$7)/$H17*OFFSET(ORÇAMENTO!$X$15,ROW(AE17)-ROW(AE$15),0),0) -> 0 | AF17: =IF(AND($D17="Serviço",AF$12<>0,$H17>0,OR(AUTOEVENTO<>"manual",$M17<>1)),ROUND(OFFSET($P17,0,AF$13),15-13*ORÇAMENTO!$AF$7)/$H17*OFFSET(ORÇAMENTO!$X$15,ROW(AF17)-ROW(AF$15),0),0) -> 0 | AG17: =IF(AND($D17="Serviço",AG$12<>0,$H17>0,OR(AUTOEVENTO<>"manual",$M17<>1)),ROUND(OFFSET($P17,0,AG$13),15-13*ORÇAMENTO!$AF$7)/$H17*OFFSET(ORÇAMENTO!$X$15,ROW(AG17)-ROW(AG$15),0),0) -> 0 | AH17: =IF(AND($D17="Serviço",AH$12<>0,$H17>0,OR(AUTOEVENTO<>"manual",$M17<>1)),ROUND(OFFSET($P17,0,AH$13),15-13*ORÇAMENTO!$AF$7)/$H17*OFFSET(ORÇAMENTO!$X$15,ROW(AH17)-ROW(AH$15),0),0) -> 0 | AI17: =IF(AND($D17="Serviço",AI$12<>0,$H17>0,OR(AUTOEVENTO<>"manual",$M17<>1)),ROUND(OFFSET($P17,0,AI$13),15-13*ORÇAMENTO!$AF$7)/$H17*OFFSET(ORÇAMENTO!$X$15,ROW(AI17)-ROW(AI$15),0),0) -> 0 | AJ17: =IF(AND($D17="Serviço",AJ$12<>0,$H17>0,OR(AUTOEVENTO<>"manual",$M17<>1)),ROUND(OFFSET($P17,0,AJ$13),15-13*ORÇAMENTO!$AF$7)/$H17*OFFSET(ORÇAMENTO!$X$15,ROW(AJ17)-ROW(AJ$15),0),0) -> 0 | AK17: =IF(AND($D17="Serviço",AK$12<>0,$H17>0,OR(AUTOEVENTO<>"manual",$M17<>1)),ROUND(OFFSET($P17,0,AK$13),15-13*ORÇAMENTO!$AF$7)/$H17*OFFSET(ORÇAMENTO!$X$15,ROW(AK17)-ROW(AK$15),0),0) -> 0 | AM17: =IF($D17<>"Serviço",0,IF(AND(AUTOEVENTO="Manual",$M17=1),0,IF(OFFSET(CRONOPLE!$F$14,$M17,AM$13)="",10^12,OFFSET(CRONOPLE!$F$14,$M17,AM$13)))) -> 0 | AN17: =IF($D17<>"Serviço",0,IF(AND(AUTOEVENTO="Manual",$M17=1),0,IF(OFFSET(CRONOPLE!$F$14,$M17,AN$13)="",10^12,OFFSET(CRONOPLE!$F$14,$M17,AN$13)))) -> 0 | AO17: =IF($D17<>"Serviço",0,IF(AND(AUTOEVENTO="Manual",$M17=1),0,IF(OFFSET(CRONOPLE!$F$14,$M17,AO$13)="",10^12,OFFSET(CRONOPLE!$F$14,$M17,AO$13)))) -> 0 | AP17: =IF($D17<>"Serviço",0,IF(AND(AUTOEVENTO="Manual",$M17=1),0,IF(OFFSET(CRONOPLE!$F$14,$M17,AP$13)="",10^12,OFFSET(CRONOPLE!$F$14,$M17,AP$13)))) -> 0 | AQ17: =IF($D17<>"Serviço",0,IF(AND(AUTOEVENTO="Manual",$M17=1),0,IF(OFFSET(CRONOPLE!$F$14,$M17,AQ$13)="",10^12,OFFSET(CRONOPLE!$F$14,$M17,AQ$13)))) -> 0 | AR17: =IF($D17<>"Serviço",0,IF(AND(AUTOEVENTO="Manual",$M17=1),0,IF(OFFSET(CRONOPLE!$F$14,$M17,AR$13)="",10^12,OFFSET(CRONOPLE!$F$14,$M17,AR$13)))) -> 0 | AS17: =IF($D17<>"Serviço",0,IF(AND(AUTOEVENTO="Manual",$M17=1),0,IF(OFFSET(CRONOPLE!$F$14,$M17,AS$13)="",10^12,OFFSET(CRONOPLE!$F$14,$M17,AS$13)))) -> 0 | AT17: =IF($D17<>"Serviço",0,IF(AND(AUTOEVENTO="Manual",$M17=1),0,IF(OFFSET(CRONOPLE!$F$14,$M17,AT$13)="",10^12,OFFSET(CRONOPLE!$F$14,$M17,AT$13)))) -> 0 | AU17: =IF($D17<>"Serviço",0,IF(AND(AUTOEVENTO="Manual",$M17=1),0,IF(OFFSET(CRONOPLE!$F$14,$M17,AU$13)="",10^12,OFFSET(CRONOPLE!$F$14,$M17,AU$13)))) -> 0 | AV17: =IF($D17<>"Serviço",0,IF(AND(AUTOEVENTO="Manual",$M17=1),0,IF(OFFSET(CRONOPLE!$F$14,$M17,AV$13)="",10^12,OFFSET(CRONOPLE!$F$14,$M17,AV$13)))) -> 0 | AX17: =IF($D17<>"Serviço",0,IF(OR(AND(AUTOEVENTO="Manual",$M17=1),$M17>(ROW(PLE.lastrow)-ROW(PLE.firstrow))),0,IF(OFFSET(PLE!$G$14,$M17,AX$13)="",10^12,OFFSET(PLE!$G$14,$M17,AX$13)))) -> 0 | AY17: =IF($D17<>"Serviço",0,IF(OR(AND(AUTOEVENTO="Manual",$M17=1),$M17>(ROW(PLE.lastrow)-ROW(PLE.firstrow))),0,IF(OFFSET(PLE!$G$14,$M17,AY$13)="",10^12,OFFSET(PLE!$G$14,$M17,AY$13)))) -> 0 | AZ17: =IF($D17<>"Serviço",0,IF(OR(AND(AUTOEVENTO="Manual",$M17=1),$M17>(ROW(PLE.lastrow)-ROW(PLE.firstrow))),0,IF(OFFSET(PLE!$G$14,$M17,AZ$13)="",10^12,OFFSET(PLE!$G$14,$M17,AZ$13)))) -> 0 | BA17: =IF($D17<>"Serviço",0,IF(OR(AND(AUTOEVENTO="Manual",$M17=1),$M17>(ROW(PLE.lastrow)-ROW(PLE.firstrow))),0,IF(OFFSET(PLE!$G$14,$M17,BA$13)="",10^12,OFFSET(PLE!$G$14,$M17,BA$13)))) -> 0 | BB17: =IF($D17<>"Serviço",0,IF(OR(AND(AUTOEVENTO="Manual",$M17=1),$M17>(ROW(PLE.lastrow)-ROW(PLE.firstrow))),0,IF(OFFSET(PLE!$G$14,$M17,BB$13)="",10^12,OFFSET(PLE!$G$14,$M17,BB$13)))) -> 0 | BC17: =IF($D17<>"Serviço",0,IF(OR(AND(AUTOEVENTO="Manual",$M17=1),$M17>(ROW(PLE.lastrow)-ROW(PLE.firstrow))),0,IF(OFFSET(PLE!$G$14,$M17,BC$13)="",10^12,OFFSET(PLE!$G$14,$M17,BC$13)))) -> 0 | BD17: =IF($D17<>"Serviço",0,IF(OR(AND(AUTOEVENTO="Manual",$M17=1),$M17>(ROW(PLE.lastrow)-ROW(PLE.firstrow))),0,IF(OFFSET(PLE!$G$14,$M17,BD$13)="",10^12,OFFSET(PLE!$G$14,$M17,BD$13)))) -> 0 | BE17: =IF($D17<>"Serviço",0,IF(OR(AND(AUTOEVENTO="Manual",$M17=1),$M17>(ROW(PLE.lastrow)-ROW(PLE.firstrow))),0,IF(OFFSET(PLE!$G$14,$M17,BE$13)="",10^12,OFFSET(PLE!$G$14,$M17,BE$13)))) -> 0 | BF17: =IF($D17<>"Serviço",0,IF(OR(AND(AUTOEVENTO="Manual",$M17=1),$M17>(ROW(PLE.lastrow)-ROW(PLE.firstrow))),0,IF(OFFSET(PLE!$G$14,$M17,BF$13)="",10^12,OFFSET(PLE!$G$14,$M17,BF$13)))) -> 0 | BG17: =IF($D17<>"Serviço",0,IF(OR(AND(AUTOEVENTO="Manual",$M17=1),$M17>(ROW(PLE.lastrow)-ROW(PLE.firstrow))),0,IF(OFFSET(PLE!$G$14,$M17,BG$13)="",10^12,OFFSET(PLE!$G$14,$M17,BG$13)))) -> 0
A18: 2 | B18: =OFFSET(ORÇAMENTO!C$15,ROW(B18)-ROW(B$15),0) -> S | C18: =OFFSET(ORÇAMENTO!L$15,ROW(C18)-ROW(C$15),0) -> F | D18: =OFFSET(ORÇAMENTO!N$15,ROW(D18)-ROW(D$15),0) -> Serviço | E18: =OFFSET(ORÇAMENTO!O$15,ROW(E18)-ROW(E$15),0) -> 1.1.1. | F18: =OFFSET(ORÇAMENTO!R$15,ROW(F18)-ROW(F$15),0) -> PLACA DE OBRA (PARA CONSTRUCAO CIVIL) EM CHAPA GALVANIZADA *N. 22*, ADESIVADA, DE *2,0 X 2,25* M (SEM POSTES PARA FIXACAO) | G18: =IF($D18<>"Serviço","",OFFSET(ORÇAMENTO!S$15,ROW(G18)-ROW(G$15),0)) -> M2 | H18: =IF($D18<>"Serviço",0,IF(ACOMPANHAMENTO="BM",ROUND(OFFSET(ORÇAMENTO!AJ$15,ROW(H18)-ROW(H$15),0),15-13*ORÇAMENTO!$AF$7),SUMPRODUCT(($Q$12:$AA$12<>"")*ROUND($Q18:$AA18,15-13*ORÇAMENTO!$AF$7)))) -> 4.5 | I18: 2*2,25 | K18: 2.SERVIÇOS INICIAIS | L18: . | M18: =IF($D18<>"Serviço","",IF(AUTOEVENTO="manual",$A18,IF(ISERROR(MATCH($A18,$A$15:OFFSET($A18,-1,0),0)),MAX($M$15:OFFSET(M18,-1,0))+1,INDEX($M$15:OFFSET(M18,-1,0),MATCH($A18,$A$15:OFFSET($A18,-1,0),0))))) -> 2 | N18: =IF($D18<>"Serviço","",IF(AUTOEVENTO="Manual",IF($A18=0,"<-- defina o número do agrupador",OFFSET(EVENTOS!$D$14,$A18,0)),OFFSET($F$15,$A18,0))) -> SERVIÇOS INICIAIS | Q18: =2*2.25 -> 4.5 | AB18: =IF(AND($D18="Serviço",AB$12<>0,$H18>0,OR(AUTOEVENTO<>"manual",$M18<>1)),ROUND(OFFSET($P18,0,AB$13),15-13*ORÇAMENTO!$AF$7)/$H18*OFFSET(ORÇAMENTO!$X$15,ROW(AB18)-ROW(AB$15),0),0) -> 2140.02 | AC18: =IF(AND($D18="Serviço",AC$12<>0,$H18>0,OR(AUTOEVENTO<>"manual",$M18<>1)),ROUND(OFFSET($P18,0,AC$13),15-13*ORÇAMENTO!$AF$7)/$H18*OFFSET(ORÇAMENTO!$X$15,ROW(AC18)-ROW(AC$15),0),0) -> 0 | AD18: =IF(AND($D18="Serviço",AD$12<>0,$H18>0,OR(AUTOEVENTO<>"manual",$M18<>1)),ROUND(OFFSET($P18,0,AD$13),15-13*ORÇAMENTO!$AF$7)/$H18*OFFSET(ORÇAMENTO!$X$15,ROW(AD18)-ROW(AD$15),0),0) -> 0 | AE18: =IF(AND($D18="Serviço",AE$12<>0,$H18>0,OR(AUTOEVENTO<>"manual",$M18<>1)),ROUND(OFFSET($P18,0,AE$13),15-13*ORÇAMENTO!$AF$7)/$H18*OFFSET(ORÇAMENTO!$X$15,ROW(AE18)-ROW(AE$15),0),0) -> 0 | AF18: =IF(AND($D18="Serviço",AF$12<>0,$H18>0,OR(AUTOEVENTO<>"manual",$M18<>1)),ROUND(OFFSET($P18,0,AF$13),15-13*ORÇAMENTO!$AF$7)/$H18*OFFSET(ORÇAMENTO!$X$15,ROW(AF18)-ROW(AF$15),0),0) -> 0 | AG18: =IF(AND($D18="Serviço",AG$12<>0,$H18>0,OR(AUTOEVENTO<>"manual",$M18<>1)),ROUND(OFFSET($P18,0,AG$13),15-13*ORÇAMENTO!$AF$7)/$H18*OFFSET(ORÇAMENTO!$X$15,ROW(AG18)-ROW(AG$15),0),0) -> 0 | AH18: =IF(AND($D18="Serviço",AH$12<>0,$H18>0,OR(AUTOEVENTO<>"manual",$M18<>1)),ROUND(OFFSET($P18,0,AH$13),15-13*ORÇAMENTO!$AF$7)/$H18*OFFSET(ORÇAMENTO!$X$15,ROW(AH18)-ROW(AH$15),0),0) -> 0 | AI18: =IF(AND($D18="Serviço",AI$12<>0,$H18>0,OR(AUTOEVENTO<>"manual",$M18<>1)),ROUND(OFFSET($P18,0,AI$13),15-13*ORÇAMENTO!$AF$7)/$H18*OFFSET(ORÇAMENTO!$X$15,ROW(AI18)-ROW(AI$15),0),0) -> 0 | AJ18: =IF(AND($D18="Serviço",AJ$12<>0,$H18>0,OR(AUTOEVENTO<>"manual",$M18<>1)),ROUND(OFFSET($P18,0,AJ$13),15-13*ORÇAMENTO!$AF$7)/$H18*OFFSET(ORÇAMENTO!$X$15,ROW(AJ18)-ROW(AJ$15),0),0) -> 0 | AK18: =IF(AND($D18="Serviço",AK$12<>0,$H18>0,OR(AUTOEVENTO<>"manual",$M18<>1)),ROUND(OFFSET($P18,0,AK$13),15-13*ORÇAMENTO!$AF$7)/$H18*OFFSET(ORÇAMENTO!$X$15,ROW(AK18)-ROW(AK$15),0),0) -> 0 | AM18: =IF($D18<>"Serviço",0,IF(AND(AUTOEVENTO="Manual",$M18=1),0,IF(OFFSET(CRONOPLE!$F$14,$M18,AM$13)="",10^12,OFFSET(CRONOPLE!$F$14,$M18,AM$13)))) -> 1 | AN18: =IF($D18<>"Serviço",0,IF(AND(AUTOEVENTO="Manual",$M18=1),0,IF(OFFSET(CRONOPLE!$F$14,$M18,AN$13)="",10^12,OFFSET(CRONOPLE!$F$14,$M18,AN$13)))) -> 1 | AO18: =IF($D18<>"Serviço",0,IF(AND(AUTOEVENTO="Manual",$M18=1),0,IF(OFFSET(CRONOPLE!$F$14,$M18,AO$13)="",10^12,OFFSET(CRONOPLE!$F$14,$M18,AO$13)))) -> 2 | AP18: =IF($D18<>"Serviço",0,IF(AND(AUTOEVENTO="Manual",$M18=1),0,IF(OFFSET(CRONOPLE!$F$14,$M18,AP$13)="",10^12,OFFSET(CRONOPLE!$F$14,$M18,AP$13)))) -> 2 | AQ18: =IF($D18<>"Serviço",0,IF(AND(AUTOEVENTO="Manual",$M18=1),0,IF(OFFSET(CRONOPLE!$F$14,$M18,AQ$13)="",10^12,OFFSET(CRONOPLE!$F$14,$M18,AQ$13)))) -> 3 | AR18: =IF($D18<>"Serviço",0,IF(AND(AUTOEVENTO="Manual",$M18=1),0,IF(OFFSET(CRONOPLE!$F$14,$M18,AR$13)="",10^12,OFFSET(CRONOPLE!$F$14,$M18,AR$13)))) -> 3 | AS18: =IF($D18<>"Serviço",0,IF(AND(AUTOEVENTO="Manual",$M18=1),0,IF(OFFSET(CRONOPLE!$F$14,$M18,AS$13)="",10^12,OFFSET(CRONOPLE!$F$14,$M18,AS$13)))) -> 1000000000000 | AT18: =IF($D18<>"Serviço",0,IF(AND(AUTOEVENTO="Manual",$M18=1),0,IF(OFFSET(CRONOPLE!$F$14,$M18,AT$13)="",10^12,OFFSET(CRONOPLE!$F$14,$M18,AT$13)))) -> 1000000000000 | AU18: =IF($D18<>"Serviço",0,IF(AND(AUTOEVENTO="Manual",$M18=1),0,IF(OFFSET(CRONOPLE!$F$14,$M18,AU$13)="",10^12,OFFSET(CRONOPLE!$F$14,$M18,AU$13)))) -> 1000000000000 | AV18: =IF($D18<>"Serviço",0,IF(AND(AUTOEVENTO="Manual",$M18=1),0,IF(OFFSET(CRONOPLE!$F$14,$M18,AV$13)="",10^12,OFFSET(CRONOPLE!$F$14,$M18,AV$13)))) -> 1000000000000 | AX18: =IF($D18<>"Serviço",0,IF(OR(AND(AUTOEVENTO="Manual",$M18=1),$M18>(ROW(PLE.lastrow)-ROW(PLE.firstrow))),0,IF(OFFSET(PLE!$G$14,$M18,AX$13)="",10^12,OFFSET(PLE!$G$14,$M18,AX$13)))) -> 1000000000000 | AY18: =IF($D18<>"Serviço",0,IF(OR(AND(AUTOEVENTO="Manual",$M18=1),$M18>(ROW(PLE.lastrow)-ROW(PLE.firstrow))),0,IF(OFFSET(PLE!$G$14,$M18,AY$13)="",10^12,OFFSET(PLE!$G$14,$M18,AY$13)))) -> 1000000000000 | AZ18: =IF($D18<>"Serviço",0,IF(OR(AND(AUTOEVENTO="Manual",$M18=1),$M18>(ROW(PLE.lastrow)-ROW(PLE.firstrow))),0,IF(OFFSET(PLE!$G$14,$M18,AZ$13)="",10^12,OFFSET(PLE!$G$14,$M18,AZ$13)))) -> 1000000000000 | BA18: =IF($D18<>"Serviço",0,IF(OR(AND(AUTOEVENTO="Manual",$M18=1),$M18>(ROW(PLE.lastrow)-ROW(PLE.firstrow))),0,IF(OFFSET(PLE!$G$14,$M18,BA$13)="",10^12,OFFSET(PLE!$G$14,$M18,BA$13)))) -> 1000000000000 | BB18: =IF($D18<>"Serviço",0,IF(OR(AND(AUTOEVENTO="Manual",$M18=1),$M18>(ROW(PLE.lastrow)-ROW(PLE.firstrow))),0,IF(OFFSET(PLE!$G$14,$M18,BB$13)="",10^12,OFFSET(PLE!$G$14,$M18,BB$13)))) -> 1000000000000 | BC18: =IF($D18<>"Serviço",0,IF(OR(AND(AUTOEVENTO="Manual",$M18=1),$M18>(ROW(PLE.lastrow)-ROW(PLE.firstrow))),0,IF(OFFSET(PLE!$G$14,$M18,BC$13)="",10^12,OFFSET(PLE!$G$14,$M18,BC$13)))) -> 1000000000000 | BD18: =IF($D18<>"Serviço",0,IF(OR(AND(AUTOEVENTO="Manual",$M18=1),$M18>(ROW(PLE.lastrow)-ROW(PLE.firstrow))),0,IF(OFFSET(PLE!$G$14,$M18,BD$13)="",10^12,OFFSET(PLE!$G$14,$M18,BD$13)))) -> 1000000000000 | BE18: =IF($D18<>"Serviço",0,IF(OR(AND(AUTOEVENTO="Manual",$M18=1),$M18>(ROW(PLE.lastrow)-ROW(PLE.firstrow))),0,IF(OFFSET(PLE!$G$14,$M18,BE$13)="",10^12,OFFSET(PLE!$G$14,$M18,BE$13)))) -> 1000000000000 | BF18: =IF($D18<>"Serviço",0,IF(OR(AND(AUTOEVENTO="Manual",$M18=1),$M18>(ROW(PLE.lastrow)-ROW(PLE.firstrow))),0,IF(OFFSET(PLE!$G$14,$M18,BF$13)="",10^12,OFFSET(PLE!$G$14,$M18,BF$13)))) -> 1000000000000 | BG18: =IF($D18<>"Serviço",0,IF(OR(AND(AUTOEVENTO="Manual",$M18=1),$M18>(ROW(PLE.lastrow)-ROW(PLE.firstrow))),0,IF(OFFSET(PLE!$G$14,$M18,BG$13)="",10^12,OFFSET(PLE!$G$14,$M18,BG$13)))) -> 1000000000000
A19: 2 | B19: =OFFSET(ORÇAMENTO!C$15,ROW(B19)-ROW(B$15),0) -> S | C19: =OFFSET(ORÇAMENTO!L$15,ROW(C19)-ROW(C$15),0) -> F | D19: =OFFSET(ORÇAMENTO!N$15,ROW(D19)-ROW(D$15),0) -> Serviço | E19: =OFFSET(ORÇAMENTO!O$15,ROW(E19)-ROW(E$15),0) -> 1.1.2. | F19: =OFFSET(ORÇAMENTO!R$15,ROW(F19)-ROW(F$15),0) -> LOCAÇÃO DE PAVIMENTAÇÃO. AF_10/2018 | G19: =IF($D19<>"Serviço","",OFFSET(ORÇAMENTO!S$15,ROW(G19)-ROW(G$15),0)) -> M | H19: =IF($D19<>"Serviço",0,IF(ACOMPANHAMENTO="BM",ROUND(OFFSET(ORÇAMENTO!AJ$15,ROW(H19)-ROW(H$15),0),15-13*ORÇAMENTO!$AF$7),SUMPRODUCT(($Q$12:$AA$12<>"")*ROUND($Q19:$AA19,15-13*ORÇAMENTO!$AF$7)))) -> 213.29 | K19: 2.SERVIÇOS INICIAIS | L19: . | M19: =IF($D19<>"Serviço","",IF(AUTOEVENTO="manual",$A19,IF(ISERROR(MATCH($A19,$A$15:OFFSET($A19,-1,0),0)),MAX($M$15:OFFSET(M19,-1,0))+1,INDEX($M$15:OFFSET(M19,-1,0),MATCH($A19,$A$15:OFFSET($A19,-1,0),0))))) -> 2 | N19: =IF($D19<>"Serviço","",IF(AUTOEVENTO="Manual",IF($A19=0,"<-- defina o número do agrupador",OFFSET(EVENTOS!$D$14,$A19,0)),OFFSET($F$15,$A19,0))) -> SERVIÇOS INICIAIS | Q19: 213.29 | AB19: =IF(AND($D19="Serviço",AB$12<>0,$H19>0,OR(AUTOEVENTO<>"manual",$M19<>1)),ROUND(OFFSET($P19,0,AB$13),15-13*ORÇAMENTO!$AF$7)/$H19*OFFSET(ORÇAMENTO!$X$15,ROW(AB19)-ROW(AB$15),0),0) -> 106.65 | AC19: =IF(AND($D19="Serviço",AC$12<>0,$H19>0,OR(AUTOEVENTO<>"manual",$M19<>1)),ROUND(OFFSET($P19,0,AC$13),15-13*ORÇAMENTO!$AF$7)/$H19*OFFSET(ORÇAMENTO!$X$15,ROW(AC19)-ROW(AC$15),0),0) -> 0 | AD19: =IF(AND($D19="Serviço",AD$12<>0,$H19>0,OR(AUTOEVENTO<>"manual",$M19<>1)),ROUND(OFFSET($P19,0,AD$13),15-13*ORÇAMENTO!$AF$7)/$H19*OFFSET(ORÇAMENTO!$X$15,ROW(AD19)-ROW(AD$15),0),0) -> 0 | AE19: =IF(AND($D19="Serviço",AE$12<>0,$H19>0,OR(AUTOEVENTO<>"manual",$M19<>1)),ROUND(OFFSET($P19,0,AE$13),15-13*ORÇAMENTO!$AF$7)/$H19*OFFSET(ORÇAMENTO!$X$15,ROW(AE19)-ROW(AE$15),0),0) -> 0 | AF19: =IF(AND($D19="Serviço",AF$12<>0,$H19>0,OR(AUTOEVENTO<>"manual",$M19<>1)),ROUND(OFFSET($P19,0,AF$13),15-13*ORÇAMENTO!$AF$7)/$H19*OFFSET(ORÇAMENTO!$X$15,ROW(AF19)-ROW(AF$15),0),0) -> 0 | AG19: =IF(AND($D19="Serviço",AG$12<>0,$H19>0,OR(AUTOEVENTO<>"manual",$M19<>1)),ROUND(OFFSET($P19,0,AG$13),15-13*ORÇAMENTO!$AF$7)/$H19*OFFSET(ORÇAMENTO!$X$15,ROW(AG19)-ROW(AG$15),0),0) -> 0 | AH19: =IF(AND($D19="Serviço",AH$12<>0,$H19>0,OR(AUTOEVENTO<>"manual",$M19<>1)),ROUND(OFFSET($P19,0,AH$13),15-13*ORÇAMENTO!$AF$7)/$H19*OFFSET(ORÇAMENTO!$X$15,ROW(AH19)-ROW(AH$15),0),0) -> 0 | AI19: =IF(AND($D19="Serviço",AI$12<>0,$H19>0,OR(AUTOEVENTO<>"manual",$M19<>1)),ROUND(OFFSET($P19,0,AI$13),15-13*ORÇAMENTO!$AF$7)/$H19*OFFSET(ORÇAMENTO!$X$15,ROW(AI19)-ROW(AI$15),0),0) -> 0 | AJ19: =IF(AND($D19="Serviço",AJ$12<>0,$H19>0,OR(AUTOEVENTO<>"manual",$M19<>1)),ROUND(OFFSET($P19,0,AJ$13),15-13*ORÇAMENTO!$AF$7)/$H19*OFFSET(ORÇAMENTO!$X$15,ROW(AJ19)-ROW(AJ$15),0),0) -> 0 | AK19: =IF(AND($D19="Serviço",AK$12<>0,$H19>0,OR(AUTOEVENTO<>"manual",$M19<>1)),ROUND(OFFSET($P19,0,AK$13),15-13*ORÇAMENTO!$AF$7)/$H19*OFFSET(ORÇAMENTO!$X$15,ROW(AK19)-ROW(AK$15),0),0) -> 0 | AM19: =IF($D19<>"Serviço",0,IF(AND(AUTOEVENTO="Manual",$M19=1),0,IF(OFFSET(CRONOPLE!$F$14,$M19,AM$13)="",10^12,OFFSET(CRONOPLE!$F$14,$M19,AM$13)))) -> 1 | AN19: =IF($D19<>"Serviço",0,IF(AND(AUTOEVENTO="Manual",$M19=1),0,IF(OFFSET(CRONOPLE!$F$14,$M19,AN$13)="",10^12,OFFSET(CRONOPLE!$F$14,$M19,AN$13)))) -> 1 | AO19: =IF($D19<>"Serviço",0,IF(AND(AUTOEVENTO="Manual",$M19=1),0,IF(OFFSET(CRONOPLE!$F$14,$M19,AO$13)="",10^12,OFFSET(CRONOPLE!$F$14,$M19,AO$13)))) -> 2 | AP19: =IF($D19<>"Serviço",0,IF(AND(AUTOEVENTO="Manual",$M19=1),0,IF(OFFSET(CRONOPLE!$F$14,$M19,AP$13)="",10^12,OFFSET(CRONOPLE!$F$14,$M19,AP$13)))) -> 2 | AQ19: =IF($D19<>"Serviço",0,IF(AND(AUTOEVENTO="Manual",$M19=1),0,IF(OFFSET(CRONOPLE!$F$14,$M19,AQ$13)="",10^12,OFFSET(CRONOPLE!$F$14,$M19,AQ$13)))) -> 3 | AR19: =IF($D19<>"Serviço",0,IF(AND(AUTOEVENTO="Manual",$M19=1),0,IF(OFFSET(CRONOPLE!$F$14,$M19,AR$13)="",10^12,OFFSET(CRONOPLE!$F$14,$M19,AR$13)))) -> 3 | AS19: =IF($D19<>"Serviço",0,IF(AND(AUTOEVENTO="Manual",$M19=1),0,IF(OFFSET(CRONOPLE!$F$14,$M19,AS$13)="",10^12,OFFSET(CRONOPLE!$F$14,$M19,AS$13)))) -> 1000000000000 | AT19: =IF($D19<>"Serviço",0,IF(AND(AUTOEVENTO="Manual",$M19=1),0,IF(OFFSET(CRONOPLE!$F$14,$M19,AT$13)="",10^12,OFFSET(CRONOPLE!$F$14,$M19,AT$13)))) -> 1000000000000 | AU19: =IF($D19<>"Serviço",0,IF(AND(AUTOEVENTO="Manual",$M19=1),0,IF(OFFSET(CRONOPLE!$F$14,$M19,AU$13)="",10^12,OFFSET(CRONOPLE!$F$14,$M19,AU$13)))) -> 1000000000000 | AV19: =IF($D19<>"Serviço",0,IF(AND(AUTOEVENTO="Manual",$M19=1),0,IF(OFFSET(CRONOPLE!$F$14,$M19,AV$13)="",10^12,OFFSET(CRONOPLE!$F$14,$M19,AV$13)))) -> 1000000000000 | AX19: =IF($D19<>"Serviço",0,IF(OR(AND(AUTOEVENTO="Manual",$M19=1),$M19>(ROW(PLE.lastrow)-ROW(PLE.firstrow))),0,IF(OFFSET(PLE!$G$14,$M19,AX$13)="",10^12,OFFSET(PLE!$G$14,$M19,AX$13)))) -> 1000000000000 | AY19: =IF($D19<>"Serviço",0,IF(OR(AND(AUTOEVENTO="Manual",$M19=1),$M19>(ROW(PLE.lastrow)-ROW(PLE.firstrow))),0,IF(OFFSET(PLE!$G$14,$M19,AY$13)="",10^12,OFFSET(PLE!$G$14,$M19,AY$13)))) -> 1000000000000 | AZ19: =IF($D19<>"Serviço",0,IF(OR(AND(AUTOEVENTO="Manual",$M19=1),$M19>(ROW(PLE.lastrow)-ROW(PLE.firstrow))),0,IF(OFFSET(PLE!$G$14,$M19,AZ$13)="",10^12,OFFSET(PLE!$G$14,$M19,AZ$13)))) -> 1000000000000 | BA19: =IF($D19<>"Serviço",0,IF(OR(AND(AUTOEVENTO="Manual",$M19=1),$M19>(ROW(PLE.lastrow)-ROW(PLE.firstrow))),0,IF(OFFSET(PLE!$G$14,$M19,BA$13)="",10^12,OFFSET(PLE!$G$14,$M19,BA$13)))) -> 1000000000000 | BB19: =IF($D19<>"Serviço",0,IF(OR(AND(AUTOEVENTO="Manual",$M19=1),$M19>(ROW(PLE.lastrow)-ROW(PLE.firstrow))),0,IF(OFFSET(PLE!$G$14,$M19,BB$13)="",10^12,OFFSET(PLE!$G$14,$M19,BB$13)))) -> 1000000000000 | BC19: =IF($D19<>"Serviço",0,IF(OR(AND(AUTOEVENTO="Manual",$M19=1),$M19>(ROW(PLE.lastrow)-ROW(PLE.firstrow))),0,IF(OFFSET(PLE!$G$14,$M19,BC$13)="",10^12,OFFSET(PLE!$G$14,$M19,BC$13)))) -> 1000000000000 | BD19: =IF($D19<>"Serviço",0,IF(OR(AND(AUTOEVENTO="Manual",$M19=1),$M19>(ROW(PLE.lastrow)-ROW(PLE.firstrow))),0,IF(OFFSET(PLE!$G$14,$M19,BD$13)="",10^12,OFFSET(PLE!$G$14,$M19,BD$13)))) -> 1000000000000 | BE19: =IF($D19<>"Serviço",0,IF(OR(AND(AUTOEVENTO="Manual",$M19=1),$M19>(ROW(PLE.lastrow)-ROW(PLE.firstrow))),0,IF(OFFSET(PLE!$G$14,$M19,BE$13)="",10^12,OFFSET(PLE!$G$14,$M19,BE$13)))) -> 1000000000000 | BF19: =IF($D19<>"Serviço",0,IF(OR(AND(AUTOEVENTO="Manual",$M19=1),$M19>(ROW(PLE.lastrow)-ROW(PLE.firstrow))),0,IF(OFFSET(PLE!$G$14,$M19,BF$13)="",10^12,OFFSET(PLE!$G$14,$M19,BF$13)))) -> 1000000000000 | BG19: =IF($D19<>"Serviço",0,IF(OR(AND(AUTOEVENTO="Manual",$M19=1),$M19>(ROW(PLE.lastrow)-ROW(PLE.firstrow))),0,IF(OFFSET(PLE!$G$14,$M19,BG$13)="",10^12,OFFSET(PLE!$G$14,$M19,BG$13)))) -> 1000000000000
A20: 0 | B20: =OFFSET(ORÇAMENTO!C$15,ROW(B20)-ROW(B$15),0) -> 2 | C20: =OFFSET(ORÇAMENTO!L$15,ROW(C20)-ROW(C$15),0) -> F | D20: =OFFSET(ORÇAMENTO!N$15,ROW(D20)-ROW(D$15),0) -> Nível 2 | E20: =OFFSET(ORÇAMENTO!O$15,ROW(E20)-ROW(E$15),0) -> 1.2. | F20: =OFFSET(ORÇAMENTO!R$15,ROW(F20)-ROW(F$15),0) -> SINALIZAÇÃO E SEGURANÇA | G20: =IF($D20<>"Serviço","",OFFSET(ORÇAMENTO!S$15,ROW(G20)-ROW(G$15),0)) ->  | H20: =IF($D20<>"Serviço",0,IF(ACOMPANHAMENTO="BM",ROUND(OFFSET(ORÇAMENTO!AJ$15,ROW(H20)-ROW(H$15),0),15-13*ORÇAMENTO!$AF$7),SUMPRODUCT(($Q$12:$AA$12<>"")*ROUND($Q20:$AA20,15-13*ORÇAMENTO!$AF$7)))) -> 0 | L20: . | M20: =IF($D20<>"Serviço","",IF(AUTOEVENTO="manual",$A20,IF(ISERROR(MATCH($A20,$A$15:OFFSET($A20,-1,0),0)),MAX($M$15:OFFSET(M20,-1,0))+1,INDEX($M$15:OFFSET(M20,-1,0),MATCH($A20,$A$15:OFFSET($A20,-1,0),0))))) ->  | N20: =IF($D20<>"Serviço","",IF(AUTOEVENTO="Manual",IF($A20=0,"<-- defina o número do agrupador",OFFSET(EVENTOS!$D$14,$A20,0)),OFFSET($F$15,$A20,0))) ->  | AB20: =IF(AND($D20="Serviço",AB$12<>0,$H20>0,OR(AUTOEVENTO<>"manual",$M20<>1)),ROUND(OFFSET($P20,0,AB$13),15-13*ORÇAMENTO!$AF$7)/$H20*OFFSET(ORÇAMENTO!$X$15,ROW(AB20)-ROW(AB$15),0),0) -> 0 | AC20: =IF(AND($D20="Serviço",AC$12<>0,$H20>0,OR(AUTOEVENTO<>"manual",$M20<>1)),ROUND(OFFSET($P20,0,AC$13),15-13*ORÇAMENTO!$AF$7)/$H20*OFFSET(ORÇAMENTO!$X$15,ROW(AC20)-ROW(AC$15),0),0) -> 0 | AD20: =IF(AND($D20="Serviço",AD$12<>0,$H20>0,OR(AUTOEVENTO<>"manual",$M20<>1)),ROUND(OFFSET($P20,0,AD$13),15-13*ORÇAMENTO!$AF$7)/$H20*OFFSET(ORÇAMENTO!$X$15,ROW(AD20)-ROW(AD$15),0),0) -> 0 | AE20: =IF(AND($D20="Serviço",AE$12<>0,$H20>0,OR(AUTOEVENTO<>"manual",$M20<>1)),ROUND(OFFSET($P20,0,AE$13),15-13*ORÇAMENTO!$AF$7)/$H20*OFFSET(ORÇAMENTO!$X$15,ROW(AE20)-ROW(AE$15),0),0) -> 0 | AF20: =IF(AND($D20="Serviço",AF$12<>0,$H20>0,OR(AUTOEVENTO<>"manual",$M20<>1)),ROUND(OFFSET($P20,0,AF$13),15-13*ORÇAMENTO!$AF$7)/$H20*OFFSET(ORÇAMENTO!$X$15,ROW(AF20)-ROW(AF$15),0),0) -> 0 | AG20: =IF(AND($D20="Serviço",AG$12<>0,$H20>0,OR(AUTOEVENTO<>"manual",$M20<>1)),ROUND(OFFSET($P20,0,AG$13),15-13*ORÇAMENTO!$AF$7)/$H20*OFFSET(ORÇAMENTO!$X$15,ROW(AG20)-ROW(AG$15),0),0) -> 0 | AH20: =IF(AND($D20="Serviço",AH$12<>0,$H20>0,OR(AUTOEVENTO<>"manual",$M20<>1)),ROUND(OFFSET($P20,0,AH$13),15-13*ORÇAMENTO!$AF$7)/$H20*OFFSET(ORÇAMENTO!$X$15,ROW(AH20)-ROW(AH$15),0),0) -> 0 | AI20: =IF(AND($D20="Serviço",AI$12<>0,$H20>0,OR(AUTOEVENTO<>"manual",$M20<>1)),ROUND(OFFSET($P20,0,AI$13),15-13*ORÇAMENTO!$AF$7)/$H20*OFFSET(ORÇAMENTO!$X$15,ROW(AI20)-ROW(AI$15),0),0) -> 0 | AJ20: =IF(AND($D20="Serviço",AJ$12<>0,$H20>0,OR(AUTOEVENTO<>"manual",$M20<>1)),ROUND(OFFSET($P20,0,AJ$13),15-13*ORÇAMENTO!$AF$7)/$H20*OFFSET(ORÇAMENTO!$X$15,ROW(AJ20)-ROW(AJ$15),0),0) -> 0 | AK20: =IF(AND($D20="Serviço",AK$12<>0,$H20>0,OR(AUTOEVENTO<>"manual",$M20<>1)),ROUND(OFFSET($P20,0,AK$13),15-13*ORÇAMENTO!$AF$7)/$H20*OFFSET(ORÇAMENTO!$X$15,ROW(AK20)-ROW(AK$15),0),0) -> 0 | AM20: =IF($D20<>"Serviço",0,IF(AND(AUTOEVENTO="Manual",$M20=1),0,IF(OFFSET(CRONOPLE!$F$14,$M20,AM$13)="",10^12,OFFSET(CRONOPLE!$F$14,$M20,AM$13)))) -> 0 | AN20: =IF($D20<>"Serviço",0,IF(AND(AUTOEVENTO="Manual",$M20=1),0,IF(OFFSET(CRONOPLE!$F$14,$M20,AN$13)="",10^12,OFFSET(CRONOPLE!$F$14,$M20,AN$13)))) -> 0 | AO20: =IF($D20<>"Serviço",0,IF(AND(AUTOEVENTO="Manual",$M20=1),0,IF(OFFSET(CRONOPLE!$F$14,$M20,AO$13)="",10^12,OFFSET(CRONOPLE!$F$14,$M20,AO$13)))) -> 0 | AP20: =IF($D20<>"Serviço",0,IF(AND(AUTOEVENTO="Manual",$M20=1),0,IF(OFFSET(CRONOPLE!$F$14,$M20,AP$13)="",10^12,OFFSET(CRONOPLE!$F$14,$M20,AP$13)))) -> 0 | AQ20: =IF($D20<>"Serviço",0,IF(AND(AUTOEVENTO="Manual",$M20=1),0,IF(OFFSET(CRONOPLE!$F$14,$M20,AQ$13)="",10^12,OFFSET(CRONOPLE!$F$14,$M20,AQ$13)))) -> 0 | AR20: =IF($D20<>"Serviço",0,IF(AND(AUTOEVENTO="Manual",$M20=1),0,IF(OFFSET(CRONOPLE!$F$14,$M20,AR$13)="",10^12,OFFSET(CRONOPLE!$F$14,$M20,AR$13)))) -> 0 | AS20: =IF($D20<>"Serviço",0,IF(AND(AUTOEVENTO="Manual",$M20=1),0,IF(OFFSET(CRONOPLE!$F$14,$M20,AS$13)="",10^12,OFFSET(CRONOPLE!$F$14,$M20,AS$13)))) -> 0 | AT20: =IF($D20<>"Serviço",0,IF(AND(AUTOEVENTO="Manual",$M20=1),0,IF(OFFSET(CRONOPLE!$F$14,$M20,AT$13)="",10^12,OFFSET(CRONOPLE!$F$14,$M20,AT$13)))) -> 0 | AU20: =IF($D20<>"Serviço",0,IF(AND(AUTOEVENTO="Manual",$M20=1),0,IF(OFFSET(CRONOPLE!$F$14,$M20,AU$13)="",10^12,OFFSET(CRONOPLE!$F$14,$M20,AU$13)))) -> 0 | AV20: =IF($D20<>"Serviço",0,IF(AND(AUTOEVENTO="Manual",$M20=1),0,IF(OFFSET(CRONOPLE!$F$14,$M20,AV$13)="",10^12,OFFSET(CRONOPLE!$F$14,$M20,AV$13)))) -> 0 | AX20: =IF($D20<>"Serviço",0,IF(OR(AND(AUTOEVENTO="Manual",$M20=1),$M20>(ROW(PLE.lastrow)-ROW(PLE.firstrow))),0,IF(OFFSET(PLE!$G$14,$M20,AX$13)="",10^12,OFFSET(PLE!$G$14,$M20,AX$13)))) -> 0 | AY20: =IF($D20<>"Serviço",0,IF(OR(AND(AUTOEVENTO="Manual",$M20=1),$M20>(ROW(PLE.lastrow)-ROW(PLE.firstrow))),0,IF(OFFSET(PLE!$G$14,$M20,AY$13)="",10^12,OFFSET(PLE!$G$14,$M20,AY$13)))) -> 0 | AZ20: =IF($D20<>"Serviço",0,IF(OR(AND(AUTOEVENTO="Manual",$M20=1),$M20>(ROW(PLE.lastrow)-ROW(PLE.firstrow))),0,IF(OFFSET(PLE!$G$14,$M20,AZ$13)="",10^12,OFFSET(PLE!$G$14,$M20,AZ$13)))) -> 0 | BA20: =IF($D20<>"Serviço",0,IF(OR(AND(AUTOEVENTO="Manual",$M20=1),$M20>(ROW(PLE.lastrow)-ROW(PLE.firstrow))),0,IF(OFFSET(PLE!$G$14,$M20,BA$13)="",10^12,OFFSET(PLE!$G$14,$M20,BA$13)))) -> 0 | BB20: =IF($D20<>"Serviço",0,IF(OR(AND(AUTOEVENTO="Manual",$M20=1),$M20>(ROW(PLE.lastrow)-ROW(PLE.firstrow))),0,IF(OFFSET(PLE!$G$14,$M20,BB$13)="",10^12,OFFSET(PLE!$G$14,$M20,BB$13)))) -> 0 | BC20: =IF($D20<>"Serviço",0,IF(OR(AND(AUTOEVENTO="Manual",$M20=1),$M20>(ROW(PLE.lastrow)-ROW(PLE.firstrow))),0,IF(OFFSET(PLE!$G$14,$M20,BC$13)="",10^12,OFFSET(PLE!$G$14,$M20,BC$13)))) -> 0 | BD20: =IF($D20<>"Serviço",0,IF(OR(AND(AUTOEVENTO="Manual",$M20=1),$M20>(ROW(PLE.lastrow)-ROW(PLE.firstrow))),0,IF(OFFSET(PLE!$G$14,$M20,BD$13)="",10^12,OFFSET(PLE!$G$14,$M20,BD$13)))) -> 0 | BE20: =IF($D20<>"Serviço",0,IF(OR(AND(AUTOEVENTO="Manual",$M20=1),$M20>(ROW(PLE.lastrow)-ROW(PLE.firstrow))),0,IF(OFFSET(PLE!$G$14,$M20,BE$13)="",10^12,OFFSET(PLE!$G$14,$M20,BE$13)))) -> 0 | BF20: =IF($D20<>"Serviço",0,IF(OR(AND(AUTOEVENTO="Manual",$M20=1),$M20>(ROW(PLE.lastrow)-ROW(PLE.firstrow))),0,IF(OFFSET(PLE!$G$14,$M20,BF$13)="",10^12,OFFSET(PLE!$G$14,$M20,BF$13)))) -> 0 | BG20: =IF($D20<>"Serviço",0,IF(OR(AND(AUTOEVENTO="Manual",$M20=1),$M20>(ROW(PLE.lastrow)-ROW(PLE.firstrow))),0,IF(OFFSET(PLE!$G$14,$M20,BG$13)="",10^12,OFFSET(PLE!$G$14,$M20,BG$13)))) -> 0
A21: 3 | B21: =OFFSET(ORÇAMENTO!C$15,ROW(B21)-ROW(B$15),0) -> S | C21: =OFFSET(ORÇAMENTO!L$15,ROW(C21)-ROW(C$15),0) -> F | D21: =OFFSET(ORÇAMENTO!N$15,ROW(D21)-ROW(D$15),0) -> Serviço | E21: =OFFSET(ORÇAMENTO!O$15,ROW(E21)-ROW(E$15),0) -> 1.2.1. | F21: =OFFSET(ORÇAMENTO!R$15,ROW(F21)-ROW(F$15),0) -> SINALIZAÇÃO COM TELA PLASTICA TIPO TAPUME FIXADA EM CONE PLÁSTICO, INCLUINDO CONE | G21: =IF($D21<>"Serviço","",OFFSET(ORÇAMENTO!S$15,ROW(G21)-ROW(G$15),0)) -> M | H21: =IF($D21<>"Serviço",0,IF(ACOMPANHAMENTO="BM",ROUND(OFFSET(ORÇAMENTO!AJ$15,ROW(H21)-ROW(H$15),0),15-13*ORÇAMENTO!$AF$7),SUMPRODUCT(($Q$12:$AA$12<>"")*ROUND($Q21:$AA21,15-13*ORÇAMENTO!$AF$7)))) -> 31.99 | I21: 213,29*0,15 | K21: 3.SINALIZAÇÃO E SEGURANÇA | L21: . | M21: =IF($D21<>"Serviço","",IF(AUTOEVENTO="manual",$A21,IF(ISERROR(MATCH($A21,$A$15:OFFSET($A21,-1,0),0)),MAX($M$15:OFFSET(M21,-1,0))+1,INDEX($M$15:OFFSET(M21,-1,0),MATCH($A21,$A$15:OFFSET($A21,-1,0),0))))) -> 3 | N21: =IF($D21<>"Serviço","",IF(AUTOEVENTO="Manual",IF($A21=0,"<-- defina o número do agrupador",OFFSET(EVENTOS!$D$14,$A21,0)),OFFSET($F$15,$A21,0))) -> SINALIZAÇÃO E SEGURANÇA | Q21: =Q19*0.15 -> 31.9935 | AB21: =IF(AND($D21="Serviço",AB$12<>0,$H21>0,OR(AUTOEVENTO<>"manual",$M21<>1)),ROUND(OFFSET($P21,0,AB$13),15-13*ORÇAMENTO!$AF$7)/$H21*OFFSET(ORÇAMENTO!$X$15,ROW(AB21)-ROW(AB$15),0),0) -> 427.39 | AC21: =IF(AND($D21="Serviço",AC$12<>0,$H21>0,OR(AUTOEVENTO<>"manual",$M21<>1)),ROUND(OFFSET($P21,0,AC$13),15-13*ORÇAMENTO!$AF$7)/$H21*OFFSET(ORÇAMENTO!$X$15,ROW(AC21)-ROW(AC$15),0),0) -> 0 | AD21: =IF(AND($D21="Serviço",AD$12<>0,$H21>0,OR(AUTOEVENTO<>"manual",$M21<>1)),ROUND(OFFSET($P21,0,AD$13),15-13*ORÇAMENTO!$AF$7)/$H21*OFFSET(ORÇAMENTO!$X$15,ROW(AD21)-ROW(AD$15),0),0) -> 0 | AE21: =IF(AND($D21="Serviço",AE$12<>0,$H21>0,OR(AUTOEVENTO<>"manual",$M21<>1)),ROUND(OFFSET($P21,0,AE$13),15-13*ORÇAMENTO!$AF$7)/$H21*OFFSET(ORÇAMENTO!$X$15,ROW(AE21)-ROW(AE$15),0),0) -> 0 | AF21: =IF(AND($D21="Serviço",AF$12<>0,$H21>0,OR(AUTOEVENTO<>"manual",$M21<>1)),ROUND(OFFSET($P21,0,AF$13),15-13*ORÇAMENTO!$AF$7)/$H21*OFFSET(ORÇAMENTO!$X$15,ROW(AF21)-ROW(AF$15),0),0) -> 0 | AG21: =IF(AND($D21="Serviço",AG$12<>0,$H21>0,OR(AUTOEVENTO<>"manual",$M21<>1)),ROUND(OFFSET($P21,0,AG$13),15-13*ORÇAMENTO!$AF$7)/$H21*OFFSET(ORÇAMENTO!$X$15,ROW(AG21)-ROW(AG$15),0),0) -> 0 | AH21: =IF(AND($D21="Serviço",AH$12<>0,$H21>0,OR(AUTOEVENTO<>"manual",$M21<>1)),ROUND(OFFSET($P21,0,AH$13),15-13*ORÇAMENTO!$AF$7)/$H21*OFFSET(ORÇAMENTO!$X$15,ROW(AH21)-ROW(AH$15),0),0) -> 0 | AI21: =IF(AND($D21="Serviço",AI$12<>0,$H21>0,OR(AUTOEVENTO<>"manual",$M21<>1)),ROUND(OFFSET($P21,0,AI$13),15-13*ORÇAMENTO!$AF$7)/$H21*OFFSET(ORÇAMENTO!$X$15,ROW(AI21)-ROW(AI$15),0),0) -> 0 | AJ21: =IF(AND($D21="Serviço",AJ$12<>0,$H21>0,OR(AUTOEVENTO<>"manual",$M21<>1)),ROUND(OFFSET($P21,0,AJ$13),15-13*ORÇAMENTO!$AF$7)/$H21*OFFSET(ORÇAMENTO!$X$15,ROW(AJ21)-ROW(AJ$15),0),0) -> 0 | AK21: =IF(AND($D21="Serviço",AK$12<>0,$H21>0,OR(AUTOEVENTO<>"manual",$M21<>1)),ROUND(OFFSET($P21,0,AK$13),15-13*ORÇAMENTO!$AF$7)/$H21*OFFSET(ORÇAMENTO!$X$15,ROW(AK21)-ROW(AK$15),0),0) -> 0 | AM21: =IF($D21<>"Serviço",0,IF(AND(AUTOEVENTO="Manual",$M21=1),0,IF(OFFSET(CRONOPLE!$F$14,$M21,AM$13)="",10^12,OFFSET(CRONOPLE!$F$14,$M21,AM$13)))) -> 1 | AN21: =IF($D21<>"Serviço",0,IF(AND(AUTOEVENTO="Manual",$M21=1),0,IF(OFFSET(CRONOPLE!$F$14,$M21,AN$13)="",10^12,OFFSET(CRONOPLE!$F$14,$M21,AN$13)))) -> 1 | AO21: =IF($D21<>"Serviço",0,IF(AND(AUTOEVENTO="Manual",$M21=1),0,IF(OFFSET(CRONOPLE!$F$14,$M21,AO$13)="",10^12,OFFSET(CRONOPLE!$F$14,$M21,AO$13)))) -> 2 | AP21: =IF($D21<>"Serviço",0,IF(AND(AUTOEVENTO="Manual",$M21=1),0,IF(OFFSET(CRONOPLE!$F$14,$M21,AP$13)="",10^12,OFFSET(CRONOPLE!$F$14,$M21,AP$13)))) -> 2 | AQ21: =IF($D21<>"Serviço",0,IF(AND(AUTOEVENTO="Manual",$M21=1),0,IF(OFFSET(CRONOPLE!$F$14,$M21,AQ$13)="",10^12,OFFSET(CRONOPLE!$F$14,$M21,AQ$13)))) -> 3 | AR21: =IF($D21<>"Serviço",0,IF(AND(AUTOEVENTO="Manual",$M21=1),0,IF(OFFSET(CRONOPLE!$F$14,$M21,AR$13)="",10^12,OFFSET(CRONOPLE!$F$14,$M21,AR$13)))) -> 1000000000000 | AS21: =IF($D21<>"Serviço",0,IF(AND(AUTOEVENTO="Manual",$M21=1),0,IF(OFFSET(CRONOPLE!$F$14,$M21,AS$13)="",10^12,OFFSET(CRONOPLE!$F$14,$M21,AS$13)))) -> 1000000000000 | AT21: =IF($D21<>"Serviço",0,IF(AND(AUTOEVENTO="Manual",$M21=1),0,IF(OFFSET(CRONOPLE!$F$14,$M21,AT$13)="",10^12,OFFSET(CRONOPLE!$F$14,$M21,AT$13)))) -> 1000000000000 | AU21: =IF($D21<>"Serviço",0,IF(AND(AUTOEVENTO="Manual",$M21=1),0,IF(OFFSET(CRONOPLE!$F$14,$M21,AU$13)="",10^12,OFFSET(CRONOPLE!$F$14,$M21,AU$13)))) -> 1000000000000 | AV21: =IF($D21<>"Serviço",0,IF(AND(AUTOEVENTO="Manual",$M21=1),0,IF(OFFSET(CRONOPLE!$F$14,$M21,AV$13)="",10^12,OFFSET(CRONOPLE!$F$14,$M21,AV$13)))) -> 1000000000000 | AX21: =IF($D21<>"Serviço",0,IF(OR(AND(AUTOEVENTO="Manual",$M21=1),$M21>(ROW(PLE.lastrow)-ROW(PLE.firstrow))),0,IF(OFFSET(PLE!$G$14,$M21,AX$13)="",10^12,OFFSET(PLE!$G$14,$M21,AX$13)))) -> 1000000000000 | AY21: =IF($D21<>"Serviço",0,IF(OR(AND(AUTOEVENTO="Manual",$M21=1),$M21>(ROW(PLE.lastrow)-ROW(PLE.firstrow))),0,IF(OFFSET(PLE!$G$14,$M21,AY$13)="",10^12,OFFSET(PLE!$G$14,$M21,AY$13)))) -> 1000000000000 | AZ21: =IF($D21<>"Serviço",0,IF(OR(AND(AUTOEVENTO="Manual",$M21=1),$M21>(ROW(PLE.lastrow)-ROW(PLE.firstrow))),0,IF(OFFSET(PLE!$G$14,$M21,AZ$13)="",10^12,OFFSET(PLE!$G$14,$M21,AZ$13)))) -> 1000000000000 | BA21: =IF($D21<>"Serviço",0,IF(OR(AND(AUTOEVENTO="Manual",$M21=1),$M21>(ROW(PLE.lastrow)-ROW(PLE.firstrow))),0,IF(OFFSET(PLE!$G$14,$M21,BA$13)="",10^12,OFFSET(PLE!$G$14,$M21,BA$13)))) -> 1000000000000 | BB21: =IF($D21<>"Serviço",0,IF(OR(AND(AUTOEVENTO="Manual",$M21=1),$M21>(ROW(PLE.lastrow)-ROW(PLE.firstrow))),0,IF(OFFSET(PLE!$G$14,$M21,BB$13)="",10^12,OFFSET(PLE!$G$14,$M21,BB$13)))) -> 1000000000000 | BC21: =IF($D21<>"Serviço",0,IF(OR(AND(AUTOEVENTO="Manual",$M21=1),$M21>(ROW(PLE.lastrow)-ROW(PLE.firstrow))),0,IF(OFFSET(PLE!$G$14,$M21,BC$13)="",10^12,OFFSET(PLE!$G$14,$M21,BC$13)))) -> 1000000000000 | BD21: =IF($D21<>"Serviço",0,IF(OR(AND(AUTOEVENTO="Manual",$M21=1),$M21>(ROW(PLE.lastrow)-ROW(PLE.firstrow))),0,IF(OFFSET(PLE!$G$14,$M21,BD$13)="",10^12,OFFSET(PLE!$G$14,$M21,BD$13)))) -> 1000000000000 | BE21: =IF($D21<>"Serviço",0,IF(OR(AND(AUTOEVENTO="Manual",$M21=1),$M21>(ROW(PLE.lastrow)-ROW(PLE.firstrow))),0,IF(OFFSET(PLE!$G$14,$M21,BE$13)="",10^12,OFFSET(PLE!$G$14,$M21,BE$13)))) -> 1000000000000 | BF21: =IF($D21<>"Serviço",0,IF(OR(AND(AUTOEVENTO="Manual",$M21=1),$M21>(ROW(PLE.lastrow)-ROW(PLE.firstrow))),0,IF(OFFSET(PLE!$G$14,$M21,BF$13)="",10^12,OFFSET(PLE!$G$14,$M21,BF$13)))) -> 1000000000000 | BG21: =IF($D21<>"Serviço",0,IF(OR(AND(AUTOEVENTO="Manual",$M21=1),$M21>(ROW(PLE.lastrow)-ROW(PLE.firstrow))),0,IF(OFFSET(PLE!$G$14,$M21,BG$13)="",10^12,OFFSET(PLE!$G$14,$M21,BG$13)))) -> 1000000000000
A22: 0 | B22: =OFFSET(ORÇAMENTO!C$15,ROW(B22)-ROW(B$15),0) -> 2 | C22: =OFFSET(ORÇAMENTO!L$15,ROW(C22)-ROW(C$15),0) -> F | D22: =OFFSET(ORÇAMENTO!N$15,ROW(D22)-ROW(D$15),0) -> Nível 2 | E22: =OFFSET(ORÇAMENTO!O$15,ROW(E22)-ROW(E$15),0) -> 1.3. | F22: =OFFSET(ORÇAMENTO!R$15,ROW(F22)-ROW(F$15),0) -> DEMOLIÇÕES E REMOÇÕES | G22: =IF($D22<>"Serviço","",OFFSET(ORÇAMENTO!S$15,ROW(G22)-ROW(G$15),0)) ->  | H22: =IF($D22<>"Serviço",0,IF(ACOMPANHAMENTO="BM",ROUND(OFFSET(ORÇAMENTO!AJ$15,ROW(H22)-ROW(H$15),0),15-13*ORÇAMENTO!$AF$7),SUMPRODUCT(($Q$12:$AA$12<>"")*ROUND($Q22:$AA22,15-13*ORÇAMENTO!$AF$7)))) -> 0 | L22: . | M22: =IF($D22<>"Serviço","",IF(AUTOEVENTO="manual",$A22,IF(ISERROR(MATCH($A22,$A$15:OFFSET($A22,-1,0),0)),MAX($M$15:OFFSET(M22,-1,0))+1,INDEX($M$15:OFFSET(M22,-1,0),MATCH($A22,$A$15:OFFSET($A22,-1,0),0))))) ->  | N22: =IF($D22<>"Serviço","",IF(AUTOEVENTO="Manual",IF($A22=0,"<-- defina o número do agrupador",OFFSET(EVENTOS!$D$14,$A22,0)),OFFSET($F$15,$A22,0))) ->  | AB22: =IF(AND($D22="Serviço",AB$12<>0,$H22>0,OR(AUTOEVENTO<>"manual",$M22<>1)),ROUND(OFFSET($P22,0,AB$13),15-13*ORÇAMENTO!$AF$7)/$H22*OFFSET(ORÇAMENTO!$X$15,ROW(AB22)-ROW(AB$15),0),0) -> 0 | AC22: =IF(AND($D22="Serviço",AC$12<>0,$H22>0,OR(AUTOEVENTO<>"manual",$M22<>1)),ROUND(OFFSET($P22,0,AC$13),15-13*ORÇAMENTO!$AF$7)/$H22*OFFSET(ORÇAMENTO!$X$15,ROW(AC22)-ROW(AC$15),0),0) -> 0 | AD22: =IF(AND($D22="Serviço",AD$12<>0,$H22>0,OR(AUTOEVENTO<>"manual",$M22<>1)),ROUND(OFFSET($P22,0,AD$13),15-13*ORÇAMENTO!$AF$7)/$H22*OFFSET(ORÇAMENTO!$X$15,ROW(AD22)-ROW(AD$15),0),0) -> 0 | AE22: =IF(AND($D22="Serviço",AE$12<>0,$H22>0,OR(AUTOEVENTO<>"manual",$M22<>1)),ROUND(OFFSET($P22,0,AE$13),15-13*ORÇAMENTO!$AF$7)/$H22*OFFSET(ORÇAMENTO!$X$15,ROW(AE22)-ROW(AE$15),0),0) -> 0 | AF22: =IF(AND($D22="Serviço",AF$12<>0,$H22>0,OR(AUTOEVENTO<>"manual",$M22<>1)),ROUND(OFFSET($P22,0,AF$13),15-13*ORÇAMENTO!$AF$7)/$H22*OFFSET(ORÇAMENTO!$X$15,ROW(AF22)-ROW(AF$15),0),0) -> 0 | AG22: =IF(AND($D22="Serviço",AG$12<>0,$H22>0,OR(AUTOEVENTO<>"manual",$M22<>1)),ROUND(OFFSET($P22,0,AG$13),15-13*ORÇAMENTO!$AF$7)/$H22*OFFSET(ORÇAMENTO!$X$15,ROW(AG22)-ROW(AG$15),0),0) -> 0 | AH22: =IF(AND($D22="Serviço",AH$12<>0,$H22>0,OR(AUTOEVENTO<>"manual",$M22<>1)),ROUND(OFFSET($P22,0,AH$13),15-13*ORÇAMENTO!$AF$7)/$H22*OFFSET(ORÇAMENTO!$X$15,ROW(AH22)-ROW(AH$15),0),0) -> 0 | AI22: =IF(AND($D22="Serviço",AI$12<>0,$H22>0,OR(AUTOEVENTO<>"manual",$M22<>1)),ROUND(OFFSET($P22,0,AI$13),15-13*ORÇAMENTO!$AF$7)/$H22*OFFSET(ORÇAMENTO!$X$15,ROW(AI22)-ROW(AI$15),0),0) -> 0 | AJ22: =IF(AND($D22="Serviço",AJ$12<>0,$H22>0,OR(AUTOEVENTO<>"manual",$M22<>1)),ROUND(OFFSET($P22,0,AJ$13),15-13*ORÇAMENTO!$AF$7)/$H22*OFFSET(ORÇAMENTO!$X$15,ROW(AJ22)-ROW(AJ$15),0),0) -> 0 | AK22: =IF(AND($D22="Serviço",AK$12<>0,$H22>0,OR(AUTOEVENTO<>"manual",$M22<>1)),ROUND(OFFSET($P22,0,AK$13),15-13*ORÇAMENTO!$AF$7)/$H22*OFFSET(ORÇAMENTO!$X$15,ROW(AK22)-ROW(AK$15),0),0) -> 0 | AM22: =IF($D22<>"Serviço",0,IF(AND(AUTOEVENTO="Manual",$M22=1),0,IF(OFFSET(CRONOPLE!$F$14,$M22,AM$13)="",10^12,OFFSET(CRONOPLE!$F$14,$M22,AM$13)))) -> 0 | AN22: =IF($D22<>"Serviço",0,IF(AND(AUTOEVENTO="Manual",$M22=1),0,IF(OFFSET(CRONOPLE!$F$14,$M22,AN$13)="",10^12,OFFSET(CRONOPLE!$F$14,$M22,AN$13)))) -> 0 | AO22: =IF($D22<>"Serviço",0,IF(AND(AUTOEVENTO="Manual",$M22=1),0,IF(OFFSET(CRONOPLE!$F$14,$M22,AO$13)="",10^12,OFFSET(CRONOPLE!$F$14,$M22,AO$13)))) -> 0 | AP22: =IF($D22<>"Serviço",0,IF(AND(AUTOEVENTO="Manual",$M22=1),0,IF(OFFSET(CRONOPLE!$F$14,$M22,AP$13)="",10^12,OFFSET(CRONOPLE!$F$14,$M22,AP$13)))) -> 0 | AQ22: =IF($D22<>"Serviço",0,IF(AND(AUTOEVENTO="Manual",$M22=1),0,IF(OFFSET(CRONOPLE!$F$14,$M22,AQ$13)="",10^12,OFFSET(CRONOPLE!$F$14,$M22,AQ$13)))) -> 0 | AR22: =IF($D22<>"Serviço",0,IF(AND(AUTOEVENTO="Manual",$M22=1),0,IF(OFFSET(CRONOPLE!$F$14,$M22,AR$13)="",10^12,OFFSET(CRONOPLE!$F$14,$M22,AR$13)))) -> 0 | AS22: =IF($D22<>"Serviço",0,IF(AND(AUTOEVENTO="Manual",$M22=1),0,IF(OFFSET(CRONOPLE!$F$14,$M22,AS$13)="",10^12,OFFSET(CRONOPLE!$F$14,$M22,AS$13)))) -> 0 | AT22: =IF($D22<>"Serviço",0,IF(AND(AUTOEVENTO="Manual",$M22=1),0,IF(OFFSET(CRONOPLE!$F$14,$M22,AT$13)="",10^12,OFFSET(CRONOPLE!$F$14,$M22,AT$13)))) -> 0 | AU22: =IF($D22<>"Serviço",0,IF(AND(AUTOEVENTO="Manual",$M22=1),0,IF(OFFSET(CRONOPLE!$F$14,$M22,AU$13)="",10^12,OFFSET(CRONOPLE!$F$14,$M22,AU$13)))) -> 0 | AV22: =IF($D22<>"Serviço",0,IF(AND(AUTOEVENTO="Manual",$M22=1),0,IF(OFFSET(CRONOPLE!$F$14,$M22,AV$13)="",10^12,OFFSET(CRONOPLE!$F$14,$M22,AV$13)))) -> 0 | AX22: =IF($D22<>"Serviço",0,IF(OR(AND(AUTOEVENTO="Manual",$M22=1),$M22>(ROW(PLE.lastrow)-ROW(PLE.firstrow))),0,IF(OFFSET(PLE!$G$14,$M22,AX$13)="",10^12,OFFSET(PLE!$G$14,$M22,AX$13)))) -> 0 | AY22: =IF($D22<>"Serviço",0,IF(OR(AND(AUTOEVENTO="Manual",$M22=1),$M22>(ROW(PLE.lastrow)-ROW(PLE.firstrow))),0,IF(OFFSET(PLE!$G$14,$M22,AY$13)="",10^12,OFFSET(PLE!$G$14,$M22,AY$13)))) -> 0 | AZ22: =IF($D22<>"Serviço",0,IF(OR(AND(AUTOEVENTO="Manual",$M22=1),$M22>(ROW(PLE.lastrow)-ROW(PLE.firstrow))),0,IF(OFFSET(PLE!$G$14,$M22,AZ$13)="",10^12,OFFSET(PLE!$G$14,$M22,AZ$13)))) -> 0 | BA22: =IF($D22<>"Serviço",0,IF(OR(AND(AUTOEVENTO="Manual",$M22=1),$M22>(ROW(PLE.lastrow)-ROW(PLE.firstrow))),0,IF(OFFSET(PLE!$G$14,$M22,BA$13)="",10^12,OFFSET(PLE!$G$14,$M22,BA$13)))) -> 0 | BB22: =IF($D22<>"Serviço",0,IF(OR(AND(AUTOEVENTO="Manual",$M22=1),$M22>(ROW(PLE.lastrow)-ROW(PLE.firstrow))),0,IF(OFFSET(PLE!$G$14,$M22,BB$13)="",10^12,OFFSET(PLE!$G$14,$M22,BB$13)))) -> 0 | BC22: =IF($D22<>"Serviço",0,IF(OR(AND(AUTOEVENTO="Manual",$M22=1),$M22>(ROW(PLE.lastrow)-ROW(PLE.firstrow))),0,IF(OFFSET(PLE!$G$14,$M22,BC$13)="",10^12,OFFSET(PLE!$G$14,$M22,BC$13)))) -> 0 | BD22: =IF($D22<>"Serviço",0,IF(OR(AND(AUTOEVENTO="Manual",$M22=1),$M22>(ROW(PLE.lastrow)-ROW(PLE.firstrow))),0,IF(OFFSET(PLE!$G$14,$M22,BD$13)="",10^12,OFFSET(PLE!$G$14,$M22,BD$13)))) -> 0 | BE22: =IF($D22<>"Serviço",0,IF(OR(AND(AUTOEVENTO="Manual",$M22=1),$M22>(ROW(PLE.lastrow)-ROW(PLE.firstrow))),0,IF(OFFSET(PLE!$G$14,$M22,BE$13)="",10^12,OFFSET(PLE!$G$14,$M22,BE$13)))) -> 0 | BF22: =IF($D22<>"Serviço",0,IF(OR(AND(AUTOEVENTO="Manual",$M22=1),$M22>(ROW(PLE.lastrow)-ROW(PLE.firstrow))),0,IF(OFFSET(PLE!$G$14,$M22,BF$13)="",10^12,OFFSET(PLE!$G$14,$M22,BF$13)))) -> 0 | BG22: =IF($D22<>"Serviço",0,IF(OR(AND(AUTOEVENTO="Manual",$M22=1),$M22>(ROW(PLE.lastrow)-ROW(PLE.firstrow))),0,IF(OFFSET(PLE!$G$14,$M22,BG$13)="",10^12,OFFSET(PLE!$G$14,$M22,BG$13)))) -> 0
A23: 4 | B23: =OFFSET(ORÇAMENTO!C$15,ROW(B23)-ROW(B$15),0) -> S | C23: =OFFSET(ORÇAMENTO!L$15,ROW(C23)-ROW(C$15),0) -> F | D23: =OFFSET(ORÇAMENTO!N$15,ROW(D23)-ROW(D$15),0) -> Serviço | E23: =OFFSET(ORÇAMENTO!O$15,ROW(E23)-ROW(E$15),0) -> 1.3.1. | F23: =OFFSET(ORÇAMENTO!R$15,ROW(F23)-ROW(F$15),0) -> DEMOLIÇÃO DE PASSEIOS E ESTRUTURAS DE CONCRETO, DE FORMA MECANIZADA COM MARTELETE, SEM REAPROVEITAMENTO | G23: =IF($D23<>"Serviço","",OFFSET(ORÇAMENTO!S$15,ROW(G23)-ROW(G$15),0)) -> M3 | H23: =IF($D23<>"Serviço",0,IF(ACOMPANHAMENTO="BM",ROUND(OFFSET(ORÇAMENTO!AJ$15,ROW(H23)-ROW(H$15),0),15-13*ORÇAMENTO!$AF$7),SUMPRODUCT(($Q$12:$AA$12<>"")*ROUND($Q23:$AA23,15-13*ORÇAMENTO!$AF$7)))) -> 13.77 | K23: 4.DEMOLIÇÕES E REMOÇÕES | L23: . | M23: =IF($D23<>"Serviço","",IF(AUTOEVENTO="manual",$A23,IF(ISERROR(MATCH($A23,$A$15:OFFSET($A23,-1,0),0)),MAX($M$15:OFFSET(M23,-1,0))+1,INDEX($M$15:OFFSET(M23,-1,0),MATCH($A23,$A$15:OFFSET($A23,-1,0),0))))) -> 4 | N23: =IF($D23<>"Serviço","",IF(AUTOEVENTO="Manual",IF($A23=0,"<-- defina o número do agrupador",OFFSET(EVENTOS!$D$14,$A23,0)),OFFSET($F$15,$A23,0))) -> DEMOLIÇÕES E REMOÇÕES | Q23: =9.42+(43.5*0.1) -> 13.77 | AB23: =IF(AND($D23="Serviço",AB$12<>0,$H23>0,OR(AUTOEVENTO<>"manual",$M23<>1)),ROUND(OFFSET($P23,0,AB$13),15-13*ORÇAMENTO!$AF$7)/$H23*OFFSET(ORÇAMENTO!$X$15,ROW(AB23)-ROW(AB$15),0),0) -> 1926.84 | AC23: =IF(AND($D23="Serviço",AC$12<>0,$H23>0,OR(AUTOEVENTO<>"manual",$M23<>1)),ROUND(OFFSET($P23,0,AC$13),15-13*ORÇAMENTO!$AF$7)/$H23*OFFSET(ORÇAMENTO!$X$15,ROW(AC23)-ROW(AC$15),0),0) -> 0 | AD23: =IF(AND($D23="Serviço",AD$12<>0,$H23>0,OR(AUTOEVENTO<>"manual",$M23<>1)),ROUND(OFFSET($P23,0,AD$13),15-13*ORÇAMENTO!$AF$7)/$H23*OFFSET(ORÇAMENTO!$X$15,ROW(AD23)-ROW(AD$15),0),0) -> 0 | AE23: =IF(AND($D23="Serviço",AE$12<>0,$H23>0,OR(AUTOEVENTO<>"manual",$M23<>1)),ROUND(OFFSET($P23,0,AE$13),15-13*ORÇAMENTO!$AF$7)/$H23*OFFSET(ORÇAMENTO!$X$15,ROW(AE23)-ROW(AE$15),0),0) -> 0 | AF23: =IF(AND($D23="Serviço",AF$12<>0,$H23>0,OR(AUTOEVENTO<>"manual",$M23<>1)),ROUND(OFFSET($P23,0,AF$13),15-13*ORÇAMENTO!$AF$7)/$H23*OFFSET(ORÇAMENTO!$X$15,ROW(AF23)-ROW(AF$15),0),0) -> 0 | AG23: =IF(AND($D23="Serviço",AG$12<>0,$H23>0,OR(AUTOEVENTO<>"manual",$M23<>1)),ROUND(OFFSET($P23,0,AG$13),15-13*ORÇAMENTO!$AF$7)/$H23*OFFSET(ORÇAMENTO!$X$15,ROW(AG23)-ROW(AG$15),0),0) -> 0 | AH23: =IF(AND($D23="Serviço",AH$12<>0,$H23>0,OR(AUTOEVENTO<>"manual",$M23<>1)),ROUND(OFFSET($P23,0,AH$13),15-13*ORÇAMENTO!$AF$7)/$H23*OFFSET(ORÇAMENTO!$X$15,ROW(AH23)-ROW(AH$15),0),0) -> 0 | AI23: =IF(AND($D23="Serviço",AI$12<>0,$H23>0,OR(AUTOEVENTO<>"manual",$M23<>1)),ROUND(OFFSET($P23,0,AI$13),15-13*ORÇAMENTO!$AF$7)/$H23*OFFSET(ORÇAMENTO!$X$15,ROW(AI23)-ROW(AI$15),0),0) -> 0 | AJ23: =IF(AND($D23="Serviço",AJ$12<>0,$H23>0,OR(AUTOEVENTO<>"manual",$M23<>1)),ROUND(OFFSET($P23,0,AJ$13),15-13*ORÇAMENTO!$AF$7)/$H23*OFFSET(ORÇAMENTO!$X$15,ROW(AJ23)-ROW(AJ$15),0),0) -> 0 | AK23: =IF(AND($D23="Serviço",AK$12<>0,$H23>0,OR(AUTOEVENTO<>"manual",$M23<>1)),ROUND(OFFSET($P23,0,AK$13),15-13*ORÇAMENTO!$AF$7)/$H23*OFFSET(ORÇAMENTO!$X$15,ROW(AK23)-ROW(AK$15),0),0) -> 0 | AM23: =IF($D23<>"Serviço",0,IF(AND(AUTOEVENTO="Manual",$M23=1),0,IF(OFFSET(CRONOPLE!$F$14,$M23,AM$13)="",10^12,OFFSET(CRONOPLE!$F$14,$M23,AM$13)))) -> 2 | AN23: =IF($D23<>"Serviço",0,IF(AND(AUTOEVENTO="Manual",$M23=1),0,IF(OFFSET(CRONOPLE!$F$14,$M23,AN$13)="",10^12,OFFSET(CRONOPLE!$F$14,$M23,AN$13)))) -> 2 | AO23: =IF($D23<>"Serviço",0,IF(AND(AUTOEVENTO="Manual",$M23=1),0,IF(OFFSET(CRONOPLE!$F$14,$M23,AO$13)="",10^12,OFFSET(CRONOPLE!$F$14,$M23,AO$13)))) -> 2 | AP23: =IF($D23<>"Serviço",0,IF(AND(AUTOEVENTO="Manual",$M23=1),0,IF(OFFSET(CRONOPLE!$F$14,$M23,AP$13)="",10^12,OFFSET(CRONOPLE!$F$14,$M23,AP$13)))) -> 3 | AQ23: =IF($D23<>"Serviço",0,IF(AND(AUTOEVENTO="Manual",$M23=1),0,IF(OFFSET(CRONOPLE!$F$14,$M23,AQ$13)="",10^12,OFFSET(CRONOPLE!$F$14,$M23,AQ$13)))) -> 3 | AR23: =IF($D23<>"Serviço",0,IF(AND(AUTOEVENTO="Manual",$M23=1),0,IF(OFFSET(CRONOPLE!$F$14,$M23,AR$13)="",10^12,OFFSET(CRONOPLE!$F$14,$M23,AR$13)))) -> 4 | AS23: =IF($D23<>"Serviço",0,IF(AND(AUTOEVENTO="Manual",$M23=1),0,IF(OFFSET(CRONOPLE!$F$14,$M23,AS$13)="",10^12,OFFSET(CRONOPLE!$F$14,$M23,AS$13)))) -> 1000000000000 | AT23: =IF($D23<>"Serviço",0,IF(AND(AUTOEVENTO="Manual",$M23=1),0,IF(OFFSET(CRONOPLE!$F$14,$M23,AT$13)="",10^12,OFFSET(CRONOPLE!$F$14,$M23,AT$13)))) -> 1000000000000 | AU23: =IF($D23<>"Serviço",0,IF(AND(AUTOEVENTO="Manual",$M23=1),0,IF(OFFSET(CRONOPLE!$F$14,$M23,AU$13)="",10^12,OFFSET(CRONOPLE!$F$14,$M23,AU$13)))) -> 1000000000000 | AV23: =IF($D23<>"Serviço",0,IF(AND(AUTOEVENTO="Manual",$M23=1),0,IF(OFFSET(CRONOPLE!$F$14,$M23,AV$13)="",10^12,OFFSET(CRONOPLE!$F$14,$M23,AV$13)))) -> 1000000000000 | AX23: =IF($D23<>"Serviço",0,IF(OR(AND(AUTOEVENTO="Manual",$M23=1),$M23>(ROW(PLE.lastrow)-ROW(PLE.firstrow))),0,IF(OFFSET(PLE!$G$14,$M23,AX$13)="",10^12,OFFSET(PLE!$G$14,$M23,AX$13)))) -> 1000000000000 | AY23: =IF($D23<>"Serviço",0,IF(OR(AND(AUTOEVENTO="Manual",$M23=1),$M23>(ROW(PLE.lastrow)-ROW(PLE.firstrow))),0,IF(OFFSET(PLE!$G$14,$M23,AY$13)="",10^12,OFFSET(PLE!$G$14,$M23,AY$13)))) -> 1000000000000 | AZ23: =IF($D23<>"Serviço",0,IF(OR(AND(AUTOEVENTO="Manual",$M23=1),$M23>(ROW(PLE.lastrow)-ROW(PLE.firstrow))),0,IF(OFFSET(PLE!$G$14,$M23,AZ$13)="",10^12,OFFSET(PLE!$G$14,$M23,AZ$13)))) -> 1000000000000 | BA23: =IF($D23<>"Serviço",0,IF(OR(AND(AUTOEVENTO="Manual",$M23=1),$M23>(ROW(PLE.lastrow)-ROW(PLE.firstrow))),0,IF(OFFSET(PLE!$G$14,$M23,BA$13)="",10^12,OFFSET(PLE!$G$14,$M23,BA$13)))) -> 1000000000000 | BB23: =IF($D23<>"Serviço",0,IF(OR(AND(AUTOEVENTO="Manual",$M23=1),$M23>(ROW(PLE.lastrow)-ROW(PLE.firstrow))),0,IF(OFFSET(PLE!$G$14,$M23,BB$13)="",10^12,OFFSET(PLE!$G$14,$M23,BB$13)))) -> 1000000000000 | BC23: =IF($D23<>"Serviço",0,IF(OR(AND(AUTOEVENTO="Manual",$M23=1),$M23>(ROW(PLE.lastrow)-ROW(PLE.firstrow))),0,IF(OFFSET(PLE!$G$14,$M23,BC$13)="",10^12,OFFSET(PLE!$G$14,$M23,BC$13)))) -> 1000000000000 | BD23: =IF($D23<>"Serviço",0,IF(OR(AND(AUTOEVENTO="Manual",$M23=1),$M23>(ROW(PLE.lastrow)-ROW(PLE.firstrow))),0,IF(OFFSET(PLE!$G$14,$M23,BD$13)="",10^12,OFFSET(PLE!$G$14,$M23,BD$13)))) -> 1000000000000 | BE23: =IF($D23<>"Serviço",0,IF(OR(AND(AUTOEVENTO="Manual",$M23=1),$M23>(ROW(PLE.lastrow)-ROW(PLE.firstrow))),0,IF(OFFSET(PLE!$G$14,$M23,BE$13)="",10^12,OFFSET(PLE!$G$14,$M23,BE$13)))) -> 1000000000000 | BF23: =IF($D23<>"Serviço",0,IF(OR(AND(AUTOEVENTO="Manual",$M23=1),$M23>(ROW(PLE.lastrow)-ROW(PLE.firstrow))),0,IF(OFFSET(PLE!$G$14,$M23,BF$13)="",10^12,OFFSET(PLE!$G$14,$M23,BF$13)))) -> 1000000000000 | BG23: =IF($D23<>"Serviço",0,IF(OR(AND(AUTOEVENTO="Manual",$M23=1),$M23>(ROW(PLE.lastrow)-ROW(PLE.firstrow))),0,IF(OFFSET(PLE!$G$14,$M23,BG$13)="",10^12,OFFSET(PLE!$G$14,$M23,BG$13)))) -> 1000000000000
A24: 4 | B24: =OFFSET(ORÇAMENTO!C$15,ROW(B24)-ROW(B$15),0) -> S | C24: =OFFSET(ORÇAMENTO!L$15,ROW(C24)-ROW(C$15),0) -> F | D24: =OFFSET(ORÇAMENTO!N$15,ROW(D24)-ROW(D$15),0) -> Serviço | E24: =OFFSET(ORÇAMENTO!O$15,ROW(E24)-ROW(E$15),0) -> 1.3.2. | F24: =OFFSET(ORÇAMENTO!R$15,ROW(F24)-ROW(F$15),0) -> CARGA, MANOBRA E DESCARGA DE ENTULHO EM CAMINHÃO BASCULANTE 10 M³ - CARGA COM ESCAVADEIRA HIDRÁULICA (CAÇAMBA DE 0,80 M³ / 111 HP) E DESCARGA LIVRE (UNIDADE: M3). AF_07/2020 | G24: =IF($D24<>"Serviço","",OFFSET(ORÇAMENTO!S$15,ROW(G24)-ROW(G$15),0)) -> M3 | H24: =IF($D24<>"Serviço",0,IF(ACOMPANHAMENTO="BM",ROUND(OFFSET(ORÇAMENTO!AJ$15,ROW(H24)-ROW(H$15),0),15-13*ORÇAMENTO!$AF$7),SUMPRODUCT(($Q$12:$AA$12<>"")*ROUND($Q24:$AA24,15-13*ORÇAMENTO!$AF$7)))) -> 13.77 | K24: 4.DEMOLIÇÕES E REMOÇÕES | L24: . | M24: =IF($D24<>"Serviço","",IF(AUTOEVENTO="manual",$A24,IF(ISERROR(MATCH($A24,$A$15:OFFSET($A24,-1,0),0)),MAX($M$15:OFFSET(M24,-1,0))+1,INDEX($M$15:OFFSET(M24,-1,0),MATCH($A24,$A$15:OFFSET($A24,-1,0),0))))) -> 4 | N24: =IF($D24<>"Serviço","",IF(AUTOEVENTO="Manual",IF($A24=0,"<-- defina o número do agrupador",OFFSET(EVENTOS!$D$14,$A24,0)),OFFSET($F$15,$A24,0))) -> DEMOLIÇÕES E REMOÇÕES | Q24: =Q23 -> 13.77 | AB24: =IF(AND($D24="Serviço",AB$12<>0,$H24>0,OR(AUTOEVENTO<>"manual",$M24<>1)),ROUND(OFFSET($P24,0,AB$13),15-13*ORÇAMENTO!$AF$7)/$H24*OFFSET(ORÇAMENTO!$X$15,ROW(AB24)-ROW(AB$15),0),0) -> 138.66 | AC24: =IF(AND($D24="Serviço",AC$12<>0,$H24>0,OR(AUTOEVENTO<>"manual",$M24<>1)),ROUND(OFFSET($P24,0,AC$13),15-13*ORÇAMENTO!$AF$7)/$H24*OFFSET(ORÇAMENTO!$X$15,ROW(AC24)-ROW(AC$15),0),0) -> 0 | AD24: =IF(AND($D24="Serviço",AD$12<>0,$H24>0,OR(AUTOEVENTO<>"manual",$M24<>1)),ROUND(OFFSET($P24,0,AD$13),15-13*ORÇAMENTO!$AF$7)/$H24*OFFSET(ORÇAMENTO!$X$15,ROW(AD24)-ROW(AD$15),0),0) -> 0 | AE24: =IF(AND($D24="Serviço",AE$12<>0,$H24>0,OR(AUTOEVENTO<>"manual",$M24<>1)),ROUND(OFFSET($P24,0,AE$13),15-13*ORÇAMENTO!$AF$7)/$H24*OFFSET(ORÇAMENTO!$X$15,ROW(AE24)-ROW(AE$15),0),0) -> 0 | AF24: =IF(AND($D24="Serviço",AF$12<>0,$H24>0,OR(AUTOEVENTO<>"manual",$M24<>1)),ROUND(OFFSET($P24,0,AF$13),15-13*ORÇAMENTO!$AF$7)/$H24*OFFSET(ORÇAMENTO!$X$15,ROW(AF24)-ROW(AF$15),0),0) -> 0 | AG24: =IF(AND($D24="Serviço",AG$12<>0,$H24>0,OR(AUTOEVENTO<>"manual",$M24<>1)),ROUND(OFFSET($P24,0,AG$13),15-13*ORÇAMENTO!$AF$7)/$H24*OFFSET(ORÇAMENTO!$X$15,ROW(AG24)-ROW(AG$15),0),0) -> 0 | AH24: =IF(AND($D24="Serviço",AH$12<>0,$H24>0,OR(AUTOEVENTO<>"manual",$M24<>1)),ROUND(OFFSET($P24,0,AH$13),15-13*ORÇAMENTO!$AF$7)/$H24*OFFSET(ORÇAMENTO!$X$15,ROW(AH24)-ROW(AH$15),0),0) -> 0 | AI24: =IF(AND($D24="Serviço",AI$12<>0,$H24>0,OR(AUTOEVENTO<>"manual",$M24<>1)),ROUND(OFFSET($P24,0,AI$13),15-13*ORÇAMENTO!$AF$7)/$H24*OFFSET(ORÇAMENTO!$X$15,ROW(AI24)-ROW(AI$15),0),0) -> 0 | AJ24: =IF(AND($D24="Serviço",AJ$12<>0,$H24>0,OR(AUTOEVENTO<>"manual",$M24<>1)),ROUND(OFFSET($P24,0,AJ$13),15-13*ORÇAMENTO!$AF$7)/$H24*OFFSET(ORÇAMENTO!$X$15,ROW(AJ24)-ROW(AJ$15),0),0) -> 0 | AK24: =IF(AND($D24="Serviço",AK$12<>0,$H24>0,OR(AUTOEVENTO<>"manual",$M24<>1)),ROUND(OFFSET($P24,0,AK$13),15-13*ORÇAMENTO!$AF$7)/$H24*OFFSET(ORÇAMENTO!$X$15,ROW(AK24)-ROW(AK$15),0),0) -> 0 | AM24: =IF($D24<>"Serviço",0,IF(AND(AUTOEVENTO="Manual",$M24=1),0,IF(OFFSET(CRONOPLE!$F$14,$M24,AM$13)="",10^12,OFFSET(CRONOPLE!$F$14,$M24,AM$13)))) -> 2 | AN24: =IF($D24<>"Serviço",0,IF(AND(AUTOEVENTO="Manual",$M24=1),0,IF(OFFSET(CRONOPLE!$F$14,$M24,AN$13)="",10^12,OFFSET(CRONOPLE!$F$14,$M24,AN$13)))) -> 2 | AO24: =IF($D24<>"Serviço",0,IF(AND(AUTOEVENTO="Manual",$M24=1),0,IF(OFFSET(CRONOPLE!$F$14,$M24,AO$13)="",10^12,OFFSET(CRONOPLE!$F$14,$M24,AO$13)))) -> 2 | AP24: =IF($D24<>"Serviço",0,IF(AND(AUTOEVENTO="Manual",$M24=1),0,IF(OFFSET(CRONOPLE!$F$14,$M24,AP$13)="",10^12,OFFSET(CRONOPLE!$F$14,$M24,AP$13)))) -> 3 | AQ24: =IF($D24<>"Serviço",0,IF(AND(AUTOEVENTO="Manual",$M24=1),0,IF(OFFSET(CRONOPLE!$F$14,$M24,AQ$13)="",10^12,OFFSET(CRONOPLE!$F$14,$M24,AQ$13)))) -> 3 | AR24: =IF($D24<>"Serviço",0,IF(AND(AUTOEVENTO="Manual",$M24=1),0,IF(OFFSET(CRONOPLE!$F$14,$M24,AR$13)="",10^12,OFFSET(CRONOPLE!$F$14,$M24,AR$13)))) -> 4 | AS24: =IF($D24<>"Serviço",0,IF(AND(AUTOEVENTO="Manual",$M24=1),0,IF(OFFSET(CRONOPLE!$F$14,$M24,AS$13)="",10^12,OFFSET(CRONOPLE!$F$14,$M24,AS$13)))) -> 1000000000000 | AT24: =IF($D24<>"Serviço",0,IF(AND(AUTOEVENTO="Manual",$M24=1),0,IF(OFFSET(CRONOPLE!$F$14,$M24,AT$13)="",10^12,OFFSET(CRONOPLE!$F$14,$M24,AT$13)))) -> 1000000000000 | AU24: =IF($D24<>"Serviço",0,IF(AND(AUTOEVENTO="Manual",$M24=1),0,IF(OFFSET(CRONOPLE!$F$14,$M24,AU$13)="",10^12,OFFSET(CRONOPLE!$F$14,$M24,AU$13)))) -> 1000000000000 | AV24: =IF($D24<>"Serviço",0,IF(AND(AUTOEVENTO="Manual",$M24=1),0,IF(OFFSET(CRONOPLE!$F$14,$M24,AV$13)="",10^12,OFFSET(CRONOPLE!$F$14,$M24,AV$13)))) -> 1000000000000 | AX24: =IF($D24<>"Serviço",0,IF(OR(AND(AUTOEVENTO="Manual",$M24=1),$M24>(ROW(PLE.lastrow)-ROW(PLE.firstrow))),0,IF(OFFSET(PLE!$G$14,$M24,AX$13)="",10^12,OFFSET(PLE!$G$14,$M24,AX$13)))) -> 1000000000000 | AY24: =IF($D24<>"Serviço",0,IF(OR(AND(AUTOEVENTO="Manual",$M24=1),$M24>(ROW(PLE.lastrow)-ROW(PLE.firstrow))),0,IF(OFFSET(PLE!$G$14,$M24,AY$13)="",10^12,OFFSET(PLE!$G$14,$M24,AY$13)))) -> 1000000000000 | AZ24: =IF($D24<>"Serviço",0,IF(OR(AND(AUTOEVENTO="Manual",$M24=1),$M24>(ROW(PLE.lastrow)-ROW(PLE.firstrow))),0,IF(OFFSET(PLE!$G$14,$M24,AZ$13)="",10^12,OFFSET(PLE!$G$14,$M24,AZ$13)))) -> 1000000000000 | BA24: =IF($D24<>"Serviço",0,IF(OR(AND(AUTOEVENTO="Manual",$M24=1),$M24>(ROW(PLE.lastrow)-ROW(PLE.firstrow))),0,IF(OFFSET(PLE!$G$14,$M24,BA$13)="",10^12,OFFSET(PLE!$G$14,$M24,BA$13)))) -> 1000000000000 | BB24: =IF($D24<>"Serviço",0,IF(OR(AND(AUTOEVENTO="Manual",$M24=1),$M24>(ROW(PLE.lastrow)-ROW(PLE.firstrow))),0,IF(OFFSET(PLE!$G$14,$M24,BB$13)="",10^12,OFFSET(PLE!$G$14,$M24,BB$13)))) -> 1000000000000 | BC24: =IF($D24<>"Serviço",0,IF(OR(AND(AUTOEVENTO="Manual",$M24=1),$M24>(ROW(PLE.lastrow)-ROW(PLE.firstrow))),0,IF(OFFSET(PLE!$G$14,$M24,BC$13)="",10^12,OFFSET(PLE!$G$14,$M24,BC$13)))) -> 1000000000000 | BD24: =IF($D24<>"Serviço",0,IF(OR(AND(AUTOEVENTO="Manual",$M24=1),$M24>(ROW(PLE.lastrow)-ROW(PLE.firstrow))),0,IF(OFFSET(PLE!$G$14,$M24,BD$13)="",10^12,OFFSET(PLE!$G$14,$M24,BD$13)))) -> 1000000000000 | BE24: =IF($D24<>"Serviço",0,IF(OR(AND(AUTOEVENTO="Manual",$M24=1),$M24>(ROW(PLE.lastrow)-ROW(PLE.firstrow))),0,IF(OFFSET(PLE!$G$14,$M24,BE$13)="",10^12,OFFSET(PLE!$G$14,$M24,BE$13)))) -> 1000000000000 | BF24: =IF($D24<>"Serviço",0,IF(OR(AND(AUTOEVENTO="Manual",$M24=1),$M24>(ROW(PLE.lastrow)-ROW(PLE.firstrow))),0,IF(OFFSET(PLE!$G$14,$M24,BF$13)="",10^12,OFFSET(PLE!$G$14,$M24,BF$13)))) -> 1000000000000 | BG24: =IF($D24<>"Serviço",0,IF(OR(AND(AUTOEVENTO="Manual",$M24=1),$M24>(ROW(PLE.lastrow)-ROW(PLE.firstrow))),0,IF(OFFSET(PLE!$G$14,$M24,BG$13)="",10^12,OFFSET(PLE!$G$14,$M24,BG$13)))) -> 1000000000000
A25: 4 | B25: =OFFSET(ORÇAMENTO!C$15,ROW(B25)-ROW(B$15),0) -> S | C25: =OFFSET(ORÇAMENTO!L$15,ROW(C25)-ROW(C$15),0) -> F | D25: =OFFSET(ORÇAMENTO!N$15,ROW(D25)-ROW(D$15),0) -> Serviço | E25: =OFFSET(ORÇAMENTO!O$15,ROW(E25)-ROW(E$15),0) -> 1.3.3. | F25: =OFFSET(ORÇAMENTO!R$15,ROW(F25)-ROW(F$15),0) -> TRANSPORTE COM CAMINHÃO BASCULANTE DE 10 M³, EM VIA URBANA PAVIMENTADA, DMT ATÉ 30 KM (UNIDADE: M3XKM). AF_07/2020 | G25: =IF($D25<>"Serviço","",OFFSET(ORÇAMENTO!S$15,ROW(G25)-ROW(G$15),0)) -> M3XKM | H25: =IF($D25<>"Serviço",0,IF(ACOMPANHAMENTO="BM",ROUND(OFFSET(ORÇAMENTO!AJ$15,ROW(H25)-ROW(H$15),0),15-13*ORÇAMENTO!$AF$7),SUMPRODUCT(($Q$12:$AA$12<>"")*ROUND($Q25:$AA25,15-13*ORÇAMENTO!$AF$7)))) -> 27.54 | I25: 13,77*2 | K25: 4.DEMOLIÇÕES E REMOÇÕES | L25: . | M25: =IF($D25<>"Serviço","",IF(AUTOEVENTO="manual",$A25,IF(ISERROR(MATCH($A25,$A$15:OFFSET($A25,-1,0),0)),MAX($M$15:OFFSET(M25,-1,0))+1,INDEX($M$15:OFFSET(M25,-1,0),MATCH($A25,$A$15:OFFSET($A25,-1,0),0))))) -> 4 | N25: =IF($D25<>"Serviço","",IF(AUTOEVENTO="Manual",IF($A25=0,"<-- defina o número do agrupador",OFFSET(EVENTOS!$D$14,$A25,0)),OFFSET($F$15,$A25,0))) -> DEMOLIÇÕES E REMOÇÕES | Q25: =Q24*2 -> 27.54 | AB25: =IF(AND($D25="Serviço",AB$12<>0,$H25>0,OR(AUTOEVENTO<>"manual",$M25<>1)),ROUND(OFFSET($P25,0,AB$13),15-13*ORÇAMENTO!$AF$7)/$H25*OFFSET(ORÇAMENTO!$X$15,ROW(AB25)-ROW(AB$15),0),0) -> 76.29 | AC25: =IF(AND($D25="Serviço",AC$12<>0,$H25>0,OR(AUTOEVENTO<>"manual",$M25<>1)),ROUND(OFFSET($P25,0,AC$13),15-13*ORÇAMENTO!$AF$7)/$H25*OFFSET(ORÇAMENTO!$X$15,ROW(AC25)-ROW(AC$15),0),0) -> 0 | AD25: =IF(AND($D25="Serviço",AD$12<>0,$H25>0,OR(AUTOEVENTO<>"manual",$M25<>1)),ROUND(OFFSET($P25,0,AD$13),15-13*ORÇAMENTO!$AF$7)/$H25*OFFSET(ORÇAMENTO!$X$15,ROW(AD25)-ROW(AD$15),0),0) -> 0 | AE25: =IF(AND($D25="Serviço",AE$12<>0,$H25>0,OR(AUTOEVENTO<>"manual",$M25<>1)),ROUND(OFFSET($P25,0,AE$13),15-13*ORÇAMENTO!$AF$7)/$H25*OFFSET(ORÇAMENTO!$X$15,ROW(AE25)-ROW(AE$15),0),0) -> 0 | AF25: =IF(AND($D25="Serviço",AF$12<>0,$H25>0,OR(AUTOEVENTO<>"manual",$M25<>1)),ROUND(OFFSET($P25,0,AF$13),15-13*ORÇAMENTO!$AF$7)/$H25*OFFSET(ORÇAMENTO!$X$15,ROW(AF25)-ROW(AF$15),0),0) -> 0 | AG25: =IF(AND($D25="Serviço",AG$12<>0,$H25>0,OR(AUTOEVENTO<>"manual",$M25<>1)),ROUND(OFFSET($P25,0,AG$13),15-13*ORÇAMENTO!$AF$7)/$H25*OFFSET(ORÇAMENTO!$X$15,ROW(AG25)-ROW(AG$15),0),0) -> 0 | AH25: =IF(AND($D25="Serviço",AH$12<>0,$H25>0,OR(AUTOEVENTO<>"manual",$M25<>1)),ROUND(OFFSET($P25,0,AH$13),15-13*ORÇAMENTO!$AF$7)/$H25*OFFSET(ORÇAMENTO!$X$15,ROW(AH25)-ROW(AH$15),0),0) -> 0 | AI25: =IF(AND($D25="Serviço",AI$12<>0,$H25>0,OR(AUTOEVENTO<>"manual",$M25<>1)),ROUND(OFFSET($P25,0,AI$13),15-13*ORÇAMENTO!$AF$7)/$H25*OFFSET(ORÇAMENTO!$X$15,ROW(AI25)-ROW(AI$15),0),0) -> 0 | AJ25: =IF(AND($D25="Serviço",AJ$12<>0,$H25>0,OR(AUTOEVENTO<>"manual",$M25<>1)),ROUND(OFFSET($P25,0,AJ$13),15-13*ORÇAMENTO!$AF$7)/$H25*OFFSET(ORÇAMENTO!$X$15,ROW(AJ25)-ROW(AJ$15),0),0) -> 0 | AK25: =IF(AND($D25="Serviço",AK$12<>0,$H25>0,OR(AUTOEVENTO<>"manual",$M25<>1)),ROUND(OFFSET($P25,0,AK$13),15-13*ORÇAMENTO!$AF$7)/$H25*OFFSET(ORÇAMENTO!$X$15,ROW(AK25)-ROW(AK$15),0),0) -> 0 | AM25: =IF($D25<>"Serviço",0,IF(AND(AUTOEVENTO="Manual",$M25=1),0,IF(OFFSET(CRONOPLE!$F$14,$M25,AM$13)="",10^12,OFFSET(CRONOPLE!$F$14,$M25,AM$13)))) -> 2 | AN25: =IF($D25<>"Serviço",0,IF(AND(AUTOEVENTO="Manual",$M25=1),0,IF(OFFSET(CRONOPLE!$F$14,$M25,AN$13)="",10^12,OFFSET(CRONOPLE!$F$14,$M25,AN$13)))) -> 2 | AO25: =IF($D25<>"Serviço",0,IF(AND(AUTOEVENTO="Manual",$M25=1),0,IF(OFFSET(CRONOPLE!$F$14,$M25,AO$13)="",10^12,OFFSET(CRONOPLE!$F$14,$M25,AO$13)))) -> 2 | AP25: =IF($D25<>"Serviço",0,IF(AND(AUTOEVENTO="Manual",$M25=1),0,IF(OFFSET(CRONOPLE!$F$14,$M25,AP$13)="",10^12,OFFSET(CRONOPLE!$F$14,$M25,AP$13)))) -> 3 | AQ25: =IF($D25<>"Serviço",0,IF(AND(AUTOEVENTO="Manual",$M25=1),0,IF(OFFSET(CRONOPLE!$F$14,$M25,AQ$13)="",10^12,OFFSET(CRONOPLE!$F$14,$M25,AQ$13)))) -> 3 | AR25: =IF($D25<>"Serviço",0,IF(AND(AUTOEVENTO="Manual",$M25=1),0,IF(OFFSET(CRONOPLE!$F$14,$M25,AR$13)="",10^12,OFFSET(CRONOPLE!$F$14,$M25,AR$13)))) -> 4 | AS25: =IF($D25<>"Serviço",0,IF(AND(AUTOEVENTO="Manual",$M25=1),0,IF(OFFSET(CRONOPLE!$F$14,$M25,AS$13)="",10^12,OFFSET(CRONOPLE!$F$14,$M25,AS$13)))) -> 1000000000000 | AT25: =IF($D25<>"Serviço",0,IF(AND(AUTOEVENTO="Manual",$M25=1),0,IF(OFFSET(CRONOPLE!$F$14,$M25,AT$13)="",10^12,OFFSET(CRONOPLE!$F$14,$M25,AT$13)))) -> 1000000000000 | AU25: =IF($D25<>"Serviço",0,IF(AND(AUTOEVENTO="Manual",$M25=1),0,IF(OFFSET(CRONOPLE!$F$14,$M25,AU$13)="",10^12,OFFSET(CRONOPLE!$F$14,$M25,AU$13)))) -> 1000000000000 | AV25: =IF($D25<>"Serviço",0,IF(AND(AUTOEVENTO="Manual",$M25=1),0,IF(OFFSET(CRONOPLE!$F$14,$M25,AV$13)="",10^12,OFFSET(CRONOPLE!$F$14,$M25,AV$13)))) -> 1000000000000 | AX25: =IF($D25<>"Serviço",0,IF(OR(AND(AUTOEVENTO="Manual",$M25=1),$M25>(ROW(PLE.lastrow)-ROW(PLE.firstrow))),0,IF(OFFSET(PLE!$G$14,$M25,AX$13)="",10^12,OFFSET(PLE!$G$14,$M25,AX$13)))) -> 1000000000000 | AY25: =IF($D25<>"Serviço",0,IF(OR(AND(AUTOEVENTO="Manual",$M25=1),$M25>(ROW(PLE.lastrow)-ROW(PLE.firstrow))),0,IF(OFFSET(PLE!$G$14,$M25,AY$13)="",10^12,OFFSET(PLE!$G$14,$M25,AY$13)))) -> 1000000000000 | AZ25: =IF($D25<>"Serviço",0,IF(OR(AND(AUTOEVENTO="Manual",$M25=1),$M25>(ROW(PLE.lastrow)-ROW(PLE.firstrow))),0,IF(OFFSET(PLE!$G$14,$M25,AZ$13)="",10^12,OFFSET(PLE!$G$14,$M25,AZ$13)))) -> 1000000000000 | BA25: =IF($D25<>"Serviço",0,IF(OR(AND(AUTOEVENTO="Manual",$M25=1),$M25>(ROW(PLE.lastrow)-ROW(PLE.firstrow))),0,IF(OFFSET(PLE!$G$14,$M25,BA$13)="",10^12,OFFSET(PLE!$G$14,$M25,BA$13)))) -> 1000000000000 | BB25: =IF($D25<>"Serviço",0,IF(OR(AND(AUTOEVENTO="Manual",$M25=1),$M25>(ROW(PLE.lastrow)-ROW(PLE.firstrow))),0,IF(OFFSET(PLE!$G$14,$M25,BB$13)="",10^12,OFFSET(PLE!$G$14,$M25,BB$13)))) -> 1000000000000 | BC25: =IF($D25<>"Serviço",0,IF(OR(AND(AUTOEVENTO="Manual",$M25=1),$M25>(ROW(PLE.lastrow)-ROW(PLE.firstrow))),0,IF(OFFSET(PLE!$G$14,$M25,BC$13)="",10^12,OFFSET(PLE!$G$14,$M25,BC$13)))) -> 1000000000000 | BD25: =IF($D25<>"Serviço",0,IF(OR(AND(AUTOEVENTO="Manual",$M25=1),$M25>(ROW(PLE.lastrow)-ROW(PLE.firstrow))),0,IF(OFFSET(PLE!$G$14,$M25,BD$13)="",10^12,OFFSET(PLE!$G$14,$M25,BD$13)))) -> 1000000000000 | BE25: =IF($D25<>"Serviço",0,IF(OR(AND(AUTOEVENTO="Manual",$M25=1),$M25>(ROW(PLE.lastrow)-ROW(PLE.firstrow))),0,IF(OFFSET(PLE!$G$14,$M25,BE$13)="",10^12,OFFSET(PLE!$G$14,$M25,BE$13)))) -> 1000000000000 | BF25: =IF($D25<>"Serviço",0,IF(OR(AND(AUTOEVENTO="Manual",$M25=1),$M25>(ROW(PLE.lastrow)-ROW(PLE.firstrow))),0,IF(OFFSET(PLE!$G$14,$M25,BF$13)="",10^12,OFFSET(PLE!$G$14,$M25,BF$13)))) -> 1000000000000 | BG25: =IF($D25<>"Serviço",0,IF(OR(AND(AUTOEVENTO="Manual",$M25=1),$M25>(ROW(PLE.lastrow)-ROW(PLE.firstrow))),0,IF(OFFSET(PLE!$G$14,$M25,BG$13)="",10^12,OFFSET(PLE!$G$14,$M25,BG$13)))) -> 1000000000000
A26: 0 | B26: =OFFSET(ORÇAMENTO!C$15,ROW(B26)-ROW(B$15),0) -> 2 | C26: =OFFSET(ORÇAMENTO!L$15,ROW(C26)-ROW(C$15),0) -> F | D26: =OFFSET(ORÇAMENTO!N$15,ROW(D26)-ROW(D$15),0) -> Nível 2 | E26: =OFFSET(ORÇAMENTO!O$15,ROW(E26)-ROW(E$15),0) -> 1.4. | F26: =OFFSET(ORÇAMENTO!R$15,ROW(F26)-ROW(F$15),0) -> ESCAVAÇÕES E MOVIMENTAÇÕES DE TERRA | G26: =IF($D26<>"Serviço","",OFFSET(ORÇAMENTO!S$15,ROW(G26)-ROW(G$15),0)) ->  | H26: =IF($D26<>"Serviço",0,IF(ACOMPANHAMENTO="BM",ROUND(OFFSET(ORÇAMENTO!AJ$15,ROW(H26)-ROW(H$15),0),15-13*ORÇAMENTO!$AF$7),SUMPRODUCT(($Q$12:$AA$12<>"")*ROUND($Q26:$AA26,15-13*ORÇAMENTO!$AF$7)))) -> 0 | L26: . | M26: =IF($D26<>"Serviço","",IF(AUTOEVENTO="manual",$A26,IF(ISERROR(MATCH($A26,$A$15:OFFSET($A26,-1,0),0)),MAX($M$15:OFFSET(M26,-1,0))+1,INDEX($M$15:OFFSET(M26,-1,0),MATCH($A26,$A$15:OFFSET($A26,-1,0),0))))) ->  | N26: =IF($D26<>"Serviço","",IF(AUTOEVENTO="Manual",IF($A26=0,"<-- defina o número do agrupador",OFFSET(EVENTOS!$D$14,$A26,0)),OFFSET($F$15,$A26,0))) ->  | AB26: =IF(AND($D26="Serviço",AB$12<>0,$H26>0,OR(AUTOEVENTO<>"manual",$M26<>1)),ROUND(OFFSET($P26,0,AB$13),15-13*ORÇAMENTO!$AF$7)/$H26*OFFSET(ORÇAMENTO!$X$15,ROW(AB26)-ROW(AB$15),0),0) -> 0 | AC26: =IF(AND($D26="Serviço",AC$12<>0,$H26>0,OR(AUTOEVENTO<>"manual",$M26<>1)),ROUND(OFFSET($P26,0,AC$13),15-13*ORÇAMENTO!$AF$7)/$H26*OFFSET(ORÇAMENTO!$X$15,ROW(AC26)-ROW(AC$15),0),0) -> 0 | AD26: =IF(AND($D26="Serviço",AD$12<>0,$H26>0,OR(AUTOEVENTO<>"manual",$M26<>1)),ROUND(OFFSET($P26,0,AD$13),15-13*ORÇAMENTO!$AF$7)/$H26*OFFSET(ORÇAMENTO!$X$15,ROW(AD26)-ROW(AD$15),0),0) -> 0 | AE26: =IF(AND($D26="Serviço",AE$12<>0,$H26>0,OR(AUTOEVENTO<>"manual",$M26<>1)),ROUND(OFFSET($P26,0,AE$13),15-13*ORÇAMENTO!$AF$7)/$H26*OFFSET(ORÇAMENTO!$X$15,ROW(AE26)-ROW(AE$15),0),0) -> 0 | AF26: =IF(AND($D26="Serviço",AF$12<>0,$H26>0,OR(AUTOEVENTO<>"manual",$M26<>1)),ROUND(OFFSET($P26,0,AF$13),15-13*ORÇAMENTO!$AF$7)/$H26*OFFSET(ORÇAMENTO!$X$15,ROW(AF26)-ROW(AF$15),0),0) -> 0 | AG26: =IF(AND($D26="Serviço",AG$12<>0,$H26>0,OR(AUTOEVENTO<>"manual",$M26<>1)),ROUND(OFFSET($P26,0,AG$13),15-13*ORÇAMENTO!$AF$7)/$H26*OFFSET(ORÇAMENTO!$X$15,ROW(AG26)-ROW(AG$15),0),0) -> 0 | AH26: =IF(AND($D26="Serviço",AH$12<>0,$H26>0,OR(AUTOEVENTO<>"manual",$M26<>1)),ROUND(OFFSET($P26,0,AH$13),15-13*ORÇAMENTO!$AF$7)/$H26*OFFSET(ORÇAMENTO!$X$15,ROW(AH26)-ROW(AH$15),0),0) -> 0 | AI26: =IF(AND($D26="Serviço",AI$12<>0,$H26>0,OR(AUTOEVENTO<>"manual",$M26<>1)),ROUND(OFFSET($P26,0,AI$13),15-13*ORÇAMENTO!$AF$7)/$H26*OFFSET(ORÇAMENTO!$X$15,ROW(AI26)-ROW(AI$15),0),0) -> 0 | AJ26: =IF(AND($D26="Serviço",AJ$12<>0,$H26>0,OR(AUTOEVENTO<>"manual",$M26<>1)),ROUND(OFFSET($P26,0,AJ$13),15-13*ORÇAMENTO!$AF$7)/$H26*OFFSET(ORÇAMENTO!$X$15,ROW(AJ26)-ROW(AJ$15),0),0) -> 0 | AK26: =IF(AND($D26="Serviço",AK$12<>0,$H26>0,OR(AUTOEVENTO<>"manual",$M26<>1)),ROUND(OFFSET($P26,0,AK$13),15-13*ORÇAMENTO!$AF$7)/$H26*OFFSET(ORÇAMENTO!$X$15,ROW(AK26)-ROW(AK$15),0),0) -> 0 | AM26: =IF($D26<>"Serviço",0,IF(AND(AUTOEVENTO="Manual",$M26=1),0,IF(OFFSET(CRONOPLE!$F$14,$M26,AM$13)="",10^12,OFFSET(CRONOPLE!$F$14,$M26,AM$13)))) -> 0 | AN26: =IF($D26<>"Serviço",0,IF(AND(AUTOEVENTO="Manual",$M26=1),0,IF(OFFSET(CRONOPLE!$F$14,$M26,AN$13)="",10^12,OFFSET(CRONOPLE!$F$14,$M26,AN$13)))) -> 0 | AO26: =IF($D26<>"Serviço",0,IF(AND(AUTOEVENTO="Manual",$M26=1),0,IF(OFFSET(CRONOPLE!$F$14,$M26,AO$13)="",10^12,OFFSET(CRONOPLE!$F$14,$M26,AO$13)))) -> 0 | AP26: =IF($D26<>"Serviço",0,IF(AND(AUTOEVENTO="Manual",$M26=1),0,IF(OFFSET(CRONOPLE!$F$14,$M26,AP$13)="",10^12,OFFSET(CRONOPLE!$F$14,$M26,AP$13)))) -> 0 | AQ26: =IF($D26<>"Serviço",0,IF(AND(AUTOEVENTO="Manual",$M26=1),0,IF(OFFSET(CRONOPLE!$F$14,$M26,AQ$13)="",10^12,OFFSET(CRONOPLE!$F$14,$M26,AQ$13)))) -> 0 | AR26: =IF($D26<>"Serviço",0,IF(AND(AUTOEVENTO="Manual",$M26=1),0,IF(OFFSET(CRONOPLE!$F$14,$M26,AR$13)="",10^12,OFFSET(CRONOPLE!$F$14,$M26,AR$13)))) -> 0 | AS26: =IF($D26<>"Serviço",0,IF(AND(AUTOEVENTO="Manual",$M26=1),0,IF(OFFSET(CRONOPLE!$F$14,$M26,AS$13)="",10^12,OFFSET(CRONOPLE!$F$14,$M26,AS$13)))) -> 0 | AT26: =IF($D26<>"Serviço",0,IF(AND(AUTOEVENTO="Manual",$M26=1),0,IF(OFFSET(CRONOPLE!$F$14,$M26,AT$13)="",10^12,OFFSET(CRONOPLE!$F$14,$M26,AT$13)))) -> 0 | AU26: =IF($D26<>"Serviço",0,IF(AND(AUTOEVENTO="Manual",$M26=1),0,IF(OFFSET(CRONOPLE!$F$14,$M26,AU$13)="",10^12,OFFSET(CRONOPLE!$F$14,$M26,AU$13)))) -> 0 | AV26: =IF($D26<>"Serviço",0,IF(AND(AUTOEVENTO="Manual",$M26=1),0,IF(OFFSET(CRONOPLE!$F$14,$M26,AV$13)="",10^12,OFFSET(CRONOPLE!$F$14,$M26,AV$13)))) -> 0 | AX26: =IF($D26<>"Serviço",0,IF(OR(AND(AUTOEVENTO="Manual",$M26=1),$M26>(ROW(PLE.lastrow)-ROW(PLE.firstrow))),0,IF(OFFSET(PLE!$G$14,$M26,AX$13)="",10^12,OFFSET(PLE!$G$14,$M26,AX$13)))) -> 0 | AY26: =IF($D26<>"Serviço",0,IF(OR(AND(AUTOEVENTO="Manual",$M26=1),$M26>(ROW(PLE.lastrow)-ROW(PLE.firstrow))),0,IF(OFFSET(PLE!$G$14,$M26,AY$13)="",10^12,OFFSET(PLE!$G$14,$M26,AY$13)))) -> 0 | AZ26: =IF($D26<>"Serviço",0,IF(OR(AND(AUTOEVENTO="Manual",$M26=1),$M26>(ROW(PLE.lastrow)-ROW(PLE.firstrow))),0,IF(OFFSET(PLE!$G$14,$M26,AZ$13)="",10^12,OFFSET(PLE!$G$14,$M26,AZ$13)))) -> 0 | BA26: =IF($D26<>"Serviço",0,IF(OR(AND(AUTOEVENTO="Manual",$M26=1),$M26>(ROW(PLE.lastrow)-ROW(PLE.firstrow))),0,IF(OFFSET(PLE!$G$14,$M26,BA$13)="",10^12,OFFSET(PLE!$G$14,$M26,BA$13)))) -> 0 | BB26: =IF($D26<>"Serviço",0,IF(OR(AND(AUTOEVENTO="Manual",$M26=1),$M26>(ROW(PLE.lastrow)-ROW(PLE.firstrow))),0,IF(OFFSET(PLE!$G$14,$M26,BB$13)="",10^12,OFFSET(PLE!$G$14,$M26,BB$13)))) -> 0 | BC26: =IF($D26<>"Serviço",0,IF(OR(AND(AUTOEVENTO="Manual",$M26=1),$M26>(ROW(PLE.lastrow)-ROW(PLE.firstrow))),0,IF(OFFSET(PLE!$G$14,$M26,BC$13)="",10^12,OFFSET(PLE!$G$14,$M26,BC$13)))) -> 0 | BD26: =IF($D26<>"Serviço",0,IF(OR(AND(AUTOEVENTO="Manual",$M26=1),$M26>(ROW(PLE.lastrow)-ROW(PLE.firstrow))),0,IF(OFFSET(PLE!$G$14,$M26,BD$13)="",10^12,OFFSET(PLE!$G$14,$M26,BD$13)))) -> 0 | BE26: =IF($D26<>"Serviço",0,IF(OR(AND(AUTOEVENTO="Manual",$M26=1),$M26>(ROW(PLE.lastrow)-ROW(PLE.firstrow))),0,IF(OFFSET(PLE!$G$14,$M26,BE$13)="",10^12,OFFSET(PLE!$G$14,$M26,BE$13)))) -> 0 | BF26: =IF($D26<>"Serviço",0,IF(OR(AND(AUTOEVENTO="Manual",$M26=1),$M26>(ROW(PLE.lastrow)-ROW(PLE.firstrow))),0,IF(OFFSET(PLE!$G$14,$M26,BF$13)="",10^12,OFFSET(PLE!$G$14,$M26,BF$13)))) -> 0 | BG26: =IF($D26<>"Serviço",0,IF(OR(AND(AUTOEVENTO="Manual",$M26=1),$M26>(ROW(PLE.lastrow)-ROW(PLE.firstrow))),0,IF(OFFSET(PLE!$G$14,$M26,BG$13)="",10^12,OFFSET(PLE!$G$14,$M26,BG$13)))) -> 0
A27: 5 | B27: =OFFSET(ORÇAMENTO!C$15,ROW(B27)-ROW(B$15),0) -> S | C27: =OFFSET(ORÇAMENTO!L$15,ROW(C27)-ROW(C$15),0) -> F | D27: =OFFSET(ORÇAMENTO!N$15,ROW(D27)-ROW(D$15),0) -> Serviço | E27: =OFFSET(ORÇAMENTO!O$15,ROW(E27)-ROW(E$15),0) -> 1.4.1. | F27: =OFFSET(ORÇAMENTO!R$15,ROW(F27)-ROW(F$15),0) -> ESCAVAÇÃO HORIZONTAL EM SOLO DE 1A CATEGORIA COM TRATOR DE ESTEIRAS (170HP/LÂMINA: 5,20M3). AF_07/2020 | G27: =IF($D27<>"Serviço","",OFFSET(ORÇAMENTO!S$15,ROW(G27)-ROW(G$15),0)) -> M3 | H27: =IF($D27<>"Serviço",0,IF(ACOMPANHAMENTO="BM",ROUND(OFFSET(ORÇAMENTO!AJ$15,ROW(H27)-ROW(H$15),0),15-13*ORÇAMENTO!$AF$7),SUMPRODUCT(($Q$12:$AA$12<>"")*ROUND($Q27:$AA27,15-13*ORÇAMENTO!$AF$7)))) -> 747.74 | I27: 2136,40*0,35 | K27: 5.ESCAVAÇÕES E MOVIMENTAÇÕES DE TERRA | L27: . | M27: =IF($D27<>"Serviço","",IF(AUTOEVENTO="manual",$A27,IF(ISERROR(MATCH($A27,$A$15:OFFSET($A27,-1,0),0)),MAX($M$15:OFFSET(M27,-1,0))+1,INDEX($M$15:OFFSET(M27,-1,0),MATCH($A27,$A$15:OFFSET($A27,-1,0),0))))) -> 5 | N27: =IF($D27<>"Serviço","",IF(AUTOEVENTO="Manual",IF($A27=0,"<-- defina o número do agrupador",OFFSET(EVENTOS!$D$14,$A27,0)),OFFSET($F$15,$A27,0))) -> ESCAVAÇÕES E MOVIMENTAÇÕES DE TERRA | Q27: =Q34*0.35 -> 747.74 | AB27: =IF(AND($D27="Serviço",AB$12<>0,$H27>0,OR(AUTOEVENTO<>"manual",$M27<>1)),ROUND(OFFSET($P27,0,AB$13),15-13*ORÇAMENTO!$AF$7)/$H27*OFFSET(ORÇAMENTO!$X$15,ROW(AB27)-ROW(AB$15),0),0) -> 1951.6 | AC27: =IF(AND($D27="Serviço",AC$12<>0,$H27>0,OR(AUTOEVENTO<>"manual",$M27<>1)),ROUND(OFFSET($P27,0,AC$13),15-13*ORÇAMENTO!$AF$7)/$H27*OFFSET(ORÇAMENTO!$X$15,ROW(AC27)-ROW(AC$15),0),0) -> 0 | AD27: =IF(AND($D27="Serviço",AD$12<>0,$H27>0,OR(AUTOEVENTO<>"manual",$M27<>1)),ROUND(OFFSET($P27,0,AD$13),15-13*ORÇAMENTO!$AF$7)/$H27*OFFSET(ORÇAMENTO!$X$15,ROW(AD27)-ROW(AD$15),0),0) -> 0 | AE27: =IF(AND($D27="Serviço",AE$12<>0,$H27>0,OR(AUTOEVENTO<>"manual",$M27<>1)),ROUND(OFFSET($P27,0,AE$13),15-13*ORÇAMENTO!$AF$7)/$H27*OFFSET(ORÇAMENTO!$X$15,ROW(AE27)-ROW(AE$15),0),0) -> 0 | AF27: =IF(AND($D27="Serviço",AF$12<>0,$H27>0,OR(AUTOEVENTO<>"manual",$M27<>1)),ROUND(OFFSET($P27,0,AF$13),15-13*ORÇAMENTO!$AF$7)/$H27*OFFSET(ORÇAMENTO!$X$15,ROW(AF27)-ROW(AF$15),0),0) -> 0 | AG27: =IF(AND($D27="Serviço",AG$12<>0,$H27>0,OR(AUTOEVENTO<>"manual",$M27<>1)),ROUND(OFFSET($P27,0,AG$13),15-13*ORÇAMENTO!$AF$7)/$H27*OFFSET(ORÇAMENTO!$X$15,ROW(AG27)-ROW(AG$15),0),0) -> 0 | AH27: =IF(AND($D27="Serviço",AH$12<>0,$H27>0,OR(AUTOEVENTO<>"manual",$M27<>1)),ROUND(OFFSET($P27,0,AH$13),15-13*ORÇAMENTO!$AF$7)/$H27*OFFSET(ORÇAMENTO!$X$15,ROW(AH27)-ROW(AH$15),0),0) -> 0 | AI27: =IF(AND($D27="Serviço",AI$12<>0,$H27>0,OR(AUTOEVENTO<>"manual",$M27<>1)),ROUND(OFFSET($P27,0,AI$13),15-13*ORÇAMENTO!$AF$7)/$H27*OFFSET(ORÇAMENTO!$X$15,ROW(AI27)-ROW(AI$15),0),0) -> 0 | AJ27: =IF(AND($D27="Serviço",AJ$12<>0,$H27>0,OR(AUTOEVENTO<>"manual",$M27<>1)),ROUND(OFFSET($P27,0,AJ$13),15-13*ORÇAMENTO!$AF$7)/$H27*OFFSET(ORÇAMENTO!$X$15,ROW(AJ27)-ROW(AJ$15),0),0) -> 0 | AK27: =IF(AND($D27="Serviço",AK$12<>0,$H27>0,OR(AUTOEVENTO<>"manual",$M27<>1)),ROUND(OFFSET($P27,0,AK$13),15-13*ORÇAMENTO!$AF$7)/$H27*OFFSET(ORÇAMENTO!$X$15,ROW(AK27)-ROW(AK$15),0),0) -> 0 | AM27: =IF($D27<>"Serviço",0,IF(AND(AUTOEVENTO="Manual",$M27=1),0,IF(OFFSET(CRONOPLE!$F$14,$M27,AM$13)="",10^12,OFFSET(CRONOPLE!$F$14,$M27,AM$13)))) -> 2 | AN27: =IF($D27<>"Serviço",0,IF(AND(AUTOEVENTO="Manual",$M27=1),0,IF(OFFSET(CRONOPLE!$F$14,$M27,AN$13)="",10^12,OFFSET(CRONOPLE!$F$14,$M27,AN$13)))) -> 1000000000000 | AO27: =IF($D27<>"Serviço",0,IF(AND(AUTOEVENTO="Manual",$M27=1),0,IF(OFFSET(CRONOPLE!$F$14,$M27,AO$13)="",10^12,OFFSET(CRONOPLE!$F$14,$M27,AO$13)))) -> 3 | AP27: =IF($D27<>"Serviço",0,IF(AND(AUTOEVENTO="Manual",$M27=1),0,IF(OFFSET(CRONOPLE!$F$14,$M27,AP$13)="",10^12,OFFSET(CRONOPLE!$F$14,$M27,AP$13)))) -> 3 | AQ27: =IF($D27<>"Serviço",0,IF(AND(AUTOEVENTO="Manual",$M27=1),0,IF(OFFSET(CRONOPLE!$F$14,$M27,AQ$13)="",10^12,OFFSET(CRONOPLE!$F$14,$M27,AQ$13)))) -> 4 | AR27: =IF($D27<>"Serviço",0,IF(AND(AUTOEVENTO="Manual",$M27=1),0,IF(OFFSET(CRONOPLE!$F$14,$M27,AR$13)="",10^12,OFFSET(CRONOPLE!$F$14,$M27,AR$13)))) -> 4 | AS27: =IF($D27<>"Serviço",0,IF(AND(AUTOEVENTO="Manual",$M27=1),0,IF(OFFSET(CRONOPLE!$F$14,$M27,AS$13)="",10^12,OFFSET(CRONOPLE!$F$14,$M27,AS$13)))) -> 1000000000000 | AT27: =IF($D27<>"Serviço",0,IF(AND(AUTOEVENTO="Manual",$M27=1),0,IF(OFFSET(CRONOPLE!$F$14,$M27,AT$13)="",10^12,OFFSET(CRONOPLE!$F$14,$M27,AT$13)))) -> 1000000000000 | AU27: =IF($D27<>"Serviço",0,IF(AND(AUTOEVENTO="Manual",$M27=1),0,IF(OFFSET(CRONOPLE!$F$14,$M27,AU$13)="",10^12,OFFSET(CRONOPLE!$F$14,$M27,AU$13)))) -> 1000000000000 | AV27: =IF($D27<>"Serviço",0,IF(AND(AUTOEVENTO="Manual",$M27=1),0,IF(OFFSET(CRONOPLE!$F$14,$M27,AV$13)="",10^12,OFFSET(CRONOPLE!$F$14,$M27,AV$13)))) -> 1000000000000 | AX27: =IF($D27<>"Serviço",0,IF(OR(AND(AUTOEVENTO="Manual",$M27=1),$M27>(ROW(PLE.lastrow)-ROW(PLE.firstrow))),0,IF(OFFSET(PLE!$G$14,$M27,AX$13)="",10^12,OFFSET(PLE!$G$14,$M27,AX$13)))) -> 1000000000000 | AY27: =IF($D27<>"Serviço",0,IF(OR(AND(AUTOEVENTO="Manual",$M27=1),$M27>(ROW(PLE.lastrow)-ROW(PLE.firstrow))),0,IF(OFFSET(PLE!$G$14,$M27,AY$13)="",10^12,OFFSET(PLE!$G$14,$M27,AY$13)))) -> 1000000000000 | AZ27: =IF($D27<>"Serviço",0,IF(OR(AND(AUTOEVENTO="Manual",$M27=1),$M27>(ROW(PLE.lastrow)-ROW(PLE.firstrow))),0,IF(OFFSET(PLE!$G$14,$M27,AZ$13)="",10^12,OFFSET(PLE!$G$14,$M27,AZ$13)))) -> 1000000000000 | BA27: =IF($D27<>"Serviço",0,IF(OR(AND(AUTOEVENTO="Manual",$M27=1),$M27>(ROW(PLE.lastrow)-ROW(PLE.firstrow))),0,IF(OFFSET(PLE!$G$14,$M27,BA$13)="",10^12,OFFSET(PLE!$G$14,$M27,BA$13)))) -> 1000000000000 | BB27: =IF($D27<>"Serviço",0,IF(OR(AND(AUTOEVENTO="Manual",$M27=1),$M27>(ROW(PLE.lastrow)-ROW(PLE.firstrow))),0,IF(OFFSET(PLE!$G$14,$M27,BB$13)="",10^12,OFFSET(PLE!$G$14,$M27,BB$13)))) -> 1000000000000 | BC27: =IF($D27<>"Serviço",0,IF(OR(AND(AUTOEVENTO="Manual",$M27=1),$M27>(ROW(PLE.lastrow)-ROW(PLE.firstrow))),0,IF(OFFSET(PLE!$G$14,$M27,BC$13)="",10^12,OFFSET(PLE!$G$14,$M27,BC$13)))) -> 1000000000000 | BD27: =IF($D27<>"Serviço",0,IF(OR(AND(AUTOEVENTO="Manual",$M27=1),$M27>(ROW(PLE.lastrow)-ROW(PLE.firstrow))),0,IF(OFFSET(PLE!$G$14,$M27,BD$13)="",10^12,OFFSET(PLE!$G$14,$M27,BD$13)))) -> 1000000000000 | BE27: =IF($D27<>"Serviço",0,IF(OR(AND(AUTOEVENTO="Manual",$M27=1),$M27>(ROW(PLE.lastrow)-ROW(PLE.firstrow))),0,IF(OFFSET(PLE!$G$14,$M27,BE$13)="",10^12,OFFSET(PLE!$G$14,$M27,BE$13)))) -> 1000000000000 | BF27: =IF($D27<>"Serviço",0,IF(OR(AND(AUTOEVENTO="Manual",$M27=1),$M27>(ROW(PLE.lastrow)-ROW(PLE.firstrow))),0,IF(OFFSET(PLE!$G$14,$M27,BF$13)="",10^12,OFFSET(PLE!$G$14,$M27,BF$13)))) -> 1000000000000 | BG27: =IF($D27<>"Serviço",0,IF(OR(AND(AUTOEVENTO="Manual",$M27=1),$M27>(ROW(PLE.lastrow)-ROW(PLE.firstrow))),0,IF(OFFSET(PLE!$G$14,$M27,BG$13)="",10^12,OFFSET(PLE!$G$14,$M27,BG$13)))) -> 1000000000000
A28: 5 | B28: =OFFSET(ORÇAMENTO!C$15,ROW(B28)-ROW(B$15),0) -> S | C28: =OFFSET(ORÇAMENTO!L$15,ROW(C28)-ROW(C$15),0) -> F | D28: =OFFSET(ORÇAMENTO!N$15,ROW(D28)-ROW(D$15),0) -> Serviço | E28: =OFFSET(ORÇAMENTO!O$15,ROW(E28)-ROW(E$15),0) -> 1.4.2. | F28: =OFFSET(ORÇAMENTO!R$15,ROW(F28)-ROW(F$15),0) -> ESCAVAÇÃO MECANIZADA DE VALA COM PROF. ATÉ 2 M, COM ESCAVADEIRA HIDRÁULICA, LARG. MENOR QUE 1,5 M, EM SOLO DE 1A CATEGORIA, EM LOCAIS COM ALTO NÍVEL DE INTERFERÊNCIA | G28: =IF($D28<>"Serviço","",OFFSET(ORÇAMENTO!S$15,ROW(G28)-ROW(G$15),0)) -> M3 | H28: =IF($D28<>"Serviço",0,IF(ACOMPANHAMENTO="BM",ROUND(OFFSET(ORÇAMENTO!AJ$15,ROW(H28)-ROW(H$15),0),15-13*ORÇAMENTO!$AF$7),SUMPRODUCT(($Q$12:$AA$12<>"")*ROUND($Q28:$AA28,15-13*ORÇAMENTO!$AF$7)))) -> 305.27 | K28: 5.ESCAVAÇÕES E MOVIMENTAÇÕES DE TERRA | L28: . | M28: =IF($D28<>"Serviço","",IF(AUTOEVENTO="manual",$A28,IF(ISERROR(MATCH($A28,$A$15:OFFSET($A28,-1,0),0)),MAX($M$15:OFFSET(M28,-1,0))+1,INDEX($M$15:OFFSET(M28,-1,0),MATCH($A28,$A$15:OFFSET($A28,-1,0),0))))) -> 5 | N28: =IF($D28<>"Serviço","",IF(AUTOEVENTO="Manual",IF($A28=0,"<-- defina o número do agrupador",OFFSET(EVENTOS!$D$14,$A28,0)),OFFSET($F$15,$A28,0))) -> ESCAVAÇÕES E MOVIMENTAÇÕES DE TERRA | Q28: 305.27 | AB28: =IF(AND($D28="Serviço",AB$12<>0,$H28>0,OR(AUTOEVENTO<>"manual",$M28<>1)),ROUND(OFFSET($P28,0,AB$13),15-13*ORÇAMENTO!$AF$7)/$H28*OFFSET(ORÇAMENTO!$X$15,ROW(AB28)-ROW(AB$15),0),0) -> 4453.89 | AC28: =IF(AND($D28="Serviço",AC$12<>0,$H28>0,OR(AUTOEVENTO<>"manual",$M28<>1)),ROUND(OFFSET($P28,0,AC$13),15-13*ORÇAMENTO!$AF$7)/$H28*OFFSET(ORÇAMENTO!$X$15,ROW(AC28)-ROW(AC$15),0),0) -> 0 | AD28: =IF(AND($D28="Serviço",AD$12<>0,$H28>0,OR(AUTOEVENTO<>"manual",$M28<>1)),ROUND(OFFSET($P28,0,AD$13),15-13*ORÇAMENTO!$AF$7)/$H28*OFFSET(ORÇAMENTO!$X$15,ROW(AD28)-ROW(AD$15),0),0) -> 0 | AE28: =IF(AND($D28="Serviço",AE$12<>0,$H28>0,OR(AUTOEVENTO<>"manual",$M28<>1)),ROUND(OFFSET($P28,0,AE$13),15-13*ORÇAMENTO!$AF$7)/$H28*OFFSET(ORÇAMENTO!$X$15,ROW(AE28)-ROW(AE$15),0),0) -> 0 | AF28: =IF(AND($D28="Serviço",AF$12<>0,$H28>0,OR(AUTOEVENTO<>"manual",$M28<>1)),ROUND(OFFSET($P28,0,AF$13),15-13*ORÇAMENTO!$AF$7)/$H28*OFFSET(ORÇAMENTO!$X$15,ROW(AF28)-ROW(AF$15),0),0) -> 0 | AG28: =IF(AND($D28="Serviço",AG$12<>0,$H28>0,OR(AUTOEVENTO<>"manual",$M28<>1)),ROUND(OFFSET($P28,0,AG$13),15-13*ORÇAMENTO!$AF$7)/$H28*OFFSET(ORÇAMENTO!$X$15,ROW(AG28)-ROW(AG$15),0),0) -> 0 | AH28: =IF(AND($D28="Serviço",AH$12<>0,$H28>0,OR(AUTOEVENTO<>"manual",$M28<>1)),ROUND(OFFSET($P28,0,AH$13),15-13*ORÇAMENTO!$AF$7)/$H28*OFFSET(ORÇAMENTO!$X$15,ROW(AH28)-ROW(AH$15),0),0) -> 0 | AI28: =IF(AND($D28="Serviço",AI$12<>0,$H28>0,OR(AUTOEVENTO<>"manual",$M28<>1)),ROUND(OFFSET($P28,0,AI$13),15-13*ORÇAMENTO!$AF$7)/$H28*OFFSET(ORÇAMENTO!$X$15,ROW(AI28)-ROW(AI$15),0),0) -> 0 | AJ28: =IF(AND($D28="Serviço",AJ$12<>0,$H28>0,OR(AUTOEVENTO<>"manual",$M28<>1)),ROUND(OFFSET($P28,0,AJ$13),15-13*ORÇAMENTO!$AF$7)/$H28*OFFSET(ORÇAMENTO!$X$15,ROW(AJ28)-ROW(AJ$15),0),0) -> 0 | AK28: =IF(AND($D28="Serviço",AK$12<>0,$H28>0,OR(AUTOEVENTO<>"manual",$M28<>1)),ROUND(OFFSET($P28,0,AK$13),15-13*ORÇAMENTO!$AF$7)/$H28*OFFSET(ORÇAMENTO!$X$15,ROW(AK28)-ROW(AK$15),0),0) -> 0 | AM28: =IF($D28<>"Serviço",0,IF(AND(AUTOEVENTO="Manual",$M28=1),0,IF(OFFSET(CRONOPLE!$F$14,$M28,AM$13)="",10^12,OFFSET(CRONOPLE!$F$14,$M28,AM$13)))) -> 2 | AN28: =IF($D28<>"Serviço",0,IF(AND(AUTOEVENTO="Manual",$M28=1),0,IF(OFFSET(CRONOPLE!$F$14,$M28,AN$13)="",10^12,OFFSET(CRONOPLE!$F$14,$M28,AN$13)))) -> 1000000000000 | AO28: =IF($D28<>"Serviço",0,IF(AND(AUTOEVENTO="Manual",$M28=1),0,IF(OFFSET(CRONOPLE!$F$14,$M28,AO$13)="",10^12,OFFSET(CRONOPLE!$F$14,$M28,AO$13)))) -> 3 | AP28: =IF($D28<>"Serviço",0,IF(AND(AUTOEVENTO="Manual",$M28=1),0,IF(OFFSET(CRONOPLE!$F$14,$M28,AP$13)="",10^12,OFFSET(CRONOPLE!$F$14,$M28,AP$13)))) -> 3 | AQ28: =IF($D28<>"Serviço",0,IF(AND(AUTOEVENTO="Manual",$M28=1),0,IF(OFFSET(CRONOPLE!$F$14,$M28,AQ$13)="",10^12,OFFSET(CRONOPLE!$F$14,$M28,AQ$13)))) -> 4 | AR28: =IF($D28<>"Serviço",0,IF(AND(AUTOEVENTO="Manual",$M28=1),0,IF(OFFSET(CRONOPLE!$F$14,$M28,AR$13)="",10^12,OFFSET(CRONOPLE!$F$14,$M28,AR$13)))) -> 4 | AS28: =IF($D28<>"Serviço",0,IF(AND(AUTOEVENTO="Manual",$M28=1),0,IF(OFFSET(CRONOPLE!$F$14,$M28,AS$13)="",10^12,OFFSET(CRONOPLE!$F$14,$M28,AS$13)))) -> 1000000000000 | AT28: =IF($D28<>"Serviço",0,IF(AND(AUTOEVENTO="Manual",$M28=1),0,IF(OFFSET(CRONOPLE!$F$14,$M28,AT$13)="",10^12,OFFSET(CRONOPLE!$F$14,$M28,AT$13)))) -> 1000000000000 | AU28: =IF($D28<>"Serviço",0,IF(AND(AUTOEVENTO="Manual",$M28=1),0,IF(OFFSET(CRONOPLE!$F$14,$M28,AU$13)="",10^12,OFFSET(CRONOPLE!$F$14,$M28,AU$13)))) -> 1000000000000 | AV28: =IF($D28<>"Serviço",0,IF(AND(AUTOEVENTO="Manual",$M28=1),0,IF(OFFSET(CRONOPLE!$F$14,$M28,AV$13)="",10^12,OFFSET(CRONOPLE!$F$14,$M28,AV$13)))) -> 1000000000000 | AX28: =IF($D28<>"Serviço",0,IF(OR(AND(AUTOEVENTO="Manual",$M28=1),$M28>(ROW(PLE.lastrow)-ROW(PLE.firstrow))),0,IF(OFFSET(PLE!$G$14,$M28,AX$13)="",10^12,OFFSET(PLE!$G$14,$M28,AX$13)))) -> 1000000000000 | AY28: =IF($D28<>"Serviço",0,IF(OR(AND(AUTOEVENTO="Manual",$M28=1),$M28>(ROW(PLE.lastrow)-ROW(PLE.firstrow))),0,IF(OFFSET(PLE!$G$14,$M28,AY$13)="",10^12,OFFSET(PLE!$G$14,$M28,AY$13)))) -> 1000000000000 | AZ28: =IF($D28<>"Serviço",0,IF(OR(AND(AUTOEVENTO="Manual",$M28=1),$M28>(ROW(PLE.lastrow)-ROW(PLE.firstrow))),0,IF(OFFSET(PLE!$G$14,$M28,AZ$13)="",10^12,OFFSET(PLE!$G$14,$M28,AZ$13)))) -> 1000000000000 | BA28: =IF($D28<>"Serviço",0,IF(OR(AND(AUTOEVENTO="Manual",$M28=1),$M28>(ROW(PLE.lastrow)-ROW(PLE.firstrow))),0,IF(OFFSET(PLE!$G$14,$M28,BA$13)="",10^12,OFFSET(PLE!$G$14,$M28,BA$13)))) -> 1000000000000 | BB28: =IF($D28<>"Serviço",0,IF(OR(AND(AUTOEVENTO="Manual",$M28=1),$M28>(ROW(PLE.lastrow)-ROW(PLE.firstrow))),0,IF(OFFSET(PLE!$G$14,$M28,BB$13)="",10^12,OFFSET(PLE!$G$14,$M28,BB$13)))) -> 1000000000000 | BC28: =IF($D28<>"Serviço",0,IF(OR(AND(AUTOEVENTO="Manual",$M28=1),$M28>(ROW(PLE.lastrow)-ROW(PLE.firstrow))),0,IF(OFFSET(PLE!$G$14,$M28,BC$13)="",10^12,OFFSET(PLE!$G$14,$M28,BC$13)))) -> 1000000000000 | BD28: =IF($D28<>"Serviço",0,IF(OR(AND(AUTOEVENTO="Manual",$M28=1),$M28>(ROW(PLE.lastrow)-ROW(PLE.firstrow))),0,IF(OFFSET(PLE!$G$14,$M28,BD$13)="",10^12,OFFSET(PLE!$G$14,$M28,BD$13)))) -> 1000000000000 | BE28: =IF($D28<>"Serviço",0,IF(OR(AND(AUTOEVENTO="Manual",$M28=1),$M28>(ROW(PLE.lastrow)-ROW(PLE.firstrow))),0,IF(OFFSET(PLE!$G$14,$M28,BE$13)="",10^12,OFFSET(PLE!$G$14,$M28,BE$13)))) -> 1000000000000 | BF28: =IF($D28<>"Serviço",0,IF(OR(AND(AUTOEVENTO="Manual",$M28=1),$M28>(ROW(PLE.lastrow)-ROW(PLE.firstrow))),0,IF(OFFSET(PLE!$G$14,$M28,BF$13)="",10^12,OFFSET(PLE!$G$14,$M28,BF$13)))) -> 1000000000000 | BG28: =IF($D28<>"Serviço",0,IF(OR(AND(AUTOEVENTO="Manual",$M28=1),$M28>(ROW(PLE.lastrow)-ROW(PLE.firstrow))),0,IF(OFFSET(PLE!$G$14,$M28,BG$13)="",10^12,OFFSET(PLE!$G$14,$M28,BG$13)))) -> 1000000000000
A29: 5 | B29: =OFFSET(ORÇAMENTO!C$15,ROW(B29)-ROW(B$15),0) -> S | C29: =OFFSET(ORÇAMENTO!L$15,ROW(C29)-ROW(C$15),0) -> F | D29: =OFFSET(ORÇAMENTO!N$15,ROW(D29)-ROW(D$15),0) -> Serviço | E29: =OFFSET(ORÇAMENTO!O$15,ROW(E29)-ROW(E$15),0) -> 1.4.3. | F29: =OFFSET(ORÇAMENTO!R$15,ROW(F29)-ROW(F$15),0) -> CARGA, MANOBRA E DESCARGA DE SOLO ESCAVADO, EM CAMINHÃO BASCULANTE - CARGA COM ESCAVADEIRA HIDRÁULICA | G29: =IF($D29<>"Serviço","",OFFSET(ORÇAMENTO!S$15,ROW(G29)-ROW(G$15),0)) -> M3 | H29: =IF($D29<>"Serviço",0,IF(ACOMPANHAMENTO="BM",ROUND(OFFSET(ORÇAMENTO!AJ$15,ROW(H29)-ROW(H$15),0),15-13*ORÇAMENTO!$AF$7),SUMPRODUCT(($Q$12:$AA$12<>"")*ROUND($Q29:$AA29,15-13*ORÇAMENTO!$AF$7)))) -> 1053.01 | K29: 5.ESCAVAÇÕES E MOVIMENTAÇÕES DE TERRA | L29: . | M29: =IF($D29<>"Serviço","",IF(AUTOEVENTO="manual",$A29,IF(ISERROR(MATCH($A29,$A$15:OFFSET($A29,-1,0),0)),MAX($M$15:OFFSET(M29,-1,0))+1,INDEX($M$15:OFFSET(M29,-1,0),MATCH($A29,$A$15:OFFSET($A29,-1,0),0))))) -> 5 | N29: =IF($D29<>"Serviço","",IF(AUTOEVENTO="Manual",IF($A29=0,"<-- defina o número do agrupador",OFFSET(EVENTOS!$D$14,$A29,0)),OFFSET($F$15,$A29,0))) -> ESCAVAÇÕES E MOVIMENTAÇÕES DE TERRA | Q29: =Q27+Q28 -> 1053.01 | AB29: =IF(AND($D29="Serviço",AB$12<>0,$H29>0,OR(AUTOEVENTO<>"manual",$M29<>1)),ROUND(OFFSET($P29,0,AB$13),15-13*ORÇAMENTO!$AF$7)/$H29*OFFSET(ORÇAMENTO!$X$15,ROW(AB29)-ROW(AB$15),0),0) -> 8171.36 | AC29: =IF(AND($D29="Serviço",AC$12<>0,$H29>0,OR(AUTOEVENTO<>"manual",$M29<>1)),ROUND(OFFSET($P29,0,AC$13),15-13*ORÇAMENTO!$AF$7)/$H29*OFFSET(ORÇAMENTO!$X$15,ROW(AC29)-ROW(AC$15),0),0) -> 0 | AD29: =IF(AND($D29="Serviço",AD$12<>0,$H29>0,OR(AUTOEVENTO<>"manual",$M29<>1)),ROUND(OFFSET($P29,0,AD$13),15-13*ORÇAMENTO!$AF$7)/$H29*OFFSET(ORÇAMENTO!$X$15,ROW(AD29)-ROW(AD$15),0),0) -> 0 | AE29: =IF(AND($D29="Serviço",AE$12<>0,$H29>0,OR(AUTOEVENTO<>"manual",$M29<>1)),ROUND(OFFSET($P29,0,AE$13),15-13*ORÇAMENTO!$AF$7)/$H29*OFFSET(ORÇAMENTO!$X$15,ROW(AE29)-ROW(AE$15),0),0) -> 0 | AF29: =IF(AND($D29="Serviço",AF$12<>0,$H29>0,OR(AUTOEVENTO<>"manual",$M29<>1)),ROUND(OFFSET($P29,0,AF$13),15-13*ORÇAMENTO!$AF$7)/$H29*OFFSET(ORÇAMENTO!$X$15,ROW(AF29)-ROW(AF$15),0),0) -> 0 | AG29: =IF(AND($D29="Serviço",AG$12<>0,$H29>0,OR(AUTOEVENTO<>"manual",$M29<>1)),ROUND(OFFSET($P29,0,AG$13),15-13*ORÇAMENTO!$AF$7)/$H29*OFFSET(ORÇAMENTO!$X$15,ROW(AG29)-ROW(AG$15),0),0) -> 0 | AH29: =IF(AND($D29="Serviço",AH$12<>0,$H29>0,OR(AUTOEVENTO<>"manual",$M29<>1)),ROUND(OFFSET($P29,0,AH$13),15-13*ORÇAMENTO!$AF$7)/$H29*OFFSET(ORÇAMENTO!$X$15,ROW(AH29)-ROW(AH$15),0),0) -> 0 | AI29: =IF(AND($D29="Serviço",AI$12<>0,$H29>0,OR(AUTOEVENTO<>"manual",$M29<>1)),ROUND(OFFSET($P29,0,AI$13),15-13*ORÇAMENTO!$AF$7)/$H29*OFFSET(ORÇAMENTO!$X$15,ROW(AI29)-ROW(AI$15),0),0) -> 0 | AJ29: =IF(AND($D29="Serviço",AJ$12<>0,$H29>0,OR(AUTOEVENTO<>"manual",$M29<>1)),ROUND(OFFSET($P29,0,AJ$13),15-13*ORÇAMENTO!$AF$7)/$H29*OFFSET(ORÇAMENTO!$X$15,ROW(AJ29)-ROW(AJ$15),0),0) -> 0 | AK29: =IF(AND($D29="Serviço",AK$12<>0,$H29>0,OR(AUTOEVENTO<>"manual",$M29<>1)),ROUND(OFFSET($P29,0,AK$13),15-13*ORÇAMENTO!$AF$7)/$H29*OFFSET(ORÇAMENTO!$X$15,ROW(AK29)-ROW(AK$15),0),0) -> 0 | AM29: =IF($D29<>"Serviço",0,IF(AND(AUTOEVENTO="Manual",$M29=1),0,IF(OFFSET(CRONOPLE!$F$14,$M29,AM$13)="",10^12,OFFSET(CRONOPLE!$F$14,$M29,AM$13)))) -> 2 | AN29: =IF($D29<>"Serviço",0,IF(AND(AUTOEVENTO="Manual",$M29=1),0,IF(OFFSET(CRONOPLE!$F$14,$M29,AN$13)="",10^12,OFFSET(CRONOPLE!$F$14,$M29,AN$13)))) -> 1000000000000 | AO29: =IF($D29<>"Serviço",0,IF(AND(AUTOEVENTO="Manual",$M29=1),0,IF(OFFSET(CRONOPLE!$F$14,$M29,AO$13)="",10^12,OFFSET(CRONOPLE!$F$14,$M29,AO$13)))) -> 3 | AP29: =IF($D29<>"Serviço",0,IF(AND(AUTOEVENTO="Manual",$M29=1),0,IF(OFFSET(CRONOPLE!$F$14,$M29,AP$13)="",10^12,OFFSET(CRONOPLE!$F$14,$M29,AP$13)))) -> 3 | AQ29: =IF($D29<>"Serviço",0,IF(AND(AUTOEVENTO="Manual",$M29=1),0,IF(OFFSET(CRONOPLE!$F$14,$M29,AQ$13)="",10^12,OFFSET(CRONOPLE!$F$14,$M29,AQ$13)))) -> 4 | AR29: =IF($D29<>"Serviço",0,IF(AND(AUTOEVENTO="Manual",$M29=1),0,IF(OFFSET(CRONOPLE!$F$14,$M29,AR$13)="",10^12,OFFSET(CRONOPLE!$F$14,$M29,AR$13)))) -> 4 | AS29: =IF($D29<>"Serviço",0,IF(AND(AUTOEVENTO="Manual",$M29=1),0,IF(OFFSET(CRONOPLE!$F$14,$M29,AS$13)="",10^12,OFFSET(CRONOPLE!$F$14,$M29,AS$13)))) -> 1000000000000 | AT29: =IF($D29<>"Serviço",0,IF(AND(AUTOEVENTO="Manual",$M29=1),0,IF(OFFSET(CRONOPLE!$F$14,$M29,AT$13)="",10^12,OFFSET(CRONOPLE!$F$14,$M29,AT$13)))) -> 1000000000000 | AU29: =IF($D29<>"Serviço",0,IF(AND(AUTOEVENTO="Manual",$M29=1),0,IF(OFFSET(CRONOPLE!$F$14,$M29,AU$13)="",10^12,OFFSET(CRONOPLE!$F$14,$M29,AU$13)))) -> 1000000000000 | AV29: =IF($D29<>"Serviço",0,IF(AND(AUTOEVENTO="Manual",$M29=1),0,IF(OFFSET(CRONOPLE!$F$14,$M29,AV$13)="",10^12,OFFSET(CRONOPLE!$F$14,$M29,AV$13)))) -> 1000000000000 | AX29: =IF($D29<>"Serviço",0,IF(OR(AND(AUTOEVENTO="Manual",$M29=1),$M29>(ROW(PLE.lastrow)-ROW(PLE.firstrow))),0,IF(OFFSET(PLE!$G$14,$M29,AX$13)="",10^12,OFFSET(PLE!$G$14,$M29,AX$13)))) -> 1000000000000 | AY29: =IF($D29<>"Serviço",0,IF(OR(AND(AUTOEVENTO="Manual",$M29=1),$M29>(ROW(PLE.lastrow)-ROW(PLE.firstrow))),0,IF(OFFSET(PLE!$G$14,$M29,AY$13)="",10^12,OFFSET(PLE!$G$14,$M29,AY$13)))) -> 1000000000000 | AZ29: =IF($D29<>"Serviço",0,IF(OR(AND(AUTOEVENTO="Manual",$M29=1),$M29>(ROW(PLE.lastrow)-ROW(PLE.firstrow))),0,IF(OFFSET(PLE!$G$14,$M29,AZ$13)="",10^12,OFFSET(PLE!$G$14,$M29,AZ$13)))) -> 1000000000000 | BA29: =IF($D29<>"Serviço",0,IF(OR(AND(AUTOEVENTO="Manual",$M29=1),$M29>(ROW(PLE.lastrow)-ROW(PLE.firstrow))),0,IF(OFFSET(PLE!$G$14,$M29,BA$13)="",10^12,OFFSET(PLE!$G$14,$M29,BA$13)))) -> 1000000000000 | BB29: =IF($D29<>"Serviço",0,IF(OR(AND(AUTOEVENTO="Manual",$M29=1),$M29>(ROW(PLE.lastrow)-ROW(PLE.firstrow))),0,IF(OFFSET(PLE!$G$14,$M29,BB$13)="",10^12,OFFSET(PLE!$G$14,$M29,BB$13)))) -> 1000000000000 | BC29: =IF($D29<>"Serviço",0,IF(OR(AND(AUTOEVENTO="Manual",$M29=1),$M29>(ROW(PLE.lastrow)-ROW(PLE.firstrow))),0,IF(OFFSET(PLE!$G$14,$M29,BC$13)="",10^12,OFFSET(PLE!$G$14,$M29,BC$13)))) -> 1000000000000 | BD29: =IF($D29<>"Serviço",0,IF(OR(AND(AUTOEVENTO="Manual",$M29=1),$M29>(ROW(PLE.lastrow)-ROW(PLE.firstrow))),0,IF(OFFSET(PLE!$G$14,$M29,BD$13)="",10^12,OFFSET(PLE!$G$14,$M29,BD$13)))) -> 1000000000000 | BE29: =IF($D29<>"Serviço",0,IF(OR(AND(AUTOEVENTO="Manual",$M29=1),$M29>(ROW(PLE.lastrow)-ROW(PLE.firstrow))),0,IF(OFFSET(PLE!$G$14,$M29,BE$13)="",10^12,OFFSET(PLE!$G$14,$M29,BE$13)))) -> 1000000000000 | BF29: =IF($D29<>"Serviço",0,IF(OR(AND(AUTOEVENTO="Manual",$M29=1),$M29>(ROW(PLE.lastrow)-ROW(PLE.firstrow))),0,IF(OFFSET(PLE!$G$14,$M29,BF$13)="",10^12,OFFSET(PLE!$G$14,$M29,BF$13)))) -> 1000000000000 | BG29: =IF($D29<>"Serviço",0,IF(OR(AND(AUTOEVENTO="Manual",$M29=1),$M29>(ROW(PLE.lastrow)-ROW(PLE.firstrow))),0,IF(OFFSET(PLE!$G$14,$M29,BG$13)="",10^12,OFFSET(PLE!$G$14,$M29,BG$13)))) -> 1000000000000
A30: 5 | B30: =OFFSET(ORÇAMENTO!C$15,ROW(B30)-ROW(B$15),0) -> S | C30: =OFFSET(ORÇAMENTO!L$15,ROW(C30)-ROW(C$15),0) -> F | D30: =OFFSET(ORÇAMENTO!N$15,ROW(D30)-ROW(D$15),0) -> Serviço | E30: =OFFSET(ORÇAMENTO!O$15,ROW(E30)-ROW(E$15),0) -> 1.4.4. | F30: =OFFSET(ORÇAMENTO!R$15,ROW(F30)-ROW(F$15),0) -> TRANSPORTE DE MATERIAL REMOVIDO, COM CAMINHÃO BASCULANTE, DMT = 2 KM | G30: =IF($D30<>"Serviço","",OFFSET(ORÇAMENTO!S$15,ROW(G30)-ROW(G$15),0)) -> M3XKM | H30: =IF($D30<>"Serviço",0,IF(ACOMPANHAMENTO="BM",ROUND(OFFSET(ORÇAMENTO!AJ$15,ROW(H30)-ROW(H$15),0),15-13*ORÇAMENTO!$AF$7),SUMPRODUCT(($Q$12:$AA$12<>"")*ROUND($Q30:$AA30,15-13*ORÇAMENTO!$AF$7)))) -> 2106.02 | I30: 1.053,01*2 | K30: 5.ESCAVAÇÕES E MOVIMENTAÇÕES DE TERRA | L30: . | M30: =IF($D30<>"Serviço","",IF(AUTOEVENTO="manual",$A30,IF(ISERROR(MATCH($A30,$A$15:OFFSET($A30,-1,0),0)),MAX($M$15:OFFSET(M30,-1,0))+1,INDEX($M$15:OFFSET(M30,-1,0),MATCH($A30,$A$15:OFFSET($A30,-1,0),0))))) -> 5 | N30: =IF($D30<>"Serviço","",IF(AUTOEVENTO="Manual",IF($A30=0,"<-- defina o número do agrupador",OFFSET(EVENTOS!$D$14,$A30,0)),OFFSET($F$15,$A30,0))) -> ESCAVAÇÕES E MOVIMENTAÇÕES DE TERRA | Q30: =Q29*2 -> 2106.02 | AB30: =IF(AND($D30="Serviço",AB$12<>0,$H30>0,OR(AUTOEVENTO<>"manual",$M30<>1)),ROUND(OFFSET($P30,0,AB$13),15-13*ORÇAMENTO!$AF$7)/$H30*OFFSET(ORÇAMENTO!$X$15,ROW(AB30)-ROW(AB$15),0),0) -> 5833.68 | AC30: =IF(AND($D30="Serviço",AC$12<>0,$H30>0,OR(AUTOEVENTO<>"manual",$M30<>1)),ROUND(OFFSET($P30,0,AC$13),15-13*ORÇAMENTO!$AF$7)/$H30*OFFSET(ORÇAMENTO!$X$15,ROW(AC30)-ROW(AC$15),0),0) -> 0 | AD30: =IF(AND($D30="Serviço",AD$12<>0,$H30>0,OR(AUTOEVENTO<>"manual",$M30<>1)),ROUND(OFFSET($P30,0,AD$13),15-13*ORÇAMENTO!$AF$7)/$H30*OFFSET(ORÇAMENTO!$X$15,ROW(AD30)-ROW(AD$15),0),0) -> 0 | AE30: =IF(AND($D30="Serviço",AE$12<>0,$H30>0,OR(AUTOEVENTO<>"manual",$M30<>1)),ROUND(OFFSET($P30,0,AE$13),15-13*ORÇAMENTO!$AF$7)/$H30*OFFSET(ORÇAMENTO!$X$15,ROW(AE30)-ROW(AE$15),0),0) -> 0 | AF30: =IF(AND($D30="Serviço",AF$12<>0,$H30>0,OR(AUTOEVENTO<>"manual",$M30<>1)),ROUND(OFFSET($P30,0,AF$13),15-13*ORÇAMENTO!$AF$7)/$H30*OFFSET(ORÇAMENTO!$X$15,ROW(AF30)-ROW(AF$15),0),0) -> 0 | AG30: =IF(AND($D30="Serviço",AG$12<>0,$H30>0,OR(AUTOEVENTO<>"manual",$M30<>1)),ROUND(OFFSET($P30,0,AG$13),15-13*ORÇAMENTO!$AF$7)/$H30*OFFSET(ORÇAMENTO!$X$15,ROW(AG30)-ROW(AG$15),0),0) -> 0 | AH30: =IF(AND($D30="Serviço",AH$12<>0,$H30>0,OR(AUTOEVENTO<>"manual",$M30<>1)),ROUND(OFFSET($P30,0,AH$13),15-13*ORÇAMENTO!$AF$7)/$H30*OFFSET(ORÇAMENTO!$X$15,ROW(AH30)-ROW(AH$15),0),0) -> 0 | AI30: =IF(AND($D30="Serviço",AI$12<>0,$H30>0,OR(AUTOEVENTO<>"manual",$M30<>1)),ROUND(OFFSET($P30,0,AI$13),15-13*ORÇAMENTO!$AF$7)/$H30*OFFSET(ORÇAMENTO!$X$15,ROW(AI30)-ROW(AI$15),0),0) -> 0 | AJ30: =IF(AND($D30="Serviço",AJ$12<>0,$H30>0,OR(AUTOEVENTO<>"manual",$M30<>1)),ROUND(OFFSET($P30,0,AJ$13),15-13*ORÇAMENTO!$AF$7)/$H30*OFFSET(ORÇAMENTO!$X$15,ROW(AJ30)-ROW(AJ$15),0),0) -> 0 | AK30: =IF(AND($D30="Serviço",AK$12<>0,$H30>0,OR(AUTOEVENTO<>"manual",$M30<>1)),ROUND(OFFSET($P30,0,AK$13),15-13*ORÇAMENTO!$AF$7)/$H30*OFFSET(ORÇAMENTO!$X$15,ROW(AK30)-ROW(AK$15),0),0) -> 0 | AM30: =IF($D30<>"Serviço",0,IF(AND(AUTOEVENTO="Manual",$M30=1),0,IF(OFFSET(CRONOPLE!$F$14,$M30,AM$13)="",10^12,OFFSET(CRONOPLE!$F$14,$M30,AM$13)))) -> 2 | AN30: =IF($D30<>"Serviço",0,IF(AND(AUTOEVENTO="Manual",$M30=1),0,IF(OFFSET(CRONOPLE!$F$14,$M30,AN$13)="",10^12,OFFSET(CRONOPLE!$F$14,$M30,AN$13)))) -> 1000000000000 | AO30: =IF($D30<>"Serviço",0,IF(AND(AUTOEVENTO="Manual",$M30=1),0,IF(OFFSET(CRONOPLE!$F$14,$M30,AO$13)="",10^12,OFFSET(CRONOPLE!$F$14,$M30,AO$13)))) -> 3 | AP30: =IF($D30<>"Serviço",0,IF(AND(AUTOEVENTO="Manual",$M30=1),0,IF(OFFSET(CRONOPLE!$F$14,$M30,AP$13)="",10^12,OFFSET(CRONOPLE!$F$14,$M30,AP$13)))) -> 3 | AQ30: =IF($D30<>"Serviço",0,IF(AND(AUTOEVENTO="Manual",$M30=1),0,IF(OFFSET(CRONOPLE!$F$14,$M30,AQ$13)="",10^12,OFFSET(CRONOPLE!$F$14,$M30,AQ$13)))) -> 4 | AR30: =IF($D30<>"Serviço",0,IF(AND(AUTOEVENTO="Manual",$M30=1),0,IF(OFFSET(CRONOPLE!$F$14,$M30,AR$13)="",10^12,OFFSET(CRONOPLE!$F$14,$M30,AR$13)))) -> 4 | AS30: =IF($D30<>"Serviço",0,IF(AND(AUTOEVENTO="Manual",$M30=1),0,IF(OFFSET(CRONOPLE!$F$14,$M30,AS$13)="",10^12,OFFSET(CRONOPLE!$F$14,$M30,AS$13)))) -> 1000000000000 | AT30: =IF($D30<>"Serviço",0,IF(AND(AUTOEVENTO="Manual",$M30=1),0,IF(OFFSET(CRONOPLE!$F$14,$M30,AT$13)="",10^12,OFFSET(CRONOPLE!$F$14,$M30,AT$13)))) -> 1000000000000 | AU30: =IF($D30<>"Serviço",0,IF(AND(AUTOEVENTO="Manual",$M30=1),0,IF(OFFSET(CRONOPLE!$F$14,$M30,AU$13)="",10^12,OFFSET(CRONOPLE!$F$14,$M30,AU$13)))) -> 1000000000000 | AV30: =IF($D30<>"Serviço",0,IF(AND(AUTOEVENTO="Manual",$M30=1),0,IF(OFFSET(CRONOPLE!$F$14,$M30,AV$13)="",10^12,OFFSET(CRONOPLE!$F$14,$M30,AV$13)))) -> 1000000000000 | AX30: =IF($D30<>"Serviço",0,IF(OR(AND(AUTOEVENTO="Manual",$M30=1),$M30>(ROW(PLE.lastrow)-ROW(PLE.firstrow))),0,IF(OFFSET(PLE!$G$14,$M30,AX$13)="",10^12,OFFSET(PLE!$G$14,$M30,AX$13)))) -> 1000000000000 | AY30: =IF($D30<>"Serviço",0,IF(OR(AND(AUTOEVENTO="Manual",$M30=1),$M30>(ROW(PLE.lastrow)-ROW(PLE.firstrow))),0,IF(OFFSET(PLE!$G$14,$M30,AY$13)="",10^12,OFFSET(PLE!$G$14,$M30,AY$13)))) -> 1000000000000 | AZ30: =IF($D30<>"Serviço",0,IF(OR(AND(AUTOEVENTO="Manual",$M30=1),$M30>(ROW(PLE.lastrow)-ROW(PLE.firstrow))),0,IF(OFFSET(PLE!$G$14,$M30,AZ$13)="",10^12,OFFSET(PLE!$G$14,$M30,AZ$13)))) -> 1000000000000 | BA30: =IF($D30<>"Serviço",0,IF(OR(AND(AUTOEVENTO="Manual",$M30=1),$M30>(ROW(PLE.lastrow)-ROW(PLE.firstrow))),0,IF(OFFSET(PLE!$G$14,$M30,BA$13)="",10^12,OFFSET(PLE!$G$14,$M30,BA$13)))) -> 1000000000000 | BB30: =IF($D30<>"Serviço",0,IF(OR(AND(AUTOEVENTO="Manual",$M30=1),$M30>(ROW(PLE.lastrow)-ROW(PLE.firstrow))),0,IF(OFFSET(PLE!$G$14,$M30,BB$13)="",10^12,OFFSET(PLE!$G$14,$M30,BB$13)))) -> 1000000000000 | BC30: =IF($D30<>"Serviço",0,IF(OR(AND(AUTOEVENTO="Manual",$M30=1),$M30>(ROW(PLE.lastrow)-ROW(PLE.firstrow))),0,IF(OFFSET(PLE!$G$14,$M30,BC$13)="",10^12,OFFSET(PLE!$G$14,$M30,BC$13)))) -> 1000000000000 | BD30: =IF($D30<>"Serviço",0,IF(OR(AND(AUTOEVENTO="Manual",$M30=1),$M30>(ROW(PLE.lastrow)-ROW(PLE.firstrow))),0,IF(OFFSET(PLE!$G$14,$M30,BD$13)="",10^12,OFFSET(PLE!$G$14,$M30,BD$13)))) -> 1000000000000 | BE30: =IF($D30<>"Serviço",0,IF(OR(AND(AUTOEVENTO="Manual",$M30=1),$M30>(ROW(PLE.lastrow)-ROW(PLE.firstrow))),0,IF(OFFSET(PLE!$G$14,$M30,BE$13)="",10^12,OFFSET(PLE!$G$14,$M30,BE$13)))) -> 1000000000000 | BF30: =IF($D30<>"Serviço",0,IF(OR(AND(AUTOEVENTO="Manual",$M30=1),$M30>(ROW(PLE.lastrow)-ROW(PLE.firstrow))),0,IF(OFFSET(PLE!$G$14,$M30,BF$13)="",10^12,OFFSET(PLE!$G$14,$M30,BF$13)))) -> 1000000000000 | BG30: =IF($D30<>"Serviço",0,IF(OR(AND(AUTOEVENTO="Manual",$M30=1),$M30>(ROW(PLE.lastrow)-ROW(PLE.firstrow))),0,IF(OFFSET(PLE!$G$14,$M30,BG$13)="",10^12,OFFSET(PLE!$G$14,$M30,BG$13)))) -> 1000000000000
A31: 5 | B31: =OFFSET(ORÇAMENTO!C$15,ROW(B31)-ROW(B$15),0) -> S | C31: =OFFSET(ORÇAMENTO!L$15,ROW(C31)-ROW(C$15),0) -> F | D31: =OFFSET(ORÇAMENTO!N$15,ROW(D31)-ROW(D$15),0) -> Serviço | E31: =OFFSET(ORÇAMENTO!O$15,ROW(E31)-ROW(E$15),0) -> 1.4.5. | F31: =OFFSET(ORÇAMENTO!R$15,ROW(F31)-ROW(F$15),0) -> DESMONTE DE BLOCOS DE ROCHA COM MARTELETE PNEUMÁTICO | G31: =IF($D31<>"Serviço","",OFFSET(ORÇAMENTO!S$15,ROW(G31)-ROW(G$15),0)) -> M³ | H31: =IF($D31<>"Serviço",0,IF(ACOMPANHAMENTO="BM",ROUND(OFFSET(ORÇAMENTO!AJ$15,ROW(H31)-ROW(H$15),0),15-13*ORÇAMENTO!$AF$7),SUMPRODUCT(($Q$12:$AA$12<>"")*ROUND($Q31:$AA31,15-13*ORÇAMENTO!$AF$7)))) -> 15.26 | I31: 305,27*0,05 | K31: 5.ESCAVAÇÕES E MOVIMENTAÇÕES DE TERRA | L31: . | M31: =IF($D31<>"Serviço","",IF(AUTOEVENTO="manual",$A31,IF(ISERROR(MATCH($A31,$A$15:OFFSET($A31,-1,0),0)),MAX($M$15:OFFSET(M31,-1,0))+1,INDEX($M$15:OFFSET(M31,-1,0),MATCH($A31,$A$15:OFFSET($A31,-1,0),0))))) -> 5 | N31: =IF($D31<>"Serviço","",IF(AUTOEVENTO="Manual",IF($A31=0,"<-- defina o número do agrupador",OFFSET(EVENTOS!$D$14,$A31,0)),OFFSET($F$15,$A31,0))) -> ESCAVAÇÕES E MOVIMENTAÇÕES DE TERRA | Q31: =Q28*0.05 -> 15.2635 | AB31: =IF(AND($D31="Serviço",AB$12<>0,$H31>0,OR(AUTOEVENTO<>"manual",$M31<>1)),ROUND(OFFSET($P31,0,AB$13),15-13*ORÇAMENTO!$AF$7)/$H31*OFFSET(ORÇAMENTO!$X$15,ROW(AB31)-ROW(AB$15),0),0) -> 2709.41 | AC31: =IF(AND($D31="Serviço",AC$12<>0,$H31>0,OR(AUTOEVENTO<>"manual",$M31<>1)),ROUND(OFFSET($P31,0,AC$13),15-13*ORÇAMENTO!$AF$7)/$H31*OFFSET(ORÇAMENTO!$X$15,ROW(AC31)-ROW(AC$15),0),0) -> 0 | AD31: =IF(AND($D31="Serviço",AD$12<>0,$H31>0,OR(AUTOEVENTO<>"manual",$M31<>1)),ROUND(OFFSET($P31,0,AD$13),15-13*ORÇAMENTO!$AF$7)/$H31*OFFSET(ORÇAMENTO!$X$15,ROW(AD31)-ROW(AD$15),0),0) -> 0 | AE31: =IF(AND($D31="Serviço",AE$12<>0,$H31>0,OR(AUTOEVENTO<>"manual",$M31<>1)),ROUND(OFFSET($P31,0,AE$13),15-13*ORÇAMENTO!$AF$7)/$H31*OFFSET(ORÇAMENTO!$X$15,ROW(AE31)-ROW(AE$15),0),0) -> 0 | AF31: =IF(AND($D31="Serviço",AF$12<>0,$H31>0,OR(AUTOEVENTO<>"manual",$M31<>1)),ROUND(OFFSET($P31,0,AF$13),15-13*ORÇAMENTO!$AF$7)/$H31*OFFSET(ORÇAMENTO!$X$15,ROW(AF31)-ROW(AF$15),0),0) -> 0 | AG31: =IF(AND($D31="Serviço",AG$12<>0,$H31>0,OR(AUTOEVENTO<>"manual",$M31<>1)),ROUND(OFFSET($P31,0,AG$13),15-13*ORÇAMENTO!$AF$7)/$H31*OFFSET(ORÇAMENTO!$X$15,ROW(AG31)-ROW(AG$15),0),0) -> 0 | AH31: =IF(AND($D31="Serviço",AH$12<>0,$H31>0,OR(AUTOEVENTO<>"manual",$M31<>1)),ROUND(OFFSET($P31,0,AH$13),15-13*ORÇAMENTO!$AF$7)/$H31*OFFSET(ORÇAMENTO!$X$15,ROW(AH31)-ROW(AH$15),0),0) -> 0 | AI31: =IF(AND($D31="Serviço",AI$12<>0,$H31>0,OR(AUTOEVENTO<>"manual",$M31<>1)),ROUND(OFFSET($P31,0,AI$13),15-13*ORÇAMENTO!$AF$7)/$H31*OFFSET(ORÇAMENTO!$X$15,ROW(AI31)-ROW(AI$15),0),0) -> 0 | AJ31: =IF(AND($D31="Serviço",AJ$12<>0,$H31>0,OR(AUTOEVENTO<>"manual",$M31<>1)),ROUND(OFFSET($P31,0,AJ$13),15-13*ORÇAMENTO!$AF$7)/$H31*OFFSET(ORÇAMENTO!$X$15,ROW(AJ31)-ROW(AJ$15),0),0) -> 0 | AK31: =IF(AND($D31="Serviço",AK$12<>0,$H31>0,OR(AUTOEVENTO<>"manual",$M31<>1)),ROUND(OFFSET($P31,0,AK$13),15-13*ORÇAMENTO!$AF$7)/$H31*OFFSET(ORÇAMENTO!$X$15,ROW(AK31)-ROW(AK$15),0),0) -> 0 | AM31: =IF($D31<>"Serviço",0,IF(AND(AUTOEVENTO="Manual",$M31=1),0,IF(OFFSET(CRONOPLE!$F$14,$M31,AM$13)="",10^12,OFFSET(CRONOPLE!$F$14,$M31,AM$13)))) -> 2 | AN31: =IF($D31<>"Serviço",0,IF(AND(AUTOEVENTO="Manual",$M31=1),0,IF(OFFSET(CRONOPLE!$F$14,$M31,AN$13)="",10^12,OFFSET(CRONOPLE!$F$14,$M31,AN$13)))) -> 1000000000000 | AO31: =IF($D31<>"Serviço",0,IF(AND(AUTOEVENTO="Manual",$M31=1),0,IF(OFFSET(CRONOPLE!$F$14,$M31,AO$13)="",10^12,OFFSET(CRONOPLE!$F$14,$M31,AO$13)))) -> 3 | AP31: =IF($D31<>"Serviço",0,IF(AND(AUTOEVENTO="Manual",$M31=1),0,IF(OFFSET(CRONOPLE!$F$14,$M31,AP$13)="",10^12,OFFSET(CRONOPLE!$F$14,$M31,AP$13)))) -> 3 | AQ31: =IF($D31<>"Serviço",0,IF(AND(AUTOEVENTO="Manual",$M31=1),0,IF(OFFSET(CRONOPLE!$F$14,$M31,AQ$13)="",10^12,OFFSET(CRONOPLE!$F$14,$M31,AQ$13)))) -> 4 | AR31: =IF($D31<>"Serviço",0,IF(AND(AUTOEVENTO="Manual",$M31=1),0,IF(OFFSET(CRONOPLE!$F$14,$M31,AR$13)="",10^12,OFFSET(CRONOPLE!$F$14,$M31,AR$13)))) -> 4 | AS31: =IF($D31<>"Serviço",0,IF(AND(AUTOEVENTO="Manual",$M31=1),0,IF(OFFSET(CRONOPLE!$F$14,$M31,AS$13)="",10^12,OFFSET(CRONOPLE!$F$14,$M31,AS$13)))) -> 1000000000000 | AT31: =IF($D31<>"Serviço",0,IF(AND(AUTOEVENTO="Manual",$M31=1),0,IF(OFFSET(CRONOPLE!$F$14,$M31,AT$13)="",10^12,OFFSET(CRONOPLE!$F$14,$M31,AT$13)))) -> 1000000000000 | AU31: =IF($D31<>"Serviço",0,IF(AND(AUTOEVENTO="Manual",$M31=1),0,IF(OFFSET(CRONOPLE!$F$14,$M31,AU$13)="",10^12,OFFSET(CRONOPLE!$F$14,$M31,AU$13)))) -> 1000000000000 | AV31: =IF($D31<>"Serviço",0,IF(AND(AUTOEVENTO="Manual",$M31=1),0,IF(OFFSET(CRONOPLE!$F$14,$M31,AV$13)="",10^12,OFFSET(CRONOPLE!$F$14,$M31,AV$13)))) -> 1000000000000 | AX31: =IF($D31<>"Serviço",0,IF(OR(AND(AUTOEVENTO="Manual",$M31=1),$M31>(ROW(PLE.lastrow)-ROW(PLE.firstrow))),0,IF(OFFSET(PLE!$G$14,$M31,AX$13)="",10^12,OFFSET(PLE!$G$14,$M31,AX$13)))) -> 1000000000000 | AY31: =IF($D31<>"Serviço",0,IF(OR(AND(AUTOEVENTO="Manual",$M31=1),$M31>(ROW(PLE.lastrow)-ROW(PLE.firstrow))),0,IF(OFFSET(PLE!$G$14,$M31,AY$13)="",10^12,OFFSET(PLE!$G$14,$M31,AY$13)))) -> 1000000000000 | AZ31: =IF($D31<>"Serviço",0,IF(OR(AND(AUTOEVENTO="Manual",$M31=1),$M31>(ROW(PLE.lastrow)-ROW(PLE.firstrow))),0,IF(OFFSET(PLE!$G$14,$M31,AZ$13)="",10^12,OFFSET(PLE!$G$14,$M31,AZ$13)))) -> 1000000000000 | BA31: =IF($D31<>"Serviço",0,IF(OR(AND(AUTOEVENTO="Manual",$M31=1),$M31>(ROW(PLE.lastrow)-ROW(PLE.firstrow))),0,IF(OFFSET(PLE!$G$14,$M31,BA$13)="",10^12,OFFSET(PLE!$G$14,$M31,BA$13)))) -> 1000000000000 | BB31: =IF($D31<>"Serviço",0,IF(OR(AND(AUTOEVENTO="Manual",$M31=1),$M31>(ROW(PLE.lastrow)-ROW(PLE.firstrow))),0,IF(OFFSET(PLE!$G$14,$M31,BB$13)="",10^12,OFFSET(PLE!$G$14,$M31,BB$13)))) -> 1000000000000 | BC31: =IF($D31<>"Serviço",0,IF(OR(AND(AUTOEVENTO="Manual",$M31=1),$M31>(ROW(PLE.lastrow)-ROW(PLE.firstrow))),0,IF(OFFSET(PLE!$G$14,$M31,BC$13)="",10^12,OFFSET(PLE!$G$14,$M31,BC$13)))) -> 1000000000000 | BD31: =IF($D31<>"Serviço",0,IF(OR(AND(AUTOEVENTO="Manual",$M31=1),$M31>(ROW(PLE.lastrow)-ROW(PLE.firstrow))),0,IF(OFFSET(PLE!$G$14,$M31,BD$13)="",10^12,OFFSET(PLE!$G$14,$M31,BD$13)))) -> 1000000000000 | BE31: =IF($D31<>"Serviço",0,IF(OR(AND(AUTOEVENTO="Manual",$M31=1),$M31>(ROW(PLE.lastrow)-ROW(PLE.firstrow))),0,IF(OFFSET(PLE!$G$14,$M31,BE$13)="",10^12,OFFSET(PLE!$G$14,$M31,BE$13)))) -> 1000000000000 | BF31: =IF($D31<>"Serviço",0,IF(OR(AND(AUTOEVENTO="Manual",$M31=1),$M31>(ROW(PLE.lastrow)-ROW(PLE.firstrow))),0,IF(OFFSET(PLE!$G$14,$M31,BF$13)="",10^12,OFFSET(PLE!$G$14,$M31,BF$13)))) -> 1000000000000 | BG31: =IF($D31<>"Serviço",0,IF(OR(AND(AUTOEVENTO="Manual",$M31=1),$M31>(ROW(PLE.lastrow)-ROW(PLE.firstrow))),0,IF(OFFSET(PLE!$G$14,$M31,BG$13)="",10^12,OFFSET(PLE!$G$14,$M31,BG$13)))) -> 1000000000000
A32: 5 | B32: =OFFSET(ORÇAMENTO!C$15,ROW(B32)-ROW(B$15),0) -> S | C32: =OFFSET(ORÇAMENTO!L$15,ROW(C32)-ROW(C$15),0) -> F | D32: =OFFSET(ORÇAMENTO!N$15,ROW(D32)-ROW(D$15),0) -> Serviço | E32: =OFFSET(ORÇAMENTO!O$15,ROW(E32)-ROW(E$15),0) -> 1.4.6. | F32: =OFFSET(ORÇAMENTO!R$15,ROW(F32)-ROW(F$15),0) -> CARGA, MANOBRA E DESCARGA DE MATERIAIS GRANULARES EM CAMINHÃO BASCULANTE - CARGA COM ESCAVADEIRA HIDRÁULICA | G32: =IF($D32<>"Serviço","",OFFSET(ORÇAMENTO!S$15,ROW(G32)-ROW(G$15),0)) -> M3 | H32: =IF($D32<>"Serviço",0,IF(ACOMPANHAMENTO="BM",ROUND(OFFSET(ORÇAMENTO!AJ$15,ROW(H32)-ROW(H$15),0),15-13*ORÇAMENTO!$AF$7),SUMPRODUCT(($Q$12:$AA$12<>"")*ROUND($Q32:$AA32,15-13*ORÇAMENTO!$AF$7)))) -> 15.26 | K32: 5.ESCAVAÇÕES E MOVIMENTAÇÕES DE TERRA | L32: . | M32: =IF($D32<>"Serviço","",IF(AUTOEVENTO="manual",$A32,IF(ISERROR(MATCH($A32,$A$15:OFFSET($A32,-1,0),0)),MAX($M$15:OFFSET(M32,-1,0))+1,INDEX($M$15:OFFSET(M32,-1,0),MATCH($A32,$A$15:OFFSET($A32,-1,0),0))))) -> 5 | N32: =IF($D32<>"Serviço","",IF(AUTOEVENTO="Manual",IF($A32=0,"<-- defina o número do agrupador",OFFSET(EVENTOS!$D$14,$A32,0)),OFFSET($F$15,$A32,0))) -> ESCAVAÇÕES E MOVIMENTAÇÕES DE TERRA | Q32: =Q31 -> 15.2635 | AB32: =IF(AND($D32="Serviço",AB$12<>0,$H32>0,OR(AUTOEVENTO<>"manual",$M32<>1)),ROUND(OFFSET($P32,0,AB$13),15-13*ORÇAMENTO!$AF$7)/$H32*OFFSET(ORÇAMENTO!$X$15,ROW(AB32)-ROW(AB$15),0),0) -> 118.42 | AC32: =IF(AND($D32="Serviço",AC$12<>0,$H32>0,OR(AUTOEVENTO<>"manual",$M32<>1)),ROUND(OFFSET($P32,0,AC$13),15-13*ORÇAMENTO!$AF$7)/$H32*OFFSET(ORÇAMENTO!$X$15,ROW(AC32)-ROW(AC$15),0),0) -> 0 | AD32: =IF(AND($D32="Serviço",AD$12<>0,$H32>0,OR(AUTOEVENTO<>"manual",$M32<>1)),ROUND(OFFSET($P32,0,AD$13),15-13*ORÇAMENTO!$AF$7)/$H32*OFFSET(ORÇAMENTO!$X$15,ROW(AD32)-ROW(AD$15),0),0) -> 0 | AE32: =IF(AND($D32="Serviço",AE$12<>0,$H32>0,OR(AUTOEVENTO<>"manual",$M32<>1)),ROUND(OFFSET($P32,0,AE$13),15-13*ORÇAMENTO!$AF$7)/$H32*OFFSET(ORÇAMENTO!$X$15,ROW(AE32)-ROW(AE$15),0),0) -> 0 | AF32: =IF(AND($D32="Serviço",AF$12<>0,$H32>0,OR(AUTOEVENTO<>"manual",$M32<>1)),ROUND(OFFSET($P32,0,AF$13),15-13*ORÇAMENTO!$AF$7)/$H32*OFFSET(ORÇAMENTO!$X$15,ROW(AF32)-ROW(AF$15),0),0) -> 0 | AG32: =IF(AND($D32="Serviço",AG$12<>0,$H32>0,OR(AUTOEVENTO<>"manual",$M32<>1)),ROUND(OFFSET($P32,0,AG$13),15-13*ORÇAMENTO!$AF$7)/$H32*OFFSET(ORÇAMENTO!$X$15,ROW(AG32)-ROW(AG$15),0),0) -> 0 | AH32: =IF(AND($D32="Serviço",AH$12<>0,$H32>0,OR(AUTOEVENTO<>"manual",$M32<>1)),ROUND(OFFSET($P32,0,AH$13),15-13*ORÇAMENTO!$AF$7)/$H32*OFFSET(ORÇAMENTO!$X$15,ROW(AH32)-ROW(AH$15),0),0) -> 0 | AI32: =IF(AND($D32="Serviço",AI$12<>0,$H32>0,OR(AUTOEVENTO<>"manual",$M32<>1)),ROUND(OFFSET($P32,0,AI$13),15-13*ORÇAMENTO!$AF$7)/$H32*OFFSET(ORÇAMENTO!$X$15,ROW(AI32)-ROW(AI$15),0),0) -> 0 | AJ32: =IF(AND($D32="Serviço",AJ$12<>0,$H32>0,OR(AUTOEVENTO<>"manual",$M32<>1)),ROUND(OFFSET($P32,0,AJ$13),15-13*ORÇAMENTO!$AF$7)/$H32*OFFSET(ORÇAMENTO!$X$15,ROW(AJ32)-ROW(AJ$15),0),0) -> 0 | AK32: =IF(AND($D32="Serviço",AK$12<>0,$H32>0,OR(AUTOEVENTO<>"manual",$M32<>1)),ROUND(OFFSET($P32,0,AK$13),15-13*ORÇAMENTO!$AF$7)/$H32*OFFSET(ORÇAMENTO!$X$15,ROW(AK32)-ROW(AK$15),0),0) -> 0 | AM32: =IF($D32<>"Serviço",0,IF(AND(AUTOEVENTO="Manual",$M32=1),0,IF(OFFSET(CRONOPLE!$F$14,$M32,AM$13)="",10^12,OFFSET(CRONOPLE!$F$14,$M32,AM$13)))) -> 2 | AN32: =IF($D32<>"Serviço",0,IF(AND(AUTOEVENTO="Manual",$M32=1),0,IF(OFFSET(CRONOPLE!$F$14,$M32,AN$13)="",10^12,OFFSET(CRONOPLE!$F$14,$M32,AN$13)))) -> 1000000000000 | AO32: =IF($D32<>"Serviço",0,IF(AND(AUTOEVENTO="Manual",$M32=1),0,IF(OFFSET(CRONOPLE!$F$14,$M32,AO$13)="",10^12,OFFSET(CRONOPLE!$F$14,$M32,AO$13)))) -> 3 | AP32: =IF($D32<>"Serviço",0,IF(AND(AUTOEVENTO="Manual",$M32=1),0,IF(OFFSET(CRONOPLE!$F$14,$M32,AP$13)="",10^12,OFFSET(CRONOPLE!$F$14,$M32,AP$13)))) -> 3 | AQ32: =IF($D32<>"Serviço",0,IF(AND(AUTOEVENTO="Manual",$M32=1),0,IF(OFFSET(CRONOPLE!$F$14,$M32,AQ$13)="",10^12,OFFSET(CRONOPLE!$F$14,$M32,AQ$13)))) -> 4 | AR32: =IF($D32<>"Serviço",0,IF(AND(AUTOEVENTO="Manual",$M32=1),0,IF(OFFSET(CRONOPLE!$F$14,$M32,AR$13)="",10^12,OFFSET(CRONOPLE!$F$14,$M32,AR$13)))) -> 4 | AS32: =IF($D32<>"Serviço",0,IF(AND(AUTOEVENTO="Manual",$M32=1),0,IF(OFFSET(CRONOPLE!$F$14,$M32,AS$13)="",10^12,OFFSET(CRONOPLE!$F$14,$M32,AS$13)))) -> 1000000000000 | AT32: =IF($D32<>"Serviço",0,IF(AND(AUTOEVENTO="Manual",$M32=1),0,IF(OFFSET(CRONOPLE!$F$14,$M32,AT$13)="",10^12,OFFSET(CRONOPLE!$F$14,$M32,AT$13)))) -> 1000000000000 | AU32: =IF($D32<>"Serviço",0,IF(AND(AUTOEVENTO="Manual",$M32=1),0,IF(OFFSET(CRONOPLE!$F$14,$M32,AU$13)="",10^12,OFFSET(CRONOPLE!$F$14,$M32,AU$13)))) -> 1000000000000 | AV32: =IF($D32<>"Serviço",0,IF(AND(AUTOEVENTO="Manual",$M32=1),0,IF(OFFSET(CRONOPLE!$F$14,$M32,AV$13)="",10^12,OFFSET(CRONOPLE!$F$14,$M32,AV$13)))) -> 1000000000000 | AX32: =IF($D32<>"Serviço",0,IF(OR(AND(AUTOEVENTO="Manual",$M32=1),$M32>(ROW(PLE.lastrow)-ROW(PLE.firstrow))),0,IF(OFFSET(PLE!$G$14,$M32,AX$13)="",10^12,OFFSET(PLE!$G$14,$M32,AX$13)))) -> 1000000000000 | AY32: =IF($D32<>"Serviço",0,IF(OR(AND(AUTOEVENTO="Manual",$M32=1),$M32>(ROW(PLE.lastrow)-ROW(PLE.firstrow))),0,IF(OFFSET(PLE!$G$14,$M32,AY$13)="",10^12,OFFSET(PLE!$G$14,$M32,AY$13)))) -> 1000000000000 | AZ32: =IF($D32<>"Serviço",0,IF(OR(AND(AUTOEVENTO="Manual",$M32=1),$M32>(ROW(PLE.lastrow)-ROW(PLE.firstrow))),0,IF(OFFSET(PLE!$G$14,$M32,AZ$13)="",10^12,OFFSET(PLE!$G$14,$M32,AZ$13)))) -> 1000000000000 | BA32: =IF($D32<>"Serviço",0,IF(OR(AND(AUTOEVENTO="Manual",$M32=1),$M32>(ROW(PLE.lastrow)-ROW(PLE.firstrow))),0,IF(OFFSET(PLE!$G$14,$M32,BA$13)="",10^12,OFFSET(PLE!$G$14,$M32,BA$13)))) -> 1000000000000 | BB32: =IF($D32<>"Serviço",0,IF(OR(AND(AUTOEVENTO="Manual",$M32=1),$M32>(ROW(PLE.lastrow)-ROW(PLE.firstrow))),0,IF(OFFSET(PLE!$G$14,$M32,BB$13)="",10^12,OFFSET(PLE!$G$14,$M32,BB$13)))) -> 1000000000000 | BC32: =IF($D32<>"Serviço",0,IF(OR(AND(AUTOEVENTO="Manual",$M32=1),$M32>(ROW(PLE.lastrow)-ROW(PLE.firstrow))),0,IF(OFFSET(PLE!$G$14,$M32,BC$13)="",10^12,OFFSET(PLE!$G$14,$M32,BC$13)))) -> 1000000000000 | BD32: =IF($D32<>"Serviço",0,IF(OR(AND(AUTOEVENTO="Manual",$M32=1),$M32>(ROW(PLE.lastrow)-ROW(PLE.firstrow))),0,IF(OFFSET(PLE!$G$14,$M32,BD$13)="",10^12,OFFSET(PLE!$G$14,$M32,BD$13)))) -> 1000000000000 | BE32: =IF($D32<>"Serviço",0,IF(OR(AND(AUTOEVENTO="Manual",$M32=1),$M32>(ROW(PLE.lastrow)-ROW(PLE.firstrow))),0,IF(OFFSET(PLE!$G$14,$M32,BE$13)="",10^12,OFFSET(PLE!$G$14,$M32,BE$13)))) -> 1000000000000 | BF32: =IF($D32<>"Serviço",0,IF(OR(AND(AUTOEVENTO="Manual",$M32=1),$M32>(ROW(PLE.lastrow)-ROW(PLE.firstrow))),0,IF(OFFSET(PLE!$G$14,$M32,BF$13)="",10^12,OFFSET(PLE!$G$14,$M32,BF$13)))) -> 1000000000000 | BG32: =IF($D32<>"Serviço",0,IF(OR(AND(AUTOEVENTO="Manual",$M32=1),$M32>(ROW(PLE.lastrow)-ROW(PLE.firstrow))),0,IF(OFFSET(PLE!$G$14,$M32,BG$13)="",10^12,OFFSET(PLE!$G$14,$M32,BG$13)))) -> 1000000000000
A33: 5 | B33: =OFFSET(ORÇAMENTO!C$15,ROW(B33)-ROW(B$15),0) -> S | C33: =OFFSET(ORÇAMENTO!L$15,ROW(C33)-ROW(C$15),0) -> F | D33: =OFFSET(ORÇAMENTO!N$15,ROW(D33)-ROW(D$15),0) -> Serviço | E33: =OFFSET(ORÇAMENTO!O$15,ROW(E33)-ROW(E$15),0) -> 1.4.7. | F33: =OFFSET(ORÇAMENTO!R$15,ROW(F33)-ROW(F$15),0) -> TRANSPORTE DE MATERIAL REMOVIDO, COM CAMINHÃO BASCULANTE, DMT = 2 KM | G33: =IF($D33<>"Serviço","",OFFSET(ORÇAMENTO!S$15,ROW(G33)-ROW(G$15),0)) -> M3XKM | H33: =IF($D33<>"Serviço",0,IF(ACOMPANHAMENTO="BM",ROUND(OFFSET(ORÇAMENTO!AJ$15,ROW(H33)-ROW(H$15),0),15-13*ORÇAMENTO!$AF$7),SUMPRODUCT(($Q$12:$AA$12<>"")*ROUND($Q33:$AA33,15-13*ORÇAMENTO!$AF$7)))) -> 30.53 | I33: 15,26*2 | K33: 5.ESCAVAÇÕES E MOVIMENTAÇÕES DE TERRA | L33: . | M33: =IF($D33<>"Serviço","",IF(AUTOEVENTO="manual",$A33,IF(ISERROR(MATCH($A33,$A$15:OFFSET($A33,-1,0),0)),MAX($M$15:OFFSET(M33,-1,0))+1,INDEX($M$15:OFFSET(M33,-1,0),MATCH($A33,$A$15:OFFSET($A33,-1,0),0))))) -> 5 | N33: =IF($D33<>"Serviço","",IF(AUTOEVENTO="Manual",IF($A33=0,"<-- defina o número do agrupador",OFFSET(EVENTOS!$D$14,$A33,0)),OFFSET($F$15,$A33,0))) -> ESCAVAÇÕES E MOVIMENTAÇÕES DE TERRA | Q33: =Q32*2 -> 30.527 | AB33: =IF(AND($D33="Serviço",AB$12<>0,$H33>0,OR(AUTOEVENTO<>"manual",$M33<>1)),ROUND(OFFSET($P33,0,AB$13),15-13*ORÇAMENTO!$AF$7)/$H33*OFFSET(ORÇAMENTO!$X$15,ROW(AB33)-ROW(AB$15),0),0) -> 84.57 | AC33: =IF(AND($D33="Serviço",AC$12<>0,$H33>0,OR(AUTOEVENTO<>"manual",$M33<>1)),ROUND(OFFSET($P33,0,AC$13),15-13*ORÇAMENTO!$AF$7)/$H33*OFFSET(ORÇAMENTO!$X$15,ROW(AC33)-ROW(AC$15),0),0) -> 0 | AD33: =IF(AND($D33="Serviço",AD$12<>0,$H33>0,OR(AUTOEVENTO<>"manual",$M33<>1)),ROUND(OFFSET($P33,0,AD$13),15-13*ORÇAMENTO!$AF$7)/$H33*OFFSET(ORÇAMENTO!$X$15,ROW(AD33)-ROW(AD$15),0),0) -> 0 | AE33: =IF(AND($D33="Serviço",AE$12<>0,$H33>0,OR(AUTOEVENTO<>"manual",$M33<>1)),ROUND(OFFSET($P33,0,AE$13),15-13*ORÇAMENTO!$AF$7)/$H33*OFFSET(ORÇAMENTO!$X$15,ROW(AE33)-ROW(AE$15),0),0) -> 0 | AF33: =IF(AND($D33="Serviço",AF$12<>0,$H33>0,OR(AUTOEVENTO<>"manual",$M33<>1)),ROUND(OFFSET($P33,0,AF$13),15-13*ORÇAMENTO!$AF$7)/$H33*OFFSET(ORÇAMENTO!$X$15,ROW(AF33)-ROW(AF$15),0),0) -> 0 | AG33: =IF(AND($D33="Serviço",AG$12<>0,$H33>0,OR(AUTOEVENTO<>"manual",$M33<>1)),ROUND(OFFSET($P33,0,AG$13),15-13*ORÇAMENTO!$AF$7)/$H33*OFFSET(ORÇAMENTO!$X$15,ROW(AG33)-ROW(AG$15),0),0) -> 0 | AH33: =IF(AND($D33="Serviço",AH$12<>0,$H33>0,OR(AUTOEVENTO<>"manual",$M33<>1)),ROUND(OFFSET($P33,0,AH$13),15-13*ORÇAMENTO!$AF$7)/$H33*OFFSET(ORÇAMENTO!$X$15,ROW(AH33)-ROW(AH$15),0),0) -> 0 | AI33: =IF(AND($D33="Serviço",AI$12<>0,$H33>0,OR(AUTOEVENTO<>"manual",$M33<>1)),ROUND(OFFSET($P33,0,AI$13),15-13*ORÇAMENTO!$AF$7)/$H33*OFFSET(ORÇAMENTO!$X$15,ROW(AI33)-ROW(AI$15),0),0) -> 0 | AJ33: =IF(AND($D33="Serviço",AJ$12<>0,$H33>0,OR(AUTOEVENTO<>"manual",$M33<>1)),ROUND(OFFSET($P33,0,AJ$13),15-13*ORÇAMENTO!$AF$7)/$H33*OFFSET(ORÇAMENTO!$X$15,ROW(AJ33)-ROW(AJ$15),0),0) -> 0 | AK33: =IF(AND($D33="Serviço",AK$12<>0,$H33>0,OR(AUTOEVENTO<>"manual",$M33<>1)),ROUND(OFFSET($P33,0,AK$13),15-13*ORÇAMENTO!$AF$7)/$H33*OFFSET(ORÇAMENTO!$X$15,ROW(AK33)-ROW(AK$15),0),0) -> 0 | AM33: =IF($D33<>"Serviço",0,IF(AND(AUTOEVENTO="Manual",$M33=1),0,IF(OFFSET(CRONOPLE!$F$14,$M33,AM$13)="",10^12,OFFSET(CRONOPLE!$F$14,$M33,AM$13)))) -> 2 | AN33: =IF($D33<>"Serviço",0,IF(AND(AUTOEVENTO="Manual",$M33=1),0,IF(OFFSET(CRONOPLE!$F$14,$M33,AN$13)="",10^12,OFFSET(CRONOPLE!$F$14,$M33,AN$13)))) -> 1000000000000 | AO33: =IF($D33<>"Serviço",0,IF(AND(AUTOEVENTO="Manual",$M33=1),0,IF(OFFSET(CRONOPLE!$F$14,$M33,AO$13)="",10^12,OFFSET(CRONOPLE!$F$14,$M33,AO$13)))) -> 3 | AP33: =IF($D33<>"Serviço",0,IF(AND(AUTOEVENTO="Manual",$M33=1),0,IF(OFFSET(CRONOPLE!$F$14,$M33,AP$13)="",10^12,OFFSET(CRONOPLE!$F$14,$M33,AP$13)))) -> 3 | AQ33: =IF($D33<>"Serviço",0,IF(AND(AUTOEVENTO="Manual",$M33=1),0,IF(OFFSET(CRONOPLE!$F$14,$M33,AQ$13)="",10^12,OFFSET(CRONOPLE!$F$14,$M33,AQ$13)))) -> 4 | AR33: =IF($D33<>"Serviço",0,IF(AND(AUTOEVENTO="Manual",$M33=1),0,IF(OFFSET(CRONOPLE!$F$14,$M33,AR$13)="",10^12,OFFSET(CRONOPLE!$F$14,$M33,AR$13)))) -> 4 | AS33: =IF($D33<>"Serviço",0,IF(AND(AUTOEVENTO="Manual",$M33=1),0,IF(OFFSET(CRONOPLE!$F$14,$M33,AS$13)="",10^12,OFFSET(CRONOPLE!$F$14,$M33,AS$13)))) -> 1000000000000 | AT33: =IF($D33<>"Serviço",0,IF(AND(AUTOEVENTO="Manual",$M33=1),0,IF(OFFSET(CRONOPLE!$F$14,$M33,AT$13)="",10^12,OFFSET(CRONOPLE!$F$14,$M33,AT$13)))) -> 1000000000000 | AU33: =IF($D33<>"Serviço",0,IF(AND(AUTOEVENTO="Manual",$M33=1),0,IF(OFFSET(CRONOPLE!$F$14,$M33,AU$13)="",10^12,OFFSET(CRONOPLE!$F$14,$M33,AU$13)))) -> 1000000000000 | AV33: =IF($D33<>"Serviço",0,IF(AND(AUTOEVENTO="Manual",$M33=1),0,IF(OFFSET(CRONOPLE!$F$14,$M33,AV$13)="",10^12,OFFSET(CRONOPLE!$F$14,$M33,AV$13)))) -> 1000000000000 | AX33: =IF($D33<>"Serviço",0,IF(OR(AND(AUTOEVENTO="Manual",$M33=1),$M33>(ROW(PLE.lastrow)-ROW(PLE.firstrow))),0,IF(OFFSET(PLE!$G$14,$M33,AX$13)="",10^12,OFFSET(PLE!$G$14,$M33,AX$13)))) -> 1000000000000 | AY33: =IF($D33<>"Serviço",0,IF(OR(AND(AUTOEVENTO="Manual",$M33=1),$M33>(ROW(PLE.lastrow)-ROW(PLE.firstrow))),0,IF(OFFSET(PLE!$G$14,$M33,AY$13)="",10^12,OFFSET(PLE!$G$14,$M33,AY$13)))) -> 1000000000000 | AZ33: =IF($D33<>"Serviço",0,IF(OR(AND(AUTOEVENTO="Manual",$M33=1),$M33>(ROW(PLE.lastrow)-ROW(PLE.firstrow))),0,IF(OFFSET(PLE!$G$14,$M33,AZ$13)="",10^12,OFFSET(PLE!$G$14,$M33,AZ$13)))) -> 1000000000000 | BA33: =IF($D33<>"Serviço",0,IF(OR(AND(AUTOEVENTO="Manual",$M33=1),$M33>(ROW(PLE.lastrow)-ROW(PLE.firstrow))),0,IF(OFFSET(PLE!$G$14,$M33,BA$13)="",10^12,OFFSET(PLE!$G$14,$M33,BA$13)))) -> 1000000000000 | BB33: =IF($D33<>"Serviço",0,IF(OR(AND(AUTOEVENTO="Manual",$M33=1),$M33>(ROW(PLE.lastrow)-ROW(PLE.firstrow))),0,IF(OFFSET(PLE!$G$14,$M33,BB$13)="",10^12,OFFSET(PLE!$G$14,$M33,BB$13)))) -> 1000000000000 | BC33: =IF($D33<>"Serviço",0,IF(OR(AND(AUTOEVENTO="Manual",$M33=1),$M33>(ROW(PLE.lastrow)-ROW(PLE.firstrow))),0,IF(OFFSET(PLE!$G$14,$M33,BC$13)="",10^12,OFFSET(PLE!$G$14,$M33,BC$13)))) -> 1000000000000 | BD33: =IF($D33<>"Serviço",0,IF(OR(AND(AUTOEVENTO="Manual",$M33=1),$M33>(ROW(PLE.lastrow)-ROW(PLE.firstrow))),0,IF(OFFSET(PLE!$G$14,$M33,BD$13)="",10^12,OFFSET(PLE!$G$14,$M33,BD$13)))) -> 1000000000000 | BE33: =IF($D33<>"Serviço",0,IF(OR(AND(AUTOEVENTO="Manual",$M33=1),$M33>(ROW(PLE.lastrow)-ROW(PLE.firstrow))),0,IF(OFFSET(PLE!$G$14,$M33,BE$13)="",10^12,OFFSET(PLE!$G$14,$M33,BE$13)))) -> 1000000000000 | BF33: =IF($D33<>"Serviço",0,IF(OR(AND(AUTOEVENTO="Manual",$M33=1),$M33>(ROW(PLE.lastrow)-ROW(PLE.firstrow))),0,IF(OFFSET(PLE!$G$14,$M33,BF$13)="",10^12,OFFSET(PLE!$G$14,$M33,BF$13)))) -> 1000000000000 | BG33: =IF($D33<>"Serviço",0,IF(OR(AND(AUTOEVENTO="Manual",$M33=1),$M33>(ROW(PLE.lastrow)-ROW(PLE.firstrow))),0,IF(OFFSET(PLE!$G$14,$M33,BG$13)="",10^12,OFFSET(PLE!$G$14,$M33,BG$13)))) -> 1000000000000
A34: 5 | B34: =OFFSET(ORÇAMENTO!C$15,ROW(B34)-ROW(B$15),0) -> S | C34: =OFFSET(ORÇAMENTO!L$15,ROW(C34)-ROW(C$15),0) -> F | D34: =OFFSET(ORÇAMENTO!N$15,ROW(D34)-ROW(D$15),0) -> Serviço | E34: =OFFSET(ORÇAMENTO!O$15,ROW(E34)-ROW(E$15),0) -> 1.4.8. | F34: =OFFSET(ORÇAMENTO!R$15,ROW(F34)-ROW(F$15),0) -> REGULARIZACAO E COMPACTACAO DE SUBLEITO ATE 20 CM DE ESPESSURA | G34: =IF($D34<>"Serviço","",OFFSET(ORÇAMENTO!S$15,ROW(G34)-ROW(G$15),0)) -> M2 | H34: =IF($D34<>"Serviço",0,IF(ACOMPANHAMENTO="BM",ROUND(OFFSET(ORÇAMENTO!AJ$15,ROW(H34)-ROW(H$15),0),15-13*ORÇAMENTO!$AF$7),SUMPRODUCT(($Q$12:$AA$12<>"")*ROUND($Q34:$AA34,15-13*ORÇAMENTO!$AF$7)))) -> 2136.4 | K34: 5.ESCAVAÇÕES E MOVIMENTAÇÕES DE TERRA | L34: . | M34: =IF($D34<>"Serviço","",IF(AUTOEVENTO="manual",$A34,IF(ISERROR(MATCH($A34,$A$15:OFFSET($A34,-1,0),0)),MAX($M$15:OFFSET(M34,-1,0))+1,INDEX($M$15:OFFSET(M34,-1,0),MATCH($A34,$A$15:OFFSET($A34,-1,0),0))))) -> 5 | N34: =IF($D34<>"Serviço","",IF(AUTOEVENTO="Manual",IF($A34=0,"<-- defina o número do agrupador",OFFSET(EVENTOS!$D$14,$A34,0)),OFFSET($F$15,$A34,0))) -> ESCAVAÇÕES E MOVIMENTAÇÕES DE TERRA | Q34: 2136.4 | AB34: =IF(AND($D34="Serviço",AB$12<>0,$H34>0,OR(AUTOEVENTO<>"manual",$M34<>1)),ROUND(OFFSET($P34,0,AB$13),15-13*ORÇAMENTO!$AF$7)/$H34*OFFSET(ORÇAMENTO!$X$15,ROW(AB34)-ROW(AB$15),0),0) -> 5212.82 | AC34: =IF(AND($D34="Serviço",AC$12<>0,$H34>0,OR(AUTOEVENTO<>"manual",$M34<>1)),ROUND(OFFSET($P34,0,AC$13),15-13*ORÇAMENTO!$AF$7)/$H34*OFFSET(ORÇAMENTO!$X$15,ROW(AC34)-ROW(AC$15),0),0) -> 0 | AD34: =IF(AND($D34="Serviço",AD$12<>0,$H34>0,OR(AUTOEVENTO<>"manual",$M34<>1)),ROUND(OFFSET($P34,0,AD$13),15-13*ORÇAMENTO!$AF$7)/$H34*OFFSET(ORÇAMENTO!$X$15,ROW(AD34)-ROW(AD$15),0),0) -> 0 | AE34: =IF(AND($D34="Serviço",AE$12<>0,$H34>0,OR(AUTOEVENTO<>"manual",$M34<>1)),ROUND(OFFSET($P34,0,AE$13),15-13*ORÇAMENTO!$AF$7)/$H34*OFFSET(ORÇAMENTO!$X$15,ROW(AE34)-ROW(AE$15),0),0) -> 0 | AF34: =IF(AND($D34="Serviço",AF$12<>0,$H34>0,OR(AUTOEVENTO<>"manual",$M34<>1)),ROUND(OFFSET($P34,0,AF$13),15-13*ORÇAMENTO!$AF$7)/$H34*OFFSET(ORÇAMENTO!$X$15,ROW(AF34)-ROW(AF$15),0),0) -> 0 | AG34: =IF(AND($D34="Serviço",AG$12<>0,$H34>0,OR(AUTOEVENTO<>"manual",$M34<>1)),ROUND(OFFSET($P34,0,AG$13),15-13*ORÇAMENTO!$AF$7)/$H34*OFFSET(ORÇAMENTO!$X$15,ROW(AG34)-ROW(AG$15),0),0) -> 0 | AH34: =IF(AND($D34="Serviço",AH$12<>0,$H34>0,OR(AUTOEVENTO<>"manual",$M34<>1)),ROUND(OFFSET($P34,0,AH$13),15-13*ORÇAMENTO!$AF$7)/$H34*OFFSET(ORÇAMENTO!$X$15,ROW(AH34)-ROW(AH$15),0),0) -> 0 | AI34: =IF(AND($D34="Serviço",AI$12<>0,$H34>0,OR(AUTOEVENTO<>"manual",$M34<>1)),ROUND(OFFSET($P34,0,AI$13),15-13*ORÇAMENTO!$AF$7)/$H34*OFFSET(ORÇAMENTO!$X$15,ROW(AI34)-ROW(AI$15),0),0) -> 0 | AJ34: =IF(AND($D34="Serviço",AJ$12<>0,$H34>0,OR(AUTOEVENTO<>"manual",$M34<>1)),ROUND(OFFSET($P34,0,AJ$13),15-13*ORÇAMENTO!$AF$7)/$H34*OFFSET(ORÇAMENTO!$X$15,ROW(AJ34)-ROW(AJ$15),0),0) -> 0 | AK34: =IF(AND($D34="Serviço",AK$12<>0,$H34>0,OR(AUTOEVENTO<>"manual",$M34<>1)),ROUND(OFFSET($P34,0,AK$13),15-13*ORÇAMENTO!$AF$7)/$H34*OFFSET(ORÇAMENTO!$X$15,ROW(AK34)-ROW(AK$15),0),0) -> 0 | AM34: =IF($D34<>"Serviço",0,IF(AND(AUTOEVENTO="Manual",$M34=1),0,IF(OFFSET(CRONOPLE!$F$14,$M34,AM$13)="",10^12,OFFSET(CRONOPLE!$F$14,$M34,AM$13)))) -> 2 | AN34: =IF($D34<>"Serviço",0,IF(AND(AUTOEVENTO="Manual",$M34=1),0,IF(OFFSET(CRONOPLE!$F$14,$M34,AN$13)="",10^12,OFFSET(CRONOPLE!$F$14,$M34,AN$13)))) -> 1000000000000 | AO34: =IF($D34<>"Serviço",0,IF(AND(AUTOEVENTO="Manual",$M34=1),0,IF(OFFSET(CRONOPLE!$F$14,$M34,AO$13)="",10^12,OFFSET(CRONOPLE!$F$14,$M34,AO$13)))) -> 3 | AP34: =IF($D34<>"Serviço",0,IF(AND(AUTOEVENTO="Manual",$M34=1),0,IF(OFFSET(CRONOPLE!$F$14,$M34,AP$13)="",10^12,OFFSET(CRONOPLE!$F$14,$M34,AP$13)))) -> 3 | AQ34: =IF($D34<>"Serviço",0,IF(AND(AUTOEVENTO="Manual",$M34=1),0,IF(OFFSET(CRONOPLE!$F$14,$M34,AQ$13)="",10^12,OFFSET(CRONOPLE!$F$14,$M34,AQ$13)))) -> 4 | AR34: =IF($D34<>"Serviço",0,IF(AND(AUTOEVENTO="Manual",$M34=1),0,IF(OFFSET(CRONOPLE!$F$14,$M34,AR$13)="",10^12,OFFSET(CRONOPLE!$F$14,$M34,AR$13)))) -> 4 | AS34: =IF($D34<>"Serviço",0,IF(AND(AUTOEVENTO="Manual",$M34=1),0,IF(OFFSET(CRONOPLE!$F$14,$M34,AS$13)="",10^12,OFFSET(CRONOPLE!$F$14,$M34,AS$13)))) -> 1000000000000 | AT34: =IF($D34<>"Serviço",0,IF(AND(AUTOEVENTO="Manual",$M34=1),0,IF(OFFSET(CRONOPLE!$F$14,$M34,AT$13)="",10^12,OFFSET(CRONOPLE!$F$14,$M34,AT$13)))) -> 1000000000000 | AU34: =IF($D34<>"Serviço",0,IF(AND(AUTOEVENTO="Manual",$M34=1),0,IF(OFFSET(CRONOPLE!$F$14,$M34,AU$13)="",10^12,OFFSET(CRONOPLE!$F$14,$M34,AU$13)))) -> 1000000000000 | AV34: =IF($D34<>"Serviço",0,IF(AND(AUTOEVENTO="Manual",$M34=1),0,IF(OFFSET(CRONOPLE!$F$14,$M34,AV$13)="",10^12,OFFSET(CRONOPLE!$F$14,$M34,AV$13)))) -> 1000000000000 | AX34: =IF($D34<>"Serviço",0,IF(OR(AND(AUTOEVENTO="Manual",$M34=1),$M34>(ROW(PLE.lastrow)-ROW(PLE.firstrow))),0,IF(OFFSET(PLE!$G$14,$M34,AX$13)="",10^12,OFFSET(PLE!$G$14,$M34,AX$13)))) -> 1000000000000 | AY34: =IF($D34<>"Serviço",0,IF(OR(AND(AUTOEVENTO="Manual",$M34=1),$M34>(ROW(PLE.lastrow)-ROW(PLE.firstrow))),0,IF(OFFSET(PLE!$G$14,$M34,AY$13)="",10^12,OFFSET(PLE!$G$14,$M34,AY$13)))) -> 1000000000000 | AZ34: =IF($D34<>"Serviço",0,IF(OR(AND(AUTOEVENTO="Manual",$M34=1),$M34>(ROW(PLE.lastrow)-ROW(PLE.firstrow))),0,IF(OFFSET(PLE!$G$14,$M34,AZ$13)="",10^12,OFFSET(PLE!$G$14,$M34,AZ$13)))) -> 1000000000000 | BA34: =IF($D34<>"Serviço",0,IF(OR(AND(AUTOEVENTO="Manual",$M34=1),$M34>(ROW(PLE.lastrow)-ROW(PLE.firstrow))),0,IF(OFFSET(PLE!$G$14,$M34,BA$13)="",10^12,OFFSET(PLE!$G$14,$M34,BA$13)))) -> 1000000000000 | BB34: =IF($D34<>"Serviço",0,IF(OR(AND(AUTOEVENTO="Manual",$M34=1),$M34>(ROW(PLE.lastrow)-ROW(PLE.firstrow))),0,IF(OFFSET(PLE!$G$14,$M34,BB$13)="",10^12,OFFSET(PLE!$G$14,$M34,BB$13)))) -> 1000000000000 | BC34: =IF($D34<>"Serviço",0,IF(OR(AND(AUTOEVENTO="Manual",$M34=1),$M34>(ROW(PLE.lastrow)-ROW(PLE.firstrow))),0,IF(OFFSET(PLE!$G$14,$M34,BC$13)="",10^12,OFFSET(PLE!$G$14,$M34,BC$13)))) -> 1000000000000 | BD34: =IF($D34<>"Serviço",0,IF(OR(AND(AUTOEVENTO="Manual",$M34=1),$M34>(ROW(PLE.lastrow)-ROW(PLE.firstrow))),0,IF(OFFSET(PLE!$G$14,$M34,BD$13)="",10^12,OFFSET(PLE!$G$14,$M34,BD$13)))) -> 1000000000000 | BE34: =IF($D34<>"Serviço",0,IF(OR(AND(AUTOEVENTO="Manual",$M34=1),$M34>(ROW(PLE.lastrow)-ROW(PLE.firstrow))),0,IF(OFFSET(PLE!$G$14,$M34,BE$13)="",10^12,OFFSET(PLE!$G$14,$M34,BE$13)))) -> 1000000000000 | BF34: =IF($D34<>"Serviço",0,IF(OR(AND(AUTOEVENTO="Manual",$M34=1),$M34>(ROW(PLE.lastrow)-ROW(PLE.firstrow))),0,IF(OFFSET(PLE!$G$14,$M34,BF$13)="",10^12,OFFSET(PLE!$G$14,$M34,BF$13)))) -> 1000000000000 | BG34: =IF($D34<>"Serviço",0,IF(OR(AND(AUTOEVENTO="Manual",$M34=1),$M34>(ROW(PLE.lastrow)-ROW(PLE.firstrow))),0,IF(OFFSET(PLE!$G$14,$M34,BG$13)="",10^12,OFFSET(PLE!$G$14,$M34,BG$13)))) -> 1000000000000
A35: 0 | B35: =OFFSET(ORÇAMENTO!C$15,ROW(B35)-ROW(B$15),0) -> 2 | C35: =OFFSET(ORÇAMENTO!L$15,ROW(C35)-ROW(C$15),0) -> F | D35: =OFFSET(ORÇAMENTO!N$15,ROW(D35)-ROW(D$15),0) -> Nível 2 | E35: =OFFSET(ORÇAMENTO!O$15,ROW(E35)-ROW(E$15),0) -> 1.5. | F35: =OFFSET(ORÇAMENTO!R$15,ROW(F35)-ROW(F$15),0) -> DRENAGEM | G35: =IF($D35<>"Serviço","",OFFSET(ORÇAMENTO!S$15,ROW(G35)-ROW(G$15),0)) ->  | H35: =IF($D35<>"Serviço",0,IF(ACOMPANHAMENTO="BM",ROUND(OFFSET(ORÇAMENTO!AJ$15,ROW(H35)-ROW(H$15),0),15-13*ORÇAMENTO!$AF$7),SUMPRODUCT(($Q$12:$AA$12<>"")*ROUND($Q35:$AA35,15-13*ORÇAMENTO!$AF$7)))) -> 0 | L35: . | M35: =IF($D35<>"Serviço","",IF(AUTOEVENTO="manual",$A35,IF(ISERROR(MATCH($A35,$A$15:OFFSET($A35,-1,0),0)),MAX($M$15:OFFSET(M35,-1,0))+1,INDEX($M$15:OFFSET(M35,-1,0),MATCH($A35,$A$15:OFFSET($A35,-1,0),0))))) ->  | N35: =IF($D35<>"Serviço","",IF(AUTOEVENTO="Manual",IF($A35=0,"<-- defina o número do agrupador",OFFSET(EVENTOS!$D$14,$A35,0)),OFFSET($F$15,$A35,0))) ->  | AB35: =IF(AND($D35="Serviço",AB$12<>0,$H35>0,OR(AUTOEVENTO<>"manual",$M35<>1)),ROUND(OFFSET($P35,0,AB$13),15-13*ORÇAMENTO!$AF$7)/$H35*OFFSET(ORÇAMENTO!$X$15,ROW(AB35)-ROW(AB$15),0),0) -> 0 | AC35: =IF(AND($D35="Serviço",AC$12<>0,$H35>0,OR(AUTOEVENTO<>"manual",$M35<>1)),ROUND(OFFSET($P35,0,AC$13),15-13*ORÇAMENTO!$AF$7)/$H35*OFFSET(ORÇAMENTO!$X$15,ROW(AC35)-ROW(AC$15),0),0) -> 0 | AD35: =IF(AND($D35="Serviço",AD$12<>0,$H35>0,OR(AUTOEVENTO<>"manual",$M35<>1)),ROUND(OFFSET($P35,0,AD$13),15-13*ORÇAMENTO!$AF$7)/$H35*OFFSET(ORÇAMENTO!$X$15,ROW(AD35)-ROW(AD$15),0),0) -> 0 | AE35: =IF(AND($D35="Serviço",AE$12<>0,$H35>0,OR(AUTOEVENTO<>"manual",$M35<>1)),ROUND(OFFSET($P35,0,AE$13),15-13*ORÇAMENTO!$AF$7)/$H35*OFFSET(ORÇAMENTO!$X$15,ROW(AE35)-ROW(AE$15),0),0) -> 0 | AF35: =IF(AND($D35="Serviço",AF$12<>0,$H35>0,OR(AUTOEVENTO<>"manual",$M35<>1)),ROUND(OFFSET($P35,0,AF$13),15-13*ORÇAMENTO!$AF$7)/$H35*OFFSET(ORÇAMENTO!$X$15,ROW(AF35)-ROW(AF$15),0),0) -> 0 | AG35: =IF(AND($D35="Serviço",AG$12<>0,$H35>0,OR(AUTOEVENTO<>"manual",$M35<>1)),ROUND(OFFSET($P35,0,AG$13),15-13*ORÇAMENTO!$AF$7)/$H35*OFFSET(ORÇAMENTO!$X$15,ROW(AG35)-ROW(AG$15),0),0) -> 0 | AH35: =IF(AND($D35="Serviço",AH$12<>0,$H35>0,OR(AUTOEVENTO<>"manual",$M35<>1)),ROUND(OFFSET($P35,0,AH$13),15-13*ORÇAMENTO!$AF$7)/$H35*OFFSET(ORÇAMENTO!$X$15,ROW(AH35)-ROW(AH$15),0),0) -> 0 | AI35: =IF(AND($D35="Serviço",AI$12<>0,$H35>0,OR(AUTOEVENTO<>"manual",$M35<>1)),ROUND(OFFSET($P35,0,AI$13),15-13*ORÇAMENTO!$AF$7)/$H35*OFFSET(ORÇAMENTO!$X$15,ROW(AI35)-ROW(AI$15),0),0) -> 0 | AJ35: =IF(AND($D35="Serviço",AJ$12<>0,$H35>0,OR(AUTOEVENTO<>"manual",$M35<>1)),ROUND(OFFSET($P35,0,AJ$13),15-13*ORÇAMENTO!$AF$7)/$H35*OFFSET(ORÇAMENTO!$X$15,ROW(AJ35)-ROW(AJ$15),0),0) -> 0 | AK35: =IF(AND($D35="Serviço",AK$12<>0,$H35>0,OR(AUTOEVENTO<>"manual",$M35<>1)),ROUND(OFFSET($P35,0,AK$13),15-13*ORÇAMENTO!$AF$7)/$H35*OFFSET(ORÇAMENTO!$X$15,ROW(AK35)-ROW(AK$15),0),0) -> 0 | AM35: =IF($D35<>"Serviço",0,IF(AND(AUTOEVENTO="Manual",$M35=1),0,IF(OFFSET(CRONOPLE!$F$14,$M35,AM$13)="",10^12,OFFSET(CRONOPLE!$F$14,$M35,AM$13)))) -> 0 | AN35: =IF($D35<>"Serviço",0,IF(AND(AUTOEVENTO="Manual",$M35=1),0,IF(OFFSET(CRONOPLE!$F$14,$M35,AN$13)="",10^12,OFFSET(CRONOPLE!$F$14,$M35,AN$13)))) -> 0 | AO35: =IF($D35<>"Serviço",0,IF(AND(AUTOEVENTO="Manual",$M35=1),0,IF(OFFSET(CRONOPLE!$F$14,$M35,AO$13)="",10^12,OFFSET(CRONOPLE!$F$14,$M35,AO$13)))) -> 0 | AP35: =IF($D35<>"Serviço",0,IF(AND(AUTOEVENTO="Manual",$M35=1),0,IF(OFFSET(CRONOPLE!$F$14,$M35,AP$13)="",10^12,OFFSET(CRONOPLE!$F$14,$M35,AP$13)))) -> 0 | AQ35: =IF($D35<>"Serviço",0,IF(AND(AUTOEVENTO="Manual",$M35=1),0,IF(OFFSET(CRONOPLE!$F$14,$M35,AQ$13)="",10^12,OFFSET(CRONOPLE!$F$14,$M35,AQ$13)))) -> 0 | AR35: =IF($D35<>"Serviço",0,IF(AND(AUTOEVENTO="Manual",$M35=1),0,IF(OFFSET(CRONOPLE!$F$14,$M35,AR$13)="",10^12,OFFSET(CRONOPLE!$F$14,$M35,AR$13)))) -> 0 | AS35: =IF($D35<>"Serviço",0,IF(AND(AUTOEVENTO="Manual",$M35=1),0,IF(OFFSET(CRONOPLE!$F$14,$M35,AS$13)="",10^12,OFFSET(CRONOPLE!$F$14,$M35,AS$13)))) -> 0 | AT35: =IF($D35<>"Serviço",0,IF(AND(AUTOEVENTO="Manual",$M35=1),0,IF(OFFSET(CRONOPLE!$F$14,$M35,AT$13)="",10^12,OFFSET(CRONOPLE!$F$14,$M35,AT$13)))) -> 0 | AU35: =IF($D35<>"Serviço",0,IF(AND(AUTOEVENTO="Manual",$M35=1),0,IF(OFFSET(CRONOPLE!$F$14,$M35,AU$13)="",10^12,OFFSET(CRONOPLE!$F$14,$M35,AU$13)))) -> 0 | AV35: =IF($D35<>"Serviço",0,IF(AND(AUTOEVENTO="Manual",$M35=1),0,IF(OFFSET(CRONOPLE!$F$14,$M35,AV$13)="",10^12,OFFSET(CRONOPLE!$F$14,$M35,AV$13)))) -> 0 | AX35: =IF($D35<>"Serviço",0,IF(OR(AND(AUTOEVENTO="Manual",$M35=1),$M35>(ROW(PLE.lastrow)-ROW(PLE.firstrow))),0,IF(OFFSET(PLE!$G$14,$M35,AX$13)="",10^12,OFFSET(PLE!$G$14,$M35,AX$13)))) -> 0 | AY35: =IF($D35<>"Serviço",0,IF(OR(AND(AUTOEVENTO="Manual",$M35=1),$M35>(ROW(PLE.lastrow)-ROW(PLE.firstrow))),0,IF(OFFSET(PLE!$G$14,$M35,AY$13)="",10^12,OFFSET(PLE!$G$14,$M35,AY$13)))) -> 0 | AZ35: =IF($D35<>"Serviço",0,IF(OR(AND(AUTOEVENTO="Manual",$M35=1),$M35>(ROW(PLE.lastrow)-ROW(PLE.firstrow))),0,IF(OFFSET(PLE!$G$14,$M35,AZ$13)="",10^12,OFFSET(PLE!$G$14,$M35,AZ$13)))) -> 0 | BA35: =IF($D35<>"Serviço",0,IF(OR(AND(AUTOEVENTO="Manual",$M35=1),$M35>(ROW(PLE.lastrow)-ROW(PLE.firstrow))),0,IF(OFFSET(PLE!$G$14,$M35,BA$13)="",10^12,OFFSET(PLE!$G$14,$M35,BA$13)))) -> 0 | BB35: =IF($D35<>"Serviço",0,IF(OR(AND(AUTOEVENTO="Manual",$M35=1),$M35>(ROW(PLE.lastrow)-ROW(PLE.firstrow))),0,IF(OFFSET(PLE!$G$14,$M35,BB$13)="",10^12,OFFSET(PLE!$G$14,$M35,BB$13)))) -> 0 | BC35: =IF($D35<>"Serviço",0,IF(OR(AND(AUTOEVENTO="Manual",$M35=1),$M35>(ROW(PLE.lastrow)-ROW(PLE.firstrow))),0,IF(OFFSET(PLE!$G$14,$M35,BC$13)="",10^12,OFFSET(PLE!$G$14,$M35,BC$13)))) -> 0 | BD35: =IF($D35<>"Serviço",0,IF(OR(AND(AUTOEVENTO="Manual",$M35=1),$M35>(ROW(PLE.lastrow)-ROW(PLE.firstrow))),0,IF(OFFSET(PLE!$G$14,$M35,BD$13)="",10^12,OFFSET(PLE!$G$14,$M35,BD$13)))) -> 0 | BE35: =IF($D35<>"Serviço",0,IF(OR(AND(AUTOEVENTO="Manual",$M35=1),$M35>(ROW(PLE.lastrow)-ROW(PLE.firstrow))),0,IF(OFFSET(PLE!$G$14,$M35,BE$13)="",10^12,OFFSET(PLE!$G$14,$M35,BE$13)))) -> 0 | BF35: =IF($D35<>"Serviço",0,IF(OR(AND(AUTOEVENTO="Manual",$M35=1),$M35>(ROW(PLE.lastrow)-ROW(PLE.firstrow))),0,IF(OFFSET(PLE!$G$14,$M35,BF$13)="",10^12,OFFSET(PLE!$G$14,$M35,BF$13)))) -> 0 | BG35: =IF($D35<>"Serviço",0,IF(OR(AND(AUTOEVENTO="Manual",$M35=1),$M35>(ROW(PLE.lastrow)-ROW(PLE.firstrow))),0,IF(OFFSET(PLE!$G$14,$M35,BG$13)="",10^12,OFFSET(PLE!$G$14,$M35,BG$13)))) -> 0
A36: 6 | B36: =OFFSET(ORÇAMENTO!C$15,ROW(B36)-ROW(B$15),0) -> S | C36: =OFFSET(ORÇAMENTO!L$15,ROW(C36)-ROW(C$15),0) -> F | D36: =OFFSET(ORÇAMENTO!N$15,ROW(D36)-ROW(D$15),0) -> Serviço | E36: =OFFSET(ORÇAMENTO!O$15,ROW(E36)-ROW(E$15),0) -> 1.5.1. | F36: =OFFSET(ORÇAMENTO!R$15,ROW(F36)-ROW(F$15),0) -> TUBO DE CONCRETO PARA REDES COLETORAS DE ÁGUAS PLUVIAIS, DIÂMETRO DE 400 MM, JUNTA RÍGIDA, INSTALADO EM LOCAL COM BAIXO NÍVEL DE INTERFERÊNCIAS - FORNECIMENTO E ASSENTAMENTO. AF_12/2015 | G36: =IF($D36<>"Serviço","",OFFSET(ORÇAMENTO!S$15,ROW(G36)-ROW(G$15),0)) -> M | H36: =IF($D36<>"Serviço",0,IF(ACOMPANHAMENTO="BM",ROUND(OFFSET(ORÇAMENTO!AJ$15,ROW(H36)-ROW(H$15),0),15-13*ORÇAMENTO!$AF$7),SUMPRODUCT(($Q$12:$AA$12<>"")*ROUND($Q36:$AA36,15-13*ORÇAMENTO!$AF$7)))) -> 254 | K36: 6.DRENAGEM (TUBOS) | L36: . | M36: =IF($D36<>"Serviço","",IF(AUTOEVENTO="manual",$A36,IF(ISERROR(MATCH($A36,$A$15:OFFSET($A36,-1,0),0)),MAX($M$15:OFFSET(M36,-1,0))+1,INDEX($M$15:OFFSET(M36,-1,0),MATCH($A36,$A$15:OFFSET($A36,-1,0),0))))) -> 6 | N36: =IF($D36<>"Serviço","",IF(AUTOEVENTO="Manual",IF($A36=0,"<-- defina o número do agrupador",OFFSET(EVENTOS!$D$14,$A36,0)),OFFSET($F$15,$A36,0))) -> DRENAGEM (TUBOS) | Q36: 254 | AB36: =IF(AND($D36="Serviço",AB$12<>0,$H36>0,OR(AUTOEVENTO<>"manual",$M36<>1)),ROUND(OFFSET($P36,0,AB$13),15-13*ORÇAMENTO!$AF$7)/$H36*OFFSET(ORÇAMENTO!$X$15,ROW(AB36)-ROW(AB$15),0),0) -> 49936.4 | AC36: =IF(AND($D36="Serviço",AC$12<>0,$H36>0,OR(AUTOEVENTO<>"manual",$M36<>1)),ROUND(OFFSET($P36,0,AC$13),15-13*ORÇAMENTO!$AF$7)/$H36*OFFSET(ORÇAMENTO!$X$15,ROW(AC36)-ROW(AC$15),0),0) -> 0 | AD36: =IF(AND($D36="Serviço",AD$12<>0,$H36>0,OR(AUTOEVENTO<>"manual",$M36<>1)),ROUND(OFFSET($P36,0,AD$13),15-13*ORÇAMENTO!$AF$7)/$H36*OFFSET(ORÇAMENTO!$X$15,ROW(AD36)-ROW(AD$15),0),0) -> 0 | AE36: =IF(AND($D36="Serviço",AE$12<>0,$H36>0,OR(AUTOEVENTO<>"manual",$M36<>1)),ROUND(OFFSET($P36,0,AE$13),15-13*ORÇAMENTO!$AF$7)/$H36*OFFSET(ORÇAMENTO!$X$15,ROW(AE36)-ROW(AE$15),0),0) -> 0 | AF36: =IF(AND($D36="Serviço",AF$12<>0,$H36>0,OR(AUTOEVENTO<>"manual",$M36<>1)),ROUND(OFFSET($P36,0,AF$13),15-13*ORÇAMENTO!$AF$7)/$H36*OFFSET(ORÇAMENTO!$X$15,ROW(AF36)-ROW(AF$15),0),0) -> 0 | AG36: =IF(AND($D36="Serviço",AG$12<>0,$H36>0,OR(AUTOEVENTO<>"manual",$M36<>1)),ROUND(OFFSET($P36,0,AG$13),15-13*ORÇAMENTO!$AF$7)/$H36*OFFSET(ORÇAMENTO!$X$15,ROW(AG36)-ROW(AG$15),0),0) -> 0 | AH36: =IF(AND($D36="Serviço",AH$12<>0,$H36>0,OR(AUTOEVENTO<>"manual",$M36<>1)),ROUND(OFFSET($P36,0,AH$13),15-13*ORÇAMENTO!$AF$7)/$H36*OFFSET(ORÇAMENTO!$X$15,ROW(AH36)-ROW(AH$15),0),0) -> 0 | AI36: =IF(AND($D36="Serviço",AI$12<>0,$H36>0,OR(AUTOEVENTO<>"manual",$M36<>1)),ROUND(OFFSET($P36,0,AI$13),15-13*ORÇAMENTO!$AF$7)/$H36*OFFSET(ORÇAMENTO!$X$15,ROW(AI36)-ROW(AI$15),0),0) -> 0 | AJ36: =IF(AND($D36="Serviço",AJ$12<>0,$H36>0,OR(AUTOEVENTO<>"manual",$M36<>1)),ROUND(OFFSET($P36,0,AJ$13),15-13*ORÇAMENTO!$AF$7)/$H36*OFFSET(ORÇAMENTO!$X$15,ROW(AJ36)-ROW(AJ$15),0),0) -> 0 | AK36: =IF(AND($D36="Serviço",AK$12<>0,$H36>0,OR(AUTOEVENTO<>"manual",$M36<>1)),ROUND(OFFSET($P36,0,AK$13),15-13*ORÇAMENTO!$AF$7)/$H36*OFFSET(ORÇAMENTO!$X$15,ROW(AK36)-ROW(AK$15),0),0) -> 0 | AM36: =IF($D36<>"Serviço",0,IF(AND(AUTOEVENTO="Manual",$M36=1),0,IF(OFFSET(CRONOPLE!$F$14,$M36,AM$13)="",10^12,OFFSET(CRONOPLE!$F$14,$M36,AM$13)))) -> 3 | AN36: =IF($D36<>"Serviço",0,IF(AND(AUTOEVENTO="Manual",$M36=1),0,IF(OFFSET(CRONOPLE!$F$14,$M36,AN$13)="",10^12,OFFSET(CRONOPLE!$F$14,$M36,AN$13)))) -> 1000000000000 | AO36: =IF($D36<>"Serviço",0,IF(AND(AUTOEVENTO="Manual",$M36=1),0,IF(OFFSET(CRONOPLE!$F$14,$M36,AO$13)="",10^12,OFFSET(CRONOPLE!$F$14,$M36,AO$13)))) -> 4 | AP36: =IF($D36<>"Serviço",0,IF(AND(AUTOEVENTO="Manual",$M36=1),0,IF(OFFSET(CRONOPLE!$F$14,$M36,AP$13)="",10^12,OFFSET(CRONOPLE!$F$14,$M36,AP$13)))) -> 4 | AQ36: =IF($D36<>"Serviço",0,IF(AND(AUTOEVENTO="Manual",$M36=1),0,IF(OFFSET(CRONOPLE!$F$14,$M36,AQ$13)="",10^12,OFFSET(CRONOPLE!$F$14,$M36,AQ$13)))) -> 4 | AR36: =IF($D36<>"Serviço",0,IF(AND(AUTOEVENTO="Manual",$M36=1),0,IF(OFFSET(CRONOPLE!$F$14,$M36,AR$13)="",10^12,OFFSET(CRONOPLE!$F$14,$M36,AR$13)))) -> 4 | AS36: =IF($D36<>"Serviço",0,IF(AND(AUTOEVENTO="Manual",$M36=1),0,IF(OFFSET(CRONOPLE!$F$14,$M36,AS$13)="",10^12,OFFSET(CRONOPLE!$F$14,$M36,AS$13)))) -> 1000000000000 | AT36: =IF($D36<>"Serviço",0,IF(AND(AUTOEVENTO="Manual",$M36=1),0,IF(OFFSET(CRONOPLE!$F$14,$M36,AT$13)="",10^12,OFFSET(CRONOPLE!$F$14,$M36,AT$13)))) -> 1000000000000 | AU36: =IF($D36<>"Serviço",0,IF(AND(AUTOEVENTO="Manual",$M36=1),0,IF(OFFSET(CRONOPLE!$F$14,$M36,AU$13)="",10^12,OFFSET(CRONOPLE!$F$14,$M36,AU$13)))) -> 1000000000000 | AV36: =IF($D36<>"Serviço",0,IF(AND(AUTOEVENTO="Manual",$M36=1),0,IF(OFFSET(CRONOPLE!$F$14,$M36,AV$13)="",10^12,OFFSET(CRONOPLE!$F$14,$M36,AV$13)))) -> 1000000000000 | AX36: =IF($D36<>"Serviço",0,IF(OR(AND(AUTOEVENTO="Manual",$M36=1),$M36>(ROW(PLE.lastrow)-ROW(PLE.firstrow))),0,IF(OFFSET(PLE!$G$14,$M36,AX$13)="",10^12,OFFSET(PLE!$G$14,$M36,AX$13)))) -> 1000000000000 | AY36: =IF($D36<>"Serviço",0,IF(OR(AND(AUTOEVENTO="Manual",$M36=1),$M36>(ROW(PLE.lastrow)-ROW(PLE.firstrow))),0,IF(OFFSET(PLE!$G$14,$M36,AY$13)="",10^12,OFFSET(PLE!$G$14,$M36,AY$13)))) -> 1000000000000 | AZ36: =IF($D36<>"Serviço",0,IF(OR(AND(AUTOEVENTO="Manual",$M36=1),$M36>(ROW(PLE.lastrow)-ROW(PLE.firstrow))),0,IF(OFFSET(PLE!$G$14,$M36,AZ$13)="",10^12,OFFSET(PLE!$G$14,$M36,AZ$13)))) -> 1000000000000 | BA36: =IF($D36<>"Serviço",0,IF(OR(AND(AUTOEVENTO="Manual",$M36=1),$M36>(ROW(PLE.lastrow)-ROW(PLE.firstrow))),0,IF(OFFSET(PLE!$G$14,$M36,BA$13)="",10^12,OFFSET(PLE!$G$14,$M36,BA$13)))) -> 1000000000000 | BB36: =IF($D36<>"Serviço",0,IF(OR(AND(AUTOEVENTO="Manual",$M36=1),$M36>(ROW(PLE.lastrow)-ROW(PLE.firstrow))),0,IF(OFFSET(PLE!$G$14,$M36,BB$13)="",10^12,OFFSET(PLE!$G$14,$M36,BB$13)))) -> 1000000000000 | BC36: =IF($D36<>"Serviço",0,IF(OR(AND(AUTOEVENTO="Manual",$M36=1),$M36>(ROW(PLE.lastrow)-ROW(PLE.firstrow))),0,IF(OFFSET(PLE!$G$14,$M36,BC$13)="",10^12,OFFSET(PLE!$G$14,$M36,BC$13)))) -> 1000000000000 | BD36: =IF($D36<>"Serviço",0,IF(OR(AND(AUTOEVENTO="Manual",$M36=1),$M36>(ROW(PLE.lastrow)-ROW(PLE.firstrow))),0,IF(OFFSET(PLE!$G$14,$M36,BD$13)="",10^12,OFFSET(PLE!$G$14,$M36,BD$13)))) -> 1000000000000 | BE36: =IF($D36<>"Serviço",0,IF(OR(AND(AUTOEVENTO="Manual",$M36=1),$M36>(ROW(PLE.lastrow)-ROW(PLE.firstrow))),0,IF(OFFSET(PLE!$G$14,$M36,BE$13)="",10^12,OFFSET(PLE!$G$14,$M36,BE$13)))) -> 1000000000000 | BF36: =IF($D36<>"Serviço",0,IF(OR(AND(AUTOEVENTO="Manual",$M36=1),$M36>(ROW(PLE.lastrow)-ROW(PLE.firstrow))),0,IF(OFFSET(PLE!$G$14,$M36,BF$13)="",10^12,OFFSET(PLE!$G$14,$M36,BF$13)))) -> 1000000000000 | BG36: =IF($D36<>"Serviço",0,IF(OR(AND(AUTOEVENTO="Manual",$M36=1),$M36>(ROW(PLE.lastrow)-ROW(PLE.firstrow))),0,IF(OFFSET(PLE!$G$14,$M36,BG$13)="",10^12,OFFSET(PLE!$G$14,$M36,BG$13)))) -> 1000000000000
A37: 7 | B37: =OFFSET(ORÇAMENTO!C$15,ROW(B37)-ROW(B$15),0) -> S | C37: =OFFSET(ORÇAMENTO!L$15,ROW(C37)-ROW(C$15),0) -> F | D37: =OFFSET(ORÇAMENTO!N$15,ROW(D37)-ROW(D$15),0) -> Serviço | E37: =OFFSET(ORÇAMENTO!O$15,ROW(E37)-ROW(E$15),0) -> 1.5.2. | F37: =OFFSET(ORÇAMENTO!R$15,ROW(F37)-ROW(F$15),0) -> BOCA DE LOBO EM CONCRETO ARMADO E GRADE DE AÇO EM BARRA DE FERRO CHATA 0,70M X 1,00M - TIPO 1 | G37: =IF($D37<>"Serviço","",OFFSET(ORÇAMENTO!S$15,ROW(G37)-ROW(G$15),0)) -> UND | H37: =IF($D37<>"Serviço",0,IF(ACOMPANHAMENTO="BM",ROUND(OFFSET(ORÇAMENTO!AJ$15,ROW(H37)-ROW(H$15),0),15-13*ORÇAMENTO!$AF$7),SUMPRODUCT(($Q$12:$AA$12<>"")*ROUND($Q37:$AA37,15-13*ORÇAMENTO!$AF$7)))) -> 12 | K37: 7.DRENAGEM (B.L. E C.C.) | L37: . | M37: =IF($D37<>"Serviço","",IF(AUTOEVENTO="manual",$A37,IF(ISERROR(MATCH($A37,$A$15:OFFSET($A37,-1,0),0)),MAX($M$15:OFFSET(M37,-1,0))+1,INDEX($M$15:OFFSET(M37,-1,0),MATCH($A37,$A$15:OFFSET($A37,-1,0),0))))) -> 7 | N37: =IF($D37<>"Serviço","",IF(AUTOEVENTO="Manual",IF($A37=0,"<-- defina o número do agrupador",OFFSET(EVENTOS!$D$14,$A37,0)),OFFSET($F$15,$A37,0))) -> DRENAGEM (B.L. E C.C.) | Q37: 12 | AB37: =IF(AND($D37="Serviço",AB$12<>0,$H37>0,OR(AUTOEVENTO<>"manual",$M37<>1)),ROUND(OFFSET($P37,0,AB$13),15-13*ORÇAMENTO!$AF$7)/$H37*OFFSET(ORÇAMENTO!$X$15,ROW(AB37)-ROW(AB$15),0),0) -> 36973.8 | AC37: =IF(AND($D37="Serviço",AC$12<>0,$H37>0,OR(AUTOEVENTO<>"manual",$M37<>1)),ROUND(OFFSET($P37,0,AC$13),15-13*ORÇAMENTO!$AF$7)/$H37*OFFSET(ORÇAMENTO!$X$15,ROW(AC37)-ROW(AC$15),0),0) -> 0 | AD37: =IF(AND($D37="Serviço",AD$12<>0,$H37>0,OR(AUTOEVENTO<>"manual",$M37<>1)),ROUND(OFFSET($P37,0,AD$13),15-13*ORÇAMENTO!$AF$7)/$H37*OFFSET(ORÇAMENTO!$X$15,ROW(AD37)-ROW(AD$15),0),0) -> 0 | AE37: =IF(AND($D37="Serviço",AE$12<>0,$H37>0,OR(AUTOEVENTO<>"manual",$M37<>1)),ROUND(OFFSET($P37,0,AE$13),15-13*ORÇAMENTO!$AF$7)/$H37*OFFSET(ORÇAMENTO!$X$15,ROW(AE37)-ROW(AE$15),0),0) -> 0 | AF37: =IF(AND($D37="Serviço",AF$12<>0,$H37>0,OR(AUTOEVENTO<>"manual",$M37<>1)),ROUND(OFFSET($P37,0,AF$13),15-13*ORÇAMENTO!$AF$7)/$H37*OFFSET(ORÇAMENTO!$X$15,ROW(AF37)-ROW(AF$15),0),0) -> 0 | AG37: =IF(AND($D37="Serviço",AG$12<>0,$H37>0,OR(AUTOEVENTO<>"manual",$M37<>1)),ROUND(OFFSET($P37,0,AG$13),15-13*ORÇAMENTO!$AF$7)/$H37*OFFSET(ORÇAMENTO!$X$15,ROW(AG37)-ROW(AG$15),0),0) -> 0 | AH37: =IF(AND($D37="Serviço",AH$12<>0,$H37>0,OR(AUTOEVENTO<>"manual",$M37<>1)),ROUND(OFFSET($P37,0,AH$13),15-13*ORÇAMENTO!$AF$7)/$H37*OFFSET(ORÇAMENTO!$X$15,ROW(AH37)-ROW(AH$15),0),0) -> 0 | AI37: =IF(AND($D37="Serviço",AI$12<>0,$H37>0,OR(AUTOEVENTO<>"manual",$M37<>1)),ROUND(OFFSET($P37,0,AI$13),15-13*ORÇAMENTO!$AF$7)/$H37*OFFSET(ORÇAMENTO!$X$15,ROW(AI37)-ROW(AI$15),0),0) -> 0 | AJ37: =IF(AND($D37="Serviço",AJ$12<>0,$H37>0,OR(AUTOEVENTO<>"manual",$M37<>1)),ROUND(OFFSET($P37,0,AJ$13),15-13*ORÇAMENTO!$AF$7)/$H37*OFFSET(ORÇAMENTO!$X$15,ROW(AJ37)-ROW(AJ$15),0),0) -> 0 | AK37: =IF(AND($D37="Serviço",AK$12<>0,$H37>0,OR(AUTOEVENTO<>"manual",$M37<>1)),ROUND(OFFSET($P37,0,AK$13),15-13*ORÇAMENTO!$AF$7)/$H37*OFFSET(ORÇAMENTO!$X$15,ROW(AK37)-ROW(AK$15),0),0) -> 0 | AM37: =IF($D37<>"Serviço",0,IF(AND(AUTOEVENTO="Manual",$M37=1),0,IF(OFFSET(CRONOPLE!$F$14,$M37,AM$13)="",10^12,OFFSET(CRONOPLE!$F$14,$M37,AM$13)))) -> 4 | AN37: =IF($D37<>"Serviço",0,IF(AND(AUTOEVENTO="Manual",$M37=1),0,IF(OFFSET(CRONOPLE!$F$14,$M37,AN$13)="",10^12,OFFSET(CRONOPLE!$F$14,$M37,AN$13)))) -> 1000000000000 | AO37: =IF($D37<>"Serviço",0,IF(AND(AUTOEVENTO="Manual",$M37=1),0,IF(OFFSET(CRONOPLE!$F$14,$M37,AO$13)="",10^12,OFFSET(CRONOPLE!$F$14,$M37,AO$13)))) -> 4 | AP37: =IF($D37<>"Serviço",0,IF(AND(AUTOEVENTO="Manual",$M37=1),0,IF(OFFSET(CRONOPLE!$F$14,$M37,AP$13)="",10^12,OFFSET(CRONOPLE!$F$14,$M37,AP$13)))) -> 4 | AQ37: =IF($D37<>"Serviço",0,IF(AND(AUTOEVENTO="Manual",$M37=1),0,IF(OFFSET(CRONOPLE!$F$14,$M37,AQ$13)="",10^12,OFFSET(CRONOPLE!$F$14,$M37,AQ$13)))) -> 4 | AR37: =IF($D37<>"Serviço",0,IF(AND(AUTOEVENTO="Manual",$M37=1),0,IF(OFFSET(CRONOPLE!$F$14,$M37,AR$13)="",10^12,OFFSET(CRONOPLE!$F$14,$M37,AR$13)))) -> 4 | AS37: =IF($D37<>"Serviço",0,IF(AND(AUTOEVENTO="Manual",$M37=1),0,IF(OFFSET(CRONOPLE!$F$14,$M37,AS$13)="",10^12,OFFSET(CRONOPLE!$F$14,$M37,AS$13)))) -> 1000000000000 | AT37: =IF($D37<>"Serviço",0,IF(AND(AUTOEVENTO="Manual",$M37=1),0,IF(OFFSET(CRONOPLE!$F$14,$M37,AT$13)="",10^12,OFFSET(CRONOPLE!$F$14,$M37,AT$13)))) -> 1000000000000 | AU37: =IF($D37<>"Serviço",0,IF(AND(AUTOEVENTO="Manual",$M37=1),0,IF(OFFSET(CRONOPLE!$F$14,$M37,AU$13)="",10^12,OFFSET(CRONOPLE!$F$14,$M37,AU$13)))) -> 1000000000000 | AV37: =IF($D37<>"Serviço",0,IF(AND(AUTOEVENTO="Manual",$M37=1),0,IF(OFFSET(CRONOPLE!$F$14,$M37,AV$13)="",10^12,OFFSET(CRONOPLE!$F$14,$M37,AV$13)))) -> 1000000000000 | AX37: =IF($D37<>"Serviço",0,IF(OR(AND(AUTOEVENTO="Manual",$M37=1),$M37>(ROW(PLE.lastrow)-ROW(PLE.firstrow))),0,IF(OFFSET(PLE!$G$14,$M37,AX$13)="",10^12,OFFSET(PLE!$G$14,$M37,AX$13)))) -> 1000000000000 | AY37: =IF($D37<>"Serviço",0,IF(OR(AND(AUTOEVENTO="Manual",$M37=1),$M37>(ROW(PLE.lastrow)-ROW(PLE.firstrow))),0,IF(OFFSET(PLE!$G$14,$M37,AY$13)="",10^12,OFFSET(PLE!$G$14,$M37,AY$13)))) -> 1000000000000 | AZ37: =IF($D37<>"Serviço",0,IF(OR(AND(AUTOEVENTO="Manual",$M37=1),$M37>(ROW(PLE.lastrow)-ROW(PLE.firstrow))),0,IF(OFFSET(PLE!$G$14,$M37,AZ$13)="",10^12,OFFSET(PLE!$G$14,$M37,AZ$13)))) -> 1000000000000 | BA37: =IF($D37<>"Serviço",0,IF(OR(AND(AUTOEVENTO="Manual",$M37=1),$M37>(ROW(PLE.lastrow)-ROW(PLE.firstrow))),0,IF(OFFSET(PLE!$G$14,$M37,BA$13)="",10^12,OFFSET(PLE!$G$14,$M37,BA$13)))) -> 1000000000000 | BB37: =IF($D37<>"Serviço",0,IF(OR(AND(AUTOEVENTO="Manual",$M37=1),$M37>(ROW(PLE.lastrow)-ROW(PLE.firstrow))),0,IF(OFFSET(PLE!$G$14,$M37,BB$13)="",10^12,OFFSET(PLE!$G$14,$M37,BB$13)))) -> 1000000000000 | BC37: =IF($D37<>"Serviço",0,IF(OR(AND(AUTOEVENTO="Manual",$M37=1),$M37>(ROW(PLE.lastrow)-ROW(PLE.firstrow))),0,IF(OFFSET(PLE!$G$14,$M37,BC$13)="",10^12,OFFSET(PLE!$G$14,$M37,BC$13)))) -> 1000000000000 | BD37: =IF($D37<>"Serviço",0,IF(OR(AND(AUTOEVENTO="Manual",$M37=1),$M37>(ROW(PLE.lastrow)-ROW(PLE.firstrow))),0,IF(OFFSET(PLE!$G$14,$M37,BD$13)="",10^12,OFFSET(PLE!$G$14,$M37,BD$13)))) -> 1000000000000 | BE37: =IF($D37<>"Serviço",0,IF(OR(AND(AUTOEVENTO="Manual",$M37=1),$M37>(ROW(PLE.lastrow)-ROW(PLE.firstrow))),0,IF(OFFSET(PLE!$G$14,$M37,BE$13)="",10^12,OFFSET(PLE!$G$14,$M37,BE$13)))) -> 1000000000000 | BF37: =IF($D37<>"Serviço",0,IF(OR(AND(AUTOEVENTO="Manual",$M37=1),$M37>(ROW(PLE.lastrow)-ROW(PLE.firstrow))),0,IF(OFFSET(PLE!$G$14,$M37,BF$13)="",10^12,OFFSET(PLE!$G$14,$M37,BF$13)))) -> 1000000000000 | BG37: =IF($D37<>"Serviço",0,IF(OR(AND(AUTOEVENTO="Manual",$M37=1),$M37>(ROW(PLE.lastrow)-ROW(PLE.firstrow))),0,IF(OFFSET(PLE!$G$14,$M37,BG$13)="",10^12,OFFSET(PLE!$G$14,$M37,BG$13)))) -> 1000000000000
A38: =IF(AUTOEVENTO="Manual",IF(K38<>"",MIN(VALUE(LEFT(K38,FIND(".",K38)-1)),COUNTA(EVENTOS.Lista)),0),IF(OR($B38>AUTOEVENTO,$B38="S",$B38=0),SUBSTITUTE(OFFSET($A38,-1,0),IF($D38="Serviço",".",""),""),ROW(A38)-ROW($A$15)&".")) -> 7 | B38: =OFFSET(ORÇAMENTO!C$15,ROW(B38)-ROW(B$15),0) -> S | C38: =OFFSET(ORÇAMENTO!L$15,ROW(C38)-ROW(C$15),0) -> F | D38: =OFFSET(ORÇAMENTO!N$15,ROW(D38)-ROW(D$15),0) -> Serviço | E38: =OFFSET(ORÇAMENTO!O$15,ROW(E38)-ROW(E$15),0) -> 1.5.3. | F38: =OFFSET(ORÇAMENTO!R$15,ROW(F38)-ROW(F$15),0) -> CAIXA CEGA EM CONCRETO ARMADO, INCLUSIVE TAMPA EM CONCRETO ARMADO - TIPO 1 | G38: =IF($D38<>"Serviço","",OFFSET(ORÇAMENTO!S$15,ROW(G38)-ROW(G$15),0)) -> UND | H38: =IF($D38<>"Serviço",0,IF(ACOMPANHAMENTO="BM",ROUND(OFFSET(ORÇAMENTO!AJ$15,ROW(H38)-ROW(H$15),0),15-13*ORÇAMENTO!$AF$7),SUMPRODUCT(($Q$12:$AA$12<>"")*ROUND($Q38:$AA38,15-13*ORÇAMENTO!$AF$7)))) -> 1 | K38: 7.DRENAGEM (B.L.) | L38: . | M38: =IF($D38<>"Serviço","",IF(AUTOEVENTO="manual",$A38,IF(ISERROR(MATCH($A38,$A$15:OFFSET($A38,-1,0),0)),MAX($M$15:OFFSET(M38,-1,0))+1,INDEX($M$15:OFFSET(M38,-1,0),MATCH($A38,$A$15:OFFSET($A38,-1,0),0))))) -> 7 | N38: =IF($D38<>"Serviço","",IF(AUTOEVENTO="Manual",IF($A38=0,"<-- defina o número do agrupador",OFFSET(EVENTOS!$D$14,$A38,0)),OFFSET($F$15,$A38,0))) -> DRENAGEM (B.L. E C.C.) | Q38: 1 | AB38: =IF(AND($D38="Serviço",AB$12<>0,$H38>0,OR(AUTOEVENTO<>"manual",$M38<>1)),ROUND(OFFSET($P38,0,AB$13),15-13*ORÇAMENTO!$AF$7)/$H38*OFFSET(ORÇAMENTO!$X$15,ROW(AB38)-ROW(AB$15),0),0) -> 1906.88 | AC38: =IF(AND($D38="Serviço",AC$12<>0,$H38>0,OR(AUTOEVENTO<>"manual",$M38<>1)),ROUND(OFFSET($P38,0,AC$13),15-13*ORÇAMENTO!$AF$7)/$H38*OFFSET(ORÇAMENTO!$X$15,ROW(AC38)-ROW(AC$15),0),0) -> 0 | AD38: =IF(AND($D38="Serviço",AD$12<>0,$H38>0,OR(AUTOEVENTO<>"manual",$M38<>1)),ROUND(OFFSET($P38,0,AD$13),15-13*ORÇAMENTO!$AF$7)/$H38*OFFSET(ORÇAMENTO!$X$15,ROW(AD38)-ROW(AD$15),0),0) -> 0 | AE38: =IF(AND($D38="Serviço",AE$12<>0,$H38>0,OR(AUTOEVENTO<>"manual",$M38<>1)),ROUND(OFFSET($P38,0,AE$13),15-13*ORÇAMENTO!$AF$7)/$H38*OFFSET(ORÇAMENTO!$X$15,ROW(AE38)-ROW(AE$15),0),0) -> 0 | AF38: =IF(AND($D38="Serviço",AF$12<>0,$H38>0,OR(AUTOEVENTO<>"manual",$M38<>1)),ROUND(OFFSET($P38,0,AF$13),15-13*ORÇAMENTO!$AF$7)/$H38*OFFSET(ORÇAMENTO!$X$15,ROW(AF38)-ROW(AF$15),0),0) -> 0 | AG38: =IF(AND($D38="Serviço",AG$12<>0,$H38>0,OR(AUTOEVENTO<>"manual",$M38<>1)),ROUND(OFFSET($P38,0,AG$13),15-13*ORÇAMENTO!$AF$7)/$H38*OFFSET(ORÇAMENTO!$X$15,ROW(AG38)-ROW(AG$15),0),0) -> 0 | AH38: =IF(AND($D38="Serviço",AH$12<>0,$H38>0,OR(AUTOEVENTO<>"manual",$M38<>1)),ROUND(OFFSET($P38,0,AH$13),15-13*ORÇAMENTO!$AF$7)/$H38*OFFSET(ORÇAMENTO!$X$15,ROW(AH38)-ROW(AH$15),0),0) -> 0 | AI38: =IF(AND($D38="Serviço",AI$12<>0,$H38>0,OR(AUTOEVENTO<>"manual",$M38<>1)),ROUND(OFFSET($P38,0,AI$13),15-13*ORÇAMENTO!$AF$7)/$H38*OFFSET(ORÇAMENTO!$X$15,ROW(AI38)-ROW(AI$15),0),0) -> 0 | AJ38: =IF(AND($D38="Serviço",AJ$12<>0,$H38>0,OR(AUTOEVENTO<>"manual",$M38<>1)),ROUND(OFFSET($P38,0,AJ$13),15-13*ORÇAMENTO!$AF$7)/$H38*OFFSET(ORÇAMENTO!$X$15,ROW(AJ38)-ROW(AJ$15),0),0) -> 0 | AK38: =IF(AND($D38="Serviço",AK$12<>0,$H38>0,OR(AUTOEVENTO<>"manual",$M38<>1)),ROUND(OFFSET($P38,0,AK$13),15-13*ORÇAMENTO!$AF$7)/$H38*OFFSET(ORÇAMENTO!$X$15,ROW(AK38)-ROW(AK$15),0),0) -> 0 | AM38: =IF($D38<>"Serviço",0,IF(AND(AUTOEVENTO="Manual",$M38=1),0,IF(OFFSET(CRONOPLE!$F$14,$M38,AM$13)="",10^12,OFFSET(CRONOPLE!$F$14,$M38,AM$13)))) -> 4 | AN38: =IF($D38<>"Serviço",0,IF(AND(AUTOEVENTO="Manual",$M38=1),0,IF(OFFSET(CRONOPLE!$F$14,$M38,AN$13)="",10^12,OFFSET(CRONOPLE!$F$14,$M38,AN$13)))) -> 1000000000000 | AO38: =IF($D38<>"Serviço",0,IF(AND(AUTOEVENTO="Manual",$M38=1),0,IF(OFFSET(CRONOPLE!$F$14,$M38,AO$13)="",10^12,OFFSET(CRONOPLE!$F$14,$M38,AO$13)))) -> 4 | AP38: =IF($D38<>"Serviço",0,IF(AND(AUTOEVENTO="Manual",$M38=1),0,IF(OFFSET(CRONOPLE!$F$14,$M38,AP$13)="",10^12,OFFSET(CRONOPLE!$F$14,$M38,AP$13)))) -> 4 | AQ38: =IF($D38<>"Serviço",0,IF(AND(AUTOEVENTO="Manual",$M38=1),0,IF(OFFSET(CRONOPLE!$F$14,$M38,AQ$13)="",10^12,OFFSET(CRONOPLE!$F$14,$M38,AQ$13)))) -> 4 | AR38: =IF($D38<>"Serviço",0,IF(AND(AUTOEVENTO="Manual",$M38=1),0,IF(OFFSET(CRONOPLE!$F$14,$M38,AR$13)="",10^12,OFFSET(CRONOPLE!$F$14,$M38,AR$13)))) -> 4 | AS38: =IF($D38<>"Serviço",0,IF(AND(AUTOEVENTO="Manual",$M38=1),0,IF(OFFSET(CRONOPLE!$F$14,$M38,AS$13)="",10^12,OFFSET(CRONOPLE!$F$14,$M38,AS$13)))) -> 1000000000000 | AT38: =IF($D38<>"Serviço",0,IF(AND(AUTOEVENTO="Manual",$M38=1),0,IF(OFFSET(CRONOPLE!$F$14,$M38,AT$13)="",10^12,OFFSET(CRONOPLE!$F$14,$M38,AT$13)))) -> 1000000000000 | AU38: =IF($D38<>"Serviço",0,IF(AND(AUTOEVENTO="Manual",$M38=1),0,IF(OFFSET(CRONOPLE!$F$14,$M38,AU$13)="",10^12,OFFSET(CRONOPLE!$F$14,$M38,AU$13)))) -> 1000000000000 | AV38: =IF($D38<>"Serviço",0,IF(AND(AUTOEVENTO="Manual",$M38=1),0,IF(OFFSET(CRONOPLE!$F$14,$M38,AV$13)="",10^12,OFFSET(CRONOPLE!$F$14,$M38,AV$13)))) -> 1000000000000 | AX38: =IF($D38<>"Serviço",0,IF(OR(AND(AUTOEVENTO="Manual",$M38=1),$M38>(ROW(PLE.lastrow)-ROW(PLE.firstrow))),0,IF(OFFSET(PLE!$G$14,$M38,AX$13)="",10^12,OFFSET(PLE!$G$14,$M38,AX$13)))) -> 1000000000000 | AY38: =IF($D38<>"Serviço",0,IF(OR(AND(AUTOEVENTO="Manual",$M38=1),$M38>(ROW(PLE.lastrow)-ROW(PLE.firstrow))),0,IF(OFFSET(PLE!$G$14,$M38,AY$13)="",10^12,OFFSET(PLE!$G$14,$M38,AY$13)))) -> 1000000000000 | AZ38: =IF($D38<>"Serviço",0,IF(OR(AND(AUTOEVENTO="Manual",$M38=1),$M38>(ROW(PLE.lastrow)-ROW(PLE.firstrow))),0,IF(OFFSET(PLE!$G$14,$M38,AZ$13)="",10^12,OFFSET(PLE!$G$14,$M38,AZ$13)))) -> 1000000000000 | BA38: =IF($D38<>"Serviço",0,IF(OR(AND(AUTOEVENTO="Manual",$M38=1),$M38>(ROW(PLE.lastrow)-ROW(PLE.firstrow))),0,IF(OFFSET(PLE!$G$14,$M38,BA$13)="",10^12,OFFSET(PLE!$G$14,$M38,BA$13)))) -> 1000000000000 | BB38: =IF($D38<>"Serviço",0,IF(OR(AND(AUTOEVENTO="Manual",$M38=1),$M38>(ROW(PLE.lastrow)-ROW(PLE.firstrow))),0,IF(OFFSET(PLE!$G$14,$M38,BB$13)="",10^12,OFFSET(PLE!$G$14,$M38,BB$13)))) -> 1000000000000 | BC38: =IF($D38<>"Serviço",0,IF(OR(AND(AUTOEVENTO="Manual",$M38=1),$M38>(ROW(PLE.lastrow)-ROW(PLE.firstrow))),0,IF(OFFSET(PLE!$G$14,$M38,BC$13)="",10^12,OFFSET(PLE!$G$14,$M38,BC$13)))) -> 1000000000000 | BD38: =IF($D38<>"Serviço",0,IF(OR(AND(AUTOEVENTO="Manual",$M38=1),$M38>(ROW(PLE.lastrow)-ROW(PLE.firstrow))),0,IF(OFFSET(PLE!$G$14,$M38,BD$13)="",10^12,OFFSET(PLE!$G$14,$M38,BD$13)))) -> 1000000000000 | BE38: =IF($D38<>"Serviço",0,IF(OR(AND(AUTOEVENTO="Manual",$M38=1),$M38>(ROW(PLE.lastrow)-ROW(PLE.firstrow))),0,IF(OFFSET(PLE!$G$14,$M38,BE$13)="",10^12,OFFSET(PLE!$G$14,$M38,BE$13)))) -> 1000000000000 | BF38: =IF($D38<>"Serviço",0,IF(OR(AND(AUTOEVENTO="Manual",$M38=1),$M38>(ROW(PLE.lastrow)-ROW(PLE.firstrow))),0,IF(OFFSET(PLE!$G$14,$M38,BF$13)="",10^12,OFFSET(PLE!$G$14,$M38,BF$13)))) -> 1000000000000 | BG38: =IF($D38<>"Serviço",0,IF(OR(AND(AUTOEVENTO="Manual",$M38=1),$M38>(ROW(PLE.lastrow)-ROW(PLE.firstrow))),0,IF(OFFSET(PLE!$G$14,$M38,BG$13)="",10^12,OFFSET(PLE!$G$14,$M38,BG$13)))) -> 1000000000000
A39: 0 | B39: =OFFSET(ORÇAMENTO!C$15,ROW(B39)-ROW(B$15),0) -> 2 | C39: =OFFSET(ORÇAMENTO!L$15,ROW(C39)-ROW(C$15),0) -> F | D39: =OFFSET(ORÇAMENTO!N$15,ROW(D39)-ROW(D$15),0) -> Nível 2 | E39: =OFFSET(ORÇAMENTO!O$15,ROW(E39)-ROW(E$15),0) -> 1.6. | F39: =OFFSET(ORÇAMENTO!R$15,ROW(F39)-ROW(F$15),0) -> REATERROS | G39: =IF($D39<>"Serviço","",OFFSET(ORÇAMENTO!S$15,ROW(G39)-ROW(G$15),0)) ->  | H39: =IF($D39<>"Serviço",0,IF(ACOMPANHAMENTO="BM",ROUND(OFFSET(ORÇAMENTO!AJ$15,ROW(H39)-ROW(H$15),0),15-13*ORÇAMENTO!$AF$7),SUMPRODUCT(($Q$12:$AA$12<>"")*ROUND($Q39:$AA39,15-13*ORÇAMENTO!$AF$7)))) -> 0 | L39: . | M39: =IF($D39<>"Serviço","",IF(AUTOEVENTO="manual",$A39,IF(ISERROR(MATCH($A39,$A$15:OFFSET($A39,-1,0),0)),MAX($M$15:OFFSET(M39,-1,0))+1,INDEX($M$15:OFFSET(M39,-1,0),MATCH($A39,$A$15:OFFSET($A39,-1,0),0))))) ->  | N39: =IF($D39<>"Serviço","",IF(AUTOEVENTO="Manual",IF($A39=0,"<-- defina o número do agrupador",OFFSET(EVENTOS!$D$14,$A39,0)),OFFSET($F$15,$A39,0))) ->  | AB39: =IF(AND($D39="Serviço",AB$12<>0,$H39>0,OR(AUTOEVENTO<>"manual",$M39<>1)),ROUND(OFFSET($P39,0,AB$13),15-13*ORÇAMENTO!$AF$7)/$H39*OFFSET(ORÇAMENTO!$X$15,ROW(AB39)-ROW(AB$15),0),0) -> 0 | AC39: =IF(AND($D39="Serviço",AC$12<>0,$H39>0,OR(AUTOEVENTO<>"manual",$M39<>1)),ROUND(OFFSET($P39,0,AC$13),15-13*ORÇAMENTO!$AF$7)/$H39*OFFSET(ORÇAMENTO!$X$15,ROW(AC39)-ROW(AC$15),0),0) -> 0 | AD39: =IF(AND($D39="Serviço",AD$12<>0,$H39>0,OR(AUTOEVENTO<>"manual",$M39<>1)),ROUND(OFFSET($P39,0,AD$13),15-13*ORÇAMENTO!$AF$7)/$H39*OFFSET(ORÇAMENTO!$X$15,ROW(AD39)-ROW(AD$15),0),0) -> 0 | AE39: =IF(AND($D39="Serviço",AE$12<>0,$H39>0,OR(AUTOEVENTO<>"manual",$M39<>1)),ROUND(OFFSET($P39,0,AE$13),15-13*ORÇAMENTO!$AF$7)/$H39*OFFSET(ORÇAMENTO!$X$15,ROW(AE39)-ROW(AE$15),0),0) -> 0 | AF39: =IF(AND($D39="Serviço",AF$12<>0,$H39>0,OR(AUTOEVENTO<>"manual",$M39<>1)),ROUND(OFFSET($P39,0,AF$13),15-13*ORÇAMENTO!$AF$7)/$H39*OFFSET(ORÇAMENTO!$X$15,ROW(AF39)-ROW(AF$15),0),0) -> 0 | AG39: =IF(AND($D39="Serviço",AG$12<>0,$H39>0,OR(AUTOEVENTO<>"manual",$M39<>1)),ROUND(OFFSET($P39,0,AG$13),15-13*ORÇAMENTO!$AF$7)/$H39*OFFSET(ORÇAMENTO!$X$15,ROW(AG39)-ROW(AG$15),0),0) -> 0 | AH39: =IF(AND($D39="Serviço",AH$12<>0,$H39>0,OR(AUTOEVENTO<>"manual",$M39<>1)),ROUND(OFFSET($P39,0,AH$13),15-13*ORÇAMENTO!$AF$7)/$H39*OFFSET(ORÇAMENTO!$X$15,ROW(AH39)-ROW(AH$15),0),0) -> 0 | AI39: =IF(AND($D39="Serviço",AI$12<>0,$H39>0,OR(AUTOEVENTO<>"manual",$M39<>1)),ROUND(OFFSET($P39,0,AI$13),15-13*ORÇAMENTO!$AF$7)/$H39*OFFSET(ORÇAMENTO!$X$15,ROW(AI39)-ROW(AI$15),0),0) -> 0 | AJ39: =IF(AND($D39="Serviço",AJ$12<>0,$H39>0,OR(AUTOEVENTO<>"manual",$M39<>1)),ROUND(OFFSET($P39,0,AJ$13),15-13*ORÇAMENTO!$AF$7)/$H39*OFFSET(ORÇAMENTO!$X$15,ROW(AJ39)-ROW(AJ$15),0),0) -> 0 | AK39: =IF(AND($D39="Serviço",AK$12<>0,$H39>0,OR(AUTOEVENTO<>"manual",$M39<>1)),ROUND(OFFSET($P39,0,AK$13),15-13*ORÇAMENTO!$AF$7)/$H39*OFFSET(ORÇAMENTO!$X$15,ROW(AK39)-ROW(AK$15),0),0) -> 0 | AM39: =IF($D39<>"Serviço",0,IF(AND(AUTOEVENTO="Manual",$M39=1),0,IF(OFFSET(CRONOPLE!$F$14,$M39,AM$13)="",10^12,OFFSET(CRONOPLE!$F$14,$M39,AM$13)))) -> 0 | AN39: =IF($D39<>"Serviço",0,IF(AND(AUTOEVENTO="Manual",$M39=1),0,IF(OFFSET(CRONOPLE!$F$14,$M39,AN$13)="",10^12,OFFSET(CRONOPLE!$F$14,$M39,AN$13)))) -> 0 | AO39: =IF($D39<>"Serviço",0,IF(AND(AUTOEVENTO="Manual",$M39=1),0,IF(OFFSET(CRONOPLE!$F$14,$M39,AO$13)="",10^12,OFFSET(CRONOPLE!$F$14,$M39,AO$13)))) -> 0 | AP39: =IF($D39<>"Serviço",0,IF(AND(AUTOEVENTO="Manual",$M39=1),0,IF(OFFSET(CRONOPLE!$F$14,$M39,AP$13)="",10^12,OFFSET(CRONOPLE!$F$14,$M39,AP$13)))) -> 0 | AQ39: =IF($D39<>"Serviço",0,IF(AND(AUTOEVENTO="Manual",$M39=1),0,IF(OFFSET(CRONOPLE!$F$14,$M39,AQ$13)="",10^12,OFFSET(CRONOPLE!$F$14,$M39,AQ$13)))) -> 0 | AR39: =IF($D39<>"Serviço",0,IF(AND(AUTOEVENTO="Manual",$M39=1),0,IF(OFFSET(CRONOPLE!$F$14,$M39,AR$13)="",10^12,OFFSET(CRONOPLE!$F$14,$M39,AR$13)))) -> 0 | AS39: =IF($D39<>"Serviço",0,IF(AND(AUTOEVENTO="Manual",$M39=1),0,IF(OFFSET(CRONOPLE!$F$14,$M39,AS$13)="",10^12,OFFSET(CRONOPLE!$F$14,$M39,AS$13)))) -> 0 | AT39: =IF($D39<>"Serviço",0,IF(AND(AUTOEVENTO="Manual",$M39=1),0,IF(OFFSET(CRONOPLE!$F$14,$M39,AT$13)="",10^12,OFFSET(CRONOPLE!$F$14,$M39,AT$13)))) -> 0 | AU39: =IF($D39<>"Serviço",0,IF(AND(AUTOEVENTO="Manual",$M39=1),0,IF(OFFSET(CRONOPLE!$F$14,$M39,AU$13)="",10^12,OFFSET(CRONOPLE!$F$14,$M39,AU$13)))) -> 0 | AV39: =IF($D39<>"Serviço",0,IF(AND(AUTOEVENTO="Manual",$M39=1),0,IF(OFFSET(CRONOPLE!$F$14,$M39,AV$13)="",10^12,OFFSET(CRONOPLE!$F$14,$M39,AV$13)))) -> 0 | AX39: =IF($D39<>"Serviço",0,IF(OR(AND(AUTOEVENTO="Manual",$M39=1),$M39>(ROW(PLE.lastrow)-ROW(PLE.firstrow))),0,IF(OFFSET(PLE!$G$14,$M39,AX$13)="",10^12,OFFSET(PLE!$G$14,$M39,AX$13)))) -> 0 | AY39: =IF($D39<>"Serviço",0,IF(OR(AND(AUTOEVENTO="Manual",$M39=1),$M39>(ROW(PLE.lastrow)-ROW(PLE.firstrow))),0,IF(OFFSET(PLE!$G$14,$M39,AY$13)="",10^12,OFFSET(PLE!$G$14,$M39,AY$13)))) -> 0 | AZ39: =IF($D39<>"Serviço",0,IF(OR(AND(AUTOEVENTO="Manual",$M39=1),$M39>(ROW(PLE.lastrow)-ROW(PLE.firstrow))),0,IF(OFFSET(PLE!$G$14,$M39,AZ$13)="",10^12,OFFSET(PLE!$G$14,$M39,AZ$13)))) -> 0 | BA39: =IF($D39<>"Serviço",0,IF(OR(AND(AUTOEVENTO="Manual",$M39=1),$M39>(ROW(PLE.lastrow)-ROW(PLE.firstrow))),0,IF(OFFSET(PLE!$G$14,$M39,BA$13)="",10^12,OFFSET(PLE!$G$14,$M39,BA$13)))) -> 0 | BB39: =IF($D39<>"Serviço",0,IF(OR(AND(AUTOEVENTO="Manual",$M39=1),$M39>(ROW(PLE.lastrow)-ROW(PLE.firstrow))),0,IF(OFFSET(PLE!$G$14,$M39,BB$13)="",10^12,OFFSET(PLE!$G$14,$M39,BB$13)))) -> 0 | BC39: =IF($D39<>"Serviço",0,IF(OR(AND(AUTOEVENTO="Manual",$M39=1),$M39>(ROW(PLE.lastrow)-ROW(PLE.firstrow))),0,IF(OFFSET(PLE!$G$14,$M39,BC$13)="",10^12,OFFSET(PLE!$G$14,$M39,BC$13)))) -> 0 | BD39: =IF($D39<>"Serviço",0,IF(OR(AND(AUTOEVENTO="Manual",$M39=1),$M39>(ROW(PLE.lastrow)-ROW(PLE.firstrow))),0,IF(OFFSET(PLE!$G$14,$M39,BD$13)="",10^12,OFFSET(PLE!$G$14,$M39,BD$13)))) -> 0 | BE39: =IF($D39<>"Serviço",0,IF(OR(AND(AUTOEVENTO="Manual",$M39=1),$M39>(ROW(PLE.lastrow)-ROW(PLE.firstrow))),0,IF(OFFSET(PLE!$G$14,$M39,BE$13)="",10^12,OFFSET(PLE!$G$14,$M39,BE$13)))) -> 0 | BF39: =IF($D39<>"Serviço",0,IF(OR(AND(AUTOEVENTO="Manual",$M39=1),$M39>(ROW(PLE.lastrow)-ROW(PLE.firstrow))),0,IF(OFFSET(PLE!$G$14,$M39,BF$13)="",10^12,OFFSET(PLE!$G$14,$M39,BF$13)))) -> 0 | BG39: =IF($D39<>"Serviço",0,IF(OR(AND(AUTOEVENTO="Manual",$M39=1),$M39>(ROW(PLE.lastrow)-ROW(PLE.firstrow))),0,IF(OFFSET(PLE!$G$14,$M39,BG$13)="",10^12,OFFSET(PLE!$G$14,$M39,BG$13)))) -> 0
A40: 8 | B40: =OFFSET(ORÇAMENTO!C$15,ROW(B40)-ROW(B$15),0) -> S | C40: =OFFSET(ORÇAMENTO!L$15,ROW(C40)-ROW(C$15),0) -> F | D40: =OFFSET(ORÇAMENTO!N$15,ROW(D40)-ROW(D$15),0) -> Serviço | E40: =OFFSET(ORÇAMENTO!O$15,ROW(E40)-ROW(E$15),0) -> 1.6.1. | F40: =OFFSET(ORÇAMENTO!R$15,ROW(F40)-ROW(F$15),0) -> PEDRA BRITADA N. 2 (19 A 38 MM) POSTO PEDREIRA/FORNECEDOR, SEM FRETE | G40: =IF($D40<>"Serviço","",OFFSET(ORÇAMENTO!S$15,ROW(G40)-ROW(G$15),0)) -> M3 | H40: =IF($D40<>"Serviço",0,IF(ACOMPANHAMENTO="BM",ROUND(OFFSET(ORÇAMENTO!AJ$15,ROW(H40)-ROW(H$15),0),15-13*ORÇAMENTO!$AF$7),SUMPRODUCT(($Q$12:$AA$12<>"")*ROUND($Q40:$AA40,15-13*ORÇAMENTO!$AF$7)))) -> 157.48 | K40: 8.REATERROS | L40: . | M40: =IF($D40<>"Serviço","",IF(AUTOEVENTO="manual",$A40,IF(ISERROR(MATCH($A40,$A$15:OFFSET($A40,-1,0),0)),MAX($M$15:OFFSET(M40,-1,0))+1,INDEX($M$15:OFFSET(M40,-1,0),MATCH($A40,$A$15:OFFSET($A40,-1,0),0))))) -> 8 | N40: =IF($D40<>"Serviço","",IF(AUTOEVENTO="Manual",IF($A40=0,"<-- defina o número do agrupador",OFFSET(EVENTOS!$D$14,$A40,0)),OFFSET($F$15,$A40,0))) -> REATERROS | Q40: 157.48 | AB40: =IF(AND($D40="Serviço",AB$12<>0,$H40>0,OR(AUTOEVENTO<>"manual",$M40<>1)),ROUND(OFFSET($P40,0,AB$13),15-13*ORÇAMENTO!$AF$7)/$H40*OFFSET(ORÇAMENTO!$X$15,ROW(AB40)-ROW(AB$15),0),0) -> 19626.73 | AC40: =IF(AND($D40="Serviço",AC$12<>0,$H40>0,OR(AUTOEVENTO<>"manual",$M40<>1)),ROUND(OFFSET($P40,0,AC$13),15-13*ORÇAMENTO!$AF$7)/$H40*OFFSET(ORÇAMENTO!$X$15,ROW(AC40)-ROW(AC$15),0),0) -> 0 | AD40: =IF(AND($D40="Serviço",AD$12<>0,$H40>0,OR(AUTOEVENTO<>"manual",$M40<>1)),ROUND(OFFSET($P40,0,AD$13),15-13*ORÇAMENTO!$AF$7)/$H40*OFFSET(ORÇAMENTO!$X$15,ROW(AD40)-ROW(AD$15),0),0) -> 0 | AE40: =IF(AND($D40="Serviço",AE$12<>0,$H40>0,OR(AUTOEVENTO<>"manual",$M40<>1)),ROUND(OFFSET($P40,0,AE$13),15-13*ORÇAMENTO!$AF$7)/$H40*OFFSET(ORÇAMENTO!$X$15,ROW(AE40)-ROW(AE$15),0),0) -> 0 | AF40: =IF(AND($D40="Serviço",AF$12<>0,$H40>0,OR(AUTOEVENTO<>"manual",$M40<>1)),ROUND(OFFSET($P40,0,AF$13),15-13*ORÇAMENTO!$AF$7)/$H40*OFFSET(ORÇAMENTO!$X$15,ROW(AF40)-ROW(AF$15),0),0) -> 0 | AG40: =IF(AND($D40="Serviço",AG$12<>0,$H40>0,OR(AUTOEVENTO<>"manual",$M40<>1)),ROUND(OFFSET($P40,0,AG$13),15-13*ORÇAMENTO!$AF$7)/$H40*OFFSET(ORÇAMENTO!$X$15,ROW(AG40)-ROW(AG$15),0),0) -> 0 | AH40: =IF(AND($D40="Serviço",AH$12<>0,$H40>0,OR(AUTOEVENTO<>"manual",$M40<>1)),ROUND(OFFSET($P40,0,AH$13),15-13*ORÇAMENTO!$AF$7)/$H40*OFFSET(ORÇAMENTO!$X$15,ROW(AH40)-ROW(AH$15),0),0) -> 0 | AI40: =IF(AND($D40="Serviço",AI$12<>0,$H40>0,OR(AUTOEVENTO<>"manual",$M40<>1)),ROUND(OFFSET($P40,0,AI$13),15-13*ORÇAMENTO!$AF$7)/$H40*OFFSET(ORÇAMENTO!$X$15,ROW(AI40)-ROW(AI$15),0),0) -> 0 | AJ40: =IF(AND($D40="Serviço",AJ$12<>0,$H40>0,OR(AUTOEVENTO<>"manual",$M40<>1)),ROUND(OFFSET($P40,0,AJ$13),15-13*ORÇAMENTO!$AF$7)/$H40*OFFSET(ORÇAMENTO!$X$15,ROW(AJ40)-ROW(AJ$15),0),0) -> 0 | AK40: =IF(AND($D40="Serviço",AK$12<>0,$H40>0,OR(AUTOEVENTO<>"manual",$M40<>1)),ROUND(OFFSET($P40,0,AK$13),15-13*ORÇAMENTO!$AF$7)/$H40*OFFSET(ORÇAMENTO!$X$15,ROW(AK40)-ROW(AK$15),0),0) -> 0 | AM40: =IF($D40<>"Serviço",0,IF(AND(AUTOEVENTO="Manual",$M40=1),0,IF(OFFSET(CRONOPLE!$F$14,$M40,AM$13)="",10^12,OFFSET(CRONOPLE!$F$14,$M40,AM$13)))) -> 4 | AN40: =IF($D40<>"Serviço",0,IF(AND(AUTOEVENTO="Manual",$M40=1),0,IF(OFFSET(CRONOPLE!$F$14,$M40,AN$13)="",10^12,OFFSET(CRONOPLE!$F$14,$M40,AN$13)))) -> 1000000000000 | AO40: =IF($D40<>"Serviço",0,IF(AND(AUTOEVENTO="Manual",$M40=1),0,IF(OFFSET(CRONOPLE!$F$14,$M40,AO$13)="",10^12,OFFSET(CRONOPLE!$F$14,$M40,AO$13)))) -> 5 | AP40: =IF($D40<>"Serviço",0,IF(AND(AUTOEVENTO="Manual",$M40=1),0,IF(OFFSET(CRONOPLE!$F$14,$M40,AP$13)="",10^12,OFFSET(CRONOPLE!$F$14,$M40,AP$13)))) -> 5 | AQ40: =IF($D40<>"Serviço",0,IF(AND(AUTOEVENTO="Manual",$M40=1),0,IF(OFFSET(CRONOPLE!$F$14,$M40,AQ$13)="",10^12,OFFSET(CRONOPLE!$F$14,$M40,AQ$13)))) -> 5 | AR40: =IF($D40<>"Serviço",0,IF(AND(AUTOEVENTO="Manual",$M40=1),0,IF(OFFSET(CRONOPLE!$F$14,$M40,AR$13)="",10^12,OFFSET(CRONOPLE!$F$14,$M40,AR$13)))) -> 5 | AS40: =IF($D40<>"Serviço",0,IF(AND(AUTOEVENTO="Manual",$M40=1),0,IF(OFFSET(CRONOPLE!$F$14,$M40,AS$13)="",10^12,OFFSET(CRONOPLE!$F$14,$M40,AS$13)))) -> 1000000000000 | AT40: =IF($D40<>"Serviço",0,IF(AND(AUTOEVENTO="Manual",$M40=1),0,IF(OFFSET(CRONOPLE!$F$14,$M40,AT$13)="",10^12,OFFSET(CRONOPLE!$F$14,$M40,AT$13)))) -> 1000000000000 | AU40: =IF($D40<>"Serviço",0,IF(AND(AUTOEVENTO="Manual",$M40=1),0,IF(OFFSET(CRONOPLE!$F$14,$M40,AU$13)="",10^12,OFFSET(CRONOPLE!$F$14,$M40,AU$13)))) -> 1000000000000 | AV40: =IF($D40<>"Serviço",0,IF(AND(AUTOEVENTO="Manual",$M40=1),0,IF(OFFSET(CRONOPLE!$F$14,$M40,AV$13)="",10^12,OFFSET(CRONOPLE!$F$14,$M40,AV$13)))) -> 1000000000000 | AX40: =IF($D40<>"Serviço",0,IF(OR(AND(AUTOEVENTO="Manual",$M40=1),$M40>(ROW(PLE.lastrow)-ROW(PLE.firstrow))),0,IF(OFFSET(PLE!$G$14,$M40,AX$13)="",10^12,OFFSET(PLE!$G$14,$M40,AX$13)))) -> 1000000000000 | AY40: =IF($D40<>"Serviço",0,IF(OR(AND(AUTOEVENTO="Manual",$M40=1),$M40>(ROW(PLE.lastrow)-ROW(PLE.firstrow))),0,IF(OFFSET(PLE!$G$14,$M40,AY$13)="",10^12,OFFSET(PLE!$G$14,$M40,AY$13)))) -> 1000000000000 | AZ40: =IF($D40<>"Serviço",0,IF(OR(AND(AUTOEVENTO="Manual",$M40=1),$M40>(ROW(PLE.lastrow)-ROW(PLE.firstrow))),0,IF(OFFSET(PLE!$G$14,$M40,AZ$13)="",10^12,OFFSET(PLE!$G$14,$M40,AZ$13)))) -> 1000000000000 | BA40: =IF($D40<>"Serviço",0,IF(OR(AND(AUTOEVENTO="Manual",$M40=1),$M40>(ROW(PLE.lastrow)-ROW(PLE.firstrow))),0,IF(OFFSET(PLE!$G$14,$M40,BA$13)="",10^12,OFFSET(PLE!$G$14,$M40,BA$13)))) -> 1000000000000 | BB40: =IF($D40<>"Serviço",0,IF(OR(AND(AUTOEVENTO="Manual",$M40=1),$M40>(ROW(PLE.lastrow)-ROW(PLE.firstrow))),0,IF(OFFSET(PLE!$G$14,$M40,BB$13)="",10^12,OFFSET(PLE!$G$14,$M40,BB$13)))) -> 1000000000000 | BC40: =IF($D40<>"Serviço",0,IF(OR(AND(AUTOEVENTO="Manual",$M40=1),$M40>(ROW(PLE.lastrow)-ROW(PLE.firstrow))),0,IF(OFFSET(PLE!$G$14,$M40,BC$13)="",10^12,OFFSET(PLE!$G$14,$M40,BC$13)))) -> 1000000000000 | BD40: =IF($D40<>"Serviço",0,IF(OR(AND(AUTOEVENTO="Manual",$M40=1),$M40>(ROW(PLE.lastrow)-ROW(PLE.firstrow))),0,IF(OFFSET(PLE!$G$14,$M40,BD$13)="",10^12,OFFSET(PLE!$G$14,$M40,BD$13)))) -> 1000000000000 | BE40: =IF($D40<>"Serviço",0,IF(OR(AND(AUTOEVENTO="Manual",$M40=1),$M40>(ROW(PLE.lastrow)-ROW(PLE.firstrow))),0,IF(OFFSET(PLE!$G$14,$M40,BE$13)="",10^12,OFFSET(PLE!$G$14,$M40,BE$13)))) -> 1000000000000 | BF40: =IF($D40<>"Serviço",0,IF(OR(AND(AUTOEVENTO="Manual",$M40=1),$M40>(ROW(PLE.lastrow)-ROW(PLE.firstrow))),0,IF(OFFSET(PLE!$G$14,$M40,BF$13)="",10^12,OFFSET(PLE!$G$14,$M40,BF$13)))) -> 1000000000000 | BG40: =IF($D40<>"Serviço",0,IF(OR(AND(AUTOEVENTO="Manual",$M40=1),$M40>(ROW(PLE.lastrow)-ROW(PLE.firstrow))),0,IF(OFFSET(PLE!$G$14,$M40,BG$13)="",10^12,OFFSET(PLE!$G$14,$M40,BG$13)))) -> 1000000000000
A41: 8 | B41: =OFFSET(ORÇAMENTO!C$15,ROW(B41)-ROW(B$15),0) -> S | C41: =OFFSET(ORÇAMENTO!L$15,ROW(C41)-ROW(C$15),0) -> F | D41: =OFFSET(ORÇAMENTO!N$15,ROW(D41)-ROW(D$15),0) -> Serviço | E41: =OFFSET(ORÇAMENTO!O$15,ROW(E41)-ROW(E$15),0) -> 1.6.2. | F41: =OFFSET(ORÇAMENTO!R$15,ROW(F41)-ROW(F$15),0) -> CARGA, MANOBRA E DESCARGA DE SOLOS E MATERIAIS GRANULARES EM CAMINHÃO BASCULANTE 10 M³ - CARGA COM PÁ CARREGADEIRA (CAÇAMBA DE 1,7 A 2,8 M³ / 128 HP) E DESCARGA LIVRE (UNIDADE: M3). AF_07/2020 | G41: =IF($D41<>"Serviço","",OFFSET(ORÇAMENTO!S$15,ROW(G41)-ROW(G$15),0)) -> M3 | H41: =IF($D41<>"Serviço",0,IF(ACOMPANHAMENTO="BM",ROUND(OFFSET(ORÇAMENTO!AJ$15,ROW(H41)-ROW(H$15),0),15-13*ORÇAMENTO!$AF$7),SUMPRODUCT(($Q$12:$AA$12<>"")*ROUND($Q41:$AA41,15-13*ORÇAMENTO!$AF$7)))) -> 157.48 | K41: 8.REATERROS | L41: . | M41: =IF($D41<>"Serviço","",IF(AUTOEVENTO="manual",$A41,IF(ISERROR(MATCH($A41,$A$15:OFFSET($A41,-1,0),0)),MAX($M$15:OFFSET(M41,-1,0))+1,INDEX($M$15:OFFSET(M41,-1,0),MATCH($A41,$A$15:OFFSET($A41,-1,0),0))))) -> 8 | N41: =IF($D41<>"Serviço","",IF(AUTOEVENTO="Manual",IF($A41=0,"<-- defina o número do agrupador",OFFSET(EVENTOS!$D$14,$A41,0)),OFFSET($F$15,$A41,0))) -> REATERROS | Q41: =Q40 -> 157.48 | AB41: =IF(AND($D41="Serviço",AB$12<>0,$H41>0,OR(AUTOEVENTO<>"manual",$M41<>1)),ROUND(OFFSET($P41,0,AB$13),15-13*ORÇAMENTO!$AF$7)/$H41*OFFSET(ORÇAMENTO!$X$15,ROW(AB41)-ROW(AB$15),0),0) -> 1584.25 | AC41: =IF(AND($D41="Serviço",AC$12<>0,$H41>0,OR(AUTOEVENTO<>"manual",$M41<>1)),ROUND(OFFSET($P41,0,AC$13),15-13*ORÇAMENTO!$AF$7)/$H41*OFFSET(ORÇAMENTO!$X$15,ROW(AC41)-ROW(AC$15),0),0) -> 0 | AD41: =IF(AND($D41="Serviço",AD$12<>0,$H41>0,OR(AUTOEVENTO<>"manual",$M41<>1)),ROUND(OFFSET($P41,0,AD$13),15-13*ORÇAMENTO!$AF$7)/$H41*OFFSET(ORÇAMENTO!$X$15,ROW(AD41)-ROW(AD$15),0),0) -> 0 | AE41: =IF(AND($D41="Serviço",AE$12<>0,$H41>0,OR(AUTOEVENTO<>"manual",$M41<>1)),ROUND(OFFSET($P41,0,AE$13),15-13*ORÇAMENTO!$AF$7)/$H41*OFFSET(ORÇAMENTO!$X$15,ROW(AE41)-ROW(AE$15),0),0) -> 0 | AF41: =IF(AND($D41="Serviço",AF$12<>0,$H41>0,OR(AUTOEVENTO<>"manual",$M41<>1)),ROUND(OFFSET($P41,0,AF$13),15-13*ORÇAMENTO!$AF$7)/$H41*OFFSET(ORÇAMENTO!$X$15,ROW(AF41)-ROW(AF$15),0),0) -> 0 | AG41: =IF(AND($D41="Serviço",AG$12<>0,$H41>0,OR(AUTOEVENTO<>"manual",$M41<>1)),ROUND(OFFSET($P41,0,AG$13),15-13*ORÇAMENTO!$AF$7)/$H41*OFFSET(ORÇAMENTO!$X$15,ROW(AG41)-ROW(AG$15),0),0) -> 0 | AH41: =IF(AND($D41="Serviço",AH$12<>0,$H41>0,OR(AUTOEVENTO<>"manual",$M41<>1)),ROUND(OFFSET($P41,0,AH$13),15-13*ORÇAMENTO!$AF$7)/$H41*OFFSET(ORÇAMENTO!$X$15,ROW(AH41)-ROW(AH$15),0),0) -> 0 | AI41: =IF(AND($D41="Serviço",AI$12<>0,$H41>0,OR(AUTOEVENTO<>"manual",$M41<>1)),ROUND(OFFSET($P41,0,AI$13),15-13*ORÇAMENTO!$AF$7)/$H41*OFFSET(ORÇAMENTO!$X$15,ROW(AI41)-ROW(AI$15),0),0) -> 0 | AJ41: =IF(AND($D41="Serviço",AJ$12<>0,$H41>0,OR(AUTOEVENTO<>"manual",$M41<>1)),ROUND(OFFSET($P41,0,AJ$13),15-13*ORÇAMENTO!$AF$7)/$H41*OFFSET(ORÇAMENTO!$X$15,ROW(AJ41)-ROW(AJ$15),0),0) -> 0 | AK41: =IF(AND($D41="Serviço",AK$12<>0,$H41>0,OR(AUTOEVENTO<>"manual",$M41<>1)),ROUND(OFFSET($P41,0,AK$13),15-13*ORÇAMENTO!$AF$7)/$H41*OFFSET(ORÇAMENTO!$X$15,ROW(AK41)-ROW(AK$15),0),0) -> 0 | AM41: =IF($D41<>"Serviço",0,IF(AND(AUTOEVENTO="Manual",$M41=1),0,IF(OFFSET(CRONOPLE!$F$14,$M41,AM$13)="",10^12,OFFSET(CRONOPLE!$F$14,$M41,AM$13)))) -> 4 | AN41: =IF($D41<>"Serviço",0,IF(AND(AUTOEVENTO="Manual",$M41=1),0,IF(OFFSET(CRONOPLE!$F$14,$M41,AN$13)="",10^12,OFFSET(CRONOPLE!$F$14,$M41,AN$13)))) -> 1000000000000 | AO41: =IF($D41<>"Serviço",0,IF(AND(AUTOEVENTO="Manual",$M41=1),0,IF(OFFSET(CRONOPLE!$F$14,$M41,AO$13)="",10^12,OFFSET(CRONOPLE!$F$14,$M41,AO$13)))) -> 5 | AP41: =IF($D41<>"Serviço",0,IF(AND(AUTOEVENTO="Manual",$M41=1),0,IF(OFFSET(CRONOPLE!$F$14,$M41,AP$13)="",10^12,OFFSET(CRONOPLE!$F$14,$M41,AP$13)))) -> 5 | AQ41: =IF($D41<>"Serviço",0,IF(AND(AUTOEVENTO="Manual",$M41=1),0,IF(OFFSET(CRONOPLE!$F$14,$M41,AQ$13)="",10^12,OFFSET(CRONOPLE!$F$14,$M41,AQ$13)))) -> 5 | AR41: =IF($D41<>"Serviço",0,IF(AND(AUTOEVENTO="Manual",$M41=1),0,IF(OFFSET(CRONOPLE!$F$14,$M41,AR$13)="",10^12,OFFSET(CRONOPLE!$F$14,$M41,AR$13)))) -> 5 | AS41: =IF($D41<>"Serviço",0,IF(AND(AUTOEVENTO="Manual",$M41=1),0,IF(OFFSET(CRONOPLE!$F$14,$M41,AS$13)="",10^12,OFFSET(CRONOPLE!$F$14,$M41,AS$13)))) -> 1000000000000 | AT41: =IF($D41<>"Serviço",0,IF(AND(AUTOEVENTO="Manual",$M41=1),0,IF(OFFSET(CRONOPLE!$F$14,$M41,AT$13)="",10^12,OFFSET(CRONOPLE!$F$14,$M41,AT$13)))) -> 1000000000000 | AU41: =IF($D41<>"Serviço",0,IF(AND(AUTOEVENTO="Manual",$M41=1),0,IF(OFFSET(CRONOPLE!$F$14,$M41,AU$13)="",10^12,OFFSET(CRONOPLE!$F$14,$M41,AU$13)))) -> 1000000000000 | AV41: =IF($D41<>"Serviço",0,IF(AND(AUTOEVENTO="Manual",$M41=1),0,IF(OFFSET(CRONOPLE!$F$14,$M41,AV$13)="",10^12,OFFSET(CRONOPLE!$F$14,$M41,AV$13)))) -> 1000000000000 | AX41: =IF($D41<>"Serviço",0,IF(OR(AND(AUTOEVENTO="Manual",$M41=1),$M41>(ROW(PLE.lastrow)-ROW(PLE.firstrow))),0,IF(OFFSET(PLE!$G$14,$M41,AX$13)="",10^12,OFFSET(PLE!$G$14,$M41,AX$13)))) -> 1000000000000 | AY41: =IF($D41<>"Serviço",0,IF(OR(AND(AUTOEVENTO="Manual",$M41=1),$M41>(ROW(PLE.lastrow)-ROW(PLE.firstrow))),0,IF(OFFSET(PLE!$G$14,$M41,AY$13)="",10^12,OFFSET(PLE!$G$14,$M41,AY$13)))) -> 1000000000000 | AZ41: =IF($D41<>"Serviço",0,IF(OR(AND(AUTOEVENTO="Manual",$M41=1),$M41>(ROW(PLE.lastrow)-ROW(PLE.firstrow))),0,IF(OFFSET(PLE!$G$14,$M41,AZ$13)="",10^12,OFFSET(PLE!$G$14,$M41,AZ$13)))) -> 1000000000000 | BA41: =IF($D41<>"Serviço",0,IF(OR(AND(AUTOEVENTO="Manual",$M41=1),$M41>(ROW(PLE.lastrow)-ROW(PLE.firstrow))),0,IF(OFFSET(PLE!$G$14,$M41,BA$13)="",10^12,OFFSET(PLE!$G$14,$M41,BA$13)))) -> 1000000000000 | BB41: =IF($D41<>"Serviço",0,IF(OR(AND(AUTOEVENTO="Manual",$M41=1),$M41>(ROW(PLE.lastrow)-ROW(PLE.firstrow))),0,IF(OFFSET(PLE!$G$14,$M41,BB$13)="",10^12,OFFSET(PLE!$G$14,$M41,BB$13)))) -> 1000000000000 | BC41: =IF($D41<>"Serviço",0,IF(OR(AND(AUTOEVENTO="Manual",$M41=1),$M41>(ROW(PLE.lastrow)-ROW(PLE.firstrow))),0,IF(OFFSET(PLE!$G$14,$M41,BC$13)="",10^12,OFFSET(PLE!$G$14,$M41,BC$13)))) -> 1000000000000 | BD41: =IF($D41<>"Serviço",0,IF(OR(AND(AUTOEVENTO="Manual",$M41=1),$M41>(ROW(PLE.lastrow)-ROW(PLE.firstrow))),0,IF(OFFSET(PLE!$G$14,$M41,BD$13)="",10^12,OFFSET(PLE!$G$14,$M41,BD$13)))) -> 1000000000000 | BE41: =IF($D41<>"Serviço",0,IF(OR(AND(AUTOEVENTO="Manual",$M41=1),$M41>(ROW(PLE.lastrow)-ROW(PLE.firstrow))),0,IF(OFFSET(PLE!$G$14,$M41,BE$13)="",10^12,OFFSET(PLE!$G$14,$M41,BE$13)))) -> 1000000000000 | BF41: =IF($D41<>"Serviço",0,IF(OR(AND(AUTOEVENTO="Manual",$M41=1),$M41>(ROW(PLE.lastrow)-ROW(PLE.firstrow))),0,IF(OFFSET(PLE!$G$14,$M41,BF$13)="",10^12,OFFSET(PLE!$G$14,$M41,BF$13)))) -> 1000000000000 | BG41: =IF($D41<>"Serviço",0,IF(OR(AND(AUTOEVENTO="Manual",$M41=1),$M41>(ROW(PLE.lastrow)-ROW(PLE.firstrow))),0,IF(OFFSET(PLE!$G$14,$M41,BG$13)="",10^12,OFFSET(PLE!$G$14,$M41,BG$13)))) -> 1000000000000
